Workbook

Sheet CNV R640 1
D1: TOTALE MEPA | H1: =G10 -> 0
A5: POWEREDGE R640
F7: Totale Server e Opzioni | G7: =F18*SRV_A+G70+G73 -> 0
F8: Totale Ulteriori Opzioni
F10: TOTALE CONVENZIONE | G10: =G8+G7 -> 0
A11: Components: Server DELL PowerEdge R640 (1CPU Intel® Xeon® Silver 4114, 32GB RDIMM, 2xHDD 600GB 10K RPM SAS 12Gbps 2.5in)
B15: Category: Server
B16: Quantity: | F16: 1720
F17: =SUM(F21:F189) -> 0 | G17: =SUM(G21:G189) -> 0
F18: =SUM(F16:F17) -> 1720
B19: Base
B20: PowerEdge R640 Server, 8HDD | C20: 1 | E20: [210-AKWU][329-BDKC]
B22: Configurazione dello chassis
B23: 2.5 Chassis with up to 8 Hard Drives and 2PCIe slots | C23: 1 | E23: [321-BCQJ]
B25: Processore
B26: Intel® Xeon® Silver 4114 2.2G, 10C/20T, 9.6GT/s 2UPI, 14M Cache, Turbo, HT (85W) | C26: 1 | E26: [338-BLUS]
B28: Processore aggiuntivo
B29: No Additional Processor | C29: =VLOOKUP($B$29, CPU_A, 2, FALSE) -> 0 | D29: =VLOOKUP($B$29, CPU_A, 3, FALSE) ->  | E29: =VLOOKUP($B$29, CPU_A, 5, FALSE) -> [374-BBBX] | F29: =VLOOKUP(B29, CPU_A, 15, FALSE) -> 0
B31: Processor Thermal Configuration
B32: Standard 1U Heatsink | C32: 1 | E32: [412-AAIQ]
B33: =VLOOKUP($B$29, CPU_A, 6, FALSE) ->  | C33: =VLOOKUP($B$29, CPU_A, 7, FALSE) ->  | E33: =VLOOKUP($B$29, CPU_A, 8, FALSE) -> 
B35: Tipo di configurazione memoria
B36: Performance Optimized | C36: 1 | E36: [370-AAIP]
B38: Memoria Totale in GB | C38: =IF(F29=728,IF(B39=32,"ATTENZIONE: AUMENTARE LA RAM",""),"") -> 
B39: 32
B41: Tipo e velocità della memoria DIMM
B42: 2667MT/s RDIMMs | C42: 1 | E42: [370-ADNU]
B44: Capacità di memoria
B45: =IF($B$29="No Additional Processor",VLOOKUP($B$39, MEM_A1, 8, FALSE),VLOOKUP($B$39, MEM_A2, 8, FALSE)) -> Dell 32 GB Modulo di memoria - RDIMM 2666MHz | C45: =IF($B$29="No Additional Processor",VLOOKUP($B$39, MEM_A1, 9, FALSE),VLOOKUP($B$39, MEM_A2, 9, FALSE)) -> 1 | E45: =IF($B$29="No Additional Processor",VLOOKUP($B$39, MEM_A1, 10, FALSE),VLOOKUP($B$39, MEM_A2, 10, FALSE)) -> [370-ADNF]
B47: =IF($B$29="No Additional Processor",VLOOKUP($B$39, MEM_A1, 2, FALSE),VLOOKUP($B$39, MEM_A2, 2, FALSE)) ->  | C47: =IF($B$29="No Additional Processor",VLOOKUP($B$39, MEM_A1, 3, FALSE),VLOOKUP($B$39, MEM_A2, 3, FALSE)) ->  | D47: =IF($B$29="No Additional Processor",VLOOKUP($B$39, MEM_A1, 4, FALSE),VLOOKUP($B$39, MEM_A2, 4, FALSE)) ->  | E47: =IF($B$29="No Additional Processor",VLOOKUP($B$39, MEM_A1, 6, FALSE),VLOOKUP($B$39, MEM_A2, 6, FALSE)) ->  | F47: =IF($B$29="No Additional Processor",VLOOKUP($B$39, MEM_A1, 7, FALSE),VLOOKUP($B$39, MEM_A2, 7, FALSE)) -> 
B49: =IF($B$29="No Additional Processor",VLOOKUP($B$39, MEM_A1, 11, FALSE),VLOOKUP($B$39, MEM_A2, 11, FALSE)) ->  | C49: =IF($B$29="No Additional Processor",VLOOKUP($B$39, MEM_A1, 12, FALSE),VLOOKUP($B$39, MEM_A2, 12, FALSE)) ->  | D49: =IF($B$29="No Additional Processor",VLOOKUP($B$39, MEM_A1, 13, FALSE),VLOOKUP($B$39, MEM_A2, 13, FALSE)) ->  | E49: =IF($B$29="No Additional Processor",VLOOKUP($B$39, MEM_A1, 15, FALSE),VLOOKUP($B$39, MEM_A2, 15, FALSE)) ->  | F49: =IF($B$29="No Additional Processor",VLOOKUP($B$39, MEM_A1, 16, FALSE),VLOOKUP($B$39, MEM_A2, 16, FALSE)) -> 
B51: Sistema operativo preinstallato
B52: No Operating System | C52: =VLOOKUP($B$52, OS_A, 2, FALSE) ->  | D52: =VLOOKUP($B$52, OS_A, 3, FALSE) ->  | E52: =VLOOKUP($B$52, OS_A, 5, FALSE) -> [611-BBBF] | F52: =VLOOKUP($B$52, OS_A, 6, FALSE) -> 
B53: =IF($B$29="No Additional Processor",VLOOKUP($B$52, OS_A, 20, FALSE),VLOOKUP($B$52, OS_A2, 20, FALSE)) ->  | C53: =IF($B$29="No Additional Processor",VLOOKUP($B$52, OS_A, 21, FALSE),VLOOKUP($B$52, OS_A2, 21, FALSE)) -> 0 | D53: =IF($B$29="No Additional Processor",VLOOKUP($B$52, OS_A, 22, FALSE),VLOOKUP($B$52, OS_A2, 22, FALSE)) ->  | E53: =IF($B$29="No Additional Processor",VLOOKUP($B$52, OS_A, 24, FALSE),VLOOKUP($B$52, OS_A2, 24, FALSE)) ->  | F53: =IF($B$29="No Additional Processor",VLOOKUP($B$52, OS_A, 25, FALSE),VLOOKUP($B$52, OS_A2, 25, FALSE)) -> 
B55: OS Media Kits
B56: No Media Required | C56: 1 | E56: [605-BBFN]
B58: Client Access Licenses
B59: =VLOOKUP($B$52, OS_A, 8, FALSE) -> None | D59: =VLOOKUP($B$52, OS_A, 10, FALSE) ->  | E59: =VLOOKUP($B$52, OS_A, 12, FALSE) ->  | F59: =VLOOKUP($B$52, OS_A, 13, FALSE)*C59 -> 0
B61: =VLOOKUP($B$52, OS_A, 14, FALSE) -> None | D61: =VLOOKUP($B$52, OS_A, 16, FALSE) ->  | E61: =VLOOKUP($B$52, OS_A, 18, FALSE) ->  | F61: =VLOOKUP($B$52, OS_A, 19, FALSE)*C61 -> 0
B63: Sistema operativo SUSE Linux Enterprise Server
B64: None | C64: =VLOOKUP($B$64,SUSE, 2, FALSE) -> 0 | D64: =VLOOKUP($B$64,SUSE, 3, FALSE) ->  | E64: =VLOOKUP($B$64,SUSE, 5, FALSE) ->  | F64: =VLOOKUP($B$64, SUSE, 6, FALSE)*C64 -> 0
B66: Sistema operativo VMware
B67: None | C67: =VLOOKUP($B$67,VMWARE, 2, FALSE)+C29 -> 0 | D67: =VLOOKUP($B$67,VMWARE, 3, FALSE) ->  | E67: =VLOOKUP($B$67,VMWARE, 5, FALSE) ->  | F67: =VLOOKUP($B$67, VMWARE, 6, FALSE)*C67 -> 0
B69: VMware vCenter Server Standard
B70: None | C70: =VLOOKUP($B$70,VMWARE2, 2, FALSE) -> 0 | D70: =VLOOKUP($B$70,VMWARE2, 3, FALSE) ->  | E70: =VLOOKUP($B$70,VMWARE2, 5, FALSE) ->  | G70: =VLOOKUP($B$70, VMWARE2, 6, FALSE)*C70 -> 0
B72: Essentials Plus Kit
B73: None | C73: =IF(SRV_A<4,VLOOKUP($B$73,VMWARE1, 2, FALSE),0) -> 0 | D73: =VLOOKUP($B$73,VMWARE1, 3, FALSE) ->  | E73: =VLOOKUP($B$73,VMWARE1, 5, FALSE) ->  | G73: =VLOOKUP($B$73, VMWARE1, 6, FALSE)*C73 -> 0
B75: Controller RAID
B76: PERC H730P RAID Controller, 2Gb NV Cache, Minicard | C76: 1 | E76: [405-AAQU]
B78: Dischi rigidi (numero massimo totale 8)
B79: 600GB 10K RPM SAS 12Gbps 512n 2.5in Hot-plug Hard Drive | C79: 2 | E79: [400-ASGS]
B81: 600GB 10K RPM SAS 12Gbps 512n 2.5in Hot-plug Hard Drive | D81: =VLOOKUP($B$81, HDD_A,3, FALSE) -> CNV-TS1L1-HD600 | E81: =VLOOKUP($B$81, HDD_A,5, FALSE) -> [400-AUNQ] | F81: =VLOOKUP($B$81, HDD_B,6, FALSE)*C81 -> 0
B83: 1.2TB 10K RPM SAS 12Gbps 512n 2.5in Hot-plug Hard Drive | D83: =VLOOKUP($B$83, HDD_A,3, FALSE) -> CNV-TS1L1-HD1200-U | E83: =VLOOKUP($B$83, HDD_A,5, FALSE) -> [400-ATJL] | F83: =VLOOKUP($B$83, HDD_B,6, FALSE)*C83 -> 0
B85: 1.8TB 10K RPM SAS 12Gbps 512e 2.5in Hot-plug Hard Drive | D85: CNV-TS1L1-HD1800-U | E85: [400-ATJR] | F85: =VLOOKUP($B$85, HDD_B,6, FALSE)*C85 -> 0
B87: 960GB SSD SAS Mix Use 12Gbps 512n 2.5in Hot-plug Drive, PX05SV,3 DWPD,5256 TBW | D87: CNV-TS1L1-SSD800-U | E87: [400-ATLR] | F87: =VLOOKUP($B$87, HDD_B,6, FALSE)*C87 -> 0
B89: 1.92TB SSD SAS Mix Use 12Gbps 512n 2.5in Hot-plug Drive, PX05SV,3 DWPD,10512 TBW | D89: CNV-TS1L1-SSD1920-U | E89: [400-ATNG] | F89: =VLOOKUP($B$89, HDD_B,6, FALSE)*C89 -> 0
B91: DISCHI TOTALI | C91: =SUM(C79:C90) -> 2 | D91: =IF(C91<=8," OK"," ERRORE: Totale n° di dischi superiore al consentito") -> OK
B93: Configurazione RAID
B94: C3 - RAID 1 for H330 (2 HDDs) | C94: 1 | E94: =VLOOKUP($B$94, RAID_A1, 2, FALSE) -> [780-BBJK]
B95: Hot Spare for 300GB HDD | C95: No | H95: =IF(B96="SCRIVERE QUI' LA CONFIGURAZIONE RAID RICHIESTA. R640 1 ","ATTENZIONE COMPILARE IL CAMPO DELLA SCELTA RAID", "") -> ATTENZIONE COMPILARE IL CAMPO DELLA SCELTA RAID
B96: SCRIVERE QUI' LA CONFIGURAZIONE RAID RICHIESTA. R640 1
B97: Configurazione RAID HDD 1TB
C98: 1 | E98: =VLOOKUP($B$98, RAID_A2, 2, FALSE) -> 
B99: Hot Spare for 1TB HDD | C99: No
B101: Impostazioni del BIOS per la gestione dell'alimentazione
B102: Performance BIOS Setting | C102: 1 | E102: [384-BBBL]
B104: Alimentatore
B105: Dual, Hot-plug, Redundant Power Supply (1+1), 750W, Titanium, 200-240VAC | C105: =VLOOKUP(B105,upsell_1, 2, FALSE) -> 1 | D105: =VLOOKUP(B105,upsell_1, 3, FALSE) ->  | E105: =VLOOKUP(B105,upsell_1, 5, FALSE) -> [450-ADWT] | F105: =VLOOKUP(B105,upsell_1, 6, FALSE) -> 0 | G105: =VLOOKUP(B105,upsell_1, 7, FALSE) -> 0
B107: Cavi di alimentazione
B108: Rack Power Cord 2M (C13/C14 12A) | C108: 2 | E108: [450-AADY]
B110: Fans
B111: =VLOOKUP(B29, CPU_A, 12, FALSE) -> 5 Standard Fans for R640 | C111: =VLOOKUP($B$29, CPU_A, 13, FALSE) -> 1 | E111: =VLOOKUP($B$29, CPU_A, 14, FALSE) -> [384-BBPR]
B113: TPM Module
B114: Trusted Platform Module 1.2 | C114: 1 | E114: [461-AAEL]
B116: Embedded Systems Management
B117: iDRAC9,Enterprise | C117: 1 | E117: [385-BBKT]
B119: PCIe Riser
B120: Riser Config 4, 2x16 LP | C120: 1 | E120: [330-BBGY]
B122: Adattatore di rete
B123: Intel Ethernet i350 QP 1Gb Network Daughter Card | C123: =VLOOKUP($B$123,upsell_1, 2, FALSE) -> 1 | D123: =VLOOKUP($B$123,upsell_1, 3, FALSE) ->  | E123: =VLOOKUP($B$123,upsell_1, 5, FALSE) -> [540-BBCB] | F123: =VLOOKUP($B$123,upsell_1, 7, FALSE) -> 0
B125: Modulo Doppia SD
B126: None | C126: =VLOOKUP($B$126,upsell_1, 2, FALSE) -> 0 | D126: =VLOOKUP($B$126,upsell_1, 3, FALSE) ->  | E126: =VLOOKUP($B$126,upsell_1, 4, FALSE) ->  | F126: =VLOOKUP($B$126,upsell_1, 7, FALSE) -> 0
B128: Additional Card for PCIe Slot 1 (Low Profile)
B129: None | C129: =VLOOKUP($B$129, PCI_A1, 2, FALSE) ->  | D129: =VLOOKUP($B$129, PCI_A1, 3, FALSE) ->  | E129: =VLOOKUP($B$129, PCI_A1, 5, FALSE) ->  | F129: =VLOOKUP($B$129, PCI_A1, 6, FALSE) ->  | G129: =VLOOKUP($B$129, PCI_A1, 7, FALSE) -> 0
B131: Additional Card for PCIe Slot 2 (Low Profile)
B132: None | C132: =VLOOKUP($B$132, PCI_A1, 2, FALSE) ->  | D132: =VLOOKUP($B$132, PCI_A1, 3, FALSE) ->  | E132: =VLOOKUP($B$132, PCI_A1, 5, FALSE) ->  | F132: =VLOOKUP($B$132, PCI_A1, 6, FALSE) ->  | G132: =VLOOKUP($B$132, PCI_A1, 7, FALSE) -> 0
B134: Pannello frontale
B135: No Bezel Option | C135: =VLOOKUP(B135,upsell_1, 2, FALSE) -> 1 | D135: =VLOOKUP(B135,upsell_1, 3, FALSE) ->  | E135: =VLOOKUP(B135,upsell_1, 5, FALSE) -> [350-BBBW] | F135: =VLOOKUP(B135,upsell_1, 6, FALSE) -> 0 | G135: =VLOOKUP(B135,upsell_1, 7, FALSE) -> 0
B137: Guide per rack
B138: ReadyRails™ Sliding Rails Without Cable Management Arm 1U | C138: =VLOOKUP(B138,upsell_1, 2, FALSE) -> 1 | D138: =VLOOKUP(B138,upsell_1, 3, FALSE) ->  | E138: =VLOOKUP(B138,upsell_1, 5, FALSE) -> [770-BBBC] | F138: =VLOOKUP(B138,upsell_1, 6, FALSE) -> 0 | G138: =VLOOKUP(B138,upsell_1, 7, FALSE) -> 0
B140: Unità ottica interna
B141: No Internal Optical Drive for 8 HDD Chassis | C141: 1 | E141: [429-AAQN]
B143: Accessori Server
B144: PowerEdge SFP+, 10GbE SR/SX, Optical Tranceiver, LC Connector, for Intel and Broadcom,CusKit | C144: =(VLOOKUP(B132,PCI_A2,9,FALSE))+((VLOOKUP(B129,PCI_A1,9,FALSE))) -> 0 | E144: [407-BBQE]
B146: Sistema documentazione
B147: Electronic System Documentation and OpenManage DVD Kit | C147: 1 | E147: [343-BBDK]
B149: SHIPPING
B150: R630 Shipping - 8 Drive Chassis, EMEA1 (English/French/German/Spanish/Russian/Hebrew) | C150: 1 | E150: [340-AMIN]
B152: Order Information
B153: PowerEdge Order - EMEA | C153: 1 | E153: [800-11671]
B155: Base warranty
B156: 3Yr Basic Warranty - Next Business Day - Minimum Warranty | C156: 1 | E156: [709-12767][709-12768]
B158: Servizi di assitenza
B159: Dell Channel Order - Service Info only | C159: 1 | E159: [710-31085]
B161: Estenzione di Garanzia
B162: None | C162: =VLOOKUP($B$162, SO_A1, 2, FALSE) ->  | D162: =VLOOKUP($B$162, SO_A1, 3, FALSE) ->  | E162: =VLOOKUP($B$162, SO_A1, 5, FALSE) ->  | F162: =VLOOKUP($B$162, SO_A1, 6, FALSE) -> 
B164: Protezione dei dati - Keep Your Hard Drive
B165: None | C165: =VLOOKUP($B$165, SO_A2, 2, FALSE) ->  | D165: =VLOOKUP($B$165, SO_A2, 3, FALSE) ->  | E165: =VLOOKUP($B$165, SO_A2,5, FALSE) ->  | F165: =VLOOKUP($B$165, SO_A2, 6, FALSE) -> 
B167: Servizi di Installazione
B168: No Installation Service Selected | C168: 1 | E168: [683-11870]
B170: Channel only - Support Extension
B171: Channel 39M Basic Warranty - Next Business Day | C171: 1 | E171: [723-28776]
B173: Warranty Upgrades - Non-Std/Local POS
B174: CSTM CONSIP - 39M Onsite Labor Support for CRU for Servers with Basic Warranty | C174: 1 | E174: [681-24467]

Sheet CNV R740 1
D1: TOTALE MEPA | H1: =G10 -> 0
A5: POWEREDGE R740
F7: Totale Server e Opzioni | G7: =F17*SRV_B1.1+G70+G73 -> 0
F8: Totale Ulteriori Opzioni | G8: =G16*SRV_B1.1-(G73*SRV_B1.1)+G73-(SRV_B1.1*G70)+G70 -> 0
F10: TOTALE CONVENZIONE | G10: =G8+G7 -> 0
A11: Components: Server DELL PowerEdge R740 (1CPU Intel® Xeon® Gold 5120, 64GB RDIMM, 2xHDD 600GB 10K RPM SAS 12Gbps 2.5in)
B15: Category: Server | F15: =2371 -> 2371
B16: Quantity: | F16: =SUM(F20:F191) -> 0 | G16: =SUM(G20:G191) -> 0
F17: =SUM(F15:F16) -> 2371
B19: Base
B20: PowerEdge R740 Server | C20: 1 | E20: [210-AKXJ]
B22: Configurazione dello chassis
B23: Chassis with up to 16 x 2.5" SAS/SATA Hard Drives for 1CPU Configuration | C23: 1 | E23: [321-BCSL]
B25: Processore
B26: Intel® Xeon® Gold 5120 2.2G, 14C/28T, 10.4GT/s, 19M Cache, Turbo, HT (105W) | C26: 1 | E26: [338-BLUX]
B28: Processore aggiuntivo
B29: No Additional Processor | C29: =VLOOKUP($B$29, CPU_B.1, 2, FALSE) -> 0 | D29: =VLOOKUP($B$29, CPU_B.1, 3, FALSE) ->  | E29: =VLOOKUP($B$29, CPU_B.1, 5, FALSE) -> [374-BBBX] | F29: =VLOOKUP(B29, CPU_B.1, 15, FALSE) -> 0
B31: Processor Thermal Configuration
B32: 1 CPU Standard | C32: 1 | E32: [370-ABWF][374-BBHM][750-AAEL]
B33: =VLOOKUP($B$29, CPU_B, 6, FALSE) ->  | C33: =VLOOKUP($B$29, CPU_B, 7, FALSE) ->  | E33: =VLOOKUP($B$29, CPU_B, 8, FALSE) -> 
B35: Tipo di configurazione memoria
B36: Performance Optimized | C36: 1 | E36: [370-AAIP]
B38: Memoria Totale in GB | D38: =IF(('CNV R740 1'!$D$12=0),"",'CNV R740 1'!#REF!) -> 
B39: 64
B41: Tipo e velocità della memoria DIMM
B42: 2666MT/s RDIMMs | C42: 1 | E42: [370-ADNU]
B44: Capacità di memoria
B45: =IF($B$29="No Additional Processor",VLOOKUP($B$39, MEM_B1, 8, FALSE),VLOOKUP($B$39, MEM_B2, 8, FALSE)) -> Dell 32 GB Modulo di memoria - RDIMM 2666MHz | C45: =IF($B$29="No Additional Processor",VLOOKUP($B$39, MEM_B1, 9, FALSE),VLOOKUP($B$39, MEM_B2, 9, FALSE)) -> 2 | E45: =IF($B$29="No Additional Processor",VLOOKUP($B$39, MEM_B1, 10, FALSE),VLOOKUP($B$39, MEM_B2, 10, FALSE)) -> [370-ADNF]
B47: =IF($B$29="No Additional Processor",VLOOKUP($B$39, MEM_B1, 2, FALSE),VLOOKUP($B$39, MEM_B2, 2, FALSE)) ->  | C47: =IF($B$29="No Additional Processor",VLOOKUP($B$39, MEM_B1, 3, FALSE),VLOOKUP($B$39, MEM_B2, 3, FALSE)) ->  | D47: =IF($B$29="No Additional Processor",VLOOKUP($B$39, MEM_B1, 4, FALSE),VLOOKUP($B$39, MEM_B2, 4, FALSE)) ->  | E47: =IF($B$29="No Additional Processor",VLOOKUP($B$39, MEM_B1, 6, FALSE),VLOOKUP($B$39, MEM_B2, 6, FALSE)) ->  | F47: =IF($B$29="No Additional Processor",VLOOKUP($B$39, MEM_B1, 7, FALSE),VLOOKUP($B$39, MEM_B2, 7, FALSE)) -> 
B49: =IF($B$29="No Additional Processor",VLOOKUP($B$39, MEM_B1, 11, FALSE),VLOOKUP($B$39, MEM_B2, 11, FALSE)) ->  | C49: =IF($B$29="No Additional Processor",VLOOKUP($B$39, MEM_B1, 12, FALSE),VLOOKUP($B$39, MEM_B2, 12, FALSE)) ->  | D49: =IF($B$29="No Additional Processor",VLOOKUP($B$39, MEM_B1, 13, FALSE),VLOOKUP($B$39, MEM_B2, 13, FALSE)) ->  | E49: =IF($B$29="No Additional Processor",VLOOKUP($B$39, MEM_B1, 15, FALSE),VLOOKUP($B$39, MEM_B2, 15, FALSE)) ->  | F49: =IF($B$29="No Additional Processor",VLOOKUP($B$39, MEM_B1, 16, FALSE),VLOOKUP($B$39, MEM_B2, 16, FALSE)) -> 
B51: Sistema operativo preinstallato
B52: No Operating System | C52: =VLOOKUP($B$52, OS_B, 2, FALSE) ->  | D52: =VLOOKUP($B$52, OS_B, 3, FALSE) ->  | E52: =VLOOKUP($B$52, OS_B, 5, FALSE) -> [611-BBBF] | F52: =VLOOKUP($B$52, OS_B, 6, FALSE) -> 
B53: =IF($B$29="No Additional Processor",VLOOKUP($B$52, OS_B, 20, FALSE),VLOOKUP($B$52, OS_B2, 20, FALSE)) ->  | C53: =IF($B$29="No Additional Processor",VLOOKUP($B$52, OS_B, 21, FALSE),VLOOKUP($B$52, OS_B2, 21, FALSE)) -> 0 | D53: =IF($B$29="No Additional Processor",VLOOKUP($B$52, OS_A, 22, FALSE),VLOOKUP($B$52, OS_B2, 22, FALSE)) ->  | E53: =IF($B$29="No Additional Processor",VLOOKUP($B$52, OS_B, 24, FALSE),VLOOKUP($B$52, OS_B2, 24, FALSE)) ->  | F53: =IF($B$29="No Additional Processor",VLOOKUP($B$52, OS_B, 25, FALSE),VLOOKUP($B$52, OS_B2, 25, FALSE)) -> 
B55: OS Media Kits
B56: No Media Required | C56: 1 | E56: [605-BBFN]
B58: Client Access Licenses
B59: =VLOOKUP($B$52, OS_B, 8, FALSE) -> None | D59: =VLOOKUP($B$52, OS_A, 10, FALSE) ->  | E59: =VLOOKUP($B$52, OS_A, 12, FALSE) ->  | F59: =VLOOKUP($B$52, OS_A, 13, FALSE)*C59 -> 0
B61: =VLOOKUP($B$52, OS_A, 14, FALSE) -> None | D61: =VLOOKUP($B$52, OS_A, 16, FALSE) ->  | E61: =VLOOKUP($B$52, OS_A, 18, FALSE) ->  | F61: =VLOOKUP($B$52, OS_A, 19, FALSE)*C61 -> 0
B63: Sistema operativo SUSE Linux Enterprise Server
B64: None | C64: =VLOOKUP($B$64,SUSE, 2, FALSE) -> 0 | D64: =VLOOKUP($B$64,SUSE, 3, FALSE) ->  | E64: =VLOOKUP($B$64,SUSE, 5, FALSE) ->  | F64: =VLOOKUP($B$64, SUSE, 6, FALSE)*C64 -> 0
B66: Sistema operativo VMware
B67: None | C67: =VLOOKUP($B$67,VMWARE, 2, FALSE)+C29 -> 0 | D67: =VLOOKUP($B$67,VMWARE, 3, FALSE) ->  | E67: =VLOOKUP($B$67,VMWARE, 5, FALSE) ->  | F67: =VLOOKUP($B$67, VMWARE, 6, FALSE)*C67 -> 0
B69: VMware vCenter Server Standard
B70: None | C70: =VLOOKUP($B$70,VMWARE2, 2, FALSE) -> 0 | D70: =VLOOKUP($B$70,VMWARE2, 3, FALSE) ->  | E70: =VLOOKUP($B$70,VMWARE2, 5, FALSE) ->  | G70: =VLOOKUP($B$70, VMWARE2, 6, FALSE)*C70 -> 0
B72: Essentials Plus Kit
B73: None | C73: =IF(SRV_A<4,VLOOKUP($B$73,VMWARE1, 2, FALSE),0) -> 0 | D73: =VLOOKUP($B$73,VMWARE1, 3, FALSE) ->  | E73: =VLOOKUP($B$73,VMWARE1, 5, FALSE) ->  | G73: =VLOOKUP($B$73, VMWARE1, 6, FALSE)*C73 -> 0
B75: Controller
B76: PERC H730P RAID Controller, 2Gb NV Cache, Minicard | C76: =VLOOKUP($B$76,PERC, 2, FALSE) -> 0 | D76: =VLOOKUP($B$76,PERC, 3, FALSE) ->  | E76: =VLOOKUP($B$76,PERC, 4, FALSE) ->  | F76: =VLOOKUP($B$76,PERC, 7, FALSE) -> 0
B78: Dischi rigidi (numero massimo totale 16)
B79: 600GB 10K RPM SAS 12Gbps 512n 2.5in Hot-plug Hard Drive | C79: 2 | E79: [400-AJPK]
B81: 600GB 10K RPM SAS 12Gbps 512n 2.5in Hot-plug Hard Drive | D81: =VLOOKUP($B$81, HDD_A,3, FALSE) -> CNV-TS1L1-HD600 | E81: =VLOOKUP($B$81, HDD_A,5, FALSE) -> [400-AUNQ] | F81: =VLOOKUP($B$81, HDD_B,6, FALSE)*C81 -> 0
B83: 1.2TB 10K RPM SAS 12Gbps 512n 2.5in Hot-plug Hard Drive | D83: =VLOOKUP($B$83, HDD_A,3, FALSE) -> CNV-TS1L1-HD1200-U | E83: =VLOOKUP($B$83, HDD_A,5, FALSE) -> [400-ATJL] | F83: =VLOOKUP($B$83, HDD_B,6, FALSE)*C83 -> 0
B85: 1.8TB 10K RPM SAS 12Gbps 512e 2.5in Hot-plug Hard Drive | D85: CNV-TS1L1-HD1800 | E85: [400-AJQP] | F85: =VLOOKUP($B$85, HDD_B,6, FALSE)*C85 -> 0
B87: 960GB SSD SAS Mix Use 12Gbps 512n 2.5in Hot-plug Drive, PX05SV,3 DWPD,5256 TBW | D87: CNV-TS1L1-SSD800 | E87: [400-ANNX] | F87: =VLOOKUP($B$87, HDD_B,6, FALSE)*C87 -> 0
B89: 1.92TB SSD SAS Mix Use 12Gbps 512n 2.5in Hot-plug Drive, PX05SV,3 DWPD,10512 TBW | D89: CNV-TS1L1-SSD1920 | E89: [400-ANMN] | F89: =VLOOKUP($B$89, HDD_B,6, FALSE)*C89 -> 0
B91: DISCHI TOTALI | C91: =SUM(C79:C90) -> 2 | D91: =IF(C91<=16," OK"," ERRORE: Totale n° di dischi superiore al consentito") -> OK
B93: Configurazione RAID
B94: C3 - RAID 1 for H330 (2 HDDs) | C94: 1 | E94: =VLOOKUP($B$94, RAID_B1, 2, FALSE) -> [780-BBJK]
B95: Hot Spare for 300GB HDD | C95: No
B96: SCRIVERE QUI' LA CONFIGURAZIONE RAID RICHIESTA. R740 1 | H96: =IF(B96="SCRIVERE QUI' LA CONFIGURAZIONE RAID RICHIESTA. R740 1 ","ATTENZIONE COMPILARE IL CAMPO DELLA SCELTA RAID", "") -> ATTENZIONE COMPILARE IL CAMPO DELLA SCELTA RAID
B97: Configurazione RAID HDD 1TB
C98: 1 | E98: =VLOOKUP($B$98, RAID_B2, 2, FALSE) -> 
B99: Hot Spare for 1TB HDD | C99: No
B101: Impostazioni del BIOS per la gestione dell'alimentazione
B102: Performance BIOS Setting | C102: 1 | E102: [384-BBBL]
B104: Alimentatore
B105: Dual, Hot-plug, Redundant Power Supply (1+1), 750W, Titanium, 200-240VAC | C105: 1 | E105: [450-ADWT]
B107: Cavi di alimentazione
B108: Rack Power Cord 2M (C13/C14 12A) | C108: 2 | E108: [450-AADY]
B110: Fans
B111: =VLOOKUP(B29, CPU_B.1, 9, FALSE) -> 4 Standard Fans for R740/740XD | C111: =VLOOKUP($B$29, CPU_B.1, 10, FALSE) -> 1 | E111: =VLOOKUP($B$29, CPU_B.1, 11, FALSE) -> [384-BBQB]
B113: PCIe Riser
B114: =VLOOKUP(B29, CPU_B.1, 12, FALSE) -> Riser Config 1, 4 x8 slots | C114: =VLOOKUP($B$29, CPU_B.1, 13, FALSE) -> 1 | E114: =VLOOKUP($B$29, CPU_B.1, 14, FALSE) -> [330-BBGZ]
B116: TPM Module
B117: Trusted Platform Module 1.2 | C117: 1 | E117: [461-AAEL]
B119: Embedded Systems Management
B120: iDRAC9,Enterprise | C120: 1 | E120: [385-BBKT]
B122: Adattatore di rete
B123: Broadcom 5720 QP 1Gb Network Daughter Card | C123: 1 | E123: [540-BBBW]
B125: Modulo Doppia SD
B126: None | C126: =VLOOKUP($B$126,upsell_1, 2, FALSE) -> 0 | D126: =VLOOKUP($B$126,upsell_1, 3, FALSE) ->  | E126: =VLOOKUP($B$126,upsell_1, 4, FALSE) ->  | F126: =VLOOKUP($B$126,upsell_1, 7, FALSE) -> 0
B128: Additional Card for PCIe Slot 1 (Full height) (CPU 1)
B129: Broadcom 5720 DP 1Gb Network Interface Card | D129: ="" ->  | E129: 540-BBCX
B131: Additional Card for PCIe Slot 2 (Full height) (CPU 1)
B132: None | C132: =VLOOKUP(B132, PCI_B1.1, 2, FALSE) ->  | D132: =VLOOKUP(B132, PCI_B1.1, 3, FALSE) ->  | E132: =VLOOKUP(B132, PCI_B1.1, 5, FALSE) ->  | F132: =VLOOKUP(B132, PCI_B1.1, 6, FALSE) ->  | G132: =VLOOKUP(B132, PCI_B1.1, 7, FALSE) -> 0
B134: Additional Card for PCIe Slot 3 (Full height) (CPU 1)
B135: None | C135: =VLOOKUP(B135, PCI_B1.1, 2, FALSE) ->  | D135: =VLOOKUP(B135, PCI_B1.1, 3, FALSE) ->  | E135: =VLOOKUP(B135, PCI_B1.1, 5, FALSE) ->  | F135: =VLOOKUP(B135, PCI_B1.1, 6, FALSE) ->  | G135: =VLOOKUP(B135, PCI_B1.1, 7, FALSE) -> 0
B137: Additional Card for PCIe Slot 4 (Full height) (CPU 2)
B138: None | C138: =VLOOKUP(B138, PCI_B1.1, 2, FALSE) ->  | D138: =VLOOKUP(B138, PCI_B1.1, 3, FALSE) ->  | E138: =VLOOKUP(B138, PCI_B1.1, 5, FALSE) ->  | F138: =VLOOKUP(B138, PCI_B1.1, 6, FALSE) ->  | G138: =VLOOKUP(B138, PCI_B1.1, 7, FALSE) -> 0
B140: Additional Card for PCIe Slot 5 (Full height) (CPU 2)
B141: None | C141: =VLOOKUP(B141, PCI_B1.1, 2, FALSE) ->  | D141: =VLOOKUP(B141, PCI_B1.1, 3, FALSE) ->  | E141: =VLOOKUP(B141, PCI_B1.1, 5, FALSE) ->  | F141: =VLOOKUP(B141, PCI_B1.1, 6, FALSE) ->  | G141: =VLOOKUP(B141, PCI_B1.1, 7, FALSE) -> 0
B143: Additional Card for PCIe Slot 6 (Low Profile) (CPU 1)
B144: None | C144: =VLOOKUP(B144,PCI_B5, 2, FALSE) ->  | D144: =VLOOKUP(B144, PCI_B5, 3, FALSE) ->  | E144: =VLOOKUP($B$144,PCI_B5,5,FALSE) ->  | F144: =VLOOKUP($B$144,PCI_B5,6,FALSE) ->  | G144: =VLOOKUP($B$144,PCI_B5,7,FALSE) -> 0
B146: Additional Card for PCIe Slot 7 (Full height) (CPU 2)
B147: None | C147: =VLOOKUP(B147, PCI_B1.1, 2, FALSE) ->  | D147: =VLOOKUP(B147, PCI_B1.1, 3, FALSE) ->  | E147: =VLOOKUP(B147, PCI_B1.1, 5, FALSE) ->  | F147: =VLOOKUP(B147, PCI_B1.1, 6, FALSE) ->  | G147: =VLOOKUP(B147, PCI_B1.1, 7, FALSE) -> 0
B149: Additional Card for PCIe Slot 8 (Full height) (CPU 2)
B150: None | C150: =VLOOKUP(B150, PCI_B1.1, 2, FALSE) ->  | D150: =VLOOKUP(B150, PCI_B1.1, 3, FALSE) ->  | E150: =VLOOKUP(B150, PCI_B1.1, 5, FALSE) ->  | F150: =VLOOKUP(B150, PCI_B1.1, 6, FALSE) ->  | G150: =VLOOKUP(B150, PCI_B1.1, 7, FALSE) -> 0
B152: Pannello frontale
B153: No Bezel Option | C153: =VLOOKUP(B153,upsell_1, 2, FALSE) -> 1 | D153: =VLOOKUP(B153,upsell_1, 3, FALSE) ->  | E153: =VLOOKUP(B153,upsell_1, 5, FALSE) -> [350-BBBW] | F153: =VLOOKUP(B153,upsell_1, 6, FALSE) -> 0 | G153: =VLOOKUP(B153,upsell_1, 7, FALSE) -> 0
B155: Guide per rack
B156: ReadyRails™ Sliding Rails Without Cable Management Arm 2U | C156: =VLOOKUP(B156,upsell_1, 2, FALSE) -> 1 | D156: =VLOOKUP(B156,upsell_1, 3, FALSE) ->  | E156: =VLOOKUP(B156,upsell_1, 5, FALSE) -> [770-BBBQ] | F156: =VLOOKUP(B156,upsell_1, 6, FALSE) -> 0 | G156: =VLOOKUP(B156,upsell_1, 7, FALSE) -> 0
B158: Server Accessories
B159: PowerEdge SFP+, 10GbE SR/SX, Optical Tranceiver, LC Connector, for Intel and Broadcom,CusKit | C159: =(VLOOKUP(B147,PCI_A2,8,FALSE))+((VLOOKUP(B132,PCI_B1.1,8,FALSE))) ->  | E159: [407-BBQE]
B161: System Documentation
B162: Electronic System Documentation and OpenManage DVD Kit | C162: 1 | E162: [631-AAJG]
B164: SHIPPING
B165: PowerEdge R730 Shipping EMEA1 (English/French/German/Spanish/Russian/Hebrew) | C165: 1 | E165: 340-ALXX
B167: Order Information
B168: PowerEdge Order - EMEA | C168: 1 | E168: [800-11671]
B170: Base warranty
B171: 3Yr Basic Warranty - Next Business Day - Minimum Warranty | C171: 1 | E171: [709-12777][709-12778]
B173: Servizi di assitenza
B174: Dell Channel Order - Service Info only | C174: 1 | E174: [710-31085]
B176: Aggiornamenti della garanzia
B177: None | C177: =VLOOKUP($B$177, SO_B1,2, FALSE) ->  | D177: =VLOOKUP($B$177, SO_B1, 3, FALSE) ->  | E177: =VLOOKUP($B$177, SO_B1, 5, FALSE) ->  | F177: =VLOOKUP($B$177, SO_B1, 6, FALSE) -> 
B179: Protezione dei dati - Keep Your Hard Drive
B180: None | C180: =VLOOKUP($B$180, SO_B2, 2, FALSE) ->  | D180: =VLOOKUP($B$180, SO_B2, 3, FALSE) ->  | E180: =VLOOKUP($B$180, SO_B2,5, FALSE) ->  | F180: =VLOOKUP($B$180, SO_B2, 6, FALSE) -> 
B182: Servizi di Installazione
B183: No Installation Service Selected | C183: 1 | E183: [683-11870]
B185: Channel only - Support Extension
B186: Channel 39M Basic Warranty - Next Business Day | C186: 1 | E186: [723-38675]
B188: Warranty Upgrades - Non-Std/Local POS
B189: CSTM CONSIP - 39M Onsite Labor Support for CRU for Servers with Basic Warranty | C189: 1 | E189: [681-24467]

Sheet CNV R740xd 1
D1: TOTALE MEPA | H1: =G10 -> 0
A5: POWEREDGE R740xd
F7: Totale Server e Opzioni | G7: =F17*SRV_B+G71+G74 -> 0
F8: Totale Ulteriori Opzioni | G8: =G16*SRV_B1.2-(G73*SRV_B1.1)+G73-(SRV_B1.2*G70)+G70 -> 0
F10: TOTALE CONVENZIONE | G10: =G8+G7 -> 0
A11: Components: Server DELL PowerEdge R740xd (1CPU Intel® Xeon® Gold 5120, 64GB RDIMM, 2xHDD 600GB 10K RPM SAS 12Gbps 2.5in)
B15: Category: Server | F15: =2371 -> 2371
B16: Quantity: | F16: =SUM(F20:F206) -> 0 | G16: =SUM(G20:G206) -> 0
F17: =SUM(F15:F16) -> 2371
B19: Base
B20: PowerEdge R740XD Server | C20: 1 | E20: [210-AKZR]
B22: Configurazione dello chassis
B23: Chassis with Up to 24 x 2.5” Hard Drives for 1CPU Configuration | C23: 1 | E23: [321-BCPX]
B25: Processore
B26: Intel® Xeon® Gold 5120 2.2G, 14C/28T, 10.4GT/s, 19M Cache, Turbo, HT (105W) DDR4-2400 | C26: 1 | E26: [338-BLUX]
B28: Processore aggiuntivo
B29: No Additional Processor | C29: =VLOOKUP($B$29, CPU_B, 2, FALSE) -> 0 | D29: =VLOOKUP($B$29, CPU_B, 3, FALSE) ->  | E29: =VLOOKUP($B$29, CPU_B, 5, FALSE) -> [374-BBBX] | F29: =VLOOKUP(B29, CPU_B, 15, FALSE) -> 0
B31: Processor Thermal Configuration
B32: 1 CPU Standard | C32: 1 | E32: [370-ABWF][374-BBHM][750-AAEL]
B33: =VLOOKUP($B$29, CPU_B, 6, FALSE) ->  | C33: =VLOOKUP($B$29, CPU_B, 7, FALSE) ->  | E33: =VLOOKUP($B$29, CPU_B, 8, FALSE) -> 
B35: Tipo di configurazione memoria
B36: Performance Optimized | C36: 1 | E36: [370-AAIP]
B38: Memoria Totale in GB | D38: =IF(('CNV R740 1'!$D$12=0),"",'CNV R740 1'!#REF!) -> 
B39: 64
B41: Tipo e velocità della memoria DIMM
B42: 2666MT/s RDIMMs | C42: 1 | E42: [370-ADNU]
B44: Capacità di memoria
B45: =IF($B$29="No Additional Processor",VLOOKUP($B$39, MEM_B1, 8, FALSE),VLOOKUP($B$39, MEM_B2, 8, FALSE)) -> Dell 32 GB Modulo di memoria - RDIMM 2666MHz | C45: =IF($B$29="No Additional Processor",VLOOKUP($B$39, MEM_B1, 9, FALSE),VLOOKUP($B$39, MEM_B2, 9, FALSE)) -> 2 | E45: =IF($B$29="No Additional Processor",VLOOKUP($B$39, MEM_B1, 10, FALSE),VLOOKUP($B$39, MEM_B2, 10, FALSE)) -> [370-ADNF]
B47: =IF($B$29="No Additional Processor",VLOOKUP($B$39, MEM_B1, 2, FALSE),VLOOKUP($B$39, MEM_B2, 2, FALSE)) ->  | C47: =IF($B$29="No Additional Processor",VLOOKUP($B$39, MEM_B1, 3, FALSE),VLOOKUP($B$39, MEM_B2, 3, FALSE)) ->  | D47: =IF($B$29="No Additional Processor",VLOOKUP($B$39, MEM_B1, 4, FALSE),VLOOKUP($B$39, MEM_B2, 4, FALSE)) ->  | E47: =IF($B$29="No Additional Processor",VLOOKUP($B$39, MEM_B1, 6, FALSE),VLOOKUP($B$39, MEM_B2, 6, FALSE)) ->  | F47: =IF($B$29="No Additional Processor",VLOOKUP($B$39, MEM_B1, 7, FALSE),VLOOKUP($B$39, MEM_B2, 7, FALSE)) -> 
B49: =IF($B$29="No Additional Processor",VLOOKUP($B$39, MEM_B1, 11, FALSE),VLOOKUP($B$39, MEM_B2, 11, FALSE)) ->  | C49: =IF($B$29="No Additional Processor",VLOOKUP($B$39, MEM_B1, 12, FALSE),VLOOKUP($B$39, MEM_B2, 12, FALSE)) ->  | D49: =IF($B$29="No Additional Processor",VLOOKUP($B$39, MEM_B1, 13, FALSE),VLOOKUP($B$39, MEM_B2, 13, FALSE)) ->  | E49: =IF($B$29="No Additional Processor",VLOOKUP($B$39, MEM_B1, 15, FALSE),VLOOKUP($B$39, MEM_B2, 15, FALSE)) ->  | F49: =IF($B$29="No Additional Processor",VLOOKUP($B$39, MEM_B1, 16, FALSE),VLOOKUP($B$39, MEM_B2, 16, FALSE)) -> 
B51: Sistema operativo preinstallato
B52: No Operating System | C52: =VLOOKUP($B$52, OS_B, 2, FALSE) ->  | D52: =VLOOKUP($B$52, OS_B, 3, FALSE) ->  | E52: =VLOOKUP($B$52, OS_B, 5, FALSE) -> [611-BBBF] | F52: =VLOOKUP($B$52, OS_B, 6, FALSE) -> 
B53: =IF($B$29="No Additional Processor",VLOOKUP($B$52, OS_B, 20, FALSE),VLOOKUP($B$52, OS_B2, 20, FALSE)) ->  | C53: =IF($B$29="No Additional Processor",VLOOKUP($B$52, OS_B, 21, FALSE),VLOOKUP($B$52, OS_B2, 21, FALSE)) -> 0 | D53: =IF($B$29="No Additional Processor",VLOOKUP($B$52, OS_A, 22, FALSE),VLOOKUP($B$52, OS_B2, 22, FALSE)) ->  | E53: =IF($B$29="No Additional Processor",VLOOKUP($B$52, OS_B, 24, FALSE),VLOOKUP($B$52, OS_B2, 24, FALSE)) ->  | F53: =IF($B$29="No Additional Processor",VLOOKUP($B$52, OS_B, 25, FALSE),VLOOKUP($B$52, OS_B2, 25, FALSE)) -> 
B55: OS Media Kits
B56: No Media Required | C56: 1 | E56: [605-BBFN]
B59: Client Access Licenses
B60: =VLOOKUP($B$52, OS_B, 8, FALSE) -> None | D60: =VLOOKUP($B$52, OS_A, 10, FALSE) ->  | E60: =VLOOKUP($B$52, OS_A, 12, FALSE) ->  | F60: =VLOOKUP($B$52, OS_A, 13, FALSE)*C60 -> 0
B62: =VLOOKUP($B$52, OS_A, 14, FALSE) -> None | D62: =VLOOKUP($B$52, OS_A, 16, FALSE) ->  | E62: =VLOOKUP($B$52, OS_A, 18, FALSE) ->  | F62: =VLOOKUP($B$52, OS_A, 19, FALSE)*C62 -> 0
B64: Sistema operativo SUSE Linux Enterprise Server
B65: None | C65: =VLOOKUP($B$65,SUSE, 2, FALSE) -> 0 | D65: =VLOOKUP($B$65,SUSE, 3, FALSE) ->  | E65: =VLOOKUP($B$65,SUSE, 5, FALSE) ->  | F65: =VLOOKUP($B$65, SUSE, 6, FALSE)*C65 -> 0
B67: Sistema operativo VMware
B68: None | C68: =VLOOKUP($B$68,VMWARE, 2, FALSE)+C29 -> 0 | D68: =VLOOKUP($B$68,VMWARE, 3, FALSE) ->  | E68: =VLOOKUP($B$68,VMWARE, 5, FALSE) ->  | F68: =VLOOKUP($B$68, VMWARE, 6, FALSE)*C68 -> 0
B70: VMware vCenter Server Standard
B71: None | C71: =VLOOKUP($B$71,VMWARE2, 2, FALSE) -> 0 | D71: =VLOOKUP($B$71,VMWARE2, 3, FALSE) ->  | E71: =VLOOKUP($B$71,VMWARE2, 5, FALSE) ->  | G71: =VLOOKUP($B$71, VMWARE2, 6, FALSE)*C71 -> 0
B73: Essentials Plus Kit
B74: None | C74: =IF(SRV_A<4,VLOOKUP($B$74,VMWARE1, 2, FALSE),0) -> 0 | D74: =VLOOKUP($B$74,VMWARE1, 3, FALSE) ->  | E74: =VLOOKUP($B$74,VMWARE1, 5, FALSE) ->  | G74: =VLOOKUP($B$74, VMWARE1, 6, FALSE)*C74 -> 0
B76: Controller RAID
B77: PERC H730P RAID Controller, 2Gb NV Cache, Minicard | C77: =VLOOKUP($B$77,PERC, 2, FALSE) -> 0 | D77: =VLOOKUP($B$77,PERC, 3, FALSE) ->  | E77: =VLOOKUP($B$77,PERC, 4, FALSE) ->  | F77: =VLOOKUP($B$77,PERC, 7, FALSE) -> 0
B79: Dischi rigidi (numero massimo totale 24)
B80: 600GB 10K RPM SAS 12Gbps 512n 2.5in Hot-plug Hard Drive | C80: 2 | E80: [400-AJPK]
B82: 600GB 10K RPM SAS 12Gbps 512n 2.5in Hot-plug Hard Drive | D82: =VLOOKUP($B$82, HDD_A,3, FALSE) -> CNV-TS1L1-HD600 | E82: =VLOOKUP($B$82, HDD_A,5, FALSE) -> [400-AUNQ] | F82: =VLOOKUP($B$82, HDD_B,6, FALSE)*C82 -> 0
B84: 1.2TB 10K RPM SAS 12Gbps 512n 2.5in Hot-plug Hard Drive | D84: =VLOOKUP($B$84, HDD_A,3, FALSE) -> CNV-TS1L1-HD1200-U | E84: =VLOOKUP($B$84, HDD_A,5, FALSE) -> [400-ATJL] | F84: =VLOOKUP($B$84, HDD_B,6, FALSE)*C84 -> 0
B86: 1.8TB 10K RPM SAS 12Gbps 512e 2.5in Hot-plug Hard Drive | D86: CNV-TS1L1-HD1800 | E86: [400-AJQP] | F86: =VLOOKUP($B$86, HDD_B,6, FALSE)*C86 -> 0
B88: 960GB SSD SAS Mix Use 12Gbps 512n 2.5in Hot-plug Drive, PX05SV,3 DWPD,5256 TBW | D88: CNV-TS1L1-SSD800 | E88: [400-ANNX] | F88: =VLOOKUP($B$88, HDD_B,6, FALSE)*C88 -> 0
B90: 1.92TB SSD SAS Mix Use 12Gbps 512n 2.5in Hot-plug Drive, PX05SV,3 DWPD,10512 TBW | D90: CNV-TS1L1-SSD1920 | E90: [400-ANMN] | F90: =VLOOKUP($B$90, HDD_B,6, FALSE)*C90 -> 0
B92: DISCHI TOTALI | C92: =SUM(C80:C91) -> 2 | D92: =IF(C92<=24," OK"," ERRORE: Totale n° di dischi superiore al consentito") -> OK
B94: Configurazione RAID
B95: C3 - RAID 1 for H330 (2 HDDs) | C95: 1 | E95: =VLOOKUP($B$95, RAID_B1, 2, FALSE) -> [780-BBJK]
B96: Hot Spare for 300GB HDD | C96: No
B97: SCRIVERE QUI' LA CONFIGURAZIONE RAID RICHIESTA. R740XD 1 | H97: =IF(B97="SCRIVERE QUI' LA CONFIGURAZIONE RAID RICHIESTA. R740XD 1 ","ATTENZIONE COMPILARE IL CAMPO DELLA SCELTA RAID", "") -> ATTENZIONE COMPILARE IL CAMPO DELLA SCELTA RAID
B98: Configurazione RAID HDD 1TB
C99: 1 | E99: =VLOOKUP($B$99, RAID_B2, 2, FALSE) -> 
B100: Hot Spare for 1TB HDD | C100: No
B102: Impostazioni del BIOS per la gestione dell'alimentazione
B103: Performance BIOS Setting | C103: 1 | E103: [384-BBBL]
B105: Alimentatore
B106: Dual, Hot-plug, Redundant Power Supply (1+1), 750W, Titanium, 200-240VAC | C106: 1 | E106: [450-ADWT]
B108: Cavi di alimentazione
B109: Rack Power Cord 2M (C13/C14 12A) | C109: 2 | E109: [450-AADY]
B111: Fans
B112: =VLOOKUP(B29, CPU_B, 9, FALSE) -> 4 Standard Fans for R740/740XD | C112: =VLOOKUP($B$29, CPU_B.1, 10, FALSE) -> 1 | E112: =VLOOKUP($B$29, CPU_B.1, 11, FALSE) -> [384-BBQB]
B114: PCIe Riser
B115: =VLOOKUP(B29, CPU_B.1, 12, FALSE) -> Riser Config 1, 4 x8 slots | C115: =VLOOKUP($B$29, CPU_B.1, 13, FALSE) -> 1 | E115: =VLOOKUP($B$29, CPU_B.1, 14, FALSE) -> [330-BBGZ]
B117: TPM Module
B118: Trusted Platform Module 1.2 | C118: 1 | E118: [461-AAEL]
B120: Embedded Systems Management
B121: iDRAC9,Enterprise | C121: 1 | E121: [385-BBKT]
B123: Adattatore di rete
B124: Broadcom 5720 QP 1Gb Network Daughter Card | C124: 1 | E124: [540-BBBW]
B126: Modulo Doppia SD
B127: None | C127: =VLOOKUP($B$127,upsell_1, 2, FALSE) -> 0 | D127: =VLOOKUP($B$127,upsell_1, 3, FALSE) ->  | E127: =VLOOKUP($B$127,upsell_1, 4, FALSE) ->  | F127: =VLOOKUP($B$127,upsell_1, 7, FALSE) -> 0
B129: Additional Card for PCIe Slot 1 (Full height) (CPU 1)
B130: Broadcom 5719 QP 1Gb Network Interface Card | D130: ="" ->  | E130: 540-BBCW
B132: Additional Card for PCIe Slot 2 (Full height) (CPU 1)
B133: None | C133: =VLOOKUP(B133, PCI_B1.1, 2, FALSE) ->  | D133: =VLOOKUP(B133, PCI_B1.1, 3, FALSE) ->  | E133: =VLOOKUP(B133, PCI_B1.1, 5, FALSE) ->  | F133: =VLOOKUP(B133, PCI_B1.1, 6, FALSE) ->  | G133: =VLOOKUP(B133, PCI_B1.1, 7, FALSE) -> 0
B135: Additional Card for PCIe Slot 3 (Full height) (CPU 1)
B136: None | C136: =VLOOKUP(B136, PCI_B1.1, 2, FALSE) ->  | D136: =VLOOKUP(B136, PCI_B1.1, 3, FALSE) ->  | E136: =VLOOKUP(B136, PCI_B1.1, 5, FALSE) ->  | F136: =VLOOKUP(B136, PCI_B1.1, 6, FALSE) ->  | G136: =VLOOKUP(B136, PCI_B1.1, 7, FALSE) -> 0
B138: Additional Card for PCIe Slot 4 (Full height) (CPU 2)
B139: None | C139: =VLOOKUP(B139, PCI_B1.1, 2, FALSE) ->  | D139: =VLOOKUP(B139, PCI_B1.1, 3, FALSE) ->  | E139: =VLOOKUP(B139, PCI_B1.1, 5, FALSE) ->  | F139: =VLOOKUP(B139, PCI_B1.1, 6, FALSE) ->  | G139: =VLOOKUP(B139, PCI_B1.1, 7, FALSE) -> 0
B141: Additional Card for PCIe Slot 5 (Full height) (CPU 2)
B142: None | C142: =VLOOKUP(B142, PCI_B1.1, 2, FALSE) ->  | D142: =VLOOKUP(B142, PCI_B1.1, 3, FALSE) ->  | E142: =VLOOKUP(B142, PCI_B1.1, 5, FALSE) ->  | F142: =VLOOKUP(B142, PCI_B1.1, 6, FALSE) ->  | G142: =VLOOKUP(B142, PCI_B1.1, 7, FALSE) -> 0
B144: Additional Card for PCIe Slot 6 (Low Profile) (CPU 1)
B145: None | C145: =VLOOKUP(B145,PCI_B5, 2, FALSE) ->  | D145: =VLOOKUP(B145, PCI_B5, 3, FALSE) ->  | E145: =VLOOKUP($B$145,PCI_B5,5,FALSE) ->  | F145: =VLOOKUP($B$145,PCI_B5,6,FALSE) ->  | G145: =VLOOKUP($B$145,PCI_B5,7,FALSE) -> 0
B147: Additional Card for PCIe Slot 7 (Full height) (CPU 2)
B148: None | C148: =VLOOKUP(B148, PCI_B1.1, 2, FALSE) ->  | D148: =VLOOKUP(B148, PCI_B1.1, 3, FALSE) ->  | E148: =VLOOKUP(B148, PCI_B1.1, 5, FALSE) ->  | F148: =VLOOKUP(B148, PCI_B1.1, 6, FALSE) ->  | G148: =VLOOKUP(B148, PCI_B1.1, 7, FALSE) -> 0
B150: Additional Card for PCIe Slot 8 (Full height) (CPU 2)
B151: None | C151: =VLOOKUP(B151, PCI_B1.1, 2, FALSE) ->  | D151: =VLOOKUP(B151, PCI_B1.1, 3, FALSE) ->  | E151: =VLOOKUP(B151, PCI_B1.1, 5, FALSE) ->  | F151: =VLOOKUP(B151, PCI_B1.1, 6, FALSE) ->  | G151: =VLOOKUP(B151, PCI_B1.1, 7, FALSE) -> 0
B153: Pannello frontale
B154: No Bezel Option | C154: =VLOOKUP(B154,upsell_1, 2, FALSE) -> 1 | D154: =VLOOKUP(B154,upsell_1, 3, FALSE) ->  | E154: =VLOOKUP(B154,upsell_1, 5, FALSE) -> [350-BBBW] | F154: =VLOOKUP(B154,upsell_1, 6, FALSE) -> 0 | G154: =VLOOKUP(B154,upsell_1, 7, FALSE) -> 0
B156: Guide per rack
B157: ReadyRails™ Sliding Rails Without Cable Management Arm 2U | C157: =VLOOKUP(B157,upsell_1, 2, FALSE) -> 1 | D157: =VLOOKUP(B157,upsell_1, 3, FALSE) ->  | E157: =VLOOKUP(B157,upsell_1, 5, FALSE) -> [770-BBBQ] | F157: =VLOOKUP(B157,upsell_1, 6, FALSE) -> 0 | G157: =VLOOKUP(B157,upsell_1, 7, FALSE) -> 0
B159: Server Accessories
B160: PowerEdge SFP+, 10GbE SR/SX, Optical Tranceiver, LC Connector, for Intel and Broadcom,CusKit | C160: =(VLOOKUP(B151,PCI_A2,8,FALSE))+((VLOOKUP(B130,PCI_A1,8,FALSE))) ->  | E160: [407-BBQE]
B162: System Documentation
B163: Electronic System Documentation and OpenManage DVD Kit | C163: 1 | E163: [631-AAJG]
B165: SHIPPING
B166: PowerEdge R730xd Shipping EMEA1 (English/French/German/Spanish/Russian/Hebrew) | C166: 1 | E166: [340-AMGS]
B168: Order Information
B169: PowerEdge Order - EMEA | C169: 1 | E169: [800-11671]
B171: Base warranty
B172: 3Yr Basic Warranty - Next Business Day - Minimum Warranty | C172: 1 | E172: [709-12780][709-12781]
B174: Servizi di assitenza
B175: Dell Channel Order - Service Info only | C175: 1 | E175: [710-31085]
B177: Aggiornamenti della garanzia
B178: None | C178: =VLOOKUP($B$178, SO_B2,2, FALSE) ->  | D178: =VLOOKUP($B$178, SO_B2, 3, FALSE) ->  | E178: =VLOOKUP($B$178, SO_B2, 5, FALSE) ->  | F178: =VLOOKUP($B$178, SO_B2, 6, FALSE) -> 
B180: Protezione dei dati - Keep Your Hard Drive
B181: None | C181: =VLOOKUP($B$181, SO_B2, 2, FALSE) ->  | D181: =VLOOKUP($B$181, SO_B2, 3, FALSE) ->  | E181: =VLOOKUP($B$181, SO_B2,5, FALSE) ->  | F181: =VLOOKUP($B$181, SO_B2, 6, FALSE) -> 
B183: Servizi di Installazione
B184: No Installation Service Selected | C184: 1 | E184: [683-11870]
B186: Channel only - Support Extension
B187: Channel 39M Basic Warranty - Next Business Day | C187: 1 | E187: [723-28780]
B189: Warranty Upgrades - Non-Std/Local POS
B190: CSTM CONSIP - 39M Onsite Labor Support for CRU for Servers with Basic Warranty | C190: 1 | E190: [681-24467]

Sheet CNV T640 (Tower)
D1: TOTALE MEPA | H1: =F14 -> 0
A5: POWEREDGE T640
A7: Components: Server DELL EMC PowerEdge T640 (1CPU Intel® Xeon Silver 4114, RAM 32GB,2 x HDD 600GB 10K RPM SAS 12Gbps 2.5in) | E7: Totale Server e Opzioni | F7: =F17*SRV_D+G71+G75 -> 0
E8: Totale Ulteriori Opzioni | F8: =G16*SRV_E-(G75*SRV_E)+G75-(SRV_E*G71)+G71 -> 0
E14: TOTALE CONVENZIONE | F14: =F8+F7 -> 0
B15: Category: Server | F15: 2158
B16: Quantity: | F16: =SUM(F20:F183) -> 0 | G16: =SUM(G20:G192) -> 0
F17: =SUM(F15:F16) -> 2158
B19: Base
B20: PowerEdge T640 | C20: 1 | E20: [210-ACWJ][329-BCZH]
B22: Configurazione dello chassis
B23: Chassis with up to 18, 3.5" Hard Drives, Tower Configuration | C23: 1 | E23: [321-BBJT]
B25: Processore
B26: Intel® Xeon® Silver 4114 2.2G, 10C/20T, 9.6GT/s 2UPI, 14M Cache, Turbo, HT (85W) DDR4-2400 | C26: 1 | E26: [338-BLUS]
B28: Processore aggiuntivo
B29: No Additional Processor | C29: =VLOOKUP($B$29, CPU_D, 2, FALSE) -> 0 | D29: =VLOOKUP($B$29, CPU_D, 3, FALSE) ->  | E29: =VLOOKUP($B$29, CPU_D, 5, FALSE) -> [374-BBBX] | F29: =VLOOKUP(B29, CPU_D, 15, FALSE) -> 0
B31: Processor Thermal Configuration
B32: 1 CPU up to 105W | C32: 1 | E32: [412-AADW]
B33: =VLOOKUP($B$29, CPU_C, 6, FALSE) ->  | C33: =VLOOKUP($B$29, CPU_C, 7, FALSE) ->  | E33: =VLOOKUP($B$29, CPU_C, 8, FALSE) -> 
B35: Tipo di configurazione memoria
B36: Performance Optimized | C36: 1 | E36: [370-AAIP]
B38: Total Memory in GB | C38: =IF(F29=650,IF(B39=32,"ATTENZIONE: AUMENTARE LA RAM",""),"") -> 
B39: 32
B41: Tipo e velocità della memoria DIMM
B42: 2666MT/s RDIMMs | C42: 1 | E42: [370-ADNU]
B44: Capacità di memoria
B45: =IF($B$29="No Additional Processor",VLOOKUP($B$39, MEM_A1, 8, FALSE),VLOOKUP($B$39, MEM_A2, 8, FALSE)) -> Dell 32 GB Modulo di memoria - RDIMM 2666MHz | C45: =IF($B$29="No Additional Processor",VLOOKUP($B$39, MEM_A1, 9, FALSE),VLOOKUP($B$39, MEM_A2, 9, FALSE)) -> 1 | E45: =IF($B$29="No Additional Processor",VLOOKUP($B$39, MEM_A1, 10, FALSE),VLOOKUP($B$39, MEM_A2, 10, FALSE)) -> [370-ADNF]
B47: =IF($B$29="No Additional Processor",VLOOKUP($B$39, MEM_A1, 2, FALSE),VLOOKUP($B$39, MEM_A2, 2, FALSE)) ->  | C47: =IF($B$29="No Additional Processor",VLOOKUP($B$39, MEM_A1, 3, FALSE),VLOOKUP($B$39, MEM_A2, 3, FALSE)) ->  | D47: =IF($B$29="No Additional Processor",VLOOKUP($B$39, MEM_A1, 4, FALSE),VLOOKUP($B$39, MEM_A2, 4, FALSE)) ->  | E47: =IF($B$29="No Additional Processor",VLOOKUP($B$39, MEM_A1, 6, FALSE),VLOOKUP($B$39, MEM_A2, 6, FALSE)) ->  | F47: =IF($B$29="No Additional Processor",VLOOKUP($B$39, MEM_A1, 7, FALSE),VLOOKUP($B$39, MEM_A2, 7, FALSE)) -> 
B49: =IF($B$29="No Additional Processor",VLOOKUP($B$39, MEM_A1, 11, FALSE),VLOOKUP($B$39, MEM_A2, 11, FALSE)) ->  | C49: =IF($B$29="No Additional Processor",VLOOKUP($B$39, MEM_A1, 12, FALSE),VLOOKUP($B$39, MEM_A2, 12, FALSE)) ->  | D49: =IF($B$29="No Additional Processor",VLOOKUP($B$39, MEM_A1, 13, FALSE),VLOOKUP($B$39, MEM_A2, 13, FALSE)) ->  | E49: =IF($B$29="No Additional Processor",VLOOKUP($B$39, MEM_A1, 15, FALSE),VLOOKUP($B$39, MEM_A2, 15, FALSE)) ->  | F49: =IF($B$29="No Additional Processor",VLOOKUP($B$39, MEM_A1, 16, FALSE),VLOOKUP($B$39, MEM_A2, 16, FALSE)) -> 
B51: Sistema operativo preinstallato
B52: No Operating System | C52: =VLOOKUP($B$52, OS_C, 2, FALSE) ->  | D52: =VLOOKUP($B$52, OS_C, 3, FALSE) ->  | E52: =VLOOKUP($B$52, OS_C, 5, FALSE) -> [611-BBBF] | F52: =VLOOKUP($B$52, OS_C, 6, FALSE) -> 
B53: =IF($B$29="No Additional Processor",VLOOKUP($B$52, OS_A, 20, FALSE),VLOOKUP($B$52, OS_A2, 20, FALSE)) ->  | C53: =IF($B$29="No Additional Processor",VLOOKUP($B$52, OS_A, 21, FALSE),VLOOKUP($B$52, OS_A2, 21, FALSE)) -> 0 | D53: =IF($B$29="No Additional Processor",VLOOKUP($B$52, OS_A, 22, FALSE),VLOOKUP($B$52, OS_A2, 22, FALSE)) ->  | E53: =IF($B$29="No Additional Processor",VLOOKUP($B$52, OS_A, 24, FALSE),VLOOKUP($B$52, OS_A2, 24, FALSE)) ->  | F53: =IF($B$29="No Additional Processor",VLOOKUP($B$52, OS_A, 25, FALSE),VLOOKUP($B$52, OS_A2, 25, FALSE)) -> 
B55: OS Media Kits
B56: No Media Required | C56: 1 | E56: [605-BBFN]
B59: Client Access Licenses
B60: =VLOOKUP($B$52, OS_A, 8, FALSE) -> None | D60: =VLOOKUP($B$52, OS_A, 10, FALSE) ->  | E60: =VLOOKUP($B$52, OS_A, 12, FALSE) ->  | F60: =VLOOKUP($B$52, OS_A, 13, FALSE)*C60 -> 0
B62: =VLOOKUP($B$52, OS_A, 14, FALSE) -> None | D62: =VLOOKUP($B$52, OS_A, 16, FALSE) ->  | E62: =VLOOKUP($B$52, OS_A, 18, FALSE) ->  | F62: =VLOOKUP($B$52, OS_A, 19, FALSE)*C62 -> 0
B64: Sistema operativo SUSE Linux Enterprise Server
B65: None | C65: =VLOOKUP($B$65,SUSE, 2, FALSE) -> 0 | D65: =VLOOKUP($B$65,SUSE, 3, FALSE) ->  | E65: =VLOOKUP($B$65,SUSE, 5, FALSE) ->  | F65: =VLOOKUP($B$65, SUSE, 6, FALSE)*C65 -> 0
B67: Sistema operativo VMware
B68: None | C68: =VLOOKUP($B$68,VMWARE, 2, FALSE)+C29 -> 0 | D68: =VLOOKUP($B$68,VMWARE, 3, FALSE) ->  | E68: =VLOOKUP($B$68,VMWARE, 5, FALSE) ->  | F68: =VLOOKUP($B$68, VMWARE, 6, FALSE)*C68 -> 0
B70: VMware vCenter Server Standard
B71: None | C71: =VLOOKUP($B$71,VMWARE2, 2, FALSE) -> 0 | D71: =VLOOKUP($B$71,VMWARE2, 3, FALSE) ->  | E71: =VLOOKUP($B$71,VMWARE2, 5, FALSE) ->  | G71: =VLOOKUP($B$71, VMWARE2, 6, FALSE)*C71 -> 0
B73: Essentials Plus Kit
B74: None | C74: =IF(SRV_A<4,VLOOKUP($B$74,VMWARE1, 2, FALSE),0) -> 0 | D74: =VLOOKUP($B$74,VMWARE1, 3, FALSE) ->  | E74: =VLOOKUP($B$74,VMWARE1, 5, FALSE) ->  | G74: =VLOOKUP($B$74, VMWARE1, 6, FALSE)*C74 -> 0
B76: Controller RAID
B77: PERC H730P+ Adapter RAID Controller, 2GB | C77: 1 | E77: [405-AANW]
B79: Dischi rigidi (numero massimo totale 18)
B80: 600GB 10K RPM SAS 12Gbps 512n 2.5in Hot-plug Hard Drive, 3.5in HYB CARR | C80: 2 | E80: [400-ASLU]
B82: 600GB 10K RPM SAS 12Gbps 512n 2.5in Hot-plug Hard Drive, 3.5in HYB CARR | D82: =VLOOKUP($B$82, hdd_D,3, FALSE) -> CNV-TS1L1-HD600T | E82: =VLOOKUP($B$82, hdd_D,5, FALSE) -> 400-AOXC | F82: =VLOOKUP($B$82, hdd_D,6, FALSE)*C82 -> 0
B84: 1.2TB 10K RPM SAS 12Gbps 512n 2.5in Hot-plug Hard Drive, 3.5in HYB CARR | D84: =VLOOKUP($B$84, hdd_D,3, FALSE) -> CNV-TS1L1-HD1200T-U | E84: =VLOOKUP($B$84, hdd_D,5, FALSE) -> 400-AUUY | F84: =VLOOKUP($B$84, hdd_D,6, FALSE)*C84 -> 0
B86: DISCHI TOTALI | C86: =SUM(C80:C85) -> 2 | D86: =IF(C86<=18," OK"," ERRORE: Totale n° di dischi superiore al consentito") -> OK
B88: Configurazione RAID
B89: C3 - RAID 1 for H330 (2 HDDs) | C89: 1 | E89: =VLOOKUP($B$89, RAID_C1, 2, FALSE) -> [780-BBJK]
B90: Hot Spare for 300GB HDD | C90: No
B91: SCRIVERE QUI' LA CONFIGURAZIONE RAID RICHIESTA. T630 Tower Base | H91: =IF(B91="SCRIVERE QUI' LA CONFIGURAZIONE RAID RICHIESTA. T630 Tower Base ","ATTENZIONE COMPILARE IL CAMPO DELLA SCELTA RAID", "") -> ATTENZIONE COMPILARE IL CAMPO DELLA SCELTA RAID
B92: Configurazione RAID HDD 1TB
C93: 1 | E93: =VLOOKUP($B$93, RAID_C2, 2, FALSE) -> 
B94: Hot Spare for 1TB HDD | C94: No
B96: Impostazioni del BIOS per la gestione dell'alimentazione
B97: Performance BIOS Setting | C97: 1 | E97: [384-BBBL]
B99: Alimentatore
B100: Dual, Hot-plug, Redundant Power Supply (1+1), 750W, Titanium, 200-240VAC | C100: 1 | E100: [450-ADWT]
B102: Cavi di alimentazione
B103: Italian Spare Power Cord 220V | C103: 2 | E103: [450-AAYN]
B105: TPM Module
B106: Trusted Platform Module 1.2 | C106: 1 | E106: [461-AAEL]
B108: Embedded Systems Management
B109: iDrac9, Enterprise | C109: 1 | E109: [385-BBKT]
B111: Adattatore di rete aggiuntivo
B112: On-Board LOM 1GBE (Dual Port for Towers, Quad Port for Racks and Blades) | C112: 1 | E112: [542-BBCT]
B114: Additional Card for PCIe Slot 1 (CPU 1)
B115: Broadcom 5720 DP 1Gb Network Interface Card | C115: 1 | E115: [540-BBCX]
B117: Additional Card for PCIe Slot 2 (CPU 1)
B118: None | C118: =VLOOKUP(B118, PCI_B1.1, 2, FALSE) ->  | D118: =VLOOKUP(B118, PCI_B1.1, 3, FALSE) ->  | E118: =VLOOKUP(B118, PCI_B1.1, 5, FALSE) ->  | F118: =VLOOKUP(B118, PCI_B1.1, 6, FALSE) ->  | G118: =VLOOKUP(B118, PCI_B1.1, 7, FALSE) -> 0
B120: Additional Card for PCIe Slot 3 (CPU 1)
B121: None | C121: =VLOOKUP(B121, PCI_B1.1, 2, FALSE) ->  | D121: =VLOOKUP(B121, PCI_B1.1, 3, FALSE) ->  | E121: =VLOOKUP(B121, PCI_B1.1, 5, FALSE) ->  | F121: =VLOOKUP(B121, PCI_B1.1, 6, FALSE) ->  | G121: =VLOOKUP(B121, PCI_B1.1, 7, FALSE) -> 0
B123: Additional Card for PCIe Slot 4 (CPU 2)
B124: None | C124: =IF($B124=Processor!$A$46,"",VLOOKUP($B124, PCI_B1.1, 2, FALSE)) ->  | D124: =IF($B124=Processor!$A$46,"",VLOOKUP($B124, PCI_B1.1, 3, FALSE)) ->  | E124: =IF($B124=Processor!$A$46,"",VLOOKUP($B124, PCI_B1.1, 5, FALSE)) ->  | F124: =IF($B124=Processor!$A$46,"",VLOOKUP($B124, PCI_B1.1, 6, FALSE)) ->  | G124: =IF($B124=Processor!$A$46,"",VLOOKUP($B124, PCI_B1.1, 7, FALSE)) -> 0
B126: Additional Card for PCIe Slot 5 (CPU 2)
B127: None | C127: =IF($B127=Processor!$A$46,"",VLOOKUP($B127, PCI_B1.1, 2, FALSE)) ->  | D127: =IF($B127=Processor!$A$46,"",VLOOKUP($B127, PCI_B1.1, 3, FALSE)) ->  | E127: =IF($B127=Processor!$A$46,"",VLOOKUP($B127, PCI_B1.1, 5, FALSE)) ->  | F127: =IF($B127=Processor!$A$46,"",VLOOKUP($B127, PCI_B1.1, 6, FALSE)) ->  | G127: =IF($B127=Processor!$A$46,"",VLOOKUP($B127, PCI_B1.1, 7, FALSE)) -> 0
B129: Additional Card for PCIe Slot 6 (CPU 2)
B130: None | C130: =IF($B130=Processor!$A$46,"",VLOOKUP($B130, PCI_B1.1, 2, FALSE)) ->  | D130: =IF($B130=Processor!$A$46,"",VLOOKUP($B130, PCI_B1.1, 3, FALSE)) ->  | E130: =IF($B130=Processor!$A$46,"",VLOOKUP($B130, PCI_B1.1, 5, FALSE)) ->  | F130: =IF($B130=Processor!$A$46,"",VLOOKUP($B130, PCI_B1.1, 6, FALSE)) ->  | G130: =IF($B130=Processor!$A$46,"",VLOOKUP($B130, PCI_B1.1, 7, FALSE)) -> 0
B132: Additional Card for PCIe Slot 7 (CPU 2)
B133: None | C133: =IF($B133=Processor!$A$46,"",VLOOKUP($B133, PCI_B1.1, 2, FALSE)) ->  | D133: =IF($B133=Processor!$A$46,"",VLOOKUP($B133, PCI_B1.1, 3, FALSE)) ->  | E133: =IF($B133=Processor!$A$46,"",VLOOKUP($B133, PCI_B1.1, 5, FALSE)) ->  | F133: =IF($B133=Processor!$A$46,"",VLOOKUP($B133, PCI_B1.1, 6, FALSE)) ->  | G133: =IF($B133=Processor!$A$46,"",VLOOKUP($B133, PCI_B1.1, 7, FALSE)) -> 0
B135: Pannello frontale
B136: No Bezel | C136: 1 | E136: [350-BBBW]
B138: Guide per rack
B139: No Rack Rails, No Cable Management Arm, No Casters | C139: 1 | E139: [770-BBCR]
B141: Unità ottica interna
B142: No Internal Optical Drive | C142: 1 | E142: [429-AAIQ][429-AAQS]
B144: Accessori per server
B145: Redundant Fan Option | C145: 1 | E145: [750-AAFF]
B147: PowerEdge SFP+, 10GbE SR/SX, Optical Tranceiver, LC Connector, for Intel and Broadcom,CusKit | C147: =(VLOOKUP(B121,PCI_C2,8,FALSE))+((VLOOKUP(B118,PCI_C1,8,FALSE)))+((VLOOKUP(B124,PCI_C3,8,FALSE)))+((VLOOKUP(B127,PCI_C4,8,FALSE)))+((VLOOKUP(B130,PCI_C5,8,FALSE)))+((VLOOKUP(B133,PCI_C6,8,FALSE))) ->  | E147: [407-BBQE]
B150: PowerEdge SFP+, 10GbE SR/SX, Optical Tranceiver, LC Connector, for Intel and Broadcom,CusKit | C150: =(VLOOKUP(B124,PCI_C2,8,FALSE))+((VLOOKUP(B121,PCI_C1,8,FALSE)))+((VLOOKUP(B127,PCI_C3,8,FALSE)))+((VLOOKUP(B130,PCI_C4,8,FALSE)))+((VLOOKUP(B133,PCI_C5,8,FALSE)))+((VLOOKUP(B136,PCI_C6,8,FALSE))) ->  | E150: [407-BBQE]
B151: Opzione RDX
B152: None | C152: =VLOOKUP($B$152,RDX, 2, FALSE) -> 0 | D152: =VLOOKUP($B$152,RDX, 3, FALSE) ->  | E152: =VLOOKUP($B$152,RDX, 4, FALSE) ->  | F152: =VLOOKUP($B$152,RDX, 7, FALSE) -> 0
B154: System Documentation
B155: Electronic System Documentation and OpenManage DVD Kit, PowerEdge T630 | C155: 1 | E155: [343-BBDE]
B157: SHIPPING
B158: PowerEdge T630 Shipping EMEA1 (English/French/German/Spanish/Russian/Hebrew) | C158: 1 | E158: [340-AMBT]
B160: Order Information
B161: Enterprise Order - EMEA | C161: 1 | E161: [800-11671]
B163: Base warranty
B164: 3Yr Basic Warranty - Next Business Day - Minimum Warranty | C164: 1 | E164: [709-12798][709-12799]
B166: Servizi di assitenza
B167: Dell Channel Order - Service Info only | C167: 1 | E167: [710-31085]
B169: Aggiornamenti della garanzia
B170: None | C170: =VLOOKUP($B$170, 'Servizi Opzionali'!$A$73:$F$75, 2, FALSE) ->  | D170: =VLOOKUP($B$170, 'Servizi Opzionali'!$A$73:$F$75, 3, FALSE) ->  | E170: =VLOOKUP($B$170, 'Servizi Opzionali'!$A$73:$F$75, 5, FALSE) ->  | F170: =VLOOKUP($B$170, 'Servizi Opzionali'!$A$73:$F$75, 6, FALSE) -> 
B172: Protezione dei dati - Keep Your Hard Drive
B173: None | C173: =VLOOKUP($B$173, SO_C2, 2, FALSE) ->  | D173: =VLOOKUP($B$173, SO_C2, 3, FALSE) ->  | E173: =VLOOKUP($B$173, SO_C2,5, FALSE) ->  | F173: =VLOOKUP($B$173, SO_C2, 6, FALSE) -> 
B175: Servizi di Installazione
B176: No Installation Service Selected | C176: 1 | E176: [683-11870]
B178: Channel only - Support Extension
B179: Channel 39M Basic Warranty - Next Business Day | C179: 1 | E179: [723-28783]
B181: Warranty Upgrades - Non-Std/Local POS
B182: CSTM CONSIP - 39M Onsite Labor Support for CRU for Servers with Basic Warranty | C182: 1 | E182: [681-24467]

Sheet CNV T640 1 (Tower) Prest
D1: TOTALE MEPA | H1: =F14 -> 0
A5: POWEREDGE T640
A7: Components: Server DELL EMC PowerEdge T640 (1CPU Intel® Xeon Silver 4116, 64GB RDIMM, 2xHDD 600GB 10K RPM SAS 12Gbps 2.5in) | E7: Totale Server e Opzioni | F7: =F17*SRV_E+G71+G74 -> 0
E8: Totale Ulteriori Opzioni | F8: =G16*SRV_E-(G74*SRV_E)+G74-(SRV_E*G71)+G71 -> 0
E14: TOTALE CONVENZIONE | F14: =F8+F7 -> 0
B15: Category: Server | F15: 2214
B16: Quantity: | F16: =SUM(F20:F190) -> 0 | G16: =SUM(G20:G207) -> 0
F17: =SUM(F15:F16) -> 2214
B19: Base
B20: PowerEdge T640 | C20: 1 | E20: [210-AMBC][329-BDMT]
B22: Configurazione dello chassis
B23: Chassis with up to 8, 3.5" Hard Drives, Tower Configuration | C23: 1 | E23: [321-BCXD]
B25: Processore
B26: Intel Xeon Silver 4116 2.1G, 12C/24T, 9.6GT/s , 16.5M Cache, Turbo, HT (85W) | C26: 1 | E26: [338-BLUT]
B28: Processore aggiuntivo
B29: No Additional Processor | C29: =VLOOKUP($B$29, CPU_E, 2, FALSE) -> 0 | D29: =VLOOKUP($B$29, CPU_E, 3, FALSE) ->  | E29: =VLOOKUP($B$29, CPU_E, 5, FALSE) -> [374-BBBX] | F29: =VLOOKUP(B29, CPU_E, 15, FALSE) -> 0
B31: Processor Thermal Configuration
B32: 1 CPU up to 105W | C32: 1 | E32: [412-AADW]
B33: =VLOOKUP($B$29, CPU_E, 6, FALSE) ->  | C33: =VLOOKUP($B$29, CPU_E, 7, FALSE) ->  | E33: =VLOOKUP($B$29, CPU_E, 8, FALSE) -> 
B35: Tipo di configurazione memoria
B36: Performance Optimized | C36: 1 | E36: [370-AAIP]
B38: Memoria Totale in GB | D38: =IF(('CNV R740 1'!$D$12=0),"",'CNV R740 1'!#REF!) -> 
B39: 64
B41: Tipo e velocità della memoria DIMM
B42: 2666MT/s RDIMMs | C42: 1 | E42: [370-ADNU]
B44: Capacità di memoria
B45: =IF($B$29="No Additional Processor",VLOOKUP($B$39, MEM_C1, 8, FALSE),VLOOKUP($B$39, MEM_C2, 8, FALSE)) -> Dell 32 GB Modulo di memoria - RDIMM 2666MHz | C45: =IF($B$29="No Additional Processor",VLOOKUP($B$39, MEM_C1, 9, FALSE),VLOOKUP($B$39, MEM_C2, 9, FALSE)) -> 2 | E45: =IF($B$29="No Additional Processor",VLOOKUP($B$39, MEM_C1, 10, FALSE),VLOOKUP($B$39, MEM_C2, 10, FALSE)) -> [370-ADNF]
B47: =IF($B$29="No Additional Processor",VLOOKUP($B$39, MEM_C1, 2, FALSE),VLOOKUP($B$39, MEM_C2, 2, FALSE)) ->  | C47: =IF($B$29="No Additional Processor",VLOOKUP($B$39, MEM_C1, 3, FALSE),VLOOKUP($B$39, MEM_C2, 3, FALSE)) ->  | D47: =IF($B$29="No Additional Processor",VLOOKUP($B$39, MEM_C1, 4, FALSE),VLOOKUP($B$39, MEM_C2, 4, FALSE)) ->  | E47: =IF($B$29="No Additional Processor",VLOOKUP($B$39, MEM_C1, 6, FALSE),VLOOKUP($B$39, MEM_C2, 6, FALSE)) ->  | F47: =IF($B$29="No Additional Processor",VLOOKUP($B$39, MEM_C1, 7, FALSE),VLOOKUP($B$39, MEM_C2, 7, FALSE)) -> 
B49: =IF($B$29="No Additional Processor",VLOOKUP($B$39, MEM_C1, 11, FALSE),VLOOKUP($B$39, MEM_C2, 11, FALSE)) ->  | C49: =IF($B$29="No Additional Processor",VLOOKUP($B$39, MEM_C1, 12, FALSE),VLOOKUP($B$39, MEM_C2, 12, FALSE)) ->  | D49: =IF($B$29="No Additional Processor",VLOOKUP($B$39, MEM_C1, 13, FALSE),VLOOKUP($B$39, MEM_C2, 13, FALSE)) ->  | E49: =IF($B$29="No Additional Processor",VLOOKUP($B$39, MEM_C1, 15, FALSE),VLOOKUP($B$39, MEM_C2, 15, FALSE)) ->  | F49: =IF($B$29="No Additional Processor",VLOOKUP($B$39, MEM_C1, 16, FALSE),VLOOKUP($B$39, MEM_C2, 16, FALSE)) -> 
B51: Sistema operativo preinstallato
B52: No Operating System | C52: =VLOOKUP($B$52, OS_C, 2, FALSE) ->  | D52: =VLOOKUP($B$52, OS_C, 3, FALSE) ->  | E52: =VLOOKUP($B$52, OS_C, 5, FALSE) -> [611-BBBF] | F52: =VLOOKUP($B$52, OS_C, 6, FALSE) -> 
B53: =IF($B$29="No Additional Processor",VLOOKUP($B$52, OS_B, 20, FALSE),VLOOKUP($B$52, OS_B2, 20, FALSE)) ->  | C53: =IF($B$29="No Additional Processor",VLOOKUP($B$52, OS_B, 21, FALSE),VLOOKUP($B$52, OS_B2, 21, FALSE)) -> 0 | D53: =IF($B$29="No Additional Processor",VLOOKUP($B$52, OS_A, 22, FALSE),VLOOKUP($B$52, OS_B2, 22, FALSE)) ->  | E53: =IF($B$29="No Additional Processor",VLOOKUP($B$52, OS_B, 24, FALSE),VLOOKUP($B$52, OS_B2, 24, FALSE)) ->  | F53: =IF($B$29="No Additional Processor",VLOOKUP($B$52, OS_B, 25, FALSE),VLOOKUP($B$52, OS_B2, 25, FALSE)) -> 
B55: OS Media Kits
B56: No Media Required | C56: 1 | E56: [605-BBFN]
B59: Client Access Licenses
B60: =VLOOKUP($B$52, OS_A, 8, FALSE) -> None | D60: =VLOOKUP($B$52, OS_A, 10, FALSE) ->  | E60: =VLOOKUP($B$52, OS_A, 12, FALSE) ->  | F60: =VLOOKUP($B$52, OS_A, 13, FALSE)*C60 -> 0
B62: =VLOOKUP($B$52, OS_A, 14, FALSE) -> None | D62: =VLOOKUP($B$52, OS_A, 16, FALSE) ->  | E62: =VLOOKUP($B$52, OS_A, 18, FALSE) ->  | F62: =VLOOKUP($B$52, OS_A, 19, FALSE)*C62 -> 0
B64: Sistema operativo SUSE Linux Enterprise Server
B65: None | C65: =VLOOKUP($B$65,SUSE, 2, FALSE) -> 0 | D65: =VLOOKUP($B$65,SUSE, 3, FALSE) ->  | E65: =VLOOKUP($B$65,SUSE, 5, FALSE) ->  | F65: =VLOOKUP($B$65, SUSE, 6, FALSE)*C65 -> 0
B67: Sistema operativo VMware
B68: None | C68: =VLOOKUP($B$68,VMWARE, 2, FALSE)+C29 -> 0 | D68: =VLOOKUP($B$68,VMWARE, 3, FALSE) ->  | E68: =VLOOKUP($B$68,VMWARE, 5, FALSE) ->  | F68: =VLOOKUP($B$68, VMWARE, 6, FALSE)*C68 -> 0
B70: VMware vCenter Server Standard
B71: None | C71: =VLOOKUP($B$71,VMWARE2, 2, FALSE) -> 0 | D71: =VLOOKUP($B$71,VMWARE2, 3, FALSE) ->  | E71: =VLOOKUP($B$71,VMWARE2, 5, FALSE) ->  | G71: =VLOOKUP($B$71, VMWARE2, 6, FALSE)*C71 -> 0
B73: Essentials Plus Kit
B74: None | C74: =IF(SRV_A<4,VLOOKUP($B$74,VMWARE1, 2, FALSE),0) -> 0 | D74: =VLOOKUP($B$74,VMWARE1, 3, FALSE) ->  | E74: =VLOOKUP($B$74,VMWARE1, 5, FALSE) ->  | G74: =VLOOKUP($B$74, VMWARE1, 6, FALSE)*C74 -> 0
B76: Controller RAID
B77: PERC H730P+ Adapter RAID Controller, 2GB | C77: 1 | E77: [405-AANW]
B79: Dischi rigidi (numero massimo totale 8)
B80: 600GB 10K RPM SAS 12Gbps 512n 2.5in Hot-plug Hard Drive, 3.5in HYB CARR | C80: 2 | E80: [400-AJOZ]
B82: 600GB 10K RPM SAS 12Gbps 512n 2.5in Hot-plug Hard Drive, 3.5in HYB CARR | D82: =VLOOKUP($B$82, hdd_D,3, FALSE) -> CNV-TS1L1-HD600T | E82: =VLOOKUP($B$82, hdd_D,5, FALSE) -> 400-AOXC | F82: =VLOOKUP($B$82, hdd_D,6, FALSE)*C82 -> 0
B84: 1.2TB 10K RPM SAS 12Gbps 512n 2.5in Hot-plug Hard Drive, 3.5in HYB CARR | D84: =VLOOKUP($B$84, hdd_D,3, FALSE) -> CNV-TS1L1-HD1200T-U | E84: =VLOOKUP($B$84, hdd_D,5, FALSE) -> 400-AUUY | F84: =VLOOKUP($B$84, hdd_D,6, FALSE)*C84 -> 0
B86: DISCHI TOTALI | C86: =SUM(C80:C85) -> 2 | D86: =IF(C86<=8," OK"," ERRORE: Totale n° di dischi superiore al consentito") -> OK
B88: Configurazione RAID
B89: C3 - RAID 1 for H330 (2 HDDs) | C89: 1 | E89: =VLOOKUP($B$89, RAID_C1, 2, FALSE) -> [780-BBJK]
B90: Hot Spare for 300GB HDD | C90: No
B91: SCRIVERE QUI' LA CONFIGURAZIONE RAID RICHIESTA. T640 Tower Prestazionale | H91: =IF(B91="SCRIVERE QUI' LA CONFIGURAZIONE RAID RICHIESTA. T640 Tower Prestazionale ","ATTENZIONE COMPILARE IL CAMPO DELLA SCELTA RAID", "") -> ATTENZIONE COMPILARE IL CAMPO DELLA SCELTA RAID
B92: Configurazione RAID HDD 1TB
C93: 1 | E93: =VLOOKUP($B$93, RAID_C2, 2, FALSE) -> 
B94: Hot Spare for 1TB HDD | C94: No
B96: Impostazioni del BIOS per la gestione dell'alimentazione
B97: Performance BIOS Setting | C97: 1 | E97: [384-BBBL]
B99: Raffreddamento
B100: Fresh Air Cooling | C100: 1 | E100: [384-BBDW]
B102: Alimentatore
B103: Dual, Hot-plug, Redundant Power Supply (1+1), 750W, Titanium, 200-240VAC | C103: 1 | E103: [450-ADWT]
B105: Cavi di alimentazione
B106: Italian Spare Power Cord 220V | C106: 2 | E106: [450-AAYN]
B108: TPM Module
B109: Trusted Platform Module 1.2 | C109: 1 | E109: [461-AAEL]
B111: Embedded Systems Management
B112: iDRAC9,Enterprise | C112: 1 | E112: [385-BBKT]
B114: Adattatore di rete aggiuntivo
B115: On-Board LOM 1GBE (Dual Port for Towers, Quad Port for Racks and Blades) | C115: 1 | E115: [542-BBCT]
B117: Broadcom 5720 DP 1Gb Network Interface Card | C117: 1 | E117: [540-BBCX]
B119: Modulo Doppia SD
B120: None | C120: =VLOOKUP($B$120,upsell_1, 2, FALSE) -> 0 | D120: =VLOOKUP($B$120,upsell_1, 3, FALSE) ->  | E120: =VLOOKUP($B$120,upsell_1, 4, FALSE) ->  | F120: =VLOOKUP($B$120,upsell_1, 7, FALSE) -> 0
B122: Additional Card for PCIe Slot 1 (CPU 1)
B123: Broadcom 5720 DP 1Gb Network Interface Card | C123: 1 | E123: [540-BBCX]
B124: None | C124: =VLOOKUP(B124, PCI_B1.1, 2, FALSE) ->  | D124: =VLOOKUP(B124, PCI_B1.1, 3, FALSE) ->  | E124: =VLOOKUP(B124, PCI_B1.1, 5, FALSE) ->  | F124: =VLOOKUP(B124, PCI_B1.1, 6, FALSE) ->  | G124: =VLOOKUP(B124, PCI_B1.1, 7, FALSE) -> 0
B126: Additional Card for PCIe Slot 2 (CPU 1)
B127: None | C127: =VLOOKUP(B127, PCI_B1.1, 2, FALSE) ->  | D127: =VLOOKUP(B127, PCI_B1.1, 3, FALSE) ->  | E127: =VLOOKUP(B127, PCI_B1.1, 5, FALSE) ->  | F127: =VLOOKUP(B127, PCI_B1.1, 6, FALSE) ->  | G127: =VLOOKUP(B127, PCI_B1.1, 7, FALSE) -> 0
B129: Additional Card for PCIe Slot 3 (CPU 1)
B130: None | C130: =VLOOKUP(B130, PCI_B1.1, 2, FALSE) ->  | D130: =VLOOKUP(B130, PCI_B1.1, 3, FALSE) ->  | E130: =VLOOKUP(B130, PCI_B1.1, 5, FALSE) ->  | F130: =VLOOKUP(B130, PCI_B1.1, 6, FALSE) ->  | G130: =VLOOKUP(B130, PCI_B1.1, 7, FALSE) -> 0
B132: Additional Card for PCIe Slot 4 (CPU 2)
B133: None | C133: =IF($B133=Processor!$A$46,"",VLOOKUP($B133, PCI_B1.1, 2, FALSE)) ->  | D133: =IF($B133=Processor!$A$46,"",VLOOKUP($B133, PCI_B1.1, 3, FALSE)) ->  | E133: =IF($B133=Processor!$A$46,"",VLOOKUP($B133, PCI_B1.1, 5, FALSE)) ->  | F133: =IF($B133=Processor!$A$46,"",VLOOKUP($B133, PCI_B1.1, 6, FALSE)) ->  | G133: =IF($B133=Processor!$A$46,"",VLOOKUP($B133, PCI_B1.1, 7, FALSE)) -> 0
B135: Additional Card for PCIe Slot 5 (CPU 2)
B136: None | C136: =IF($B136=Processor!$A$46,"",VLOOKUP($B136, PCI_B1.1, 2, FALSE)) ->  | D136: =IF($B136=Processor!$A$46,"",VLOOKUP($B136, PCI_B1.1, 3, FALSE)) ->  | E136: =IF($B136=Processor!$A$46,"",VLOOKUP($B136, PCI_B1.1, 5, FALSE)) ->  | F136: =IF($B136=Processor!$A$46,"",VLOOKUP($B136, PCI_B1.1, 6, FALSE)) ->  | G136: =IF($B136=Processor!$A$46,"",VLOOKUP($B136, PCI_B1.1, 7, FALSE)) -> 0
B138: Additional Card for PCIe Slot 6 (CPU 2)
B139: None | C139: =IF($B139=Processor!$A$46,"",VLOOKUP($B139, PCI_B1.1, 2, FALSE)) ->  | D139: =IF($B139=Processor!$A$46,"",VLOOKUP($B139, PCI_B1.1, 3, FALSE)) ->  | E139: =IF($B139=Processor!$A$46,"",VLOOKUP($B139, PCI_B1.1, 5, FALSE)) ->  | F139: =IF($B139=Processor!$A$46,"",VLOOKUP($B139, PCI_B1.1, 6, FALSE)) ->  | G139: =IF($B139=Processor!$A$46,"",VLOOKUP($B139, PCI_B1.1, 7, FALSE)) -> 0
B141: Additional Card for PCIe Slot 7 (CPU 2)
B142: None | C142: =IF($B142=Processor!$A$46,"",VLOOKUP($B142, PCI_B1.1, 2, FALSE)) ->  | D142: =IF($B142=Processor!$A$46,"",VLOOKUP($B142, PCI_B1.1, 3, FALSE)) ->  | E142: =IF($B142=Processor!$A$46,"",VLOOKUP($B142, PCI_B1.1, 5, FALSE)) ->  | F142: =IF($B142=Processor!$A$46,"",VLOOKUP($B142, PCI_B1.1, 6, FALSE)) ->  | G142: =IF($B142=Processor!$A$46,"",VLOOKUP($B142, PCI_B1.1, 7, FALSE)) -> 0
B144: Pannello frontale
B145: No Bezel | C145: 1 | E145: [350-BBBW]
B147: Guide per rack
B148: No Rack Rails, No Cable Management Arm, No Casters | C148: 1 | E148: [770-BBCR]
B150: Unità ottica interna
B151: No Internal Optical Drive | C151: 1 | E151: [429-AAIQ][429-AAQS]
B153: Accessori per server
B154: Redundant Fan Option | C154: 1 | E154: [750-AAFF]
B156: PowerEdge SFP+, 10GbE SR/SX, Optical Tranceiver, LC Connector, for Intel and Broadcom,CusKit | C156: =(VLOOKUP(B127,PCI_C2,8,FALSE))+((VLOOKUP(B124,PCI_C1,8,FALSE)))+((VLOOKUP(B130,PCI_C3,8,FALSE)))+((VLOOKUP(B133,PCI_C4,8,FALSE)))+((VLOOKUP(B136,PCI_C5,8,FALSE)))+((VLOOKUP(B139,PCI_C6,8,FALSE))) ->  | E156: [407-BBQE]
B158: Opzione RDX
B159: None | C159: =VLOOKUP($B$159,RDX, 2, FALSE) -> 0 | D159: =VLOOKUP($B$159,RDX, 3, FALSE) ->  | E159: =VLOOKUP($B$159,RDX, 4, FALSE) ->  | F159: =VLOOKUP($B$159,RDX, 7, FALSE) -> 0
B161: System Documentation
B162: Electronic System Documentation and OpenManage DVD Kit, PowerEdge T630 | C162: 1 | E162: [343-BBDE]
B164: SHIPPING
B165: PowerEdge T630 Shipping EMEA1 (English/French/German/Spanish/Russian/Hebrew) | C165: 1 | E165: [340-AMBT]
B167: Order Information
B168: Enterprise Order - EMEA | C168: 1 | E168: [800-11671]
B170: Base warranty
B171: 3Yr Basic Warranty - Next Business Day - Minimum Warranty | C171: 1 | E171: [709-12798][709-12799]
B173: Servizi di assitenza
B174: Dell Channel Order - Service Info only | C174: 1 | E174: [710-31085]
B176: Aggiornamenti della garanzia
B177: None | C177: =VLOOKUP($B$177, SO_C1, 2, FALSE) ->  | D177: =VLOOKUP($B$177, SO_C1, 3, FALSE) ->  | E177: =VLOOKUP($B$177, SO_C1, 5, FALSE) ->  | F177: =VLOOKUP($B$177, SO_C1, 6, FALSE) -> 
B179: Protezione dei dati - Keep Your Hard Drive
B180: None | C180: =VLOOKUP($B$180, SO_C2, 2, FALSE) ->  | D180: =VLOOKUP($B$180, SO_C2, 3, FALSE) ->  | E180: =VLOOKUP($B$180, SO_C2,5, FALSE) ->  | F180: =VLOOKUP($B$180, SO_C2, 6, FALSE) -> 
B182: Servizi di Installazione
B183: No Installation Service Selected | C183: 1 | E183: [683-11870]
B185: Channel only - Support Extension
B186: Channel 39M Basic Warranty - Next Business Day | C186: 1 | E186: [723-28783]
B188: Warranty Upgrades - Non-Std/Local POS
B189: CSTM CONSIP - 39M Onsite Labor Support for CRU for Servers with Basic Warranty | C189: 1 | E189: [681-24467]

Sheet CNV T640 (Rack)
D1: TOTALE MEPA | H1: =F10 -> 0
A5: POWEREDGE T640
E7: Totale Server e Opzioni | F7: =F18*SRV_C -> 0
E8: Totale Ulteriori Opzioni | F8: =G17*SRV_C-(G74*SRV_C)+G74-(SRV_C*G71)+G71 -> 0
E10: TOTALE CONVENZIONE | F10: =F8+F7 -> 0
A12: Components: Server DELL EMC PowerEdge T640 (1CPU Intel® Xeon Silver 4114, RAM 32GB,2 x HDD 600GB 10K RPM SAS 12Gbps 2.5in)
B16: Category: Server | F16: 1720
B17: Quantity: | F17: =SUM(F21:F185) -> 0 | G17: =SUM(G21:G185) -> 0
F18: =SUM(F16:F17) -> 1720
B20: Base
B21: PowerEdge T640 Rack | C21: 1 | E21: [329-BDMT]
B23: Configurazione dello chassis
B24: Chassis with up to 16, 2.5" Hard Drives, Rack Configuration | C24: 1 | E24: [321-BCXL]
B26: Processore
B27: Intel® Xeon® Silver 4114 2.2G, 10C/20T, 9.6GT/s 2UPI, 14M Cache, Turbo, HT (85W) DDR4-2400 | C27: 1 | E27: [338-BLUS]
B29: Processore aggiuntivo
B30: No Additional Processor | C30: =VLOOKUP($B$30, CPU_C, 2, FALSE) -> 0 | D30: =VLOOKUP($B$30, CPU_C, 3, FALSE) ->  | E30: =VLOOKUP($B$30, CPU_C, 5, FALSE) -> [374-BBBX] | F30: =VLOOKUP(B30, CPU_C, 15, FALSE) -> 0
B32: Processor Thermal Configuration
B33: Standard Heat Sink for Less = 150W | C33: 1 | E33: [412-AAJW]
B34: =VLOOKUP($B$30, CPU_C, 6, FALSE) ->  | C34: =VLOOKUP($B$30, CPU_C, 7, FALSE) ->  | E34: =VLOOKUP($B$30, CPU_C, 8, FALSE) -> 
B36: Tipo di configurazione memoria
B37: Performance Optimized | C37: 1 | E37: [370-AAIP]
B39: Total Memory in GB | C39: =IF(F30=728,IF(B40=32,"ATTENZIONE: AUMENTARE LA RAM",""),"") -> 
B40: 32
B42: Tipo e velocità della memoria DIMM
B43: 2400MT/s RDIMMs | C43: 1 | E43: [370-ACPH]
B45: Capacità di memoria
B46: =IF($B$30="No Additional Processor",VLOOKUP($B$40, MEM_A1, 8, FALSE),VLOOKUP($B$40, MEM_A2, 8, FALSE)) -> Dell 32 GB Modulo di memoria - RDIMM 2666MHz | C46: =IF($B$30="No Additional Processor",VLOOKUP($B$40, MEM_A1, 9, FALSE),VLOOKUP($B$40, MEM_A2, 9, FALSE)) -> 1 | E46: =IF($B$30="No Additional Processor",VLOOKUP($B$40, MEM_A1, 10, FALSE),VLOOKUP($B$40, MEM_A2, 10, FALSE)) -> [370-ADNF]
B48: =IF($B$30="No Additional Processor",VLOOKUP($B$40, MEM_A1, 2, FALSE),VLOOKUP($B$40, MEM_A2, 2, FALSE)) ->  | C48: =IF($B$30="No Additional Processor",VLOOKUP($B$40, MEM_A1, 3, FALSE),VLOOKUP($B$40, MEM_A2, 3, FALSE)) ->  | D48: =IF($B$30="No Additional Processor",VLOOKUP($B$40, MEM_A1, 4, FALSE),VLOOKUP($B$40, MEM_A2, 4, FALSE)) ->  | E48: =IF($B$30="No Additional Processor",VLOOKUP($B$40, MEM_A1, 6, FALSE),VLOOKUP($B$40, MEM_A2, 6, FALSE)) ->  | F48: =IF($B$30="No Additional Processor",VLOOKUP($B$40, MEM_A1, 7, FALSE),VLOOKUP($B$40, MEM_A2, 7, FALSE)) -> 
B50: =IF($B$30="No Additional Processor",VLOOKUP($B$40, MEM_A1, 11, FALSE),VLOOKUP($B$40, MEM_A2, 11, FALSE)) ->  | C50: =IF($B$30="No Additional Processor",VLOOKUP($B$40, MEM_A1, 12, FALSE),VLOOKUP($B$40, MEM_A2, 12, FALSE)) ->  | D50: =IF($B$30="No Additional Processor",VLOOKUP($B$40, MEM_A1, 13, FALSE),VLOOKUP($B$40, MEM_A2, 13, FALSE)) ->  | E50: =IF($B$30="No Additional Processor",VLOOKUP($B$40, MEM_A1, 15, FALSE),VLOOKUP($B$40, MEM_A2, 15, FALSE)) ->  | F50: =IF($B$30="No Additional Processor",VLOOKUP($B$40, MEM_A1, 16, FALSE),VLOOKUP($B$40, MEM_A2, 16, FALSE)) -> 
B52: Sistema operativo preinstallato
B53: No Operating System | C53: =VLOOKUP($B$53, OS_A, 2, FALSE) ->  | D53: =VLOOKUP($B$53, OS_A, 3, FALSE) ->  | E53: =VLOOKUP($B$53, OS_A, 5, FALSE) -> [611-BBBF] | F53: =VLOOKUP($B$53, OS_A, 6, FALSE) -> 
B54: =IF($B$30="No Additional Processor",VLOOKUP($B$53, OS_A, 20, FALSE),VLOOKUP($B$53, OS_A2, 20, FALSE)) ->  | C54: =IF($B$30="No Additional Processor",VLOOKUP($B$53, OS_A, 21, FALSE),VLOOKUP($B$53, OS_A2, 21, FALSE)) -> 0 | D54: =IF($B$30="No Additional Processor",VLOOKUP($B$53, OS_A, 22, FALSE),VLOOKUP($B$53, OS_A2, 22, FALSE)) ->  | E54: =IF($B$30="No Additional Processor",VLOOKUP($B$53, OS_A, 24, FALSE),VLOOKUP($B$53, OS_A2, 24, FALSE)) ->  | F54: =IF($B$30="No Additional Processor",VLOOKUP($B$53, OS_A, 25, FALSE),VLOOKUP($B$53, OS_A2, 25, FALSE)) -> 
B56: OS Media Kits
B57: No Media Required | C57: 1 | E57: [605-BBFN]
B59: Client Access Licenses
B60: =VLOOKUP($B$53, OS_A, 8, FALSE) -> None | D60: =VLOOKUP($B$53, OS_A, 10, FALSE) ->  | E60: =VLOOKUP($B$53, OS_A, 12, FALSE) ->  | F60: =VLOOKUP($B$53, OS_A, 13, FALSE)*C60 -> 0
B62: =VLOOKUP($B$53, OS_A, 14, FALSE) -> None | D62: =VLOOKUP($B$53, OS_A, 16, FALSE) ->  | E62: =VLOOKUP($B$53, OS_A, 18, FALSE) ->  | F62: =VLOOKUP($B$53, OS_A, 19, FALSE)*C62 -> 0
B64: Sistema operativo SUSE Linux Enterprise Server
B65: None | C65: =VLOOKUP($B$65,SUSE, 2, FALSE) -> 0 | D65: =VLOOKUP($B$65,SUSE, 3, FALSE) ->  | E65: =VLOOKUP($B$65,SUSE, 5, FALSE) ->  | G65: =VLOOKUP($B$65, SUSE, 6, FALSE)*C65 -> 0
B67: Sistema operativo VMware
B68: None | C68: =VLOOKUP($B$68,VMWARE, 2, FALSE)+C30 -> 0 | D68: =VLOOKUP($B$68,VMWARE, 3, FALSE) ->  | E68: =VLOOKUP($B$68,VMWARE, 5, FALSE) ->  | G68: =VLOOKUP($B$68, VMWARE, 6, FALSE)*C68 -> 0
B70: VMware vCenter Server Standard
B71: None | C71: =VLOOKUP($B$71,VMWARE2, 2, FALSE) -> 0 | D71: =VLOOKUP($B$71,VMWARE2, 3, FALSE) ->  | E71: =VLOOKUP($B$71,VMWARE2, 5, FALSE) ->  | G71: =VLOOKUP($B$71, VMWARE2, 6, FALSE)*C71 -> 0
B73: Essentials Plus Kit
B74: None | C74: =IF(SRV_A<4,VLOOKUP($B$74,VMWARE1, 2, FALSE),0) -> 0 | D74: =VLOOKUP($B$74,VMWARE1, 3, FALSE) ->  | E74: =VLOOKUP($B$74,VMWARE1, 5, FALSE) ->  | G74: =VLOOKUP($B$74, VMWARE1, 6, FALSE)*C74 -> 0
B76: Controller RAID
B77: PERC H730P+ Adapter RAID Controller, 2GB | C77: 1 | E77: [405-AANW]
B79: Dischi rigidi (numero massimo totale 16)
B80: 600GB 10K RPM SAS 12Gbps 512n 2.5in Hot-plug Hard Drive | C80: 2 | E80: [400-AOWP]
B82: 600GB 10K RPM SAS 12Gbps 512n 2.5in Hot-plug Hard Drive | D82: =VLOOKUP($B$82, HDD_C,3, FALSE) -> CNV-TS1L1-HD600R | E82: =VLOOKUP($B$82, HDD_C,5, FALSE) -> 400-AUWU | F82: =VLOOKUP($B$82, HDD_C,6, FALSE)*HD300_C -> 0
B84: 1.2TB 10K RPM SAS 12Gbps 512n 2.5in Hot-plug Hard Drive | D84: =VLOOKUP($B$84, HDD_C,3, FALSE) -> CNV-TS1L1-HD1200R | E84: =VLOOKUP($B$84, HDD_C,5, FALSE) -> 400-AOWP | F84: =VLOOKUP($B$84, HDD_C,6, FALSE)*HD1000_c -> 0
B86: 1.8TB 10K RPM SAS 12Gbps 512e 2.5in Hot-plug Hard Drive | D86: CNV-TS1L1-HD1800 | E86: [400-AJQP] | F86: =VLOOKUP($B$86, HDD_B,6, FALSE)*C86 -> 0
B87: 960GB SSD SAS Mix Use 12Gbps 512n 2.5in Hot-plug Drive, PX05SV,3 DWPD,5256 TBW | D87: CNV-TS1L1-SSD800 | E87: [400-ANNX] | F87: =VLOOKUP($B$87, HDD_B,6, FALSE)*C87 -> 0
B88: 1.92TB SSD SAS Mix Use 12Gbps 512n 2.5in Hot-plug Drive, PX05SV,3 DWPD,10512 TBW | D88: CNV-TS1L1-SSD1920 | E88: [400-ANMN] | F88: =VLOOKUP($B$88, HDD_B,6, FALSE)*C88 -> 0
B90: DISCHI TOTALI | C90: =SUM(C80:C89) -> 2 | D90: =IF(C90<=16," OK"," ERRORE: Totale n° di dischi superiore al consentito") -> OK
B92: Configurazione RAID
B93: C3 - RAID 1 for H330 (2 HDDs) | C93: 1 | E93: =VLOOKUP($B$93, RAID_C1, 2, FALSE) -> [780-BBJK]
B94: Hot Spare for 300GB HDD | C94: No
B95: SCRIVERE QUI' LA CONFIGURAZIONE RAID RICHIESTA. T640 Rack Base Alternativo | H95: =IF(B95="SCRIVERE QUI' LA CONFIGURAZIONE RAID RICHIESTA. T640 Rack Base Alternativo ","ATTENZIONE COMPILARE IL CAMPO DELLA SCELTA RAID", "") -> ATTENZIONE COMPILARE IL CAMPO DELLA SCELTA RAID
B96: Configurazione RAID HDD 1TB
C97: 1 | E97: =VLOOKUP($B$97, RAID_C2, 2, FALSE) -> 
B98: Hot Spare for 1TB HDD | C98: No
B100: Impostazioni del BIOS per la gestione dell'alimentazione
B101: Performance BIOS Setting | C101: 1 | E101: [384-BBBL]
B103: Raffreddamento
B104: Fresh Air Cooling | C104: 1 | E104: [384-BBDW]
B106: Alimentatore
B107: Dual, Hot-plug, Redundant Power Supply (1+1), 750W, Titanium, 200-240VAC | C107: 1 | E107: [450-ADWT]
B109: Cavi di alimentazione
B110: C13 to C14, PDU Style, 10 AMP, 6.5 Feet (2m), Power Cord | C110: 2 | E110: [450-AADY]
B112: TPM Module
B113: Trusted Platform Module 1.2 | C113: 1 | E113: [461-AAEL]
B115: Embedded Systems Management
B116: iDrac9, Enterprise | C116: 1 | E116: [385-BBHO]
B118: Modulo Doppia SD
B119: None | C119: =VLOOKUP($B$119,upsell_1, 2, FALSE) -> 0 | D119: =VLOOKUP($B$119,upsell_1, 3, FALSE) ->  | E119: =VLOOKUP($B$119,upsell_1, 4, FALSE) ->  | F119: =VLOOKUP($B$119,upsell_1, 6, FALSE) ->  | G119: =VLOOKUP($B$119,upsell_1, 7, FALSE) -> 0
B121: Adattatore di rete aggiuntivo
B122: PE T640 On-Board LOM | C122: 1 | E122: [542-BBCT]
B124: Additional Card for PCIe Slot 1 (CPU 1)
B125: Broadcom 5720 DP 1Gb Network Interface Card | C125: 1 | E125: [540-BBCX]
B127: Additional Card for PCIe Slot 2 (CPU 1)
B128: None | C128: =VLOOKUP(B128, PCI_B1.1, 2, FALSE) ->  | D128: =VLOOKUP(B128, PCI_B1.1, 3, FALSE) ->  | E128: =VLOOKUP(B128, PCI_B1.1, 5, FALSE) ->  | F128: =VLOOKUP(B128, PCI_B1.1, 6, FALSE) ->  | G128: =VLOOKUP(B128, PCI_B1.1, 7, FALSE) -> 0
B130: Additional Card for PCIe Slot 3 (CPU 1)
B131: None | C131: =VLOOKUP(B131, PCI_B1.1, 2, FALSE) ->  | D131: =VLOOKUP(B131, PCI_B1.1, 3, FALSE) ->  | E131: =VLOOKUP(B131, PCI_B1.1, 5, FALSE) ->  | F131: =VLOOKUP(B131, PCI_B1.1, 6, FALSE) ->  | G131: =VLOOKUP(B131, PCI_B1.1, 7, FALSE) -> 0
B133: Additional Card for PCIe Slot 4 (CPU 2)
B134: Aggiungere Secondo Processore | C134: =IF($B134=Processor!$A$46,"",VLOOKUP($B134, PCI_B1.1, 2, FALSE)) ->  | D134: =IF($B134=Processor!$A$46,"",VLOOKUP($B134, PCI_B1.1, 3, FALSE)) ->  | E134: =IF($B134=Processor!$A$46,"",VLOOKUP($B134, PCI_B1.1, 5, FALSE)) ->  | F134: =IF($B134=Processor!$A$46,"",VLOOKUP($B134, PCI_B1.1, 6, FALSE)) ->  | G134: =IF($B134=Processor!$A$46,"",VLOOKUP($B134, PCI_B1.1, 7, FALSE)) -> 
B136: Additional Card for PCIe Slot 5 (CPU 2)
B137: Aggiungere Secondo Processore | C137: =IF($B137=Processor!$A$46,"",VLOOKUP($B137, PCI_B1.1, 2, FALSE)) ->  | D137: =IF($B137=Processor!$A$46,"",VLOOKUP($B137, PCI_B1.1, 3, FALSE)) ->  | E137: =IF($B137=Processor!$A$46,"",VLOOKUP($B137, PCI_B1.1, 5, FALSE)) ->  | F137: =IF($B137=Processor!$A$46,"",VLOOKUP($B137, PCI_B1.1, 6, FALSE)) ->  | G137: =IF($B137=Processor!$A$46,"",VLOOKUP($B137, PCI_B1.1, 7, FALSE)) -> 
B139: Additional Card for PCIe Slot 6 (CPU 2)
B140: Aggiungere Secondo Processore | C140: =IF($B140=Processor!$A$46,"",VLOOKUP($B140, PCI_B1.1, 2, FALSE)) ->  | D140: =IF($B140=Processor!$A$46,"",VLOOKUP($B140, PCI_B1.1, 3, FALSE)) ->  | E140: =IF($B140=Processor!$A$46,"",VLOOKUP($B140, PCI_B1.1, 5, FALSE)) ->  | F140: =IF($B140=Processor!$A$46,"",VLOOKUP($B140, PCI_B1.1, 6, FALSE)) ->  | G140: =IF($B140=Processor!$A$46,"",VLOOKUP($B140, PCI_B1.1, 7, FALSE)) -> 
B142: Additional Card for PCIe Slot 7 (CPU 2)
B143: Aggiungere Secondo Processore | C143: =IF($B143=Processor!$A$46,"",VLOOKUP($B143, PCI_B1.1, 2, FALSE)) ->  | D143: =IF($B143=Processor!$A$46,"",VLOOKUP($B143, PCI_B1.1, 3, FALSE)) ->  | E143: =IF($B143=Processor!$A$46,"",VLOOKUP($B143, PCI_B1.1, 5, FALSE)) ->  | F143: =IF($B143=Processor!$A$46,"",VLOOKUP($B143, PCI_B1.1, 6, FALSE)) ->  | G143: =IF($B143=Processor!$A$46,"",VLOOKUP($B143, PCI_B1.1, 7, FALSE)) -> 
B145: Pannello frontale
B146: No Bezel | C146: 1 | E146: [350-BBBW]
B148: Guide per rack
B149: Ready Rails Sliding Rails | C149: 1 | E149: [770-BBJI]
B151: Unità ottica interna
B152: No Internal Optical Drive, 2.5in Chassis | C152: 1 | E152: [429-ABDL]
B154: Accessori per server
B155: 4 Standard Mid Fans for T640 | C155: 1 | E155: [384-BBRY]
B157: PowerEdge SFP+, 10GbE SR/SX, Optical Tranceiver, LC Connector, for Intel and Broadcom,CusKit | C157: =(VLOOKUP(B131,PCI_C2,8,FALSE))+((VLOOKUP(B128,PCI_C1,8,FALSE)))+((VLOOKUP(B134,PCI_C3,8,FALSE)))+((VLOOKUP(B137,PCI_C4,8,FALSE)))+((VLOOKUP(B140,PCI_C5,8,FALSE)))+((VLOOKUP(B143,PCI_C6,8,FALSE))) ->  | E157: [407-BBQE]
B159: System Documentation
B160: Electronic System Documentation and OpenManage DVD Kit, PowerEdge T630 | C160: 1 | E160: [343-BBDE]
B162: SHIPPING
B163: PowerEdge T630 Shipping EMEA1 (English/French/German/Spanish/Russian/Hebrew) | C163: 1 | E163: [340-AMBT]
B165: Order Information
B166: Enterprise Order - EMEA | C166: 1 | E166: [800-11671]
B168: Base warranty
B169: 3Yr Basic Warranty - Next Business Day - Minimum Warranty | C169: 1 | E169: [709-12798][709-12799]
B171: Servizi di assitenza
B172: Dell Channel Order - Service Info only | C172: 1 | E172: [710-31085]
B174: Aggiornamenti della garanzia
B175: None | C175: =VLOOKUP($B$175, SO_C1, 2, FALSE) ->  | D175: =VLOOKUP($B$175, SO_C1, 3, FALSE) ->  | E175: =VLOOKUP($B$175, SO_C1, 5, FALSE) ->  | F175: =VLOOKUP($B$175, SO_C1, 6, FALSE) -> 
B177: Protezione dei dati - Keep Your Hard Drive
B178: None | C178: =VLOOKUP($B$178, SO_C2, 2, FALSE) ->  | D178: =VLOOKUP($B$178, SO_C2, 3, FALSE) ->  | E178: =VLOOKUP($B$178, SO_C2,5, FALSE) ->  | F178: =VLOOKUP($B$178, SO_C2, 6, FALSE) -> 
B180: Servizi di Installazione
B181: No Installation Service Selected | C181: 1 | E181: [683-11870]
B183: Channel only - Support Extension
B184: Channel 39M Basic Warranty - Next Business Day | C184: 1 | E184: [723-28783]
B186: Warranty Upgrades - Non-Std/Local POS
B187: CSTM CONSIP - 39M Onsite Labor Support for CRU for Servers with Basic Warranty | C187: 1 | E187: [681-24467]

Sheet RACK, Accessori e Servizi
A1: IN ROSSO LE OPZIONI 20%
D2: Indicare il numero delle Opzioni
M4: SERVIZI
C5: =IF(SRV_A+SRV_B+SRV_C>=1,"Servizi Specialistici","") -> 
C6: =IF(SRV_A+SRV_B+SRV_C>=1,"Servizio Specialistico di System and Network Management per sistema opertivo Windows, erogato on site. (GG/Uomo)","") ->  | K6: =IF(J6>=1,"10L1-SO-WIN","") -> 
C8: =IF(SRV_A+SRV_B+SRV_C>=1,"Servizio Specialistico di System and Network Management per sistema opertivo Linux, erogato on site. (GG/Uomo)","") ->  | K8: =IF(J8>=1,"10L1-SO-LINUX","") -> 
C10: =IF((SRV_A+SRV_AA+SRV_AAA+SRV_B+SRV_BB+SRV_BBB+SRV_C)>=5,"Servizi specialistici sistemistici per aggiornare e prevenire malfunzionamenti. (Minimo 5 Server)","") ->  | K10: =IF(J10>=1,"10L1-SO-PREV","") -> 
M13: SERVER RACK
C14: =IF(SRV_A+SRV_B1.1+SRV_B+SRV_C>=1,"Rack (OpzRack)","") -> 
C15: =IF(SRV_A+SRV_B1.1+SRV_B+SRV_C>=1,"Tecnosteel: armadio Rack 19'' 42U","") ->  | K15: =IF(J15>=1,"CNV-TS1L1-RACK","") -> 
C17: =IF(SRV_A+SRV_B1.1+SRV_B+SRV_C>=1,"PDU (OpzPDU32A)","") -> 
C18: =IF(SRV_A+SRV_B1.1+SRV_B+SRV_C>=1,"PDU Vertical 20+4 outlets C13 with MCB - IEC60309 input","") ->  | K18: =IF(J18>=1,"CNV-LG-646861","") -> 
C20: =IF(SRV_A+SRV_B1.1+SRV_B+SRV_C>=1,"PDU (OpzPDU_TRIFASE)","") -> 
C21: =IF(SRV_A+SRV_B1.1+SRV_B+SRV_C>=1,"PDU Vertical 18+6 outlets (C13+C19) with MCB and ammeter - IEC60309 input - 3 phase","") ->  | K21: =IF(J21>=1,"CNV-LG-646875","") -> 
C23: =IF(SRV_A+SRV_B1.1+SRV_B+SRV_C>=1,"KVM (OpzGUIRack)","") -> 
C24: =IF(SRV_A+SRV_B1.1+SRV_B+SRV_C>=1,"ORCA: 1U Rackmount Console 17'' with Italian Keyboard","") ->  | K24: =IF(J24>=1,"CNV-TS1L1-GUI","") -> 
C26: =IF(SRV_A+SRV_B1.1+SRV_B+SRV_C>=1,"KVM Option (OpzSWGUIRack)","") -> 
C27: =IF(SRV_A+SRV_B1.1+SRV_B+SRV_C>=1,"Raritan: 16-port remote KVM switch with one remote user","") ->  | K27: =IF(J27>=1,"CNV-TS1L1-KVMIP","") -> 
C29: =IF(SRV_A+SRV_B1.1+SRV_B+SRV_C>=1,"Uninterrupted Power Supply (OpzUPS 3000VA)","") -> 
C30: =IF(SRV_A+SRV_B1.1+SRV_B+SRV_C>=1,"Riello - UPS MSR3000EVO 3000VA 2U Rackmount (SNMP+USB+RS232)","") ->  | K30: =IF(J30>=1,"CNV-TS1L1-UPS","") -> 
D33: Totale-
D34: RACK A | E34: RACK B | F34: RACK C | G34: RACK D | H34: RACK E | I34: RACK F | J34: RACK G | K34: RACK H | L34: RACK I | M34: RACK J
C35: =J15 -> 0 | D35: =IF(H55>0,IF(C35-H55=0,0,C35-H55),0) -> 0 | E35: =IF(I55>0,IF(D35-I55=0,0,D35-I55),0) -> 0 | F35: 0 | G35: 0 | H35: 0 | I35: 0 | J35: 0 | K35: 0 | L35: 0 | M35: 0
D38: Server Modello 1 | G38: =SRV_A -> 0
D39: Server Modello 2 | G39: =SRV_AA -> 0
D40: Server Modello 3 | G40: =SRV_AAA -> 0
D41: Server Modello 4 | G41: =SRV_B -> 0
D42: Server Modello 5 | G42: =SRV_BB -> 0
D43: Server Modello 6 | G43: =SRV_BBB -> 0
H45: =SUM(H5:H10)+H12+H87*2+H89*2 -> 0 | I45: 0 | J45: 0 | K45: 0 | L45: 0 | M45: 0 | N45: 0 | O45: 0 | P45: 0 | Q45: 0
C53: Rack ancora da configurare | F53: =J15-H55-I55-J55-K55-L55-M55-N55-O55-P55-Q55 -> 0
C55: Indicare il numero di rack per questa configurazione
E57: Totali | F57: da inserire | H57: =IF(C35>0,"RACK A","") ->  | I57: =IF(D35>0,"RACK B","") ->  | J57: =IF(E35>0,"RACK C","") ->  | K57: =IF(F35>0,"RACK D","") ->  | L57: =IF(G35>0,"RACK E","") ->  | M57: =IF(H35>0,"RACK F","") ->  | N57: =IF(I35>0,"RACK G","") ->  | O57: =IF(J35>0,"RACK H","") ->  | P57: =IF(K35>0,"RACK I","") ->  | Q57: =IF(L35>0,"RACK J","") -> 
C59: Server Lotto1 R630 Conf.1 | E59: =G38 -> 0 | F59: =(E59-(H59*$H$55)-(I59*$I$55)-(J59*$J$55)-(K59*$K$55)-(L59*$L$55)-(M59*$M$55)-(N59*$N$55)-(O59*$O$55)-(P59*$P$55)-(Q59*$Q$55)) -> 0
C60: =IF(G39>0,"Server Lotto1 R630 Conf.2","") ->  | E60: 0 | F60: 0
C61: =IF(G40>0,"Server Lotto1 R630 Conf.3","") ->  | E61: 0 | F61: 0
C62: =IF(G41>0,"Server Lotto1 R730xd Conf.1","") ->  | E62: 0 | F62: 0
C63: =IF(G42>0,"Server Lotto1 R730xd Conf.2","") ->  | E63: 0 | F63: 0
C64: =IF(G43>0,"Server Lotto1 R730xd Conf.3","") ->  | E64: 0 | F64: 0
C66: =IF(J24>0,"OpzGUIRack Disponibili"," ") ->  | E66: =J24 -> 0 | F66: =J24-H66*H55-I66*I55-J66*J55-K66*K55-L66*L55-M66*M55-N66*N55-O66*O55-P66*P55-Q66*Q55 -> 0
C68: =IF(J27>0,"OpzSWGUIRack Disponibili"," ") ->  | E68: =J27 -> 0 | F68: =J27-H68*H55-I68*I55-J68*J55-K68*K55-L68*L55-M68*M55-N68*N55-O68*O55-P68*P55-Q68*Q55 -> 0
C70: =IF(J30>0,"OpzUPS 3000VA Disponibili"," ") ->  | E70: =J30 -> 0 | F70: =J30-H70*H55-I70*I55-J70*J55-K70*K55-L70*L55-M70*M55-N70*N55-O70*O55-P70*P55-Q70*Q55 -> 0
M73: SERVER TOWER
C74: =IF((SRV_D+SRV_E)>=1,"Uninterrupted Power Supply (UPS)","") -> 
C75: =IF((SRV_D+SRV_E)>=1,"Riello - UPS MSR3000EVO 3000VA Tower (SNMP+USB+RS232)","") ->  | K75: =IF(J75>=1,"CNV-TS1L1-UPS-T","") -> 
C78: =IF((SRV_D+SRV_E)>=1,"Keyboard Video Mouse","") -> 
C79: =IF((SRV_D+SRV_E)>=1,"Dell: Kit Monitor 19'' + Mouse + Keyboard","") ->  | K79: =IF(J79>=1,"CNV-TS1L1-GUI-T","") -> 
C82: =IF(SRV_C>=1,"RDX","") -> 
C83: =IF(SRV_C>=1,"Unità di backup RDX (esterno) + 3 cartucce da 500GB","") ->  | K83: =IF(J83>=1,"10L1-RDX","") -> 

Sheet Riepilogo
B1: Amministrazione | R1: CONFIGURATORE ELETTRONICO MEPA TECNOLOGIE SERVER 1 LOTTO 1 | V1: 1
B2: N° Identificativo Ordine | I2: =IF(G4=R210,"Configurazione OK",U4) -> Configurazione OK | V2: 1
B3: Data Ordine | V3: 1
B4: Tot Ordine Portale CONSIP IVA incl. | G4: =R210 -> 0 | U4: Nel "Tot Ordine Portale CONSIP" deve essere inserito l'importo totale risultante dall'ordinativo del portale CONSIP. Qualora l'importo inserito corrisponde al valore ricalcolato dal configuratore viene attivato il pulsante "Salva in formato PDF" che permette di generare il file pdf da allegare all'ordinativo. | V4: 1
B5: LE CELLE IN GIALLO DEVO ESSERE COMPILATE OBBLIGATORIAMENTE | V5: 1
B6: Quantità Server Ordinati | G6: =IF(B76="",0,B76)+IF(B15="",0,B15)+IF(B113="",0,B113)+IF(B39="",0,B39)+IF(B136="",0,B136)+IF(B158="",0,B158) -> 0 | T6: ver. 4.9 MEPA | V6: 1
V7: 1
B8: Referente per la Consegna | J8: Telefono | P8: email | V8: 1
V9: 1
B10: Referente per l'installazione | J10: Telefono | P10: email | V10: 1
V11: 1
B12: ATTENZIONE: I CODICI PRODOTTO DELL'ORDINE MEPA DEVONO ESSERE SPECULARI A QUELLI GENERATI DAL CONFIGURATORE. | V12: 1
B13: Qtà Totale Ordinata | C13: Oggetto di fornitura | G13: Codice Prodotto | J13: Descrizione Sintetica (si faccia riferimento alla guida alla convenzione per la descrizione estesa e per le regole di acquisto delle opzioni) | R13: Costo Unitario | T13: Costo Complessivo | V13: 1
B14: RACK BASE (DELL POWEREDGE R640) | V14: =IF(B15>="",0,1) -> 0 | X14: Server1 | Y14: Server2 | Z14: Server3
B15: =IF(AK15>=1,AK15,"") ->  | C15: =IF(AK15>0,(VLOOKUP(G15,COD_A,2,FALSE)),"") ->  | G15: =IF(AK15>=1,W15,"") ->  | J15: =IF(AK15>0,(VLOOKUP(G15,COD_A,5,FALSE)),"") ->  | R15: =IF(AK15>0,(VLOOKUP(G15,COD_A,3,FALSE)),"") ->  | T15: =IF(B15="","",R15*B15) ->  | V15: =IF(B15>="",0,1) -> 0 | W15: CNV-TS1L1-R640 | X15: =SRV_A -> 0 | Y15: =SRV_AA -> 0 | Z15: =SRV_AAA -> 0 | AK15: =SUM(X15:AJ15) -> 0
B16: =IF(AK16>=1,AK16,"") ->  | T16: =IF(B16="","",R16*B16) ->  | V16: =IF(B16>="",0,1) -> 0 | W16: CNV-TS1L1-CPU-R640 | X16: ='CNV R640 1'!$C$29 -> 0 | Y16: ='CNV R640 2'!$C$29 -> 0 | Z16: ='CNV R640 3'!$C$29 -> 0 | AH16: =X16*$X$15 -> 0 | AI16: =Y16*$Y$15 -> 0 | AJ16: =Z16*$Z$15 -> 0 | AK16: =SUM(AH16:AJ16) -> 0
B17: =IF(AK17>=1,AK17,"") ->  | T17: =IF(B17="","",R17*B17) ->  | V17: 0 | W17: CNV-TS1L1-32GB-U | X17: =IF(MEM_A="",0,MEM_A) -> 0 | Y17: =IF(MEM_AA="",0,MEM_AA) -> 0 | Z17: =IF(MEM_AAA="",0,MEM_AAA) -> 0 | AH17: =X17*$X$15 -> 0 | AI17: =Y17*$Y$15 -> 0 | AJ17: =Z17*$Z$15 -> 0 | AK17: 0
V18: 0 | W18: CNV-TS1L1-64GB-U | X18: =IF(MEM_A32="",0,MEM_A32) -> 0 | Y18: =IF(MEM_AA32="",0,MEM_AA32) -> 0 | Z18: =IF(MEM_AAA32="",0,MEM_AAA32) -> 0 | AH18: =X18*$X$15 -> 0 | AI18: =Y18*$Y$15 -> 0 | AJ18: =Z18*$Z$15 -> 0 | AK18: 0
V19: 0 | W19: CNV-TS1L1-1GB-L | X19: =COUNTIF($AU$19:$AU$29,W19) -> 0 | Y19: =COUNTIF($AV$19:$AV$29,W19) -> 0 | Z19: =COUNTIF($AW$19:$AW$29,W19) -> 0 | AH19: =X19*$X$15 -> 0 | AI19: =Y19*$Y$15 -> 0 | AJ19: =Z19*$Z$15 -> 0 | AK19: 0 | AN19: slot1 | AU19: ='CNV R640 1'!$D$129 ->  | AV19: ='CNV R640 2'!$D$129 ->  | AW19: ='CNV R640 3'!$D$129 -> 
V20: 0 | W20: CNV-TS1L1-10GB-L | X20: 0 | Y20: 0 | Z20: 0 | AH20: =X20*$X$15 -> 0 | AI20: =Y20*$Y$15 -> 0 | AJ20: =Z20*$Z$15 -> 0 | AK20: 0
C21: =IF(AK21>0,(VLOOKUP(G21,COD_A,2,FALSE)),"") ->  | G21: =IF(AK21>=1,W21,"") ->  | J21: =IF(AK21>0,(VLOOKUP(G21,COD_A,5,FALSE)),"") ->  | R21: =IF(AK21>0,(VLOOKUP(G21,COD_A,3,FALSE)),"") ->  | T21: =IF(B21="","",R21*B21) ->  | V21: 0 | W21: CNV-TS1L1-CNA-L | X21: 0 | Y21: 0 | Z21: 0 | AH21: =X21*$X$15 -> 0 | AI21: =Y21*$Y$15 -> 0 | AJ21: =Z21*$Z$15 -> 0 | AK21: =SUM(AH21:AJ21) -> 0
V22: 0 | W22: CNV-S1-540-BBIU | X22: 0 | Y22: 0 | Z22: 0 | AH22: 0 | AI22: 0 | AJ22: 0 | AK22: 0
V23: 0 | W23: CNV-S1-405-AANN | X23: 0 | Y23: 0 | Z23: 0 | AH23: 0 | AI23: 0 | AJ23: 0 | AK23: 0
C24: =IF(AK24>0,(VLOOKUP(G24,COD_A,2,FALSE)),"") ->  | G24: =IF(AK24>=1,W24,"") ->  | J24: =IF(AK24>0,(VLOOKUP(G24,COD_A,5,FALSE)),"") ->  | R24: =IF(AK24>0,(VLOOKUP(G24,COD_A,3,FALSE)),"") ->  | T24: =IF(B24="","",R24*B24) ->  | V24: 0 | W24: CNV-TS1L1-FC-L | X24: 0 | Y24: 0 | Z24: 0 | AH24: 0 | AI24: 0 | AJ24: 0 | AK24: 0
C25: =IF(AK25>0,(VLOOKUP(G25,COD_A,2,FALSE)),"") ->  | G25: =IF(AK25>=1,W25,"") ->  | J25: =IF(AK25>0,(VLOOKUP(G25,COD_A,5,FALSE)),"") ->  | R25: =IF(AK25>0,(VLOOKUP(G25,COD_A,3,FALSE)),"") ->  | T25: =IF(B25="","",R25*B25) ->  | V25: 0 | W25: CNV-S1-406-BBEL | X25: 0 | Y25: 0 | Z25: 0 | AH25: =X25*$X$15 -> 0 | AI25: =Y25*$Y$15 -> 0 | AJ25: =Z25*$Z$15 -> 0 | AK25: =SUM(AH25:AJ25) -> 0
B26: =IF(AK26>=1,AK26,"") ->  | V26: 0 | W26: CNV-S1-IDSDMCCR | X26: ='CNV R640 1'!$C$126 -> 0 | Y26: ='CNV R640 2'!$C$126 -> 0 | Z26: ='CNV R640 3'!$C$126 -> 0 | AH26: 0 | AI26: 0 | AJ26: 0 | AK26: 0
V27: 0 | W27: CNV-TS1L1-HD600 | X27: =HD300_A -> 0 | Y27: =HD300_AA -> 0 | Z27: =HD300_AAA -> 0 | AH27: =X27*$X$15 -> 0 | AI27: =Y27*$Y$15 -> 0 | AJ27: =Z27*$Z$15 -> 0 | AK27: 0
V28: 0 | W28: CNV-TS1L1-HD1200-U | X28: =HD1000_A -> 0 | Y28: =HD1000_AA -> 0 | Z28: =HD1000_AAA -> 0 | AH28: 0 | AI28: 0 | AJ28: 0 | AK28: 0
B29: =IF(AK29>=1,AK29,"") ->  | C29: =IF(AK29>0,(VLOOKUP(G29,COD_A,2,FALSE)),"") ->  | G29: =IF(AK29>=1,W29,"") ->  | J29: =IF(AK29>0,(VLOOKUP(G29,COD_A,5,FALSE)),"") ->  | R29: =IF(AK29>0,(VLOOKUP(G29,COD_A,3,FALSE)),"") ->  | T29: =IF(B29="","",R29*B29) ->  | V29: =IF(B29>="",0,1) -> 0 | W29: CNV-TS1L1-HD1800-U | X29: ='CNV R640 1'!$C$85 -> 0 | Y29: ='CNV R640 2'!$C$85 -> 0 | Z29: ='CNV R640 3'!$C$85 -> 0 | AH29: 0 | AI29: 0 | AJ29: 0 | AK29: =SUM(AH29:AJ29) -> 0 | AN29: slot2 | AU29: ='CNV R640 1'!$D$132 ->  | AV29: ='CNV R640 2'!$D$132 ->  | AW29: ='CNV R640 3'!$D$132 -> 
B30: =IF(AK30>=1,AK30,"") ->  | G30: =IF(AK30>=1,W30,"") ->  | T30: =IF(B30="","",R30*B30) ->  | V30: =IF(B30>="",0,1) -> 0 | W30: CNV-TS1L1-SSD800-U | X30: ='CNV R640 1'!$C$87 -> 0 | Y30: ='CNV R640 2'!$C$87 -> 0 | Z30: ='CNV R640 3'!$C$87 -> 0 | AH30: 0 | AI30: 0 | AJ30: 0 | AK30: =SUM(AH30:AJ30) -> 0
B31: =IF(AK31>=1,AK31,"") ->  | G31: =IF(AK31>=1,W31,"") ->  | T31: =IF(B31="","",R31*B31) ->  | V31: =IF(B31>="",0,1) -> 0 | W31: CNV-TS1L1-SSD1920-U | X31: ='CNV R640 1'!$C$89 -> 0 | Y31: ='CNV R640 2'!$C$89 -> 0 | Z31: ='CNV R640 3'!$C$89 -> 0 | AH31: 0 | AI31: 0 | AJ31: 0 | AK31: =SUM(AH31:AJ31) -> 0
B32: =IF(AK32>=1,AK32,"") ->  | G32: =IF(AK32>=1,W32,"") ->  | T32: =IF(B32="","",R32*B32) ->  | V32: =IF(B32>="",0,1) -> 0 | W32: CNV-1UBezelSTD | X32: =IF('CNV R640 1'!$F$135=25,1,0) -> 0 | Y32: =IF('CNV R640 2'!$F$135=25,1,0) -> 0 | Z32: =IF('CNV R640 3'!$F$135=25,1,0) -> 0 | AH32: =X32*$X$15 -> 0 | AI32: =Y32*$Y$15 -> 0 | AJ32: =Z32*$Z$15 -> 0 | AK32: =SUM(AH32:AJ32) -> 0
V33: 0 | W33: CNV-1UBezelLCD | X33: =IF('CNV R640 1'!$F$135=50,1,0) -> 0 | Y33: =IF('CNV R640 2'!$F$135=50,1,0) -> 0 | Z33: =IF('CNV R640 3'!$F$135=50,1,0) -> 0 | AH33: 0 | AI33: 0 | AJ33: 0 | AK33: 0
G34: =IF(AK34>=1,W34,"") ->  | T34: =IF(B34="","",R34*B34) ->  | V34: 0 | W34: CNV-1UCMA | X34: =IF('CNV R640 1'!$F$138>0,1,0) -> 0 | Y34: =IF('CNV R640 2'!$F$138>0,1,0) -> 0 | Z34: =IF('CNV R640 3'!$F$138>0,1,0) -> 0 | AH34: =X34*$X$15 -> 0 | AI34: =Y34*$Y$15 -> 0 | AJ34: =Z34*$Z$15 -> 0 | AK34: =SUM(AH34:AJ34) -> 0
V35: 0 | W35: CNV-TS1L1-4Y-R640 | X35: =IF('CNV R640 1'!$D$162=W35,'CNV R640 1'!$C$162,0) -> 0 | Y35: =IF('CNV R640 2'!$D$162=W35,'CNV R640 2'!$C$162,0) -> 0 | Z35: =IF('CNV R640 3'!$D$162=W35,'CNV R640 3'!$C$162,0) -> 0 | AH35: 0 | AI35: 0 | AJ35: 0 | AK35: 0
V36: 0 | W36: CNV-TS1L1-5Y-R640 | X36: =IF('CNV R640 1'!$D$162=W36,'CNV R640 1'!$C$162,0) -> 0 | Y36: =IF('CNV R640 2'!$D$162=W36,'CNV R640 2'!$C$162,0) -> 0 | Z36: =IF('CNV R640 3'!$D$162=W36,'CNV R640 3'!$C$162,0) -> 0 | AH36: 0 | AI36: 0 | AJ36: 0 | AK36: 0
V37: 0 | W37: 10L1-SO-HDD | X37: =IF('CNV R640 1'!$D$165=W37,'CNV R640 1'!$C$165,0) -> 0 | Y37: =IF('CNV R640 2'!$D$165=W37,'CNV R640 2'!$C$165,0) -> 0 | Z37: =IF('CNV R640 3'!$D$165=W37,'CNV R640 3'!$C$165,0) -> 0 | AH37: 0 | AI37: 0 | AJ37: 0 | AK37: 0 | AM37: =IF(X37=0,0,IF(X37+X36=2,5,IF(X37+X35=2,4,3))) -> 0 | AN37: =IF(Y37=0,0,IF(Y37+Y36=2,5,IF(Y37+Y35=2,4,3))) -> 0 | AU37: =IF(Z37=0,0,IF(Z37+Z36=2,5,IF(Z37+Z35=2,4,3))) -> 0 | AV37: =IF(AM37=5,$AV$134,IF(AM37=4,$AU$134,IF(AM37=3,$AN$134,""))) ->  | AW37: =IF(AN37=5,$AV$134,IF(AN37=4,$AU$134,IF(AN37=3,$AN$134,""))) ->  | AY37: =IF(AU37=5,$AV$134,IF(AU37=4,$AU$134,IF(AU37=3,$AN$134,""))) -> 
B38: SERVER RACK PRESTAZIONALE (DELL POWEREDGE R740) | V38: =IF(B39>="",0,1) -> 0 | W38: R730xd | X38: Server1 | Y38: Server2 | Z38: Server3
B39: =IF(AK39>=1,AK39,"") ->  | C39: =IF(AK39>0,(VLOOKUP(G39,COD_B,2,FALSE)),"") ->  | G39: =IF(AK39>=1,W39,"") ->  | J39: =IF(AK39>0,(VLOOKUP(G39,COD_B,5,FALSE)),"") ->  | R39: =IF(AK39>0,(VLOOKUP(G39,COD_B,3,FALSE)),"") ->  | T39: =IF(B39="","",R39*B39) ->  | V39: =IF(B39>="",0,1) -> 0 | W39: CNV-TS1L1-R740 | X39: =SRV_B1.1 -> 0 | Y39: =SRV_B1.2 -> 0 | Z39: =SRV_B1.3 -> 0 | AK39: =SUM(X39:AJ39) -> 0
B40: =IF(AK40>=1,AK40,"") ->  | V40: 0 | W40: CNV-TS1L1-CPU-R740 | X40: ='CNV R740 1'!$C$29 -> 0 | Y40: ='CNV R740 2'!$C$29 -> 0 | Z40: ='CNV R740 3'!$C$29 -> 0 | AH40: =X40*$X$39 -> 0 | AI40: =Y40*$Y$39 -> 0 | AJ40: =Z40*$Z$39 -> 0 | AK40: =SUM(AH40:AJ40) -> 0
V41: 0 | W41: CNV-TS1L1-32GB-U | X41: =IF(MEM_B1.1="",0,MEM_B1.1) -> 0 | Y41: =IF(MEM_B1.2="",0,MEM_B1.2) -> 0 | Z41: =IF(MEM_B1.3="",0,MEM_B1.3) -> 0 | AH41: =X41*$X$39 -> 0 | AI41: =Y41*$Y$39 -> 0 | AJ41: =Z41*$Z$39 -> 0 | AK41: 0
V42: 0 | W42: CNV-TS1L1-64GB-U-R74 | X42: =IF(MEM_B321.1="",0,MEM_B321.1) -> 0 | Y42: =IF(MEM_B321.2="",0,MEM_B321.2) -> 0 | Z42: =IF(MEM_B321.3="",0,MEM_B321.3) -> 0 | AH42: =X42*$X$39 -> 0 | AI42: =Y42*$Y$39 -> 0 | AJ42: =Z42*$Z$39 -> 0 | AK42: 0 | AU42: 740 1 | AV42: 740 2 | AW42: 740 3
V43: 0 | W43: CNV-TS1L1-1GB-L | X43: =COUNTIF($AU$43:$AU$61,W43) -> 0 | Y43: =COUNTIF($AV$43:$AV$61,W43) -> 0 | Z43: =COUNTIF($AW$43:$AW$61,W43) -> 0 | AH43: 0 | AI43: 0 | AJ43: 0 | AK43: 0 | AN43: slot1 | AU43: ='CNV R740 1'!$D$129 ->  | AV43: ='CNV R740 2'!$D$129 ->  | AW43: ='CNV R740 3'!$D$129 -> 
C44: =IF(AK44>0,(VLOOKUP(G44,COD_B,2,FALSE)),"") ->  | G44: =IF(AK44>=1,W44,"") ->  | J44: =IF(AK44>0,(VLOOKUP(G44,COD_B,5,FALSE)),"") ->  | R44: =IF(AK44>0,(VLOOKUP(G44,COD_B,3,FALSE)),"") ->  | T44: =IF(B44="","",R44*B44) ->  | V44: 0 | W44: CNV-TS1L1-10GB-L | X44: =COUNTIF($AU$43:$AU$61,W44) -> 0 | Y44: =COUNTIF($AV$43:$AV$61,W44) -> 0 | Z44: =COUNTIF($AW$43:$AW$61,W44) -> 0 | AH44: =X44*$X$39 -> 0 | AI44: =Y44*$Y$39 -> 0 | AJ44: =Z44*$Z$39 -> 0 | AK44: =SUM(AH44:AJ44) -> 0
V45: 0 | W45: CNV-TS1L1-CNA-L | X45: 0 | Y45: 0 | Z45: 0 | AH45: 0 | AI45: 0 | AJ45: 0 | AK45: 0
V46: 0 | W46: CNV-S1-540-BBIU | X46: 0 | Y46: 0 | Z46: 0 | AH46: 0 | AI46: 0 | AJ46: 0 | AK46: 0
V47: 0 | W47: CNV-S1-405-AANN | X47: 0 | Y47: 0 | Z47: 0 | AH47: 0 | AI47: 0 | AJ47: 0 | AK47: 0
V48: 0 | W48: CNV-TS1L1-FC-L | X48: 0 | Y48: 0 | Z48: 0 | AH48: 0 | AI48: 0 | AJ48: 0 | AK48: 0
V49: 0 | W49: CNV-S1-406-BBEL | X49: =COUNTIF($AU$43:$AU$62,W49) -> 0 | Y49: =COUNTIF($AV$43:$AV$62,W49) -> 0 | Z49: =COUNTIF($AW$43:$AW$62,W49) -> 0 | AH49: 0 | AI49: 0 | AJ49: 0 | AK49: 0 | AN49: slot2 | AU49: ='CNV R740 1'!$D$132 ->  | AV49: ='CNV R740 2'!$D$132 ->  | AW49: ='CNV R740 3'!$D$132 -> 
V50: 0 | W50: CNV-TS1L1-1GB | X50: 0 | Y50: 0 | Z50: 0 | AH50: 0 | AI50: 0 | AJ50: 0 | AK50: 0 | AN50: slot3 | AU50: ='CNV R740 1'!$D$135 ->  | AV50: ='CNV R740 2'!$D$135 ->  | AW50: ='CNV R740 3'!$D$135 -> 
V51: 0 | W51: CNV-TS1L1-10GB | X51: 0 | Y51: 0 | Z51: 0 | AH51: 0 | AI51: 0 | AJ51: 0 | AK51: 0 | AN51: slot4 | AU51: ='CNV R740 1'!$D$138 ->  | AV51: ='CNV R740 2'!$D$138 ->  | AW51: ='CNV R740 3'!$D$138 -> 
V52: 0 | W52: CNV-TS1L1-CNA | X52: 0 | Y52: 0 | Z52: 0 | AH52: 0 | AI52: 0 | AJ52: 0 | AK52: 0 | AN52: slot5 | AU52: ='CNV R740 1'!$D$141 ->  | AV52: ='CNV R740 2'!$D$141 ->  | AW52: ='CNV R740 3'!$D$141 -> 
B53: =IF(AK53>=1,AK53,"") ->  | C53: =IF(AK53>0,(VLOOKUP(G53,COD_B,2,FALSE)),"") ->  | G53: =IF(AK53>=1,W53,"") ->  | J53: =IF(AK53>0,(VLOOKUP(G53,COD_B,5,FALSE)),"") ->  | R53: =IF(AK53>0,(VLOOKUP(G53,COD_B,3,FALSE)),"") ->  | T53: =IF(B53="","",R53*B53) ->  | V53: =IF(B53>="",0,1) -> 0 | W53: CNV-S1-540-BBGU | X53: 0 | Y53: 0 | Z53: 0 | AH53: =X53*$X$39 -> 0 | AI53: =Y53*$Y$39 -> 0 | AJ53: =Z53*$Z$39 -> 0 | AK53: =SUM(AH53:AJ53) -> 0 | AN53: slot6 | AU53: ='CNV R740 1'!$D$144 ->  | AV53: ='CNV R740 2'!$D$144 ->  | AW53: ='CNV R740 3'!$D$144 -> 
V54: 0 | W54: CNV-TS1L1-540-BBIW | X54: 0 | Y54: 0 | Z54: 0 | AH54: 0 | AI54: 0 | AJ54: 0 | AK54: 0 | AN54: slot7 | AU54: ='CNV R740 1'!$D$147 ->  | AV54: ='CNV R740 2'!$D$147 ->  | AW54: ='CNV R740 3'!$D$147 -> 
V55: 0 | W55: CNV-TS1L1-540-BBIV | X55: 0 | Y55: 0 | Z55: 0 | AH55: 0 | AI55: 0 | AJ55: 0 | AK55: 0 | AN55: slot8 | AU55: ='CNV R740 1'!$D$150 ->  | AV55: ='CNV R740 2'!$D$150 ->  | AW55: ='CNV R740 3'!$D$150 -> 
V56: 0 | W56: CNV-S1-405-AAMZ | X56: 0 | Y56: 0 | Z56: 0 | AH56: 0 | AI56: 0 | AJ56: 0 | AK56: 0
C57: =IF(AK57>0,(VLOOKUP(G57,COD_B,2,FALSE)),"") ->  | G57: =IF(AK57>=1,W57,"") ->  | J57: =IF(AK57>0,(VLOOKUP(G57,COD_B,5,FALSE)),"") ->  | R57: =IF(AK57>0,(VLOOKUP(G57,COD_B,3,FALSE)),"") ->  | T57: =IF(B57="","",R57*B57) ->  | V57: 0 | W57: CNV-TS1-BOSS | X57: 0 | Y57: 0 | Z57: 0 | AH57: 0 | AI57: 0 | AJ57: 0 | AK57: 0
V58: 0 | W58: CNV-TS1-BOSS120 | X58: 0 | Y58: 0 | Z58: 0 | AH58: 0 | AI58: 0 | AJ58: 0 | AK58: 0
V59: 0 | W59: CNV-TS1L1-403-BBTM | X59: 0 | Y59: 0 | Z59: 0 | AH59: 0 | AI59: 0 | AJ59: 0 | AK59: 0
V60: 0 | W60: CNV-TS1L1-FC | X60: 0 | Y60: 0 | Z60: 0 | AH60: 0 | AI60: 0 | AJ60: 0 | AK60: 0
V61: 0 | W61: CNV-S1-406-BBEK | X61: 0 | Y61: 0 | Z61: 0 | AH61: 0 | AI61: 0 | AJ61: 0 | AK61: 0
V62: 0 | W62: CNV-S1-IDSDMCCR | X62: ='CNV R740 1'!$C$126 -> 0 | Y62: ='CNV R740 2'!$C$126 -> 0 | Z62: ='CNV R740 3'!$C$126 -> 0 | AH62: 0 | AI62: 0 | AJ62: 0 | AK62: 0
C63: =IF(AK63>0,(VLOOKUP(G63,COD_B,2,FALSE)),"") ->  | G63: =IF(AK63>=1,W63,"") ->  | J63: =IF(AK63>0,(VLOOKUP(G63,COD_B,5,FALSE)),"") ->  | R63: =IF(AK63>0,(VLOOKUP(G63,COD_B,3,FALSE)),"") ->  | T63: =IF(B63="","",R63*B63) ->  | V63: 0 | W63: CNV-S1-405-AAJW | X63: ='CNV R740 1'!$C$76 -> 0 | Y63: ='CNV R740 2'!$C$76 -> 0 | Z63: ='CNV R740 3'!$C$76 -> 0 | AH63: =X63*$X$39 -> 0 | AI63: =Y63*$Y$39 -> 0 | AJ63: =Z63*$Z$39 -> 0 | AK63: =SUM(AH63:AJ63) -> 0
V64: 0 | W64: CNV-TS1L1-HD600 | X64: =HD300_B1.1 -> 0 | Y64: =HD300_B1.2 -> 0 | Z64: =HD300_B1.3 -> 0 | AH64: 0 | AI64: 0 | AJ64: 0 | AK64: 0
V65: 0 | W65: CNV-TS1L1-HD1200-U | X65: =HD1000_B1.1 -> 0 | Y65: =HD1000_B1.2 -> 0 | Z65: =HD1000_B1.3 -> 0 | AH65: 0 | AI65: 0 | AJ65: 0 | AK65: 0
V66: 0 | W66: CNV-TS1L1-HD1800-U | X66: ='CNV R740 1'!$C$85 -> 0 | Y66: ='CNV R740 2'!$C$85 -> 0 | Z66: ='CNV R740 3'!$C$85 -> 0 | AH66: 0 | AI66: =Y66*$Y$39 -> 0 | AJ66: =Z66*$Z$39 -> 0 | AK66: 0
V67: 0 | W67: CNV-TS1L1-SSD800-U | X67: ='CNV R740 1'!$C$87 -> 0 | Y67: ='CNV R740 2'!$C$87 -> 0 | Z67: ='CNV R740 3'!$C$87 -> 0 | AH67: 0 | AI67: 0 | AJ67: 0 | AK67: 0
V68: 0 | W68: CNV-TS1L1-SSD1920-U | X68: ='CNV R740 1'!$C$89 -> 0 | Y68: ='CNV R740 2'!$C$89 -> 0 | Z68: ='CNV R740 3'!$C$89 -> 0 | AH68: 0 | AI68: 0 | AJ68: 0 | AK68: 0
C69: =IF(AK69>0,(VLOOKUP(G69,COD_B,2,FALSE)),"") ->  | G69: =IF(AK69>=1,W69,"") ->  | J69: =IF(AK69>0,(VLOOKUP(G69,COD_B,5,FALSE)),"") ->  | R69: =IF(AK69>0,(VLOOKUP(G69,COD_B,3,FALSE)),"") ->  | T69: =IF(B69="","",R69*B69) ->  | V69: 0 | W69: CNV-2UBezelSTD | X69: =IF('CNV R740 1'!$F$153=30,1,0) -> 0 | Y69: =IF('CNV R740 2'!$F$153=30,1,0) -> 0 | Z69: =IF('CNV R740 3'!$F$153=30,1,0) -> 0 | AH69: =X69*$X$39 -> 0 | AI69: =Y69*$Y$39 -> 0 | AJ69: =Z69*$Z$39 -> 0 | AK69: =SUM(AH69:AJ69) -> 0
V70: 0 | W70: CNV-2UBezelLCD | X70: =IF('CNV R740 1'!$F$153=60,1,0) -> 0 | Y70: =IF('CNV R740 2'!$F$153=60,1,0) -> 0 | Z70: =IF('CNV R740 3'!$F$153=60,1,0) -> 0 | AH70: 0 | AI70: 0 | AJ70: 0 | AK70: 0
V71: 0 | W71: CNV-2UCMA | X71: =IF('CNV R740 1'!$F$156>0,1,0) -> 0 | Y71: =IF('CNV R740 2'!$F$156>0,1,0) -> 0 | Z71: =IF('CNV R740 3'!$F$156>0,1,0) -> 0 | AH71: 0 | AI71: 0 | AJ71: 0 | AK71: 0
V72: 0 | W72: CNV-TS1L1-4Y-R740 | X72: =IF('CNV R740 1'!$D$177=$W$72,'CNV R740 1'!$C$177,0) -> 0 | Y72: =IF('CNV R740 2'!$D$177=$W$72,'CNV R740 2'!$C$177,0) -> 0 | Z72: =IF('CNV R740 3'!$D$177=$W$72,'CNV R740 3'!$C$177,0) -> 0 | AH72: 0 | AI72: 0 | AJ72: 0 | AK72: 0
V73: 0 | W73: CNV-TS1L1-5Y-R740 | X73: =IF('CNV R740 1'!$D$177=$W$73,'CNV R740 1'!$C$177,0) -> 0 | Y73: =IF('CNV R740 2'!$D$177=$W$73,'CNV R740 2'!$C$177,0) -> 0 | Z73: =IF('CNV R740 3'!$D$177=$W$73,'CNV R740 3'!$C$177,0) -> 0 | AH73: 0 | AI73: 0 | AJ73: 0 | AK73: 0 | AM73: R730 1 HDDr
V74: 0 | W74: 10L1-SO-HDD | X74: =IF('CNV R740 1'!$D$177=W74,'CNV R740 1'!$C$177,0) -> 0 | Y74: =IF('CNV R740 2'!$D$177=$W$111,'CNV R740 2'!$C$177,0) -> 0 | Z74: =IF('CNV R740 3'!$D$177=$W$111,'CNV R740 3'!$C$177,0) -> 0 | AH74: 0 | AI74: 0 | AJ74: 0 | AK74: 0 | AM74: =IF(X74=0,0,IF(X74+X73=2,5,IF(X74+X72=2,4,3))) -> 0 | AN74: =IF(Y74=0,0,IF(Y74+Y73=2,5,IF(Y74+Y72=2,4,3))) -> 0 | AU74: =IF(Z74=0,0,IF(Z74+Z73=2,5,IF(Z74+Z72=2,4,3))) -> 0 | AV74: =IF(AM74=5,$AV$134,IF(AM74=4,$AU$134,IF(AM74=3,$AN$134,""))) ->  | AW74: =IF(AN74=5,$AV$134,IF(AN74=4,$AU$134,IF(AN74=3,$AN$134,""))) ->  | AY74: =IF(AU74=5,$AV$134,IF(AU74=4,$AU$134,IF(AU74=3,$AN$134,""))) -> 
B75: SERVER RACK PRESTAZIONALE ALTERNATIVO (DELL POWEREDGE R740XD) | V75: =IF(B76>="",0,1) -> 0 | W75: R740xd | X75: Server1 | Y75: Server2 | Z75: Server3
B76: =IF(AK76>=1,AK76,"") ->  | C76: =IF(AK76>0,(VLOOKUP(G76,COD_B,2,FALSE)),"") ->  | G76: =IF(AK76>=1,W76,"") ->  | J76: =IF(AK76>0,(VLOOKUP(G76,COD_B,5,FALSE)),"") ->  | R76: =IF(AK76>0,(VLOOKUP(G76,COD_B,3,FALSE)),"") ->  | T76: =IF(B76="","",R76*B76) ->  | V76: 0 | W76: CNV-TS1L1-R740XD | X76: =SRV_B -> 0 | Y76: =SRV_BB -> 0 | Z76: =SRV_BBB -> 0 | AK76: =SUM(X76:AJ76) -> 0
B77: =IF(AK77>=1,AK77,"") ->  | V77: 0 | W77: CNV-TS1L1-CPU-R740X | X77: ='CNV R740xd 1'!$C$29 -> 0 | Y77: ='CNV R740xd 2'!$C$29 -> 0 | Z77: ='CNV R740xd 3'!$C$29 -> 0 | AH77: =X77*$X$76 -> 0 | AI77: =Y77*$Y$76 -> 0 | AJ77: =Z77*$Z$76 -> 0 | AK77: =SUM(AH77:AJ77) -> 0
T78: =IF(B78="","",R78*B78) ->  | V78: 0 | W78: CNV-TS1L1-32GB-U | X78: =IF(MEM_B="",0,MEM_B) -> 0 | Y78: =IF(MEM_BB="",0,MEM_BB) -> 0 | Z78: =IF(MEM_BBB="",0,MEM_BBB) -> 0 | AH78: =X78*$X$76 -> 0 | AI78: =Y78*$Y$76 -> 0 | AJ78: =Z78*$Z$76 -> 0 | AK78: 0
V79: 0 | W79: CNV-TS1L1-64GB-U-R74 | X79: =IF(MEM_B32="",0,MEM_B32) -> 0 | Y79: =IF(MEM_BB32="",0,MEM_BB32) -> 0 | Z79: =IF(MEM_BBB32="",0,MEM_BBB32) -> 0 | AH79: =X79*$X$76 -> 0 | AI79: =Y79*$Y$76 -> 0 | AJ79: =Z79*$Z$76 -> 0 | AK79: 0
B80: =IF(AK80>=1,AK80,"") ->  | C80: =IF(AK80>0,(VLOOKUP(G80,COD_B,2,FALSE)),"") ->  | G80: =IF(AK80>=1,W80,"") ->  | J80: =IF(AK80>0,(VLOOKUP(G80,COD_B,5,FALSE)),"") ->  | R80: =IF(AK80>0,(VLOOKUP(G80,COD_B,3,FALSE)),"") ->  | T80: =IF(B80="","",R80*B80) ->  | V80: =IF(B80>="",0,1) -> 0 | W80: CNV-TS1L1-1GB-L | X80: =COUNTIF($AU$88:$AU$101,W80) -> 0 | Y80: =COUNTIF($AV$88:$AV$101,W80) -> 0 | Z80: =COUNTIF($AW$88:$AW$101,W80) -> 0 | AH80: =X80*$X$76 -> 0 | AI80: =Y80*$Y$76 -> 0 | AJ80: =Z80*$Z$76 -> 0 | AK80: =SUM(AH80:AJ80) -> 0 | AN80: slot1 | AU80: ='CNV R740xd 1'!$D$130 ->  | AV80: ='CNV R740xd 2'!$D$130 ->  | AW80: ='CNV R740xd 3'!$D$127 -> 
V81: 0 | W81: CNV-TS1L1-10GB-L | X81: 0 | Y81: 0 | Z81: 0 | AH81: 0 | AI81: 0 | AJ81: 0 | AK81: 0
V82: 0 | W82: CNV-TS1L1-CNA-L | X82: 0 | Y82: 0 | Z82: 0 | AH82: 0 | AI82: 0 | AJ82: 0 | AK82: 0
V83: 0 | W83: CNV-S1-540-BBIU | X83: 0 | Y83: 0 | Z83: 0 | AH83: 0 | AI83: 0 | AJ83: 0 | AK83: 0
V84: 0 | W84: CNV-S1-405-AANN | X84: 0 | Y84: 0 | Z84: 0 | AH84: 0 | AI84: 0 | AJ84: 0 | AK84: 0
V85: 0 | W85: CNV-TS1L1-FC-L | X85: 0 | Y85: 0 | Z85: 0 | AH85: 0 | AI85: 0 | AJ85: 0 | AK85: 0
V86: 0 | W86: CNV-S1-406-BBEL | X86: 0 | Y86: 0 | Z86: 0 | AH86: 0 | AI86: 0 | AJ86: 0 | AK86: 0
V87: 0 | W87: CNV-TS1L1-1GB | X87: 0 | Y87: 0 | Z87: 0 | AH87: 0 | AI87: 0 | AJ87: 0 | AK87: 0
V88: 0 | W88: CNV-TS1L1-10GB | X88: 0 | Y88: 0 | Z88: 0 | AH88: =X88*$X$76 -> 0 | AI88: =Y88*$Y$76 -> 0 | AJ88: =Z88*$Z$76 -> 0 | AK88: 0 | AN88: slot1 | AU88: ='CNV R740xd 1'!$D$130 ->  | AV88: ='CNV R740xd 2'!$D$130 ->  | AW88: ='CNV R740xd 3'!$D$127 -> 
C89: =IF(AK89>0,(VLOOKUP(G89,COD_B,2,FALSE)),"") ->  | G89: =IF(AK89>=1,W89,"") ->  | J89: =IF(AK89>0,(VLOOKUP(G89,COD_B,5,FALSE)),"") ->  | R89: =IF(AK89>0,(VLOOKUP(G89,COD_B,3,FALSE)),"") ->  | T89: =IF(B89="","",R89*B89) ->  | V89: 0 | W89: CNV-TS1L1-CNA | X89: 0 | Y89: 0 | Z89: 0 | AH89: =X89*$X$76 -> 0 | AI89: =Y89*$Y$76 -> 0 | AJ89: =Z89*$Z$76 -> 0 | AK89: =SUM(AH89:AJ89) -> 0
V90: 0 | W90: CNV-S1-540-BBGU | X90: 0 | Y90: 0 | Z90: 0 | AH90: =X90*$X$76 -> 0 | AI90: =Y90*$Y$76 -> 0 | AJ90: =Z90*$Z$76 -> 0 | AK90: 0 | AN90: slot2 | AU90: ='CNV R740xd 1'!$D$133 ->  | AV90: ='CNV R740xd 2'!$D$133 ->  | AW90: ='CNV R740xd 3'!$D$133 -> 
C91: =IF(AK91>0,(VLOOKUP(G91,COD_B,2,FALSE)),"") ->  | G91: =IF(AK91>=1,W91,"") ->  | J91: =IF(AK91>0,(VLOOKUP(G91,COD_B,5,FALSE)),"") ->  | R91: =IF(AK91>0,(VLOOKUP(G91,COD_B,3,FALSE)),"") ->  | T91: =IF(B91="","",R91*B91) ->  | V91: 0 | W91: CNV-TS1L1-540-BBIW | X91: =COUNTIF($AU$88:$AU$101,W91) -> 0 | Y91: =COUNTIF($AV$88:$AV$101,W91) -> 0 | Z91: =COUNTIF($AW$88:$AW$101,W91) -> 0 | AH91: =X91*$X$76 -> 0 | AI91: =Y91*$Y$76 -> 0 | AJ91: =Z91*$Z$76 -> 0 | AK91: =SUM(AH91:AJ91) -> 0
V92: 0 | W92: CNV-TS1L1-540-BBIV | X92: 0 | Y92: 0 | Z92: 0 | AH92: 0 | AI92: 0 | AJ92: 0 | AK92: 0
V93: 0 | W93: CNV-S1-405-AAMZ | X93: 0 | Y93: 0 | Z93: 0 | AH93: 0 | AI93: 0 | AJ93: 0 | AK93: 0
V94: 0 | W94: CNV-TS1-BOSS | X94: 0 | Y94: 0 | Z94: 0 | AH94: 0 | AI94: 0 | AJ94: 0 | AK94: 0
V95: 0 | W95: CNV-TS1-BOSS120 | X95: 0 | Y95: 0 | Z95: 0 | AH95: 0 | AI95: 0 | AJ95: 0 | AK95: 0
V96: 0 | W96: CNV-TS1L1-403-BBTM | X96: =COUNTIF($AU$88:$AU$101,W96) -> 0 | Y96: =COUNTIF($AV$88:$AV$101,W96) -> 0 | Z96: =COUNTIF($AW$88:$AW$101,W96) -> 0 | AH96: 0 | AI96: 0 | AJ96: 0 | AK96: 0 | AN96: slot3 | AU96: ='CNV R740xd 1'!$D$136 ->  | AV96: ='CNV R740xd 2'!$D$136 ->  | AW96: ='CNV R740xd 3'!$D$136 -> 
V97: 0 | W97: CNV-TS1L1-FC | X97: =COUNTIF($AU$88:$AU$101,W97) -> 0 | Y97: =COUNTIF($AV$88:$AV$101,W97) -> 0 | Z97: =COUNTIF($AW$88:$AW$101,W97) -> 0 | AH97: 0 | AI97: 0 | AJ97: 0 | AK97: 0 | AN97: slot4 | AU97: ='CNV R740xd 1'!$D$139 ->  | AV97: ='CNV R740xd 2'!$D$139 ->  | AW97: ='CNV R740xd 3'!$D$139 -> 
V98: 0 | W98: CNV-S1-406-BBEK | X98: =COUNTIF($AU$88:$AU$101,W98) -> 0 | Y98: =COUNTIF($AV$88:$AV$101,W98) -> 0 | Z98: =COUNTIF($AW$88:$AW$101,W98) -> 0 | AH98: 0 | AI98: 0 | AJ98: 0 | AK98: 0 | AN98: slot5 | AU98: ='CNV R740xd 1'!$D$142 ->  | AV98: ='CNV R740xd 2'!$D$142 ->  | AW98: ='CNV R740xd 3'!$D$142 -> 
V99: 0 | W99: CNV-S1-IDSDMCCR | X99: ='CNV R740xd 1'!$C$127 -> 0 | Y99: ='CNV R740xd 2'!$C$127 -> 0 | Z99: ='CNV R740xd 3'!$C$127 -> 0 | AH99: 0 | AI99: 0 | AJ99: 0 | AK99: 0 | AN99: slot6 | AU99: ='CNV R740xd 1'!$D$145 ->  | AV99: ='CNV R740xd 2'!$D$145 ->  | AW99: ='CNV R740xd 3'!$D$145 -> 
C100: =IF(AK100>0,(VLOOKUP(G100,COD_B,2,FALSE)),"") ->  | G100: =IF(AK100>=1,W100,"") ->  | J100: =IF(AK100>0,(VLOOKUP(G100,COD_B,5,FALSE)),"") ->  | R100: =IF(AK100>0,(VLOOKUP(G100,COD_B,3,FALSE)),"") ->  | T100: =IF(B100="","",R100*B100) ->  | V100: 0 | W100: CNV-S1-405-AAJW | X100: ='CNV R740xd 1'!$C$77 -> 0 | Y100: ='CNV R740xd 2'!$C$77 -> 0 | Z100: ='CNV R740xd 3'!$C$77 -> 0 | AH100: =X100*$X$76 -> 0 | AI100: =Y100*$Y$76 -> 0 | AJ100: =Z100*$Z$76 -> 0 | AK100: =SUM(AH100:AJ100) -> 0 | AN100: slot7 | AU100: ='CNV R740xd 1'!$D$148 ->  | AV100: ='CNV R740xd 2'!$D$148 ->  | AW100: ='CNV R740xd 3'!$D$148 -> 
T101: =IF(B101="","",R101*B101) ->  | V101: 0 | W101: CNV-TS1L1-HD600 | X101: =HD300_B -> 0 | Y101: =HD300_BB -> 0 | Z101: =HD300_BBB -> 0 | AH101: =X101*$X$76 -> 0 | AI101: =Y101*$Y$76 -> 0 | AJ101: =Z101*$Z$76 -> 0 | AK101: 0 | AN101: slot8 | AU101: ='CNV R740xd 1'!$D$151 ->  | AV101: ='CNV R740xd 2'!$D$151 ->  | AW101: ='CNV R740xd 3'!$D$151 -> 
V102: 0 | W102: CNV-TS1L1-HD1200-U | X102: =HD1000_B -> 0 | Y102: =HD1000_BB -> 0 | Z102: =HD1000_BBB -> 0 | AH102: 0 | AI102: 0 | AJ102: 0 | AK102: 0
V103: 0 | W103: CNV-TS1L1-HD1800-U | X103: ='CNV R740xd 1'!$C$86 -> 0 | Y103: ='CNV R740xd 2'!$C$86 -> 0 | Z103: ='CNV R740xd 3'!$C$86 -> 0 | AH103: 0 | AI103: 0 | AJ103: 0 | AK103: 0
V104: 0 | W104: CNV-TS1L1-SSD800-U | X104: ='CNV R740xd 1'!$C$88 -> 0 | Y104: ='CNV R740xd 2'!$C$88 -> 0 | Z104: ='CNV R740xd 3'!$C$88 -> 0 | AH104: 0 | AI104: 0 | AJ104: 0 | AK104: 0
V105: 0 | W105: CNV-TS1L1-SSD1920-U | X105: ='CNV R740xd 1'!$C$90 -> 0 | Y105: ='CNV R740xd 2'!$C$90 -> 0 | Z105: ='CNV R740xd 3'!$C$90 -> 0 | AH105: 0 | AI105: 0 | AJ105: 0 | AK105: 0
C106: =IF(AK106>0,(VLOOKUP(G106,COD_B,2,FALSE)),"") ->  | G106: =IF(AK106>=1,W106,"") ->  | J106: =IF(AK106>0,(VLOOKUP(G106,COD_B,5,FALSE)),"") ->  | R106: =IF(AK106>0,(VLOOKUP(G106,COD_B,3,FALSE)),"") ->  | T106: =IF(B106="","",R106*B106) ->  | V106: 0 | W106: CNV-2UBezelSTD | X106: =IF('CNV R740xd 1'!$F$154=30,1,0) -> 0 | Y106: =IF('CNV R740xd 2'!$F$154=30,1,0) -> 0 | Z106: =IF('CNV R740xd 3'!$F$154=30,1,0) -> 0 | AH106: =X106*$X$76 -> 0 | AI106: =Y106*$Y$76 -> 0 | AJ106: =Z106*$Z$76 -> 0 | AK106: =SUM(AH106:AJ106) -> 0
V107: 0 | W107: CNV-2UBezelLCD | X107: =IF('CNV R740xd 1'!$F$154=60,1,0) -> 0 | Y107: =IF('CNV R740xd 2'!$F$154=60,1,0) -> 0 | Z107: =IF('CNV R740xd 3'!$F$154=60,1,0) -> 0 | AH107: 0 | AI107: 0 | AJ107: 0 | AK107: 0
V108: 0 | W108: CNV-2UCMA | X108: =IF('CNV R740xd 1'!$F$157>0,1,0) -> 0 | Y108: =IF('CNV R740xd 2'!$F$157>0,1,0) -> 0 | Z108: =IF('CNV R740xd 3'!$F$157>0,1,0) -> 0 | AH108: 0 | AI108: 0 | AJ108: 0 | AK108: 0
V109: 0 | W109: CNV-TS1L1-4Y-R740XD | X109: =IF('CNV R740xd 1'!$D$178=$W$109,'CNV R740xd 1'!$C$178,0) -> 0 | Y109: =IF('CNV R740xd 2'!$D$178=$W$109,'CNV R740xd 2'!$C$178,0) -> 0 | Z109: =IF('CNV R740xd 3'!$D$178=$W$109,'CNV R740xd 3'!$C$178,0) -> 0 | AH109: 0 | AI109: 0 | AJ109: 0 | AK109: 0
V110: 0 | W110: CNV-TS1L1-5Y-R740XD | X110: =IF('CNV R740xd 1'!$D$178=$W$110,'CNV R740xd 1'!$C$178,0) -> 0 | Y110: =IF('CNV R740xd 2'!$D$178=$W$110,'CNV R740xd 2'!$C$178,0) -> 0 | Z110: =IF('CNV R740xd 3'!$D$178=$W$110,'CNV R740xd 3'!$C$178,0) -> 0 | AH110: 0 | AI110: 0 | AJ110: 0 | AK110: 0 | AM110: R730 1 HDDr
V111: 0 | W111: 10L1-SO-HDD | X111: =IF('CNV R740xd 1'!$D$181=$W$111,'CNV R740xd 1'!$C$181,0) -> 0 | Y111: =IF('CNV R740xd 2'!$D$175=$W$111,'CNV R740xd 2'!$C$175,0) -> 0 | Z111: =IF('CNV R740xd 3'!$D$172=$W$111,'CNV R740xd 3'!$C$172,0) -> 0 | AH111: 0 | AI111: 0 | AJ111: 0 | AK111: 0 | AM111: =IF(X111=0,0,IF(X111+X110=2,5,IF(X111+X109=2,4,3))) -> 0 | AN111: =IF(Y111=0,0,IF(Y111+Y110=2,5,IF(Y111+Y109=2,4,3))) -> 0 | AU111: =IF(Z111=0,0,IF(Z111+Z110=2,5,IF(Z111+Z109=2,4,3))) -> 0 | AV111: =IF(AM111=5,$AV$134,IF(AM111=4,$AU$134,IF(AM111=3,$AN$134,""))) ->  | AW111: =IF(AN111=5,$AV$134,IF(AN111=4,$AU$134,IF(AN111=3,$AN$134,""))) ->  | AY111: =IF(AU111=5,$AV$134,IF(AU111=4,$AU$134,IF(AU111=3,$AN$134,""))) -> 
B112: RACK BASE ALTERNATIVO (DELL POWEREDGE T640) | V112: =IF(B113>="",0,1) -> 0 | X112: Server1 | Y112: Server2 | Z112: Server3
B113: =IF(AK113>=1,AK113,"") ->  | C113: =IF(AK113>0,(VLOOKUP(G113,COD_B,2,FALSE)),"") ->  | G113: =IF(AK113>=1,W113,"") ->  | J113: =IF(AK113>0,(VLOOKUP(G113,COD_B,5,FALSE)),"") ->  | R113: =IF(AK113>0,(VLOOKUP(G113,COD_B,3,FALSE)),"") ->  | T113: =IF(B113="","",R113*B113) ->  | V113: 0 | W113: CNV-TS1L1-T640R | X113: =SRV_C -> 0 | AK113: =SUM(X113:AJ113) -> 0
B114: =IF(AK114>=1,AK114,"") ->  | G114: =IF(AK114>=1,W114,"") ->  | T114: =IF(B114="","",R114*B114) ->  | V114: 0 | W114: CNV-TS1L1-CPU-T640R | X114: ='CNV T640 (Rack)'!$C$30 -> 0 | AH114: =X114*$X$113 -> 0 | AI114: =Y114*$Y$113 -> 0 | AJ114: =Z114*$Z$113 -> 0 | AK114: =SUM(AH114:AJ114) -> 0
V115: 0 | W115: CNV-TS1L1-32GB-U | X115: =IF(MEM_C="",0,MEM_C) -> 0 | AH115: =X115*$X$113 -> 0 | AI115: =Y115*$Y$113 -> 0 | AJ115: =Z115*$Z$113 -> 0 | AK115: 0
C116: =IF(AK116>0,(VLOOKUP(G116,COD_C,2,FALSE)),"") ->  | J116: =IF(AK116>0,(VLOOKUP(G116,COD_C,5,FALSE)),"") ->  | R116: =IF(AK116>0,(VLOOKUP(G116,COD_C,3,FALSE)),"") ->  | V116: 0 | W116: CNV-TS1L1-64GB-U | X116: =IF(MEM_C32="",0,MEM_C32) -> 0 | AH116: =X116*$X$113 -> 0 | AI116: 0 | AJ116: 0 | AK116: 0
C117: =IF(AK117>0,(VLOOKUP(G117,COD_B,2,FALSE)),"") ->  | G117: =IF(AK117>=1,W117,"") ->  | J117: =IF(AK117>0,(VLOOKUP(G117,COD_B,5,FALSE)),"") ->  | R117: =IF(AK117>0,(VLOOKUP(G117,COD_B,3,FALSE)),"") ->  | T117: =IF(B117="","",R117*B117) ->  | V117: =IF(B117>="",0,1) -> 0 | W117: CNV-TS1L1-1GB | X117: =COUNTIF($AU$119:$AU$132,W117) -> 0 | AH117: =X117*$X$113 -> 0 | AI117: =Y117*$Y$113 -> 0 | AJ117: =Z117*$Z$113 -> 0 | AK117: =SUM(AH117:AJ117) -> 0 | AU117: ='CNV T640 (Rack)'!$D$82 -> CNV-TS1L1-HD600R | AV117: ='Lotto1 T630R 2'!$D$138 ->  | AW117: ='Lotto1 T630R 3'!$D$138 -> 
C118: =IF(AK118>0,(VLOOKUP(G118,COD_B,2,FALSE)),"") ->  | G118: =IF(AK118>=1,W118,"") ->  | J118: =IF(AK118>0,(VLOOKUP(G118,COD_B,5,FALSE)),"") ->  | R118: =IF(AK118>0,(VLOOKUP(G118,COD_B,3,FALSE)),"") ->  | T118: =IF(B118="","",R118*B118) ->  | V118: =IF(B118>="",0,1) -> 0 | W118: CNV-TS1L1-10GB | X118: 0 | AH118: =X118*$X$113 -> 0 | AI118: =Y118*$Y$113 -> 0 | AJ118: =Z118*$Z$113 -> 0 | AK118: =SUM(AH118:AJ118) -> 0 | AU118: ='CNV T640 (Rack)'!$D$84 -> CNV-TS1L1-HD1200R | AV118: ='Lotto1 T630R 2'!$D$141 ->  | AW118: ='Lotto1 T630R 3'!$D$141 -> 
V119: 0 | W119: CNV-TS1L1-CNA | X119: 0 | AH119: 0 | AI119: 0 | AJ119: 0 | AK119: 0 | AN119: slot2 | AU119: ='CNV T640 (Rack)'!$D$128 ->  | AV119: ='Lotto1 T630R 2'!$D$129 ->  | AW119: ='Lotto1 T630R 3'!$D$129 -> 
V120: =IF(B120>="",0,1) -> 0 | W120: CNV-S1-540-BBGU | X120: 0 | AH120: 0 | AI120: =Y120*$Y$113 -> 0 | AJ120: =Z120*$Z$113 -> 0 | AK120: =SUM(AH120:AJ120) -> 0 | AN120: slot3 | AU120: ='CNV T640 (Rack)'!$D$131 ->  | AV120: T630R 2 | AW120: T630R 3
V121: 0 | W121: CNV-TS1L1-540-BBIW | X121: 0 | AH121: 0 | AI121: 0 | AJ121: 0 | AK121: 0 | AN121: slot4 | AU121: ='CNV T640 (Rack)'!$D$134 ->  | AV121: ='Lotto1 T630R 2'!$D$132 ->  | AW121: ='Lotto1 T630R 3'!$D$132 -> 
V122: 0 | W122: CNV-TS1L1-540-BBIV | X122: 0 | AH122: 0 | AI122: 0 | AJ122: 0 | AK122: 0 | AN122: slot5 | AU122: ='CNV T640 (Rack)'!$D$137 ->  | AV122: ='Lotto1 T630R 2'!$D$135 ->  | AW122: ='Lotto1 T630R 3'!$D$135 -> 
V123: 0 | W123: CNV-S1-405-AAMZ | X123: 0 | AH123: 0 | AK123: 0 | AN123: slot6 | AU123: ='CNV T640 (Rack)'!$D$140 -> 
V124: 0 | W124: CNV-TS1-BOSS | X124: 0 | AH124: 0 | AK124: 0 | AN124: slot7 | AU124: ='CNV T640 (Rack)'!$D$143 -> 
V125: 0 | W125: CNV-TS1-BOSS120 | X125: =COUNTIF($AU$119:$AU$132,W125) -> 0 | AH125: 0 | AK125: 0
V126: 0 | W126: CNV-TS1L1-403-BBTM | X126: 0 | AH126: 0 | AK126: 0
V127: 0 | W127: CNV-TS1L1-FC | X127: 0 | AH127: 0 | AK127: 0
V128: 0 | W128: CNV-S1-406-BBEK | X128: 0 | AH128: 0 | AK128: 0
B129: =IF(AK129>=1,AK129,"") ->  | C129: =IF(AK129>0,(VLOOKUP(G129,COD_C,2,FALSE)),"") ->  | G129: =IF(AK129>=1,W129,"") ->  | J129: =IF(AK129>0,(VLOOKUP(G129,COD_C,5,FALSE)),"") ->  | R129: =IF(AK129>0,(VLOOKUP(G129,COD_C,3,FALSE)),"") ->  | T129: =IF(B129="","",R129*B129) ->  | V129: 0 | W129: CNV-TS1L1-HD600R | X129: =HD300_C -> 0 | AH129: 0 | AK129: 0
V130: 0 | W130: CNV-TS1L1-HD1200R | X130: =HD1000_c -> 0 | AH130: 0 | AK130: 0
C131: =IF(AK131>0,(VLOOKUP(G131,COD_B,2,FALSE)),"") ->  | J131: =IF(AK131>0,(VLOOKUP(G131,COD_B,5,FALSE)),"") ->  | R131: =IF(AK131>0,(VLOOKUP(G131,COD_B,3,FALSE)),"") ->  | V131: 0 | W131: CNV-TS1L1-4Y-T640 | X131: =COUNTIF($AU$119:$AU$132,W131) -> 0 | AH131: 0 | AK131: 0 | AN131: slot7
V132: 0 | W132: CNV-TS1L1-5Y-T640 | X132: =COUNTIF($AU$119:$AU$132,W132) -> 0 | AH132: 0 | AK132: 0
V133: 0 | W133: 10L1-SO-HDD | X133: =IF('CNV T640 (Rack)'!$D$175=W133,'CNV T640 (Rack)'!$C$175,0) -> 0 | AH133: 0 | AI133: 0 | AJ133: 0 | AK133: 0
V134: 0 | W134: 10L1-SO-HDD | X134: =IF('CNV T640 (Rack)'!$D$178=W134,'CNV T640 (Rack)'!$C$178,0) -> 0 | AH134: 0 | AI134: 0 | AJ134: 0 | AK134: 0 | AL134: =IF(Y134=5,$AV$134,IF(Y134=4,$AU$134,IF(Y134=3,$AN$134,""))) ->  | AN134: 10L1-SO-HDD3 | AU134: 10L1-SO-HDD4 | AV134: 10L1-SO-HDD5
B135: TOWER BASE (DELL POWEREDGE T640) | V135: =IF(B136>="",0,1) -> 0
B136: =IF(AK136>=1,AK136,"") ->  | C136: =IF(AK136>0,(VLOOKUP(G136,COD_C,2,FALSE)),"") ->  | G136: =IF(AK136>=1,W136,"") ->  | J136: =IF(AK136>0,(VLOOKUP(G136,COD_C,5,FALSE)),"") ->  | R136: =IF(AK136>0,(VLOOKUP(G136,COD_C,3,FALSE)),"") ->  | T136: =IF(B136="","",R136*B136) ->  | V136: =IF(B136>="",0,1) -> 0 | W136: CNV-TS1L1-T640 | X136: =SRV_D -> 0 | AK136: =SUM(X136:AJ136) -> 0
B137: =IF(AK137>=1,AK137,"") ->  | V137: 0 | W137: CNV-TS1L1-CPU-T640 | X137: ='CNV T640 (Tower)'!$C$29 -> 0 | AH137: =X137*$X$136 -> 0 | AK137: =SUM(AH137:AJ137) -> 0
V138: 0 | W138: CNV-TS1L1-32GB-U | X138: =IF(MEM_D="",0,MEM_D) -> 0 | AH138: 0 | AK138: 0
V139: 0 | W139: CNV-TS1L1-64GB-U | X139: =IF(MEM_D32="",0,MEM_D32) -> 0 | AH139: 0 | AK139: 0 | AU139: T630 1 | AV139: T630 2 | AW139: T630 3
C140: =IF(AK140>0,(VLOOKUP(G140,COD_C,2,FALSE)),"") ->  | G140: =IF(AK140>=1,W140,"") ->  | J140: =IF(AK140>0,(VLOOKUP(G140,COD_C,5,FALSE)),"") ->  | R140: =IF(AK140>0,(VLOOKUP(G140,COD_C,3,FALSE)),"") ->  | T140: =IF(B140="","",R140*B140) ->  | V140: 0 | W140: CNV-TS1L1-1GB | X140: =COUNTIF($AU$140:$AU$147,W140) -> 0 | AH140: 0 | AK140: 0 | AN140: slot1 | AU140: ='CNV T640 (Tower)'!$D$118 -> 
V141: 0 | W141: CNV-TS1L1-10GB | X141: =COUNTIF($AU$140:$AU$147,W141) -> 0 | AH141: 0 | AK141: 0
V142: 0 | W142: CNV-TS1L1-CNA | X142: 0 | AH142: 0 | AK142: 0
V143: 0 | W143: CNV-S1-540-BBGU | X143: 0 | AH143: 0 | AK143: 0 | AN143: slot2 | AU143: ='CNV T640 (Tower)'!$D$121 -> 
V144: 0 | W144: CNV-TS1L1-540-BBIW | X144: 0 | AH144: 0 | AK144: 0 | AN144: slot3 | AU144: ='CNV T640 (Tower)'!$D$124 -> 
V145: 0 | W145: CNV-TS1L1-540-BBIV | X145: 0 | AH145: 0 | AK145: 0 | AN145: slot4 | AU145: ='CNV T640 (Tower)'!$D$127 -> 
V146: 0 | W146: CNV-S1-405-AAMZ | X146: 0 | AH146: 0 | AK146: 0 | AN146: slot5 | AU146: ='CNV T640 (Tower)'!$D$130 -> 
V147: 0 | W147: CNV-TS1-BOSS | X147: 0 | AH147: 0 | AK147: 0 | AN147: slot6 | AU147: ='CNV T640 (Tower)'!$D$133 -> 
V148: 0 | W148: CNV-TS1-BOSS120 | X148: 0 | AH148: 0 | AK148: 0
V149: 0 | W149: CNV-TS1L1-403-BBTM | X149: 0 | AH149: 0 | AK149: 0
V150: 0 | W150: CNV-TS1L1-FC | X150: 0 | AH150: 0 | AK150: 0
V151: =IF(B151>="",0,1) -> 0 | W151: CNV-S1-406-BBEK | X151: 0 | AH151: 0 | AK151: 0 | AN151: slot3 | AU151: ='CNV T640 1 (Tower) Prest'!$D$130 -> 
B152: =IF(AK152>=1,AK152,"") ->  | C152: =IF(AK152>0,(VLOOKUP(G152,COD_C,2,FALSE)),"") ->  | J152: =IF(AK152>0,(VLOOKUP(G152,COD_C,5,FALSE)),"") ->  | R152: =IF(AK152>0,(VLOOKUP(G152,COD_C,3,FALSE)),"") ->  | T152: =IF(B152="","",R152*B152) ->  | V152: 0 | W152: CNV-TS1L1-HD600T | X152: =HD300_D -> 0 | AH152: 0 | AK152: 0 | AN152: slot4 | AU152: ='CNV T640 1 (Tower) Prest'!$D$133 -> 
V153: 0 | W153: CNV-TS1L1-HD1200T-U | X153: =HD1000_D -> 0 | AH153: 0 | AK153: 0 | AN153: slot5 | AU153: ='CNV T640 1 (Tower) Prest'!$D$136 -> 
G154: =IF(AK154>=1,W154,"") ->  | V154: 0 | W154: CNV-TS1L1-4Y-T640 | X154: =IF('CNV T640 (Tower)'!$D$170=W154,'CNV T640 (Tower)'!$C$170,0) -> 0 | AH154: 0 | AK154: 0 | AN154: slot6 | AU154: ='CNV T640 1 (Tower) Prest'!$D$139 -> 
V155: 0 | W155: CNV-TS1L1-5Y-T640 | X155: =IF('CNV T640 (Tower)'!$D$170=W155,'CNV T640 (Tower)'!$C$170,0) -> 0 | AH155: 0 | AK155: 0
V156: 0 | W156: 10L1-SO-HDD | X156: =IF('CNV T640 (Rack)'!$D$178=W156,'CNV T640 (Rack)'!$C$178,0) -> 0 | Y156: =IF(X156=0,0,IF(X148+X156=2,5,IF(X156+X147=2,4,3))) -> 0 | AH156: =X156*$X$113 -> 0 | AK156: 0 | AL156: =IF(Y156=5,$AV$134,IF(Y156=4,$AU$134,IF(Y156=3,$AN$134,""))) ->  | AN156: 10L1-SO-HDD3 | AU156: 10L1-SO-HDD4 | AV156: 10L1-SO-HDD5
B157: TOWER PRESTAZIONALE (DELL POWEREDGE T640) | V157: =IF(B158>="",0,1) -> 0
B158: =IF(AK158>=1,AK158,"") ->  | C158: =IF(AK158>0,(VLOOKUP(G158,COD_C,2,FALSE)),"") ->  | G158: =IF(AK158>=1,W158,"") ->  | J158: =IF(AK158>0,(VLOOKUP(G158,COD_C,5,FALSE)),"") ->  | R158: =IF(AK158>0,(VLOOKUP(G158,COD_C,3,FALSE)),"") ->  | T158: =IF(B158="","",R158*B158) ->  | V158: =IF(B158>="",0,1) -> 0 | W158: CNV-TS1L1-T640P | X158: =SRV_E -> 0 | AK158: =SUM(X158:AJ158) -> 0
B159: =IF(AK159>=1,AK159,"") ->  | V159: 0 | W159: CNV-TS1L1-CPU-T640P | X159: ='CNV T640 1 (Tower) Prest'!$C$29 -> 0 | AH159: =X159*$X$158 -> 0 | AK159: =SUM(AH159:AJ159) -> 0
V160: 0 | W160: CNV-TS1L1-32GB-U | X160: =IF(MEM_E="",0,MEM_E) -> 0 | AH160: =X160*$X$158 -> 0 | AK160: 0
V161: 0 | W161: CNV-TS1L1-64GB-U | X161: =IF(MEM_E32="",0,MEM_E32) -> 0 | AH161: 0 | AK161: 0 | AU161: T630 1 | AV161: T630 2 | AW161: T630 3
V162: 0 | W162: CNV-TS1L1-1GB | X162: =COUNTIF($AU$162:$AU$175,W162) -> 0 | AH162: 0 | AK162: 0 | AN162: slot1 | AU162: ='CNV T640 1 (Tower) Prest'!$D$124 -> 
V163: 0 | W163: CNV-TS1L1-10GB | X163: 0 | AH163: 0 | AK163: 0 | AN163: slot2 | AU163: ='CNV T640 1 (Tower) Prest'!$D$127 -> 
C164: =IF(AK164>0,(VLOOKUP(G164,COD_C,2,FALSE)),"") ->  | G164: =IF(AK164>=1,W164,"") ->  | J164: =IF(AK164>0,(VLOOKUP(G164,COD_C,5,FALSE)),"") ->  | R164: =IF(AK164>0,(VLOOKUP(G164,COD_C,3,FALSE)),"") ->  | T164: =IF(B164="","",R164*B164) ->  | V164: 0 | W164: CNV-TS1L1-CNA | X164: 0 | AH164: =X164*$X$158 -> 0 | AK164: =SUM(AH164:AJ164) -> 0 | AN164: slot3 | AU164: ='CNV T640 1 (Tower) Prest'!$D$130 -> 
V165: 0 | W165: CNV-S1-540-BBGU | X165: 0 | AH165: 0 | AK165: 0 | AN165: slot4 | AU165: ='CNV T640 1 (Tower) Prest'!$D$133 -> 
V166: 0 | W166: CNV-TS1L1-540-BBIW | X166: 0 | AH166: 0 | AK166: 0 | AN166: slot5 | AU166: ='CNV T640 1 (Tower) Prest'!$D$136 -> 
C167: =IF(AK167>0,(VLOOKUP(G167,COD_C,2,FALSE)),"") ->  | G167: =IF(AK167>=1,W167,"") ->  | J167: =IF(AK167>0,(VLOOKUP(G167,COD_C,5,FALSE)),"") ->  | R167: =IF(AK167>0,(VLOOKUP(G167,COD_C,3,FALSE)),"") ->  | T167: =IF(B167="","",R167*B167) ->  | V167: 0 | W167: CNV-TS1L1-540-BBIV | X167: 0 | AH167: 0 | AK167: 0 | AN167: slot6 | AU167: ='CNV T640 1 (Tower) Prest'!$D$139 -> 
V168: 0 | W168: CNV-S1-405-AAMZ | X168: =COUNTIF($AU$162:$AU$175,W168) -> 0 | AH168: 0 | AK168: 0
V169: 0 | W169: CNV-TS1-BOSS | X169: 0 | AH169: 0 | AK169: 0
V170: 0 | W170: CNV-TS1-BOSS120 | X170: 0 | AH170: 0 | AK170: 0
V171: 0 | W171: CNV-TS1L1-403-BBTM | X171: 0 | AH171: 0 | AK171: 0 | AN171: slot7 | AU171: ='CNV T640 1 (Tower) Prest'!$D$142 -> 
V172: 0 | W172: CNV-TS1L1-FC | X172: 0 | AH172: 0 | AK172: 0
C173: =IF(AK173>0,(VLOOKUP(G173,COD_C,2,FALSE)),"") ->  | V173: 0 | W173: CNV-S1-406-BBEK | X173: 0 | AH173: 0 | AK173: 0
V174: 0 | W174: CNV-TS1L1-HD600T | X174: =HD300_E -> 0 | AH174: 0 | AK174: 0
V175: 0 | W175: CNV-TS1L1-HD1200T-U | X175: =HD1000_E -> 0 | AH175: 0 | AK175: 0
V176: 0 | W176: CNV-TS1L1-4Y-T640P | X176: =IF('CNV T640 1 (Tower) Prest'!D177=W176,'CNV T640 1 (Tower) Prest'!C177,0) -> 0 | AH176: 0 | AK176: 0
V177: 0 | W177: CNV-TS1L1-5Y-T640P | X177: =IF('CNV T640 1 (Tower) Prest'!D177=W177,'CNV T640 1 (Tower) Prest'!C177,0) -> 0 | AH177: 0 | AK177: 0
V178: 0 | W178: 10L1-SO-HDD | X178: =IF('CNV T640 (Rack)'!$D$178=W178,'CNV T640 (Rack)'!$C$178,0) -> 0 | Y178: =IF(X178=0,0,IF(X177+X178=2,5,IF(X178+X176=2,4,3))) -> 0 | AH178: =X178*$X$113 -> 0 | AK178: 0 | AL178: =IF(Y178=5,$AV$134,IF(Y178=4,$AU$134,IF(Y178=3,$AN$134,""))) ->  | AN178: 10L1-SO-HDD3 | AU178: 10L1-SO-HDD4 | AV178: 10L1-SO-HDD5
B179: OPZIONI COMUNI | V179: =IF(SUM(V180:V190)=0,0,1) -> 0 | X179: R630 1 | Y179: R630 2 | Z179: R630 3 | AA179: T630R 1 | AB179: T630R 2 | AC179: T630R 3 | AD179: R730 1 | AE179: R730 2 | AF179: R730 3 | AG179: R730xd 1 | AH179: R730xd 2 | AI179: R730xd 3 | AJ179: T630 | AK179: T630P | AL179: R630 1 | AM179: R630 2 | AN179: R630 3 | AO179: T630R | AR179: R730 1 | AS179: R730 2 | AT179: R730 3 | AU179: R730xd 1 | AV179: R730xd 2 | AW179: R730xd 3 | AX179: T630 | AY179: T630P | AZ179: R630 | BA179: T630R | BB179: R730 | BC179: R730xd | BD179: T630 | BE179: T630P | BF179: Totale
B180: =IF(BF180=0,"",BF180) ->  | C180: =IF(BF180=0,"",(VLOOKUP(G180,COD_A,2,FALSE))) ->  | G180: =IF(BF180>0,W180,"") ->  | J180: =IF(BF180>0,(VLOOKUP(G180,COD_A,5,FALSE)),"") ->  | R180: =IF(BF180>0,(VLOOKUP(G180,COD_A,3,FALSE)),"") ->  | T180: =IF(B180="","",R180*B180) ->  | V180: 0 | W180: CNV-TS1L1-WIN1 | X180: =IF('CNV R640 1'!$D$52=W180,1,0) -> 0 | Y180: =IF('CNV R640 2'!$D$52=W180,1,0) -> 0 | Z180: =IF('CNV R640 3'!$D$52=W180,1,0) -> 0 | AA180: =IF('CNV T640 (Rack)'!$D$53=$W$180,1,0) -> 0 | AB180: =IF('Lotto1 T630R 2'!$D$53=$W$180,1,0) -> 0 | AC180: =IF('Lotto1 T630R 3'!$D$53=$W$180,1,0) -> 0 | AD180: =IF('CNV R740 1'!$D$52=W180,1,0) -> 0 | AE180: =IF('CNV R740 2'!$D$52=$W$180,1,0) -> 0 | AF180: =IF('CNV R740 3'!$D$52=W180,1,0) -> 0 | AG180: =IF('CNV R740xd 1'!$D$52=W180,1,0) -> 0 | AH180: =IF('CNV R740xd 2'!$D$52=$W$180,1,0) -> 0 | AI180: =IF('CNV R740xd 3'!$D$52=W180,1,0) -> 0 | AJ180: =IF('CNV T640 (Tower)'!$D$52=W180,1,0) -> 0 | AK180: =IF('CNV T640 1 (Tower) Prest'!$D$52=W180,1,0) -> 0 | AL180: =X180*$X$15 -> 0 | AM180: =Y180*$Y$15 -> 0 | AN180: =Z180*$Z$15 -> 0 | AO180: =AA180*$X$113 -> 0 | AP180: =AB180*$Y$113 -> 0 | AQ180: =AC180*$Z$113 -> 0 | AR180: =AD180*$X$39 -> 0 | AS180: =AE180*$Y$39 -> 0 | AT180: =AF180*$Z$39 -> 0 | AU180: =AG180*$X$76 -> 0 | AV180: =AH180*$Y$76 -> 0 | AW180: =AI180*$Z$76 -> 0 | AX180: =AJ180*$X$136 -> 0 | AY180: =AK180*$X$158 -> 0 | AZ180: =SUM(X180:Z180) -> 0 | BA180: =SUM(AA180:AC180) -> 0 | BB180: =SUM(AD180:AF180) -> 0 | BC180: =SUM(AG180:AI180) -> 0 | BD180: =AX180 -> 0 | BE180: 0 | BF180: =SUM(AL180:AY180) -> 0
B181: =IF(BF181=0,"",BF181) ->  | C181: =IF(BF181=0,"",(VLOOKUP(G181,COD_A,2,FALSE))) ->  | G181: =IF(BF181>0,W181,"") ->  | J181: =IF(BF181>0,(VLOOKUP(G181,COD_A,5,FALSE)),"") ->  | R181: =IF(BF181>0,(VLOOKUP(G181,COD_A,3,FALSE)),"") ->  | V181: 0 | W181: CNV-TS1L1-WIN2CORE | X181: =IF('CNV R640 1'!C53,2,0) -> 0 | Y181: =IF('CNV R640 2'!C53,2,0) -> 0 | Z181: =IF('CNV R640 3'!C53,2,0) -> 0 | AA181: =IF('CNV T640 (Rack)'!$C$54,2,0) -> 0 | AB181: =IF('Lotto1 T630R 2'!$C$54,2,0) -> 0 | AC181: =IF('Lotto1 T630R 3'!$C$54,2,0) -> 0 | AD181: =IF('CNV R740 1'!$C$53,6,0) -> 0 | AE181: =IF('CNV R740 2'!$C$53,6,0) -> 0 | AF181: =IF('CNV R740 3'!$C$53,6,0) -> 0 | AG181: =IF('CNV R740xd 1'!$C$53,6,0) -> 0 | AH181: =IF('CNV R740xd 2'!$C$53,6,0) -> 0 | AI181: =IF('CNV R740xd 3'!$C$53,6,0) -> 0 | AJ181: =IF('CNV T640 (Tower)'!C53,2,0) -> 0 | AK181: =IF('CNV T640 1 (Tower) Prest'!C53,4,0) -> 0 | AL181: =X181*$X$15 -> 0 | AM181: =Y181*$Y$15 -> 0 | AN181: =Z181*$Z$15 -> 0 | AO181: =AA181*$X$113 -> 0 | AP181: =AB181*$Y$113 -> 0 | AQ181: =AC181*$Z$113 -> 0 | AR181: =AD181*$X$39 -> 0 | AS181: =AE181*$Y$39 -> 0 | AT181: =AF181*$Z$39 -> 0 | AU181: =AG181*$X$76 -> 0 | AV181: =AH181*$Y$76 -> 0 | AW181: =AI181*$Z$76 -> 0 | AX181: =AJ181*$X$136 -> 0 | AY181: =AK181*$X$158 -> 0 | AZ181: =SUM(X181:Z181) -> 0 | BA181: =SUM(AA181:AC181) -> 0 | BB181: =SUM(AD181:AF181) -> 0 | BC181: =SUM(AG181:AI181) -> 0 | BD181: 0 | BE181: 0 | BF181: =SUM(AL181:AY181) -> 0
B182: =IF(BF182=0,"",BF182) ->  | C182: =IF(BF182=0,"",(VLOOKUP(G182,COD_A,2,FALSE))) ->  | G182: =IF(BF182>0,W182,"") ->  | J182: =IF(BF182>0,(VLOOKUP(G182,COD_A,5,FALSE)),"") ->  | R182: =IF(BF182>0,(VLOOKUP(G182,COD_A,3,FALSE)),"") ->  | V182: 0 | W182: CNV-TS1L1-LINUX | X182: =IF('CNV R640 1'!$D$52=W182,1,0) -> 0 | Y182: =IF('CNV R640 2'!$D$52=W182,1,0) -> 0 | Z182: =IF('CNV R640 3'!$D$52=W182,1,0) -> 0 | AA182: =IF('CNV T640 (Rack)'!$D$53=$W$182,1,0) -> 0 | AB182: =IF('Lotto1 T630R 2'!$D$53=$W$182,1,0) -> 0 | AC182: =IF('Lotto1 T630R 3'!$D$53=$W$182,1,0) -> 0 | AD182: =IF('CNV R740 1'!$D$52=W182,1,0) -> 0 | AE182: =IF('CNV R740 2'!$D$52=W182,1,0) -> 0 | AF182: =IF('CNV R740 3'!$D$52=W182,1,0) -> 0 | AG182: =IF('CNV R740xd 1'!$D$52=W182,1,0) -> 0 | AH182: =IF('CNV R740xd 2'!$D$52=W182,1,0) -> 0 | AI182: =IF('CNV R740xd 3'!$D$52=W182,1,0) -> 0 | AJ182: =IF('CNV T640 (Tower)'!$D$52=W182,1,0) -> 0 | AK182: =IF('CNV T640 1 (Tower) Prest'!$D$52=W182,1,0) -> 0 | AL182: =X182*$X$15 -> 0 | AM182: =Y182*$Y$15 -> 0 | AN182: =Z182*$Z$15 -> 0 | AO182: =AA182*$X$113 -> 0 | AP182: =AB182*$Y$113 -> 0 | AQ182: =AC182*$Z$113 -> 0 | AR182: =AD182*$X$39 -> 0 | AS182: =AE182*$Y$39 -> 0 | AT182: =AF182*$Z$39 -> 0 | AU182: =AG182*$X$76 -> 0 | AV182: =AH182*$Y$76 -> 0 | AW182: =AI182*$Z$76 -> 0 | AX182: =AJ182*$X$136 -> 0 | AY182: =AK182*$X$158 -> 0 | AZ182: =SUM(X182:Z182) -> 0 | BA182: =SUM(AA182:AC182) -> 0 | BB182: =SUM(AD182:AF182) -> 0 | BC182: =SUM(AG182:AI182) -> 0 | BD182: 0 | BE182: 0 | BF182: =SUM(AL182:AY182) -> 0
B183: =IF(BF183=0,"",BF183) ->  | C183: =IF(BF183=0,"",(VLOOKUP(G183,COD_A,2,FALSE))) ->  | G183: =IF(BF183>0,W183,"") ->  | J183: =IF(BF183>0,(VLOOKUP(G183,COD_A,5,FALSE)),"") ->  | R183: =IF(BF183>0,(VLOOKUP(G183,COD_A,3,FALSE)),"") ->  | V183: 0 | W183: CNV-TS1L1-CALUSER | X183: ='CNV R640 1'!$C$59 -> 0 | Y183: ='CNV R640 2'!$C$59 -> 0 | Z183: ='CNV R640 3'!$C$59 -> 0 | AA183: ='CNV T640 (Rack)'!$C$60 -> 0 | AB183: ='Lotto1 T630R 2'!$C$60 -> 0 | AC183: ='Lotto1 T630R 3'!$C$60 -> 0 | AD183: ='CNV R740 1'!$C$59 -> 0 | AE183: ='CNV R740 2'!$C$59 -> 0 | AF183: ='CNV R740 3'!$C$59 -> 0 | AG183: ='CNV R740xd 1'!$C$60 -> 0 | AH183: ='CNV R740xd 2'!$C$60 -> 0 | AI183: ='CNV R740xd 3'!$C$60 -> 0 | AJ183: ='CNV T640 (Tower)'!$C$60 -> 0 | AK183: ='CNV T640 1 (Tower) Prest'!$C$60 -> 0 | AL183: =X183*$X$15 -> 0 | AM183: =Y183*$Y$15 -> 0 | AN183: =Z183*$Z$15 -> 0 | AO183: =AA183*$X$113 -> 0 | AP183: =AB183*$Y$113 -> 0 | AQ183: =AC183*$Z$113 -> 0 | AR183: =AD183*$X$39 -> 0 | AS183: =AE183*$Y$39 -> 0 | AT183: =AF183*$Z$39 -> 0 | AU183: =AG183*$X$76 -> 0 | AV183: =AH183*$Y$76 -> 0 | AW183: =AI183*$Z$76 -> 0 | AX183: =AJ183*$X$136 -> 0 | AY183: =AK183*$X$158 -> 0 | AZ183: =SUM(X183:Z183) -> 0 | BA183: =SUM(AA183:AC183) -> 0 | BB183: =SUM(AD183:AF183) -> 0 | BC183: =SUM(AG183:AI183) -> 0 | BD183: 0 | BE183: 0 | BF183: =SUM(AL183:AY183) -> 0
B184: =IF(BF184=0,"",BF184) ->  | C184: =IF(BF184=0,"",(VLOOKUP(G184,COD_A,2,FALSE))) ->  | G184: =IF(BF184>0,W184,"") ->  | J184: =IF(BF184>0,(VLOOKUP(G184,COD_A,5,FALSE)),"") ->  | R184: =IF(BF184>0,(VLOOKUP(G184,COD_A,3,FALSE)),"") ->  | V184: 0 | W184: CNV-TS1L1-CALDEV | X184: ='CNV R640 1'!$C$61 -> 0 | Y184: ='CNV R640 2'!$C$61 -> 0 | Z184: ='CNV R640 3'!$C$61 -> 0 | AA184: ='CNV T640 (Rack)'!$C$62 -> 0 | AB184: ='Lotto1 T630R 2'!$C$62 -> 0 | AC184: ='Lotto1 T630R 3'!$C$62 -> 0 | AD184: ='CNV R740 1'!$C$61 -> 0 | AE184: ='CNV R740 2'!$C$61 -> 0 | AF184: ='CNV R740 3'!$C$61 -> 0 | AG184: ='CNV R740xd 1'!$C$62 -> 0 | AH184: ='CNV R740xd 2'!$C$62 -> 0 | AI184: ='CNV R740xd 3'!$C$62 -> 0 | AJ184: ='CNV T640 (Tower)'!$C$62 -> 0 | AK184: ='CNV T640 1 (Tower) Prest'!$C$62 -> 0 | AL184: =X184*$X$15 -> 0 | AM184: =Y184*$Y$15 -> 0 | AN184: =Z184*$Z$15 -> 0 | AO184: =AA184*$X$113 -> 0 | AP184: =AB184*$Y$113 -> 0 | AQ184: =AC184*$Z$113 -> 0 | AR184: =AD184*$X$39 -> 0 | AS184: =AE184*$Y$39 -> 0 | AT184: =AF184*$Z$39 -> 0 | AU184: =AG184*$X$76 -> 0 | AV184: =AH184*$Y$76 -> 0 | AW184: =AI184*$Z$76 -> 0 | AX184: =AJ184*$X$136 -> 0 | AY184: =AK184*$X$158 -> 0 | AZ184: =SUM(X184:Z184) -> 0 | BA184: =SUM(AA184:AC184) -> 0 | BB184: =SUM(AD184:AF184) -> 0 | BC184: =SUM(AG184:AI184) -> 0 | BD184: 0 | BE184: 0 | BF184: =SUM(AL184:AY184) -> 0
B185: =IF('RACK, Accessori e Servizi'!J15=0,"",'RACK, Accessori e Servizi'!J15) ->  | C185: =IF(B185="","",(VLOOKUP(G185,COD_A,2,FALSE))) ->  | G185: =IF('RACK, Accessori e Servizi'!J15>0,'RACK, Accessori e Servizi'!K15,"") ->  | J185: =IF(B185="","",(VLOOKUP(G185,COD_A,5,FALSE))) ->  | R185: =IF(B185>="","",(VLOOKUP(G185,COD_A,3,FALSE))) ->  | V185: 0
B186: =IF('RACK, Accessori e Servizi'!J24=0,"",'RACK, Accessori e Servizi'!J24) ->  | C186: =IF(B186="","",(VLOOKUP(G186,COD_A,2,FALSE))) ->  | G186: =IF('RACK, Accessori e Servizi'!J24>0,'RACK, Accessori e Servizi'!K24,"") ->  | J186: =IF(B186="","",(VLOOKUP(G186,COD_A,5,FALSE))) ->  | R186: =IF(B186>="","",(VLOOKUP(G186,COD_A,3,FALSE))) ->  | V186: 0
B187: =IF('RACK, Accessori e Servizi'!J27=0,"",'RACK, Accessori e Servizi'!J27) ->  | C187: =IF(B187="","",(VLOOKUP(G187,COD_A,2,FALSE))) ->  | G187: =IF('RACK, Accessori e Servizi'!J27>0,'RACK, Accessori e Servizi'!K27,"") ->  | J187: =IF(B187="","",(VLOOKUP(G187,COD_A,5,FALSE))) ->  | R187: =IF(B187>="","",(VLOOKUP(G187,COD_A,3,FALSE))) ->  | V187: 0
B188: =IF('RACK, Accessori e Servizi'!J30=0,"",'RACK, Accessori e Servizi'!J30) ->  | C188: =IF(B188="","",(VLOOKUP(G188,COD_A,2,FALSE))) ->  | G188: =IF('RACK, Accessori e Servizi'!J30>0,'RACK, Accessori e Servizi'!K30,"") ->  | J188: =IF(B188="","",(VLOOKUP(G188,COD_A,5,FALSE))) ->  | R188: =IF(B188>="","",(VLOOKUP(G188,COD_A,3,FALSE))) ->  | V188: 0
B189: =IF('RACK, Accessori e Servizi'!J75=0,"",'RACK, Accessori e Servizi'!J75) ->  | C189: =IF(B189>0,(VLOOKUP(G189,COD_C,2,FALSE)),"") ->  | G189: =IF('RACK, Accessori e Servizi'!J75>0,'RACK, Accessori e Servizi'!K75,"") ->  | J189: =IF(B189>0,(VLOOKUP(G189,COD_C,5,FALSE)),"") ->  | R189: =IF(B189>0,(VLOOKUP(G189,COD_C,3,FALSE)),"") ->  | V189: 0
B190: =IF('RACK, Accessori e Servizi'!J79=0,"",'RACK, Accessori e Servizi'!J79) ->  | C190: =IF(B190>0,(VLOOKUP(G190,COD_C,2,FALSE)),"") ->  | G190: =IF('RACK, Accessori e Servizi'!J79>0,'RACK, Accessori e Servizi'!K79,"") ->  | J190: =IF(B190>0,(VLOOKUP(G190,COD_C,5,FALSE)),"") ->  | R190: =IF(B190>0,(VLOOKUP(G190,COD_C,3,FALSE)),"") ->  | V190: 0
B191: ULTERIORI OPZIONI | V191: =IF(SUM(V192:V200)=0,0,1) -> 0 | X191: R630 1 | Y191: R630 2 | Z191: R630 3 | AA191: T630R 1 | AB191: T630R 2 | AC191: T630R 3 | AD191: R730 1 | AE191: R730 2 | AF191: R730 3 | AG191: R730xd 1 | AH191: R730xd 2 | AI191: R730xd 3 | AJ191: T630 | AK191: T630P | AL191: R630 1 | AM191: R630 2 | AN191: R630 3 | AO191: T630R | AR191: R730 1 | AS191: R730 2 | AT191: R730 3 | AU191: R730xd 1 | AV191: R730xd 2 | AW191: R730xd 3 | AX191: T630 | AY191: T630P | AZ191: R630 | BA191: T630R | BB191: R730 | BC191: R730xd | BD191: T630 | BE191: T630P | BF191: Totale
B192: =IF(BF192>=1,BF192,"") ->  | C192: =IF(BF192>0,(VLOOKUP(G192,COD_B,2,FALSE)),"") ->  | G192: =IF(BF192>=1,W192,"") ->  | J192: =IF(BF192>0,(VLOOKUP(G192,COD_B,5,FALSE)),"") ->  | R192: =IF(BF192>0,(VLOOKUP(G192,COD_B,3,FALSE)),"") ->  | T192: =IF(B192="","",R192*B192) ->  | V192: =IF(B192>="",0,1) -> 0 | W192: CNV-S1-RDXCC | AJ192: ='CNV T640 (Tower)'!C152 -> 0 | AK192: ='CNV T640 1 (Tower) Prest'!C159 -> 0 | AL192: =X192*$X$15 -> 0 | AM192: =Y192*$Y$15 -> 0 | AN192: =Z192*$Z$15 -> 0 | AO192: =AA192*$X$113 -> 0 | AP192: =AB192*$Y$113 -> 0 | AQ192: =AC192*$Z$113 -> 0 | AR192: =AD192*$X$39 -> 0 | AS192: =AE192*$Y$39 -> 0 | AT192: =AF192*$Z$39 -> 0 | AU192: =AG192*$X$76 -> 0 | AV192: =AH192*$Y$76 -> 0 | AW192: =AI192*$Z$76 -> 0 | AX192: =AJ192*$X$136 -> 0 | AY192: =AK192*$X$158 -> 0 | AZ192: =SUM(X192:Z192) -> 0 | BA192: =SUM(AA192:AC192) -> 0 | BB192: =SUM(AD192:AF192) -> 0 | BC192: =SUM(AG192:AI192) -> 0 | BD192: =AX192 -> 0 | BE192: =AY192 -> 0 | BF192: =SUM(AL192:AY192) -> 0
V193: 0 | W193: CNV-874-006887 | X193: =IF('CNV R640 1'!$D$64=Riepilogo!$W$193,'CNV R640 1'!$C$64,0) -> 0 | Y193: =IF('CNV R640 2'!$D$64=Riepilogo!$W193,'CNV R640 2'!$C$64,0) -> 0 | Z193: =IF('CNV R640 3'!$D$64=Riepilogo!$W193,'CNV R640 3'!$C$64,0) -> 0 | AA193: =IF('CNV T640 (Rack)'!$D$65=Riepilogo!$W$193,'CNV T640 (Rack)'!$C$65,0) -> 0 | AB193: =IF('Lotto1 T630R 2'!$D$65=Riepilogo!W193,'Lotto1 T630R 2'!$C$65,0) -> 0 | AC193: =IF('Lotto1 T630R 3'!$D$65=Riepilogo!W193,'Lotto1 T630R 3'!$C$65,0) -> 0 | AD193: =IF('CNV R740 1'!$D$64=Riepilogo!$W193,'CNV R740 1'!$C$64,0) -> 0 | AE193: =IF('CNV R740 2'!$D$64=Riepilogo!$W193,'CNV R740 2'!$C$64,0) -> 0 | AF193: =IF('CNV R740 3'!$D$64=Riepilogo!$W193,'CNV R740 3'!$C$64,0) -> 0 | AG193: =IF('CNV R740xd 1'!$D$65=Riepilogo!$W193,'CNV R740xd 1'!$C$65,0) -> 0 | AH193: =IF('CNV R740xd 2'!$D$65=Riepilogo!$W193,'CNV R740xd 2'!$C$65,0) -> 0 | AI193: =IF('CNV R740xd 3'!$D$65=Riepilogo!$W193,'CNV R740xd 3'!$C$65,0) -> 0 | AJ193: =IF('CNV T640 (Tower)'!$D$64=Riepilogo!$W193,'CNV T640 (Tower)'!$C$64,0) -> 0 | AK193: =IF('CNV T640 1 (Tower) Prest'!$D$65=Riepilogo!$W193,'CNV T640 1 (Tower) Prest'!$C$65,0) -> 0 | AL193: 0 | AM193: 0 | AN193: 0 | AO193: 0 | AP193: 0 | AQ193: 0 | AR193: 0 | AS193: 0 | AT193: 0 | AU193: 0 | AV193: 0 | AW193: 0 | AX193: 0 | AY193: 0 | AZ193: 0 | BA193: 0 | BB193: 0 | BC193: 0 | BD193: 0 | BE193: 0 | BF193: 0
V194: 0 | W194: CNV-874-006898 | X194: =IF('CNV R640 1'!$D$64=Riepilogo!$W$194,'CNV R640 1'!$C$64,0) -> 0 | Y194: =IF('CNV R640 2'!$D$64=Riepilogo!$W194,'CNV R640 2'!$C$64,0) -> 0 | Z194: =IF('CNV R640 3'!$D$64=Riepilogo!$W194,'CNV R640 3'!$C$64,0) -> 0 | AA194: =IF('CNV T640 (Rack)'!$D$65=Riepilogo!W194,'CNV T640 (Rack)'!$C$65,0) -> 0 | AB194: =IF('Lotto1 T630R 2'!$D$65=Riepilogo!W194,'Lotto1 T630R 2'!$C$65,0) -> 0 | AC194: =IF('Lotto1 T630R 3'!$D$65=Riepilogo!W194,'Lotto1 T630R 3'!$C$65,0) -> 0 | AD194: =IF('CNV R740 1'!$D$64=Riepilogo!$W194,'CNV R740 1'!$C$64,0) -> 0 | AE194: =IF('CNV R740 2'!$D$64=Riepilogo!$W194,'CNV R740 2'!$C$64,0) -> 0 | AF194: =IF('CNV R740 3'!$D$64=Riepilogo!$W194,'CNV R740 3'!$C$64,0) -> 0 | AG194: =IF('CNV R740xd 1'!$D$65=Riepilogo!$W194,'CNV R740xd 1'!$C$65,0) -> 0 | AH194: =IF('CNV R740xd 2'!$D$65=Riepilogo!$W194,'CNV R740xd 2'!$C$65,0) -> 0 | AI194: =IF('CNV R740xd 3'!$D$65=Riepilogo!$W194,'CNV R740xd 3'!$C$65,0) -> 0 | AJ194: =IF('CNV T640 (Tower)'!$D$64=Riepilogo!$W194,'CNV T640 (Tower)'!$C$64,0) -> 0 | AK194: =IF('CNV T640 1 (Tower) Prest'!$D$65=Riepilogo!$W194,'CNV T640 1 (Tower) Prest'!$C$65,0) -> 0 | AL194: 0 | AM194: 0 | AN194: 0 | AO194: 0 | AP194: 0 | AQ194: 0 | AR194: 0 | AS194: 0 | AT194: 0 | AU194: 0 | AV194: 0 | AW194: 0 | AX194: 0 | AY194: 0 | AZ194: 0 | BA194: 0 | BB194: 0 | BC194: 0 | BD194: 0 | BE194: 0 | BF194: 0
V195: 0 | W195: CNV-874-006888 | X195: =IF('CNV R640 1'!$D$64=Riepilogo!$W$195,'CNV R640 1'!$C$64,0) -> 0 | Y195: =IF('CNV R640 2'!$D$64=Riepilogo!$W195,'CNV R640 2'!$C$64,0) -> 0 | Z195: =IF('CNV R640 3'!$D$64=Riepilogo!$W195,'CNV R640 3'!$C$64,0) -> 0 | AA195: =IF('CNV T640 (Rack)'!$D$65=Riepilogo!W195,'CNV T640 (Rack)'!$C$65,0) -> 0 | AB195: =IF('Lotto1 T630R 2'!$D$65=Riepilogo!W195,'Lotto1 T630R 2'!$C$65,0) -> 0 | AC195: =IF('Lotto1 T630R 3'!$D$65=Riepilogo!W195,'Lotto1 T630R 3'!$C$65,0) -> 0 | AD195: =IF('CNV R740 1'!$D$64=Riepilogo!$W195,'CNV R740 1'!$C$64,0) -> 0 | AE195: =IF('CNV R740 2'!$D$64=Riepilogo!$W195,'CNV R740 2'!$C$64,0) -> 0 | AF195: =IF('CNV R740 3'!$D$64=Riepilogo!$W195,'CNV R740 3'!$C$64,0) -> 0 | AG195: =IF('CNV R740xd 1'!$D$65=Riepilogo!$W195,'CNV R740xd 1'!$C$65,0) -> 0 | AH195: =IF('CNV R740xd 2'!$D$65=Riepilogo!$W195,'CNV R740xd 2'!$C$65,0) -> 0 | AI195: =IF('CNV R740xd 3'!$D$65=Riepilogo!$W195,'CNV R740xd 3'!$C$65,0) -> 0 | AJ195: =IF('CNV T640 (Tower)'!$D$64=Riepilogo!$W195,'CNV T640 (Tower)'!$C$64,0) -> 0 | AK195: =IF('CNV T640 1 (Tower) Prest'!$D$65=Riepilogo!$W195,'CNV T640 1 (Tower) Prest'!$C$65,0) -> 0 | AL195: 0 | AM195: 0 | AN195: 0 | AO195: 0 | AP195: 0 | AQ195: 0 | AR195: 0 | AS195: 0 | AT195: 0 | AU195: 0 | AV195: 0 | AW195: 0 | AX195: 0 | AY195: 0 | AZ195: 0 | BA195: 0 | BB195: 0 | BC195: 0 | BD195: 0 | BE195: 0 | BF195: 0
V196: 0 | W196: CNV-874-006902 | X196: =IF('CNV R640 1'!$D$64=Riepilogo!$W$196,'CNV R640 1'!$C$64,0) -> 0 | Y196: =IF('CNV R640 2'!$D$64=Riepilogo!$W196,'CNV R640 2'!$C$64,0) -> 0 | Z196: =IF('CNV R640 3'!$D$64=Riepilogo!$W196,'CNV R640 3'!$C$64,0) -> 0 | AA196: =IF('CNV T640 (Rack)'!$D$65=Riepilogo!W196,'CNV T640 (Rack)'!$C$65,0) -> 0 | AB196: =IF('Lotto1 T630R 2'!$D$65=Riepilogo!W196,'Lotto1 T630R 2'!$C$65,0) -> 0 | AC196: =IF('Lotto1 T630R 3'!$D$65=Riepilogo!W196,'Lotto1 T630R 3'!$C$65,0) -> 0 | AD196: =IF('CNV R740 1'!$D$64=Riepilogo!$W196,'CNV R740 1'!$C$64,0) -> 0 | AE196: =IF('CNV R740 2'!$D$64=Riepilogo!$W196,'CNV R740 2'!$C$64,0) -> 0 | AF196: =IF('CNV R740 3'!$D$64=Riepilogo!$W196,'CNV R740 3'!$C$64,0) -> 0 | AG196: =IF('CNV R740xd 1'!$D$65=Riepilogo!$W196,'CNV R740xd 1'!$C$65,0) -> 0 | AH196: =IF('CNV R740xd 2'!$D$65=Riepilogo!$W196,'CNV R740xd 2'!$C$65,0) -> 0 | AI196: =IF('CNV R740xd 3'!$D$65=Riepilogo!$W196,'CNV R740xd 3'!$C$65,0) -> 0 | AJ196: =IF('CNV T640 (Tower)'!$D$64=Riepilogo!$W196,'CNV T640 (Tower)'!$C$64,0) -> 0 | AK196: =IF('CNV T640 1 (Tower) Prest'!$D$65=Riepilogo!$W196,'CNV T640 1 (Tower) Prest'!$C$65,0) -> 0 | AL196: 0 | AM196: 0 | AN196: 0 | AO196: 0 | AP196: 0 | AQ196: 0 | AR196: 0 | AS196: 0 | AT196: 0 | AU196: 0 | AV196: 0 | AW196: 0 | AX196: 0 | AY196: 0 | AZ196: 0 | BA196: 0 | BB196: 0 | BC196: 0 | BD196: 0 | BE196: 0 | BF196: 0
V197: 0 | W197: CNV-874-006883 | X197: =IF('CNV R640 1'!$D$64=Riepilogo!$W$197,'CNV R640 1'!$C$64,0) -> 0 | Y197: =IF('CNV R640 2'!$D$64=Riepilogo!$W197,'CNV R640 2'!$C$64,0) -> 0 | Z197: =IF('CNV R640 3'!$D$64=Riepilogo!$W197,'CNV R640 3'!$C$64,0) -> 0 | AA197: =IF('CNV T640 (Rack)'!$D$65=Riepilogo!W197,'CNV T640 (Rack)'!$C$65,0) -> 0 | AB197: =IF('Lotto1 T630R 2'!$D$65=Riepilogo!W197,'Lotto1 T630R 2'!$C$65,0) -> 0 | AC197: =IF('Lotto1 T630R 3'!$D$65=Riepilogo!W197,'Lotto1 T630R 3'!$C$65,0) -> 0 | AD197: =IF('CNV R740 1'!$D$64=Riepilogo!$W197,'CNV R740 1'!$C$64,0) -> 0 | AE197: =IF('CNV R740 2'!$D$64=Riepilogo!$W197,'CNV R740 2'!$C$64,0) -> 0 | AF197: =IF('CNV R740 3'!$D$64=Riepilogo!$W197,'CNV R740 3'!$C$64,0) -> 0 | AG197: =IF('CNV R740xd 1'!$D$65=Riepilogo!$W197,'CNV R740xd 1'!$C$65,0) -> 0 | AH197: =IF('CNV R740xd 2'!$D$65=Riepilogo!$W197,'CNV R740xd 2'!$C$65,0) -> 0 | AI197: =IF('CNV R740xd 3'!$D$65=Riepilogo!$W197,'CNV R740xd 3'!$C$65,0) -> 0 | AJ197: =IF('CNV T640 (Tower)'!$D$64=Riepilogo!$W197,'CNV T640 (Tower)'!$C$64,0) -> 0 | AK197: =IF('CNV T640 1 (Tower) Prest'!$D$65=Riepilogo!$W197,'CNV T640 1 (Tower) Prest'!$C$65,0) -> 0 | AL197: 0 | AM197: 0 | AN197: 0 | AO197: 0 | AP197: 0 | AQ197: 0 | AR197: 0 | AS197: 0 | AT197: 0 | AU197: 0 | AV197: 0 | AW197: 0 | AX197: 0 | AY197: 0 | AZ197: 0 | BA197: 0 | BB197: 0 | BC197: 0 | BD197: 0 | BE197: 0 | BF197: 0
V198: 0 | W198: CNV-874-006894 | X198: =IF('CNV R640 1'!$D$64=Riepilogo!$W$198,'CNV R640 1'!$C$64,0) -> 0 | Y198: =IF('CNV R640 2'!$D$64=Riepilogo!$W198,'CNV R640 2'!$C$64,0) -> 0 | Z198: =IF('CNV R640 3'!$D$64=Riepilogo!$W198,'CNV R640 3'!$C$64,0) -> 0 | AA198: =IF('CNV T640 (Rack)'!$D$65=Riepilogo!W198,'CNV T640 (Rack)'!$C$65,0) -> 0 | AB198: =IF('Lotto1 T630R 2'!$D$65=Riepilogo!W198,'Lotto1 T630R 2'!$C$65,0) -> 0 | AC198: =IF('Lotto1 T630R 3'!$D$65=Riepilogo!W198,'Lotto1 T630R 3'!$C$65,0) -> 0 | AD198: =IF('CNV R740 1'!$D$64=Riepilogo!$W198,'CNV R740 1'!$C$64,0) -> 0 | AE198: =IF('CNV R740 2'!$D$64=Riepilogo!$W198,'CNV R740 2'!$C$64,0) -> 0 | AF198: =IF('CNV R740 3'!$D$64=Riepilogo!$W198,'CNV R740 3'!$C$64,0) -> 0 | AG198: =IF('CNV R740xd 1'!$D$65=Riepilogo!$W198,'CNV R740xd 1'!$C$65,0) -> 0 | AH198: =IF('CNV R740xd 2'!$D$65=Riepilogo!$W198,'CNV R740xd 2'!$C$65,0) -> 0 | AI198: =IF('CNV R740xd 3'!$D$65=Riepilogo!$W198,'CNV R740xd 3'!$C$65,0) -> 0 | AJ198: =IF('CNV T640 (Tower)'!$D$64=Riepilogo!$W198,'CNV T640 (Tower)'!$C$64,0) -> 0 | AK198: =IF('CNV T640 1 (Tower) Prest'!$D$65=Riepilogo!$W198,'CNV T640 1 (Tower) Prest'!$C$65,0) -> 0 | AL198: 0 | AM198: 0 | AN198: 0 | AO198: 0 | AP198: 0 | AQ198: 0 | AR198: 0 | AS198: 0 | AT198: 0 | AU198: 0 | AV198: 0 | AW198: 0 | AX198: 0 | AY198: 0 | AZ198: 0 | BA198: 0 | BB198: 0 | BC198: 0 | BD198: 0 | BE198: 0 | BF198: 0
V199: 0 | W199: CNV-874-006884 | X199: =IF('CNV R640 1'!$D$64=Riepilogo!$W$199,'CNV R640 1'!$C$64,0) -> 0 | Y199: =IF('CNV R640 2'!$D$64=Riepilogo!$W199,'CNV R640 2'!$C$64,0) -> 0 | Z199: =IF('CNV R640 3'!$D$64=Riepilogo!$W199,'CNV R640 3'!$C$64,0) -> 0 | AA199: =IF('CNV T640 (Rack)'!$D$65=Riepilogo!W199,'CNV T640 (Rack)'!$C$65,0) -> 0 | AB199: =IF('Lotto1 T630R 2'!$D$65=Riepilogo!W199,'Lotto1 T630R 2'!$C$65,0) -> 0 | AC199: =IF('Lotto1 T630R 3'!$D$65=Riepilogo!W199,'Lotto1 T630R 3'!$C$65,0) -> 0 | AD199: =IF('CNV R740 1'!$D$64=Riepilogo!$W199,'CNV R740 1'!$C$64,0) -> 0 | AE199: =IF('CNV R740 2'!$D$64=Riepilogo!$W199,'CNV R740 2'!$C$64,0) -> 0 | AF199: =IF('CNV R740 3'!$D$64=Riepilogo!$W199,'CNV R740 3'!$C$64,0) -> 0 | AG199: =IF('CNV R740xd 1'!$D$65=Riepilogo!$W199,'CNV R740xd 1'!$C$65,0) -> 0 | AH199: =IF('CNV R740xd 2'!$D$65=Riepilogo!$W199,'CNV R740xd 2'!$C$65,0) -> 0 | AI199: =IF('CNV R740xd 3'!$D$65=Riepilogo!$W199,'CNV R740xd 3'!$C$65,0) -> 0 | AJ199: =IF('CNV T640 (Tower)'!$D$64=Riepilogo!$W199,'CNV T640 (Tower)'!$C$64,0) -> 0 | AK199: =IF('CNV T640 1 (Tower) Prest'!$D$65=Riepilogo!$W199,'CNV T640 1 (Tower) Prest'!$C$65,0) -> 0 | AL199: 0 | AM199: 0 | AN199: 0 | AO199: 0 | AP199: 0 | AQ199: 0 | AR199: 0 | AS199: 0 | AT199: 0 | AU199: 0 | AV199: 0 | AW199: 0 | AX199: 0 | AY199: 0 | AZ199: 0 | BA199: 0 | BB199: 0 | BC199: 0 | BD199: 0 | BE199: 0 | BF199: 0
R200: =IF(BF200>0,(VLOOKUP(G200,COD_B,3,FALSE)),"") ->  | V200: 0 | W200: CNV-874-006895 | X200: =IF('CNV R640 1'!$D$64=Riepilogo!$W$200,'CNV R640 1'!$C$64,0) -> 0 | Y200: =IF('CNV R640 2'!$D$64=Riepilogo!$W200,'CNV R640 2'!$C$64,0) -> 0 | Z200: =IF('CNV R640 3'!$D$64=Riepilogo!$W200,'CNV R640 3'!$C$64,0) -> 0 | AA200: =IF('CNV T640 (Rack)'!$D$65=Riepilogo!W200,'CNV T640 (Rack)'!$C$65,0) -> 0 | AB200: =IF('Lotto1 T630R 2'!$D$65=Riepilogo!W200,'Lotto1 T630R 2'!$C$65,0) -> 0 | AC200: =IF('Lotto1 T630R 3'!$D$65=Riepilogo!W200,'Lotto1 T630R 3'!$C$65,0) -> 0 | AD200: =IF('CNV R740 1'!$D$64=Riepilogo!$W200,'CNV R740 1'!$C$64,0) -> 0 | AE200: =IF('CNV R740 2'!$D$64=Riepilogo!$W200,'CNV R740 2'!$C$64,0) -> 0 | AF200: =IF('CNV R740 3'!$D$64=Riepilogo!$W200,'CNV R740 3'!$C$64,0) -> 0 | AG200: =IF('CNV R740xd 1'!$D$65=Riepilogo!$W200,'CNV R740xd 1'!$C$65,0) -> 0 | AH200: =IF('CNV R740xd 2'!$D$65=Riepilogo!$W200,'CNV R740xd 2'!$C$65,0) -> 0 | AI200: =IF('CNV R740xd 3'!$D$65=Riepilogo!$W200,'CNV R740xd 3'!$C$65,0) -> 0 | AJ200: =IF('CNV T640 (Tower)'!$D$64=Riepilogo!$W200,'CNV T640 (Tower)'!$C$64,0) -> 0 | AK200: =IF('CNV T640 1 (Tower) Prest'!$D$65=Riepilogo!$W200,'CNV T640 1 (Tower) Prest'!$C$65,0) -> 0 | AL200: 0 | AM200: 0 | AN200: 0 | AO200: 0 | AP200: 0 | AQ200: 0 | AR200: 0 | AS200: 0 | AT200: 0 | AU200: 0 | AV200: 0 | AW200: 0 | AX200: 0 | AY200: 0 | AZ200: 0 | BA200: 0 | BB200: 0 | BC200: 0 | BD200: 0 | BE200: 0 | BF200: 0
... 311 more rows

Sheet CNV R640 2
D1: TOTALE MEPA | H1: =G10 -> 0
A5: POWEREDGE R640
F7: Totale Server e Opzioni | G7: =F18*SRV_AA -> 0
F8: Totale Ulteriori Opzioni | G8: =G17*SRV_AA-(G73*SRV_AA)+G73-(SRV_AA*G70)+G70 -> 0
F10: TOTALE CONVENZIONE | G10: =G8+G7 -> 0
A11: Components: Server DELL PowerEdge R640 (1CPU Intel® Xeon® Silver 4114, 32GB RDIMM, 2xHDD 600GB 10K RPM SAS 12Gbps 2.5in)
B15: Category: Server
B16: Quantity: | F16: 1720 | G16: =SUM(F16:F17) -> 1720
F17: =SUM(F21:F192) -> 0 | G17: =SUM(G21:G192) -> 0
F18: =SUM(F16:F17) -> 1720
B19: Base
B20: PowerEdge R640 Server, 8HDD | C20: 1 | E20: [210-AKWU][329-BDKC]
B22: Configurazione dello chassis
B23: 2.5 Chassis with up to 8 Hard Drives and 2PCIe slots | C23: 1 | E23: [321-BCQJ]
B25: Processore
B26: Intel® Xeon® Silver 4114 2.2G, 10C/20T, 9.6GT/s 2UPI, 14M Cache, Turbo, HT (85W) | C26: 1 | E26: [338-BLUS]
B28: Processore aggiuntivo
B29: No Additional Processor | C29: =VLOOKUP($B$29, CPU_A, 2, FALSE) -> 0 | D29: =VLOOKUP($B$29, CPU_A, 3, FALSE) ->  | E29: =VLOOKUP($B$29, CPU_A, 5, FALSE) -> [374-BBBX] | F29: =VLOOKUP(B29, CPU_A, 15, FALSE) -> 0
B31: Processor Thermal Configuration
B32: Standard 1U Heatsink | C32: 1 | E32: [412-AAIQ]
B33: =VLOOKUP($B$29, CPU_A, 6, FALSE) ->  | C33: =VLOOKUP($B$29, CPU_A, 7, FALSE) ->  | E33: =VLOOKUP($B$29, CPU_A, 8, FALSE) -> 
B35: Tipo di configurazione memoria
B36: Performance Optimized | C36: 1 | E36: [370-AAIP]
B38: Memoria Totale in GB | C38: =IF(F29=728,IF(B39=32,"ATTENZIONE: AUMENTARE LA RAM",""),"") -> 
B39: 32
B41: Tipo e velocità della memoria DIMM
B42: 2667MT/s RDIMMs | C42: 1 | E42: [370-ADNU]
B44: Capacità di memoria
B45: =IF($B$29="No Additional Processor",VLOOKUP($B$39, MEM_A1, 8, FALSE),VLOOKUP($B$39, MEM_A2, 8, FALSE)) -> Dell 32 GB Modulo di memoria - RDIMM 2666MHz | C45: =IF($B$29="No Additional Processor",VLOOKUP($B$39, MEM_A1, 9, FALSE),VLOOKUP($B$39, MEM_A2, 9, FALSE)) -> 1 | E45: =IF($B$29="No Additional Processor",VLOOKUP($B$39, MEM_A1, 10, FALSE),VLOOKUP($B$39, MEM_A2, 10, FALSE)) -> [370-ADNF]
B47: =IF($B$29="No Additional Processor",VLOOKUP($B$39, MEM_A1, 2, FALSE),VLOOKUP($B$39, MEM_A2, 2, FALSE)) ->  | C47: =IF($B$29="No Additional Processor",VLOOKUP($B$39, MEM_A1, 3, FALSE),VLOOKUP($B$39, MEM_A2, 3, FALSE)) ->  | D47: =IF($B$29="No Additional Processor",VLOOKUP($B$39, MEM_A1, 4, FALSE),VLOOKUP($B$39, MEM_A2, 4, FALSE)) ->  | E47: =IF($B$29="No Additional Processor",VLOOKUP($B$39, MEM_A1, 6, FALSE),VLOOKUP($B$39, MEM_A2, 6, FALSE)) ->  | F47: =IF($B$29="No Additional Processor",VLOOKUP($B$39, MEM_A1, 7, FALSE),VLOOKUP($B$39, MEM_A2, 7, FALSE)) -> 
B49: =IF($B$29="No Additional Processor",VLOOKUP($B$39, MEM_A1, 11, FALSE),VLOOKUP($B$39, MEM_A2, 11, FALSE)) ->  | C49: =IF($B$29="No Additional Processor",VLOOKUP($B$39, MEM_A1, 12, FALSE),VLOOKUP($B$39, MEM_A2, 12, FALSE)) ->  | D49: =IF($B$29="No Additional Processor",VLOOKUP($B$39, MEM_A1, 13, FALSE),VLOOKUP($B$39, MEM_A2, 13, FALSE)) ->  | E49: =IF($B$29="No Additional Processor",VLOOKUP($B$39, MEM_A1, 15, FALSE),VLOOKUP($B$39, MEM_A2, 15, FALSE)) ->  | F49: =IF($B$29="No Additional Processor",VLOOKUP($B$39, MEM_A1, 16, FALSE),VLOOKUP($B$39, MEM_A2, 16, FALSE)) -> 
B51: Sistema operativo preinstallato
B52: No Operating System | C52: =VLOOKUP($B$52, OS_A, 2, FALSE) ->  | D52: =VLOOKUP($B$52, OS_A, 3, FALSE) ->  | E52: =VLOOKUP($B$52, OS_A, 5, FALSE) -> [611-BBBF] | F52: =VLOOKUP($B$52, OS_A, 6, FALSE) -> 
B53: =IF($B$29="No Additional Processor",VLOOKUP($B$52, OS_A, 20, FALSE),VLOOKUP($B$52, OS_A2, 20, FALSE)) ->  | C53: =IF($B$29="No Additional Processor",VLOOKUP($B$52, OS_A, 21, FALSE),VLOOKUP($B$52, OS_A2, 21, FALSE)) -> 0 | D53: =IF($B$29="No Additional Processor",VLOOKUP($B$52, OS_A, 22, FALSE),VLOOKUP($B$52, OS_A2, 22, FALSE)) ->  | E53: =IF($B$29="No Additional Processor",VLOOKUP($B$52, OS_A, 24, FALSE),VLOOKUP($B$52, OS_A2, 24, FALSE)) ->  | F53: =IF($B$29="No Additional Processor",VLOOKUP($B$52, OS_A, 25, FALSE),VLOOKUP($B$52, OS_A2, 25, FALSE)) -> 
B55: OS Media Kits
B56: No Media Required | C56: 1 | E56: [605-BBFN]
B58: Client Access Licenses
B59: =VLOOKUP($B$52, OS_A, 8, FALSE) -> None | D59: =VLOOKUP($B$52, OS_A, 10, FALSE) ->  | E59: =VLOOKUP($B$52, OS_A, 12, FALSE) ->  | F59: =VLOOKUP($B$52, OS_A, 13, FALSE)*C59 -> 0
B61: =VLOOKUP($B$52, OS_A, 14, FALSE) -> None | D61: =VLOOKUP($B$52, OS_A, 16, FALSE) ->  | E61: =VLOOKUP($B$52, OS_A, 18, FALSE) ->  | F61: =VLOOKUP($B$52, OS_A, 19, FALSE)*C61 -> 0
B63: Sistema operativo SUSE Linux Enterprise Server
B64: None | C64: =VLOOKUP($B$64,SUSE, 2, FALSE) -> 0 | D64: =VLOOKUP($B$64,SUSE, 3, FALSE) ->  | E64: =VLOOKUP($B$64,SUSE, 5, FALSE) ->  | F64: =VLOOKUP($B$64, SUSE, 6, FALSE)*C64 -> 0
B66: Sistema operativo VMware
B67: None | C67: =VLOOKUP($B$67,VMWARE, 2, FALSE)+C29 -> 0 | D67: =VLOOKUP($B$67,VMWARE, 3, FALSE) ->  | E67: =VLOOKUP($B$67,VMWARE, 5, FALSE) ->  | F67: =VLOOKUP($B$67, VMWARE, 6, FALSE)*C67 -> 0
B69: VMware vCenter Server Standard
B70: None | C70: =VLOOKUP($B$70,VMWARE2, 2, FALSE) -> 0 | D70: =VLOOKUP($B$70,VMWARE2, 3, FALSE) ->  | E70: =VLOOKUP($B$70,VMWARE2, 5, FALSE) ->  | G70: =VLOOKUP($B$70, VMWARE2, 6, FALSE)*C70 -> 0
B72: Essentials Plus Kit
B73: None | C73: =IF(SRV_A<4,VLOOKUP($B$73,VMWARE1, 2, FALSE),0) -> 0 | D73: =VLOOKUP($B$73,VMWARE1, 3, FALSE) ->  | E73: =VLOOKUP($B$73,VMWARE1, 5, FALSE) ->  | G73: =VLOOKUP($B$73, VMWARE1, 6, FALSE)*C73 -> 0
B75: Controller RAID
B76: PERC H730P RAID Controller, 2Gb NV Cache, Minicard | C76: 1 | E76: [405-AAQU]
B78: Dischi rigidi (numero massimo totale 8)
B79: 600GB 10K RPM SAS 12Gbps 512n 2.5in Hot-plug Hard Drive | C79: 2 | E79: [400-ASGS]
B81: 600GB 10K RPM SAS 12Gbps 512n 2.5in Hot-plug Hard Drive | D81: =VLOOKUP($B$81, HDD_A,3, FALSE) -> CNV-TS1L1-HD600 | E81: =VLOOKUP($B$81, HDD_A,5, FALSE) -> [400-AUNQ] | F81: =VLOOKUP($B$81, HDD_B,6, FALSE)*C81 -> 0
B83: 1.2TB 10K RPM SAS 12Gbps 512n 2.5in Hot-plug Hard Drive | D83: =VLOOKUP($B$83, HDD_A,3, FALSE) -> CNV-TS1L1-HD1200-U | E83: =VLOOKUP($B$83, HDD_A,5, FALSE) -> [400-ATJL] | F83: =VLOOKUP($B$83, HDD_B,6, FALSE)*C83 -> 0
B85: 1.8TB 10K RPM SAS 12Gbps 512e 2.5in Hot-plug Hard Drive | D85: CNV-TS1L1-HD1800-U | E85: [400-ATJR] | F85: =VLOOKUP($B$85, HDD_B,6, FALSE)*C85 -> 0
B87: 960GB SSD SAS Mix Use 12Gbps 512n 2.5in Hot-plug Drive, PX05SV,3 DWPD,5256 TBW | D87: CNV-TS1L1-SSD800-U | E87: [400-ATLR] | F87: =VLOOKUP($B$87, HDD_B,6, FALSE)*C87 -> 0
B89: 1.92TB SSD SAS Mix Use 12Gbps 512n 2.5in Hot-plug Drive, PX05SV,3 DWPD,10512 TBW | D89: CNV-TS1L1-SSD1920-U | E89: [400-ATNG] | F89: =VLOOKUP($B$89, HDD_B,6, FALSE)*C89 -> 0
B91: DISCHI TOTALI | C91: =SUM(C79:C90) -> 2 | D91: =IF(C91<=8," OK"," ERRORE: Totale n° di dischi superiore al consentito") -> OK
B93: Configurazione RAID
B94: C3 - RAID 1 for H330 (2 HDDs) | C94: 1 | E94: =VLOOKUP($B$94, RAID_A1, 2, FALSE) -> [780-BBJK]
B95: Hot Spare for 300GB HDD | C95: No
B96: SCRIVERE QUI' LA CONFIGURAZIONE RAID RICHIESTA. R640 2 | H96: =IF(B96="SCRIVERE QUI' LA CONFIGURAZIONE RAID RICHIESTA. R640 2 ","ATTENZIONE COMPILARE IL CAMPO DELLA SCELTA RAID", "") -> ATTENZIONE COMPILARE IL CAMPO DELLA SCELTA RAID
B97: Configurazione RAID HDD 1TB
C98: 1 | E98: =VLOOKUP($B$98, RAID_A2, 2, FALSE) -> 
B99: Hot Spare for 1TB HDD | C99: No
B101: Impostazioni del BIOS per la gestione dell'alimentazione
B102: Performance BIOS Setting | C102: 1 | E102: [384-BBBL]
B104: Alimentatore
B105: Dual, Hot-plug, Redundant Power Supply (1+1), 750W, Titanium, 200-240VAC | C105: =VLOOKUP(B105,upsell_1, 2, FALSE) -> 1 | D105: =VLOOKUP(B105,upsell_1, 3, FALSE) ->  | E105: =VLOOKUP(B105,upsell_1, 5, FALSE) -> [450-ADWT] | F105: =VLOOKUP(B105,upsell_1, 6, FALSE) -> 0 | G105: =VLOOKUP(B105,upsell_1, 7, FALSE) -> 0
B107: Cavi di alimentazione
B108: Rack Power Cord 2M (C13/C14 12A) | C108: 2 | E108: [450-AADY]
B110: Fans
B111: =VLOOKUP(B29, CPU_A, 12, FALSE) -> 5 Standard Fans for R640 | C111: =VLOOKUP($B$29, CPU_A, 13, FALSE) -> 1 | E111: =VLOOKUP($B$29, CPU_A, 14, FALSE) -> [384-BBPR]
B113: TPM Module
B114: Trusted Platform Module 1.2 | C114: 1 | E114: [461-AAEL]
B116: Embedded Systems Management
B117: iDRAC9,Enterprise | C117: 1 | E117: [385-BBKT]
B119: PCIe Riser
B120: Riser Config 4, 2x16 LP | C120: 1 | E120: [330-BBGY]
B122: Adattatore di rete
B123: Intel Ethernet i350 QP 1Gb Network Daughter Card | C123: =VLOOKUP($B$123,upsell_1, 2, FALSE) -> 1 | D123: =VLOOKUP($B$123,upsell_1, 3, FALSE) ->  | E123: =VLOOKUP($B$123,upsell_1, 5, FALSE) -> [540-BBCB] | F123: =VLOOKUP($B$123,upsell_1, 6, FALSE) ->  | G123: =VLOOKUP($B$123,upsell_1, 7, FALSE) -> 0
B125: Modulo Doppia SD
B126: None | C126: =VLOOKUP($B$126,upsell_1, 2, FALSE) -> 0 | D126: =VLOOKUP($B$126,upsell_1, 3, FALSE) ->  | E126: =VLOOKUP($B$126,upsell_1, 4, FALSE) ->  | F126: =VLOOKUP($B$126,upsell_1, 7, FALSE) -> 0
B128: Additional Card for PCIe Slot 1 (Low Profile)
B129: None | C129: =VLOOKUP($B$129, PCI_A1, 2, FALSE) ->  | D129: =VLOOKUP($B$129, PCI_A1, 3, FALSE) ->  | E129: =VLOOKUP($B$129, PCI_A1, 5, FALSE) ->  | F129: =VLOOKUP($B$129, PCI_A1, 6, FALSE) ->  | G129: =VLOOKUP($B$129, PCI_A1, 7, FALSE) -> 0
B131: Additional Card for PCIe Slot 2 (Full height)
B132: None | C132: =VLOOKUP($B$132, PCI_A1, 2, FALSE) ->  | D132: =VLOOKUP($B$132, PCI_A1, 3, FALSE) ->  | E132: =VLOOKUP($B$132, PCI_A1, 5, FALSE) ->  | F132: =VLOOKUP($B$132, PCI_A1, 6, FALSE) ->  | G132: =VLOOKUP($B$132, PCI_A1, 7, FALSE) -> 0
B134: Pannello frontale
B135: No Bezel Option | C135: =VLOOKUP(B135,upsell_1, 2, FALSE) -> 1 | D135: =VLOOKUP(B135,upsell_1, 3, FALSE) ->  | E135: =VLOOKUP(B135,upsell_1, 5, FALSE) -> [350-BBBW] | F135: =VLOOKUP(B135,upsell_1, 6, FALSE) -> 0 | G135: =VLOOKUP(B135,upsell_1, 7, FALSE) -> 0
B137: Guide per rack
B138: ReadyRails™ Sliding Rails Without Cable Management Arm 1U | C138: =VLOOKUP(B138,upsell_1, 2, FALSE) -> 1 | D138: =VLOOKUP(B138,upsell_1, 3, FALSE) ->  | E138: =VLOOKUP(B138,upsell_1, 5, FALSE) -> [770-BBBC] | F138: =VLOOKUP(B138,upsell_1, 6, FALSE) -> 0 | G138: =VLOOKUP(B138,upsell_1, 7, FALSE) -> 0
B140: Unità ottica interna
B141: No Internal Optical Drive for 8 HDD Chassis | C141: 1 | E141: [429-AAQN]
B143: Accessori Server
B144: PowerEdge SFP+, 10GbE SR/SX, Optical Tranceiver, LC Connector, for Intel and Broadcom,CusKit | C144: =(VLOOKUP(B132,PCI_A2,9,FALSE))+((VLOOKUP(B129,PCI_A1,9,FALSE))) -> 0 | E144: [407-BBQE]
B146: Sistema documentazione
B147: Electronic System Documentation and OpenManage DVD Kit | C147: 1 | E147: [343-BBDK]
B149: SHIPPING
B150: R630 Shipping - 8 Drive Chassis, EMEA1 (English/French/German/Spanish/Russian/Hebrew) | C150: 1 | E150: [340-AMIN]
B152: Order Information
B153: PowerEdge Order - EMEA | C153: 1 | E153: [800-11671]
B155: Base warranty
B156: 3Yr Basic Warranty - Next Business Day - Minimum Warranty | C156: 1 | E156: [709-12767][709-12768]
B158: Servizi di assitenza
B159: Dell Channel Order - Service Info only | C159: 1 | E159: [710-31085]
B161: Estenzione di Garanzia
B162: None | C162: =VLOOKUP($B$162, SO_A1, 2, FALSE) ->  | D162: =VLOOKUP($B$162, SO_A1, 3, FALSE) ->  | E162: =VLOOKUP($B$162, SO_A1, 5, FALSE) ->  | F162: =VLOOKUP($B$162, SO_A1, 6, FALSE) -> 
B164: Protezione dei dati - Keep Your Hard Drive
B165: None | C165: =VLOOKUP($B$165, SO_A2, 2, FALSE) ->  | D165: =VLOOKUP($B$165, SO_A2, 3, FALSE) ->  | E165: =VLOOKUP($B$165, SO_A2,5, FALSE) ->  | F165: =VLOOKUP($B$165, SO_A2, 6, FALSE) -> 
B167: Servizi di Installazione
B168: No Installation Service Selected | C168: 1 | E168: [683-11870]
B170: Channel only - Support Extension
B171: Channel 39M Basic Warranty - Next Business Day | C171: 1 | E171: [723-28776]
B173: Warranty Upgrades - Non-Std/Local POS
B174: CSTM CONSIP - 39M Onsite Labor Support for CRU for Servers with Basic Warranty | C174: 1 | E174: [681-24467]

Sheet CNV R640 3
D1: TOTALE MEPA | H1: =G10 -> 0
A5: POWEREDGE R640
F7: Totale Server e Opzioni | G7: =G16*SRV_AAA -> 0
F8: Totale Ulteriori Opzioni | G8: =G17*SRV_AAA-(G73*SRV_AAA)+G73-(SRV_AAA*G70)+G70 -> 0
F10: TOTALE CONVENZIONE | G10: =G8+G7 -> 0
A11: Components: Server DELL PowerEdge R640 (1CPU Intel® Xeon® Silver 4114, 32GB RDIMM, 2xHDD 600GB 10K RPM SAS 12Gbps 2.5in)
B15: Category: Server
B16: Quantity: | F16: 1720 | G16: =SUM(F16:F17) -> 1720
F17: =SUM(F21:F192) -> 0 | G17: =SUM(G21:G192) -> 0
F18: =SUM(F16:F17) -> 1720
B19: Base
B20: PowerEdge R640 Server, 8HDD | C20: 1 | E20: [210-AKWU][329-BDKC]
B22: Configurazione dello chassis
B23: 2.5 Chassis with up to 8 Hard Drives and 2PCIe slots | C23: 1 | E23: [321-BCQJ]
B25: Processore
B26: Intel® Xeon® Silver 4114 2.2G, 10C/20T, 9.6GT/s 2UPI, 14M Cache, Turbo, HT (85W) | C26: 1 | E26: [338-BLUS]
B28: Processore aggiuntivo
B29: No Additional Processor | C29: =VLOOKUP($B$29, CPU_A, 2, FALSE) -> 0 | D29: =VLOOKUP($B$29, CPU_A, 3, FALSE) ->  | E29: =VLOOKUP($B$29, CPU_A, 5, FALSE) -> [374-BBBX] | F29: =VLOOKUP(B29, CPU_A, 15, FALSE) -> 0
B31: Processor Thermal Configuration
B32: Standard 1U Heatsink | C32: 1 | E32: [412-AAIQ]
B33: =VLOOKUP($B$29, CPU_A, 6, FALSE) ->  | C33: =VLOOKUP($B$29, CPU_A, 7, FALSE) ->  | E33: =VLOOKUP($B$29, CPU_A, 8, FALSE) -> 
B35: Tipo di configurazione memoria
B36: Performance Optimized | C36: 1 | E36: [370-AAIP]
B38: Memoria Totale in GB | C38: =IF(F29=728,IF(B39=32,"ATTENZIONE: AUMENTARE LA RAM",""),"") -> 
B39: 32
B41: Tipo e velocità della memoria DIMM
B42: 2667MT/s RDIMMs | C42: 1 | E42: [370-ADNU]
B44: Capacità di memoria
B45: =IF($B$29="No Additional Processor",VLOOKUP($B$39, MEM_A1, 8, FALSE),VLOOKUP($B$39, MEM_A2, 8, FALSE)) -> Dell 32 GB Modulo di memoria - RDIMM 2666MHz | C45: =IF($B$29="No Additional Processor",VLOOKUP($B$39, MEM_A1, 9, FALSE),VLOOKUP($B$39, MEM_A2, 9, FALSE)) -> 1 | E45: =IF($B$29="No Additional Processor",VLOOKUP($B$39, MEM_A1, 10, FALSE),VLOOKUP($B$39, MEM_A2, 10, FALSE)) -> [370-ADNF]
B47: =IF($B$29="No Additional Processor",VLOOKUP($B$39, MEM_A1, 2, FALSE),VLOOKUP($B$39, MEM_A2, 2, FALSE)) ->  | C47: =IF($B$29="No Additional Processor",VLOOKUP($B$39, MEM_A1, 3, FALSE),VLOOKUP($B$39, MEM_A2, 3, FALSE)) ->  | D47: =IF($B$29="No Additional Processor",VLOOKUP($B$39, MEM_A1, 4, FALSE),VLOOKUP($B$39, MEM_A2, 4, FALSE)) ->  | E47: =IF($B$29="No Additional Processor",VLOOKUP($B$39, MEM_A1, 6, FALSE),VLOOKUP($B$39, MEM_A2, 6, FALSE)) ->  | F47: =IF($B$29="No Additional Processor",VLOOKUP($B$39, MEM_A1, 7, FALSE),VLOOKUP($B$39, MEM_A2, 7, FALSE)) -> 
B49: =IF($B$29="No Additional Processor",VLOOKUP($B$39, MEM_A1, 11, FALSE),VLOOKUP($B$39, MEM_A2, 11, FALSE)) ->  | C49: =IF($B$29="No Additional Processor",VLOOKUP($B$39, MEM_A1, 12, FALSE),VLOOKUP($B$39, MEM_A2, 12, FALSE)) ->  | D49: =IF($B$29="No Additional Processor",VLOOKUP($B$39, MEM_A1, 13, FALSE),VLOOKUP($B$39, MEM_A2, 13, FALSE)) ->  | E49: =IF($B$29="No Additional Processor",VLOOKUP($B$39, MEM_A1, 15, FALSE),VLOOKUP($B$39, MEM_A2, 15, FALSE)) ->  | F49: =IF($B$29="No Additional Processor",VLOOKUP($B$39, MEM_A1, 16, FALSE),VLOOKUP($B$39, MEM_A2, 16, FALSE)) -> 
B51: Sistema operativo preinstallato
B52: No Operating System | C52: =VLOOKUP($B$52, OS_A, 2, FALSE) ->  | D52: =VLOOKUP($B$52, OS_A, 3, FALSE) ->  | E52: =VLOOKUP($B$52, OS_A, 5, FALSE) -> [611-BBBF] | F52: =VLOOKUP($B$52, OS_A, 6, FALSE) -> 
B53: =IF($B$29="No Additional Processor",VLOOKUP($B$52, OS_A, 20, FALSE),VLOOKUP($B$52, OS_A2, 20, FALSE)) ->  | C53: =IF($B$29="No Additional Processor",VLOOKUP($B$52, OS_A, 21, FALSE),VLOOKUP($B$52, OS_A2, 21, FALSE)) -> 0 | D53: =IF($B$29="No Additional Processor",VLOOKUP($B$52, OS_A, 22, FALSE),VLOOKUP($B$52, OS_A2, 22, FALSE)) ->  | E53: =IF($B$29="No Additional Processor",VLOOKUP($B$52, OS_A, 24, FALSE),VLOOKUP($B$52, OS_A2, 24, FALSE)) ->  | F53: =IF($B$29="No Additional Processor",VLOOKUP($B$52, OS_A, 25, FALSE),VLOOKUP($B$52, OS_A2, 25, FALSE)) -> 
B55: OS Media Kits
B56: No Media Required | C56: 1 | E56: [605-BBFN]
B58: Client Access Licenses
B59: =VLOOKUP($B$52, OS_A, 8, FALSE) -> None | D59: =VLOOKUP($B$52, OS_A, 10, FALSE) ->  | E59: =VLOOKUP($B$52, OS_A, 12, FALSE) ->  | F59: =VLOOKUP($B$52, OS_A, 13, FALSE)*C59 -> 0
B61: =VLOOKUP($B$52, OS_A, 14, FALSE) -> None | D61: =VLOOKUP($B$52, OS_A, 16, FALSE) ->  | E61: =VLOOKUP($B$52, OS_A, 18, FALSE) ->  | F61: =VLOOKUP($B$52, OS_A, 19, FALSE)*C61 -> 0
B63: Sistema operativo SUSE Linux Enterprise Server
B64: None | C64: =VLOOKUP($B$64,SUSE, 2, FALSE) -> 0 | D64: =VLOOKUP($B$64,SUSE, 3, FALSE) ->  | E64: =VLOOKUP($B$64,SUSE, 5, FALSE) ->  | F64: =VLOOKUP($B$64, SUSE, 6, FALSE)*C64 -> 0
B66: Sistema operativo VMware
B67: None | C67: =VLOOKUP($B$67,VMWARE, 2, FALSE)+C29 -> 0 | D67: =VLOOKUP($B$67,VMWARE, 3, FALSE) ->  | E67: =VLOOKUP($B$67,VMWARE, 5, FALSE) ->  | F67: =VLOOKUP($B$67, VMWARE, 6, FALSE)*C67 -> 0
B69: VMware vCenter Server Standard
B70: None | C70: =VLOOKUP($B$70,VMWARE2, 2, FALSE) -> 0 | D70: =VLOOKUP($B$70,VMWARE2, 3, FALSE) ->  | E70: =VLOOKUP($B$70,VMWARE2, 5, FALSE) ->  | G70: =VLOOKUP($B$70, VMWARE2, 6, FALSE)*C70 -> 0
B72: Essentials Plus Kit
B73: None | C73: =IF(SRV_A<4,VLOOKUP($B$73,VMWARE1, 2, FALSE),0) -> 0 | D73: =VLOOKUP($B$73,VMWARE1, 3, FALSE) ->  | E73: =VLOOKUP($B$73,VMWARE1, 5, FALSE) ->  | G73: =VLOOKUP($B$73, VMWARE1, 6, FALSE)*C73 -> 0
B75: Controller RAID
B76: PERC H730P RAID Controller, 2Gb NV Cache, Minicard | C76: 1 | E76: [405-AAQU]
B78: Dischi rigidi (numero massimo totale 8)
B79: 600GB 10K RPM SAS 12Gbps 512n 2.5in Hot-plug Hard Drive | C79: 2 | E79: [400-ASGS]
B81: 600GB 10K RPM SAS 12Gbps 512n 2.5in Hot-plug Hard Drive | D81: =VLOOKUP($B$81, HDD_A,3, FALSE) -> CNV-TS1L1-HD600 | E81: =VLOOKUP($B$81, HDD_A,5, FALSE) -> [400-AUNQ] | F81: =VLOOKUP($B$81, HDD_B,6, FALSE)*C81 -> 0
B83: 1.2TB 10K RPM SAS 12Gbps 512n 2.5in Hot-plug Hard Drive | D83: =VLOOKUP($B$83, HDD_A,3, FALSE) -> CNV-TS1L1-HD1200-U | E83: =VLOOKUP($B$83, HDD_A,5, FALSE) -> [400-ATJL] | F83: =VLOOKUP($B$83, HDD_B,6, FALSE)*C83 -> 0
B85: 1.8TB 10K RPM SAS 12Gbps 512e 2.5in Hot-plug Hard Drive | D85: CNV-TS1L1-HD1800-U | E85: [400-ATJR] | F85: =VLOOKUP($B$85, HDD_B,6, FALSE)*C85 -> 0
B87: 960GB SSD SAS Mix Use 12Gbps 512n 2.5in Hot-plug Drive, PX05SV,3 DWPD,5256 TBW | D87: CNV-TS1L1-SSD800-U | E87: [400-ATLR] | F87: =VLOOKUP($B$87, HDD_B,6, FALSE)*C87 -> 0
B89: 1.92TB SSD SAS Mix Use 12Gbps 512n 2.5in Hot-plug Drive, PX05SV,3 DWPD,10512 TBW | D89: CNV-TS1L1-SSD1920-U | E89: [400-ATNG] | F89: =VLOOKUP($B$89, HDD_B,6, FALSE)*C89 -> 0
B91: DISCHI TOTALI | C91: =SUM(C79:C90) -> 2 | D91: =IF(C91<=8," OK"," ERRORE: Totale n° di dischi superiore al consentito") -> OK
B93: Configurazione RAID
B94: C3 - RAID 1 for H330 (2 HDDs) | C94: 1 | E94: =VLOOKUP($B$94, RAID_A1, 2, FALSE) -> [780-BBJK]
B95: Hot Spare for 300GB HDD | C95: No
B96: SCRIVERE QUI' LA CONFIGURAZIONE RAID RICHIESTA. R640 3 | H96: =IF(B96="SCRIVERE QUI' LA CONFIGURAZIONE RAID RICHIESTA. R640 3 ","ATTENZIONE COMPILARE IL CAMPO DELLA SCELTA RAID", "") -> ATTENZIONE COMPILARE IL CAMPO DELLA SCELTA RAID
B97: Configurazione RAID HDD 1TB
C98: 1 | E98: =VLOOKUP($B$98, RAID_A2, 2, FALSE) -> 
B99: Hot Spare for 1TB HDD | C99: No
B101: Impostazioni del BIOS per la gestione dell'alimentazione
B102: Performance BIOS Setting | C102: 1 | E102: [384-BBBL]
B104: Alimentatore
B105: Dual, Hot-plug, Redundant Power Supply (1+1), 750W, Titanium, 200-240VAC | C105: =VLOOKUP(B105,upsell_1, 2, FALSE) -> 1 | D105: =VLOOKUP(B105,upsell_1, 3, FALSE) ->  | E105: =VLOOKUP(B105,upsell_1, 5, FALSE) -> [450-ADWT] | F105: =VLOOKUP(B105,upsell_1, 6, FALSE) -> 0 | G105: =VLOOKUP(B105,upsell_1, 7, FALSE) -> 0
B107: Cavi di alimentazione
B108: Rack Power Cord 2M (C13/C14 12A) | C108: 2 | E108: [450-AADY]
B110: Fans
B111: =VLOOKUP(B29, CPU_A, 12, FALSE) -> 5 Standard Fans for R640 | C111: =VLOOKUP($B$29, CPU_A, 13, FALSE) -> 1 | E111: =VLOOKUP($B$29, CPU_A, 14, FALSE) -> [384-BBPR]
B113: TPM Module
B114: Trusted Platform Module 1.2 | C114: 1 | E114: [461-AAEL]
B116: Embedded Systems Management
B117: iDRAC9,Enterprise | C117: 1 | E117: [385-BBKT]
B119: PCIe Riser
B120: Riser Config 4, 2x16 LP | C120: 1 | E120: [330-BBGY]
B122: Adattatore di rete
B123: Intel Ethernet i350 QP 1Gb Network Daughter Card | C123: =VLOOKUP($B$123,upsell_1, 2, FALSE) -> 1 | D123: =VLOOKUP($B$123,upsell_1, 3, FALSE) ->  | E123: =VLOOKUP($B$123,upsell_1, 5, FALSE) -> [540-BBCB] | F123: =VLOOKUP($B$123,upsell_1, 6, FALSE) ->  | G123: =VLOOKUP($B$123,upsell_1, 7, FALSE) -> 0
B125: Modulo Doppia SD
B126: None | C126: =VLOOKUP($B$126,upsell_1, 2, FALSE) -> 0 | D126: =VLOOKUP($B$126,upsell_1, 3, FALSE) ->  | E126: =VLOOKUP($B$126,upsell_1, 4, FALSE) ->  | F126: =VLOOKUP($B$126,upsell_1, 7, FALSE) -> 0
B128: Additional Card for PCIe Slot 1 (Low Profile)
B129: None | C129: =VLOOKUP($B$129, PCI_A1, 2, FALSE) ->  | D129: =VLOOKUP($B$129, PCI_A1, 3, FALSE) ->  | E129: =VLOOKUP($B$129, PCI_A1, 5, FALSE) ->  | F129: =VLOOKUP($B$129, PCI_A1, 6, FALSE) ->  | G129: =VLOOKUP($B$129, PCI_A1, 7, FALSE) -> 0
B131: Additional Card for PCIe Slot 2 (Full height)
B132: None | C132: =VLOOKUP($B$132, PCI_A1, 2, FALSE) ->  | D132: =VLOOKUP($B$132, PCI_A1, 3, FALSE) ->  | E132: =VLOOKUP($B$132, PCI_A1, 5, FALSE) ->  | F132: =VLOOKUP($B$132, PCI_A1, 6, FALSE) ->  | G132: =VLOOKUP($B$132, PCI_A1, 7, FALSE) -> 0
B134: Pannello frontale
B135: No Bezel Option | C135: =VLOOKUP(B135,upsell_1, 2, FALSE) -> 1 | D135: =VLOOKUP(B135,upsell_1, 3, FALSE) ->  | E135: =VLOOKUP(B135,upsell_1, 5, FALSE) -> [350-BBBW] | F135: =VLOOKUP(B135,upsell_1, 6, FALSE) -> 0 | G135: =VLOOKUP(B135,upsell_1, 7, FALSE) -> 0
B137: Guide per rack
B138: ReadyRails™ Sliding Rails Without Cable Management Arm 1U | C138: =VLOOKUP(B138,upsell_1, 2, FALSE) -> 1 | D138: =VLOOKUP(B138,upsell_1, 3, FALSE) ->  | E138: =VLOOKUP(B138,upsell_1, 5, FALSE) -> [770-BBBC] | F138: =VLOOKUP(B138,upsell_1, 6, FALSE) -> 0 | G138: =VLOOKUP(B138,upsell_1, 7, FALSE) -> 0
B140: Unità ottica interna
B141: No Internal Optical Drive for 8 HDD Chassis | C141: 1 | E141: [429-AAQN]
B143: Accessori Server
B144: PowerEdge SFP+, 10GbE SR/SX, Optical Tranceiver, LC Connector, for Intel and Broadcom,CusKit | C144: =(VLOOKUP(B132,PCI_A2,9,FALSE))+((VLOOKUP(B129,PCI_A1,9,FALSE))) -> 0 | E144: [407-BBQE]
B146: Sistema documentazione
B147: Electronic System Documentation and OpenManage DVD Kit | C147: 1 | E147: [343-BBDK]
B149: SHIPPING
B150: R630 Shipping - 8 Drive Chassis, EMEA1 (English/French/German/Spanish/Russian/Hebrew) | C150: 1 | E150: [340-AMIN]
B152: Order Information
B153: PowerEdge Order - EMEA | C153: 1 | E153: [800-11671]
B155: Base warranty
B156: 3Yr Basic Warranty - Next Business Day - Minimum Warranty | C156: 1 | E156: [709-12767][709-12768]
B158: Servizi di assitenza
B159: Dell Channel Order - Service Info only | C159: 1 | E159: [710-31085]
B161: Estenzione di Garanzia
B162: None | C162: =VLOOKUP($B$162, SO_A1, 2, FALSE) ->  | D162: =VLOOKUP($B$162, SO_A1, 3, FALSE) ->  | E162: =VLOOKUP($B$162, SO_A1, 5, FALSE) ->  | F162: =VLOOKUP($B$162, SO_A1, 6, FALSE) -> 
B164: Protezione dei dati - Keep Your Hard Drive
B165: None | C165: =VLOOKUP($B$165, SO_A2, 2, FALSE) ->  | D165: =VLOOKUP($B$165, SO_A2, 3, FALSE) ->  | E165: =VLOOKUP($B$165, SO_A2,5, FALSE) ->  | F165: =VLOOKUP($B$165, SO_A2, 6, FALSE) -> 
B167: Servizi di Installazione
B168: No Installation Service Selected | C168: 1 | E168: [683-11870]
B170: Channel only - Support Extension
B171: Channel 39M Basic Warranty - Next Business Day | C171: 1 | E171: [723-28776]
B173: Warranty Upgrades - Non-Std/Local POS
B174: CSTM CONSIP - 39M Onsite Labor Support for CRU for Servers with Basic Warranty | C174: 1 | E174: [681-24467]

Sheet CNV R740 2
D1: TOTALE MEPA | H1: =G10 -> 0
A5: POWEREDGE R740
F7: Totale Server e Opzioni | G7: =F17*SRV_B1.2 -> 0
F8: Totale Ulteriori Opzioni | G8: =G16*SRV_B1.2-(G73*SRV_B1.1)+G73-(SRV_B1.2*G70)+G70 -> 0
F10: TOTALE CONVENZIONE | G10: =G8+G7 -> 0
A11: Components: Server DELL PowerEdge R740 (1CPU Intel® Xeon® Gold 5120, 64GB RDIMM, 2xHDD 600GB 10K RPM SAS 12Gbps 2.5in)
B15: Category: Server | F15: =2371 -> 2371
B16: Quantity: | F16: =SUM(F20:F191) -> 0 | G16: =SUM(G20:G191) -> 0
F17: =SUM(F15:F16) -> 2371
B19: Base
B20: PowerEdge R740 Server | C20: 1 | E20: [210-AKXJ]
B22: Configurazione dello chassis
B23: Chassis with up to 16 x 2.5" SAS/SATA Hard Drives for 1CPU Configuration | C23: 1 | E23: [321-BCSL]
B25: Processore
B26: Intel® Xeon® Gold 5120 2.2G, 14C/28T, 10.4GT/s, 19M Cache, Turbo, HT (105W) | C26: 1 | E26: [338-BLUX]
B28: Processore aggiuntivo
B29: No Additional Processor | C29: =VLOOKUP($B$29, CPU_B.1, 2, FALSE) -> 0 | D29: =VLOOKUP($B$29, CPU_B.1, 3, FALSE) ->  | E29: =VLOOKUP($B$29, CPU_B.1, 5, FALSE) -> [374-BBBX] | F29: =VLOOKUP(B29, CPU_B.1, 15, FALSE) -> 0
B31: Processor Thermal Configuration
B32: 1 CPU Standard | C32: 1 | E32: [370-ABWF][374-BBHM][750-AAEL]
B33: =VLOOKUP($B$29, CPU_B, 6, FALSE) ->  | C33: =VLOOKUP($B$29, CPU_B, 7, FALSE) ->  | E33: =VLOOKUP($B$29, CPU_B, 8, FALSE) -> 
B35: Tipo di configurazione memoria
B36: Performance Optimized | C36: 1 | E36: [370-AAIP]
B38: Memoria Totale in GB | D38: =IF(('CNV R740 1'!$D$12=0),"",'CNV R740 1'!#REF!) -> 
B39: 64
B41: Tipo e velocità della memoria DIMM
B42: 2666MT/s RDIMMs | C42: 1 | E42: [370-ADNU]
B44: Capacità di memoria
B45: =IF($B$29="No Additional Processor",VLOOKUP($B$39, MEM_B1, 8, FALSE),VLOOKUP($B$39, MEM_B2, 8, FALSE)) -> Dell 32 GB Modulo di memoria - RDIMM 2666MHz | C45: =IF($B$29="No Additional Processor",VLOOKUP($B$39, MEM_B1, 9, FALSE),VLOOKUP($B$39, MEM_B2, 9, FALSE)) -> 2 | E45: =IF($B$29="No Additional Processor",VLOOKUP($B$39, MEM_B1, 10, FALSE),VLOOKUP($B$39, MEM_B2, 10, FALSE)) -> [370-ADNF]
B47: =IF($B$29="No Additional Processor",VLOOKUP($B$39, MEM_B1, 2, FALSE),VLOOKUP($B$39, MEM_B2, 2, FALSE)) ->  | C47: =IF($B$29="No Additional Processor",VLOOKUP($B$39, MEM_B1, 3, FALSE),VLOOKUP($B$39, MEM_B2, 3, FALSE)) ->  | D47: =IF($B$29="No Additional Processor",VLOOKUP($B$39, MEM_B1, 4, FALSE),VLOOKUP($B$39, MEM_B2, 4, FALSE)) ->  | E47: =IF($B$29="No Additional Processor",VLOOKUP($B$39, MEM_B1, 6, FALSE),VLOOKUP($B$39, MEM_B2, 6, FALSE)) ->  | F47: =IF($B$29="No Additional Processor",VLOOKUP($B$39, MEM_B1, 7, FALSE),VLOOKUP($B$39, MEM_B2, 7, FALSE)) -> 
B49: =IF($B$29="No Additional Processor",VLOOKUP($B$39, MEM_B1, 11, FALSE),VLOOKUP($B$39, MEM_B2, 11, FALSE)) ->  | C49: =IF($B$29="No Additional Processor",VLOOKUP($B$39, MEM_B1, 12, FALSE),VLOOKUP($B$39, MEM_B2, 12, FALSE)) ->  | D49: =IF($B$29="No Additional Processor",VLOOKUP($B$39, MEM_B1, 13, FALSE),VLOOKUP($B$39, MEM_B2, 13, FALSE)) ->  | E49: =IF($B$29="No Additional Processor",VLOOKUP($B$39, MEM_B1, 15, FALSE),VLOOKUP($B$39, MEM_B2, 15, FALSE)) ->  | F49: =IF($B$29="No Additional Processor",VLOOKUP($B$39, MEM_B1, 16, FALSE),VLOOKUP($B$39, MEM_B2, 16, FALSE)) -> 
B51: Sistema operativo preinstallato
B52: No Operating System | C52: =VLOOKUP($B$52, OS_B, 2, FALSE) ->  | D52: =VLOOKUP($B$52, OS_B, 3, FALSE) ->  | E52: =VLOOKUP($B$52, OS_B, 5, FALSE) -> [611-BBBF] | F52: =VLOOKUP($B$52, OS_B, 6, FALSE) -> 
B53: =IF($B$29="No Additional Processor",VLOOKUP($B$52, OS_B, 20, FALSE),VLOOKUP($B$52, OS_B2, 20, FALSE)) ->  | C53: =IF($B$29="No Additional Processor",VLOOKUP($B$52, OS_B, 21, FALSE),VLOOKUP($B$52, OS_B2, 21, FALSE)) -> 0 | D53: =IF($B$29="No Additional Processor",VLOOKUP($B$52, OS_A, 22, FALSE),VLOOKUP($B$52, OS_B2, 22, FALSE)) ->  | E53: =IF($B$29="No Additional Processor",VLOOKUP($B$52, OS_B, 24, FALSE),VLOOKUP($B$52, OS_B2, 24, FALSE)) ->  | F53: =IF($B$29="No Additional Processor",VLOOKUP($B$52, OS_B, 25, FALSE),VLOOKUP($B$52, OS_B2, 25, FALSE)) -> 
B55: OS Media Kits
B56: No Media Required | C56: 1 | E56: [605-BBFN]
B58: Client Access Licenses
B59: =VLOOKUP($B$52, OS_B, 8, FALSE) -> None | D59: =VLOOKUP($B$52, OS_A, 10, FALSE) ->  | E59: =VLOOKUP($B$52, OS_A, 12, FALSE) ->  | F59: =VLOOKUP($B$52, OS_A, 13, FALSE)*C59 -> 0
B61: =VLOOKUP($B$52, OS_A, 14, FALSE) -> None | D61: =VLOOKUP($B$52, OS_A, 16, FALSE) ->  | E61: =VLOOKUP($B$52, OS_A, 18, FALSE) ->  | F61: =VLOOKUP($B$52, OS_A, 19, FALSE)*C61 -> 0
B63: Sistema operativo SUSE Linux Enterprise Server
B64: None | C64: =VLOOKUP($B$64,SUSE, 2, FALSE) -> 0 | D64: =VLOOKUP($B$64,SUSE, 3, FALSE) ->  | E64: =VLOOKUP($B$64,SUSE, 5, FALSE) ->  | F64: =VLOOKUP($B$64, SUSE, 6, FALSE)*C64 -> 0
B66: Sistema operativo VMware
B67: None | C67: =VLOOKUP($B$67,VMWARE, 2, FALSE)+C29 -> 0 | D67: =VLOOKUP($B$67,VMWARE, 3, FALSE) ->  | E67: =VLOOKUP($B$67,VMWARE, 5, FALSE) ->  | F67: =VLOOKUP($B$67, VMWARE, 6, FALSE)*C67 -> 0
B69: VMware vCenter Server Standard
B70: None | C70: =VLOOKUP($B$70,VMWARE2, 2, FALSE) -> 0 | D70: =VLOOKUP($B$70,VMWARE2, 3, FALSE) ->  | E70: =VLOOKUP($B$70,VMWARE2, 5, FALSE) ->  | G70: =VLOOKUP($B$70, VMWARE2, 6, FALSE)*C70 -> 0
B72: Essentials Plus Kit
B73: None | C73: =IF(SRV_A<4,VLOOKUP($B$73,VMWARE1, 2, FALSE),0) -> 0 | D73: =VLOOKUP($B$73,VMWARE1, 3, FALSE) ->  | E73: =VLOOKUP($B$73,VMWARE1, 5, FALSE) ->  | G73: =VLOOKUP($B$73, VMWARE1, 6, FALSE)*C73 -> 0
B75: Controller
B76: PERC H730P RAID Controller, 2Gb NV Cache, Minicard | C76: =VLOOKUP($B$76,PERC, 2, FALSE) -> 0 | D76: =VLOOKUP($B$76,PERC, 3, FALSE) ->  | E76: =VLOOKUP($B$76,PERC, 4, FALSE) ->  | F76: =VLOOKUP($B$76,PERC, 7, FALSE) -> 0
B78: Dischi rigidi (numero massimo totale 16)
B79: 600GB 10K RPM SAS 12Gbps 512n 2.5in Hot-plug Hard Drive | C79: 2 | E79: [400-AJPK]
B81: 600GB 10K RPM SAS 12Gbps 512n 2.5in Hot-plug Hard Drive | D81: =VLOOKUP($B$81, HDD_A,3, FALSE) -> CNV-TS1L1-HD600 | E81: =VLOOKUP($B$81, HDD_A,5, FALSE) -> [400-AUNQ] | F81: =VLOOKUP($B$81, HDD_B,6, FALSE)*C81 -> 0
B83: 1.2TB 10K RPM SAS 12Gbps 512n 2.5in Hot-plug Hard Drive | D83: =VLOOKUP($B$83, HDD_A,3, FALSE) -> CNV-TS1L1-HD1200-U | E83: =VLOOKUP($B$83, HDD_A,5, FALSE) -> [400-ATJL] | F83: =VLOOKUP($B$83, HDD_B,6, FALSE)*C83 -> 0
B85: 1.8TB 10K RPM SAS 12Gbps 512e 2.5in Hot-plug Hard Drive | D85: CNV-TS1L1-HD1800 | E85: [400-AJQP] | F85: =VLOOKUP($B$85, HDD_B,6, FALSE)*C85 -> 0
B87: 960GB SSD SAS Mix Use 12Gbps 512n 2.5in Hot-plug Drive, PX05SV,3 DWPD,5256 TBW | D87: CNV-TS1L1-SSD800 | E87: [400-ANNX] | F87: =VLOOKUP($B$87, HDD_B,6, FALSE)*C87 -> 0
B89: 1.92TB SSD SAS Mix Use 12Gbps 512n 2.5in Hot-plug Drive, PX05SV,3 DWPD,10512 TBW | D89: CNV-TS1L1-SSD1920 | E89: [400-ANMN] | F89: =VLOOKUP($B$89, HDD_B,6, FALSE)*C89 -> 0
B91: DISCHI TOTALI | C91: =SUM(C79:C90) -> 2 | D91: =IF(C91<=16," OK"," ERRORE: Totale n° di dischi superiore al consentito") -> OK
B93: Configurazione RAID
B94: C3 - RAID 1 for H330 (2 HDDs) | C94: 1 | E94: =VLOOKUP($B$94, RAID_B1, 2, FALSE) -> [780-BBJK]
B95: Hot Spare for 300GB HDD | C95: No
B96: SCRIVERE QUI' LA CONFIGURAZIONE RAID RICHIESTA. R740 2 | H96: =IF(B96="SCRIVERE QUI' LA CONFIGURAZIONE RAID RICHIESTA. R740 2 ","ATTENZIONE COMPILARE IL CAMPO DELLA SCELTA RAID", "") -> ATTENZIONE COMPILARE IL CAMPO DELLA SCELTA RAID
B97: Configurazione RAID HDD 1TB
C98: 1 | E98: =VLOOKUP($B$98, RAID_B2, 2, FALSE) -> 
B99: Hot Spare for 1TB HDD | C99: No
B101: Impostazioni del BIOS per la gestione dell'alimentazione
B102: Performance BIOS Setting | C102: 1 | E102: [384-BBBL]
B104: Alimentatore
B105: Dual, Hot-plug, Redundant Power Supply (1+1), 750W, Titanium, 200-240VAC | C105: 1 | E105: [450-ADWT]
B107: Cavi di alimentazione
B108: Rack Power Cord 2M (C13/C14 12A) | C108: 2 | E108: [450-AADY]
B110: Fans
B111: =VLOOKUP(B29, CPU_B.1, 9, FALSE) -> 4 Standard Fans for R740/740XD | C111: =VLOOKUP($B$29, CPU_B.1, 10, FALSE) -> 1 | E111: =VLOOKUP($B$29, CPU_B.1, 11, FALSE) -> [384-BBQB]
B113: PCIe Riser
B114: =VLOOKUP(B29, CPU_B.1, 12, FALSE) -> Riser Config 1, 4 x8 slots | C114: =VLOOKUP($B$29, CPU_B.1, 13, FALSE) -> 1 | E114: =VLOOKUP($B$29, CPU_B.1, 14, FALSE) -> [330-BBGZ]
B116: TPM Module
B117: Trusted Platform Module 1.2 | C117: 1 | E117: [461-AAEL]
B119: Embedded Systems Management
B120: iDRAC9,Enterprise | C120: 1 | E120: [385-BBKT]
B122: Adattatore di rete
B123: Broadcom 5720 QP 1Gb Network Daughter Card | C123: 1 | E123: [540-BBBW]
B125: Modulo Doppia SD
B126: None | C126: =VLOOKUP($B$126,upsell_1, 2, FALSE) -> 0 | D126: =VLOOKUP($B$126,upsell_1, 3, FALSE) ->  | E126: =VLOOKUP($B$126,upsell_1, 4, FALSE) ->  | F126: =VLOOKUP($B$126,upsell_1, 7, FALSE) -> 0
B128: Additional Card for PCIe Slot 1 (Full height) (CPU 1)
B129: Broadcom 5720 DP 1Gb Network Interface Card | D129: ="" ->  | E129: 540-BBCX
B131: Additional Card for PCIe Slot 2 (Full height) (CPU 1)
B132: None | C132: =VLOOKUP(B132, PCI_B1.1, 2, FALSE) ->  | D132: =VLOOKUP(B132, PCI_B1.1, 3, FALSE) ->  | E132: =VLOOKUP(B132, PCI_B1.1, 5, FALSE) ->  | F132: =VLOOKUP(B132, PCI_B1.1, 6, FALSE) ->  | G132: =VLOOKUP(B132, PCI_B1.1, 7, FALSE) -> 0
B134: Additional Card for PCIe Slot 3 (Full height) (CPU 1)
B135: None | C135: =VLOOKUP(B135, PCI_B1.1, 2, FALSE) ->  | D135: =VLOOKUP(B135, PCI_B1.1, 3, FALSE) ->  | E135: =VLOOKUP(B135, PCI_B1.1, 5, FALSE) ->  | F135: =VLOOKUP(B135, PCI_B1.1, 6, FALSE) ->  | G135: =VLOOKUP(B135, PCI_B1.1, 7, FALSE) -> 0
B137: Additional Card for PCIe Slot 4 (Full height) (CPU 2)
B138: None | C138: =VLOOKUP(B138, PCI_B1.1, 2, FALSE) ->  | D138: =VLOOKUP(B138, PCI_B1.1, 3, FALSE) ->  | E138: =VLOOKUP(B138, PCI_B1.1, 5, FALSE) ->  | F138: =VLOOKUP(B138, PCI_B1.1, 6, FALSE) ->  | G138: =VLOOKUP(B138, PCI_B1.1, 7, FALSE) -> 0
B140: Additional Card for PCIe Slot 5 (Full height) (CPU 2)
B141: None | C141: =VLOOKUP(B141, PCI_B1.1, 2, FALSE) ->  | D141: =VLOOKUP(B141, PCI_B1.1, 3, FALSE) ->  | E141: =VLOOKUP(B141, PCI_B1.1, 5, FALSE) ->  | F141: =VLOOKUP(B141, PCI_B1.1, 6, FALSE) ->  | G141: =VLOOKUP(B141, PCI_B1.1, 7, FALSE) -> 0
B143: Additional Card for PCIe Slot 6 (Low Profile) (CPU 1)
B144: None | C144: =VLOOKUP(B144,PCI_B5, 2, FALSE) ->  | D144: =VLOOKUP(B144, PCI_B5, 3, FALSE) ->  | E144: =VLOOKUP($B$144,PCI_B5,5,FALSE) ->  | F144: =VLOOKUP($B$144,PCI_B5,6,FALSE) ->  | G144: =VLOOKUP($B$144,PCI_B5,7,FALSE) -> 0
B146: Additional Card for PCIe Slot 7 (Full height) (CPU 2)
B147: None | C147: =VLOOKUP(B147, PCI_B1.1, 2, FALSE) ->  | D147: =VLOOKUP(B147, PCI_B1.1, 3, FALSE) ->  | E147: =VLOOKUP(B147, PCI_B1.1, 5, FALSE) ->  | F147: =VLOOKUP(B147, PCI_B1.1, 6, FALSE) ->  | G147: =VLOOKUP(B147, PCI_B1.1, 7, FALSE) -> 0
B149: Additional Card for PCIe Slot 8 (Full height) (CPU 2)
B150: None | C150: =VLOOKUP(B150, PCI_B1.1, 2, FALSE) ->  | D150: =VLOOKUP(B150, PCI_B1.1, 3, FALSE) ->  | E150: =VLOOKUP(B150, PCI_B1.1, 5, FALSE) ->  | F150: =VLOOKUP(B150, PCI_B1.1, 6, FALSE) ->  | G150: =VLOOKUP(B150, PCI_B1.1, 7, FALSE) -> 0
B152: Pannello frontale
B153: No Bezel Option | C153: =VLOOKUP(B153,upsell_1, 2, FALSE) -> 1 | D153: =VLOOKUP(B153,upsell_1, 3, FALSE) ->  | E153: =VLOOKUP(B153,upsell_1, 5, FALSE) -> [350-BBBW] | F153: =VLOOKUP(B153,upsell_1, 6, FALSE) -> 0 | G153: =VLOOKUP(B153,upsell_1, 7, FALSE) -> 0
B155: Guide per rack
B156: ReadyRails™ Sliding Rails Without Cable Management Arm 2U | C156: =VLOOKUP(B156,upsell_1, 2, FALSE) -> 1 | D156: =VLOOKUP(B156,upsell_1, 3, FALSE) ->  | E156: =VLOOKUP(B156,upsell_1, 5, FALSE) -> [770-BBBQ] | F156: =VLOOKUP(B156,upsell_1, 6, FALSE) -> 0 | G156: =VLOOKUP(B156,upsell_1, 7, FALSE) -> 0
B158: Server Accessories
B159: PowerEdge SFP+, 10GbE SR/SX, Optical Tranceiver, LC Connector, for Intel and Broadcom,CusKit | C159: =(VLOOKUP(B150,PCI_A2,8,FALSE))+((VLOOKUP(B135,PCI_B1.1,8,FALSE))) ->  | E159: [407-BBQE]
B161: System Documentation
B162: Electronic System Documentation and OpenManage DVD Kit | C162: 1 | E162: [631-AAJG]
B164: SHIPPING
B165: PowerEdge R730 Shipping EMEA1 (English/French/German/Spanish/Russian/Hebrew) | C165: 1 | E165: 340-ALXX
B167: Order Information
B168: PowerEdge Order - EMEA | C168: 1 | E168: [800-11671]
B170: Base warranty
B171: 3Yr Basic Warranty - Next Business Day - Minimum Warranty | C171: 1 | E171: [709-12777][709-12778]
B173: Servizi di assitenza
B174: Dell Channel Order - Service Info only | C174: 1 | E174: [710-31085]
B176: Aggiornamenti della garanzia
B177: None | C177: =VLOOKUP($B$177, SO_B1,2, FALSE) ->  | D177: =VLOOKUP($B$177, SO_B1, 3, FALSE) ->  | E177: =VLOOKUP($B$177, SO_B1, 5, FALSE) ->  | F177: =VLOOKUP($B$177, SO_B1, 6, FALSE) -> 
B179: Protezione dei dati - Keep Your Hard Drive
B180: None | C180: =VLOOKUP($B$180, SO_B2, 2, FALSE) ->  | D180: =VLOOKUP($B$180, SO_B2, 3, FALSE) ->  | E180: =VLOOKUP($B$180, SO_B2,5, FALSE) ->  | F180: =VLOOKUP($B$180, SO_B2, 6, FALSE) -> 
B182: Servizi di Installazione
B183: No Installation Service Selected | C183: 1 | E183: [683-11870]
B185: Channel only - Support Extension
B186: Channel 39M Basic Warranty - Next Business Day | C186: 1 | E186: [723-38675]
B188: Warranty Upgrades - Non-Std/Local POS
B189: CSTM CONSIP - 39M Onsite Labor Support for CRU for Servers with Basic Warranty | C189: 1 | E189: [681-24467]

Sheet CNV R740 3
D1: TOTALE MEPA | H1: =G10 -> 0
A5: POWEREDGE R740
F7: Totale Server e Opzioni | G7: =F17*SRV_B1.3 -> 0
F8: Totale Ulteriori Opzioni | G8: =G16*SRV_B1.2-(G73*SRV_B1.1)+G73-(SRV_B1.2*G70)+G70 -> 0
F10: TOTALE CONVENZIONE | G10: =G8+G7 -> 0
A11: Components: Server DELL PowerEdge R740 (1CPU Intel® Xeon® Gold 5120, 64GB RDIMM, 2xHDD 600GB 10K RPM SAS 12Gbps 2.5in)
B15: Category: Server | F15: =2371 -> 2371
B16: Quantity: | F16: =SUM(F20:F197) -> 0 | G16: =SUM(G20:G197) -> 0
F17: =SUM(F15:F16) -> 2371
B19: Base
B20: PowerEdge R740 Server | C20: 1 | E20: [210-AKXJ]
B22: Configurazione dello chassis
B23: Chassis with up to 16 x 2.5" SAS/SATA Hard Drives for 1CPU Configuration | C23: 1 | E23: [321-BCSL]
B25: Processore
B26: Intel® Xeon® Gold 5120 2.2G, 14C/28T, 10.4GT/s, 19M Cache, Turbo, HT (105W) | C26: 1 | E26: [338-BLUX]
B28: Processore aggiuntivo
B29: No Additional Processor | C29: =VLOOKUP($B$29, CPU_B.1, 2, FALSE) -> 0 | D29: =VLOOKUP($B$29, CPU_B.1, 3, FALSE) ->  | E29: =VLOOKUP($B$29, CPU_B.1, 5, FALSE) -> [374-BBBX] | F29: =VLOOKUP(B29, CPU_B.1, 15, FALSE) -> 0
B31: Processor Thermal Configuration
B32: 1 CPU Standard | C32: 1 | E32: [370-ABWF][374-BBHM][750-AAEL]
B33: =VLOOKUP($B$29, CPU_B, 6, FALSE) ->  | C33: =VLOOKUP($B$29, CPU_B, 7, FALSE) ->  | E33: =VLOOKUP($B$29, CPU_B, 8, FALSE) -> 
B35: Tipo di configurazione memoria
B36: Performance Optimized | C36: 1 | E36: [370-AAIP]
B38: Memoria Totale in GB | D38: =IF(('CNV R740 1'!$D$12=0),"",'CNV R740 1'!#REF!) -> 
B39: 64
B41: Tipo e velocità della memoria DIMM
B42: 2666MT/s RDIMMs | C42: 1 | E42: [370-ADNU]
B44: Capacità di memoria
B45: =IF($B$29="No Additional Processor",VLOOKUP($B$39, MEM_B1, 8, FALSE),VLOOKUP($B$39, MEM_B2, 8, FALSE)) -> Dell 32 GB Modulo di memoria - RDIMM 2666MHz | C45: =IF($B$29="No Additional Processor",VLOOKUP($B$39, MEM_B1, 9, FALSE),VLOOKUP($B$39, MEM_B2, 9, FALSE)) -> 2 | E45: =IF($B$29="No Additional Processor",VLOOKUP($B$39, MEM_B1, 10, FALSE),VLOOKUP($B$39, MEM_B2, 10, FALSE)) -> [370-ADNF]
B47: =IF($B$29="No Additional Processor",VLOOKUP($B$39, MEM_B1, 2, FALSE),VLOOKUP($B$39, MEM_B2, 2, FALSE)) ->  | C47: =IF($B$29="No Additional Processor",VLOOKUP($B$39, MEM_B1, 3, FALSE),VLOOKUP($B$39, MEM_B2, 3, FALSE)) ->  | D47: =IF($B$29="No Additional Processor",VLOOKUP($B$39, MEM_B1, 4, FALSE),VLOOKUP($B$39, MEM_B2, 4, FALSE)) ->  | E47: =IF($B$29="No Additional Processor",VLOOKUP($B$39, MEM_B1, 6, FALSE),VLOOKUP($B$39, MEM_B2, 6, FALSE)) ->  | F47: =IF($B$29="No Additional Processor",VLOOKUP($B$39, MEM_B1, 7, FALSE),VLOOKUP($B$39, MEM_B2, 7, FALSE)) -> 
B49: =IF($B$29="No Additional Processor",VLOOKUP($B$39, MEM_B1, 11, FALSE),VLOOKUP($B$39, MEM_B2, 11, FALSE)) ->  | C49: =IF($B$29="No Additional Processor",VLOOKUP($B$39, MEM_B1, 12, FALSE),VLOOKUP($B$39, MEM_B2, 12, FALSE)) ->  | D49: =IF($B$29="No Additional Processor",VLOOKUP($B$39, MEM_B1, 13, FALSE),VLOOKUP($B$39, MEM_B2, 13, FALSE)) ->  | E49: =IF($B$29="No Additional Processor",VLOOKUP($B$39, MEM_B1, 15, FALSE),VLOOKUP($B$39, MEM_B2, 15, FALSE)) ->  | F49: =IF($B$29="No Additional Processor",VLOOKUP($B$39, MEM_B1, 16, FALSE),VLOOKUP($B$39, MEM_B2, 16, FALSE)) -> 
B51: Sistema operativo preinstallato
B52: No Operating System | C52: =VLOOKUP($B$52, OS_B, 2, FALSE) ->  | D52: =VLOOKUP($B$52, OS_B, 3, FALSE) ->  | E52: =VLOOKUP($B$52, OS_B, 5, FALSE) -> [611-BBBF] | F52: =VLOOKUP($B$52, OS_B, 6, FALSE) -> 
B53: =IF($B$29="No Additional Processor",VLOOKUP($B$52, OS_B, 20, FALSE),VLOOKUP($B$52, OS_B2, 20, FALSE)) ->  | C53: =IF($B$29="No Additional Processor",VLOOKUP($B$52, OS_B, 21, FALSE),VLOOKUP($B$52, OS_B2, 21, FALSE)) -> 0 | D53: =IF($B$29="No Additional Processor",VLOOKUP($B$52, OS_A, 22, FALSE),VLOOKUP($B$52, OS_B2, 22, FALSE)) ->  | E53: =IF($B$29="No Additional Processor",VLOOKUP($B$52, OS_B, 24, FALSE),VLOOKUP($B$52, OS_B2, 24, FALSE)) ->  | F53: =IF($B$29="No Additional Processor",VLOOKUP($B$52, OS_B, 25, FALSE),VLOOKUP($B$52, OS_B2, 25, FALSE)) -> 
B55: OS Media Kits
B56: No Media Required | C56: 1 | E56: [605-BBFN]
B58: Client Access Licenses
B59: =VLOOKUP($B$52, OS_B, 8, FALSE) -> None | D59: =VLOOKUP($B$52, OS_A, 10, FALSE) ->  | E59: =VLOOKUP($B$52, OS_A, 12, FALSE) ->  | F59: =VLOOKUP($B$52, OS_A, 13, FALSE)*C59 -> 0
B61: =VLOOKUP($B$52, OS_A, 14, FALSE) -> None | D61: =VLOOKUP($B$52, OS_A, 16, FALSE) ->  | E61: =VLOOKUP($B$52, OS_A, 18, FALSE) ->  | F61: =VLOOKUP($B$52, OS_A, 19, FALSE)*C61 -> 0
B63: Sistema opertivo SUSE Linux Enterprise Server
B64: None | C64: =VLOOKUP($B$64,SUSE, 2, FALSE) -> 0 | D64: =VLOOKUP($B$64,SUSE, 3, FALSE) ->  | E64: =VLOOKUP($B$64,SUSE, 5, FALSE) ->  | F64: =VLOOKUP($B$64, SUSE, 6, FALSE)*C64 -> 0
B66: Sistema opertivo VMware
B67: None | C67: =VLOOKUP($B$67,VMWARE, 2, FALSE)+C29 -> 0 | D67: =VLOOKUP($B$67,VMWARE, 3, FALSE) ->  | E67: =VLOOKUP($B$67,VMWARE, 5, FALSE) ->  | F67: =VLOOKUP($B$67, VMWARE, 6, FALSE)*C67 -> 0
B69: VMware vCenter Server Standard
B70: None | C70: =VLOOKUP($B$70,VMWARE2, 2, FALSE) -> 0 | D70: =VLOOKUP($B$70,VMWARE2, 3, FALSE) ->  | E70: =VLOOKUP($B$70,VMWARE2, 5, FALSE) ->  | G70: =VLOOKUP($B$70, VMWARE2, 6, FALSE)*C70 -> 0
B72: Essentials Plus Kit
B73: None | C73: =IF(SRV_A<4,VLOOKUP($B$73,VMWARE1, 2, FALSE),0) -> 0 | D73: =VLOOKUP($B$73,VMWARE1, 3, FALSE) ->  | E73: =VLOOKUP($B$73,VMWARE1, 5, FALSE) ->  | G73: =VLOOKUP($B$73, VMWARE1, 6, FALSE)*C73 -> 0
B75: Controller
B76: PERC H730P RAID Controller, 2Gb NV Cache, Minicard | C76: =VLOOKUP($B$76,PERC, 2, FALSE) -> 0 | D76: =VLOOKUP($B$76,PERC, 3, FALSE) ->  | E76: =VLOOKUP($B$76,PERC, 4, FALSE) ->  | F76: =VLOOKUP($B$76,PERC, 7, FALSE) -> 0
B78: Dischi rigidi (numero massimo totale 16)
B79: 600GB 10K RPM SAS 12Gbps 512n 2.5in Hot-plug Hard Drive | C79: 2 | E79: [400-AJPK]
B81: 600GB 10K RPM SAS 12Gbps 512n 2.5in Hot-plug Hard Drive | D81: =VLOOKUP($B$81, HDD_A,3, FALSE) -> CNV-TS1L1-HD600 | E81: =VLOOKUP($B$81, HDD_A,5, FALSE) -> [400-AUNQ] | F81: =VLOOKUP($B$81, HDD_B,6, FALSE)*C81 -> 0
B83: 1.2TB 10K RPM SAS 12Gbps 512n 2.5in Hot-plug Hard Drive | D83: =VLOOKUP($B$83, HDD_A,3, FALSE) -> CNV-TS1L1-HD1200-U | E83: =VLOOKUP($B$83, HDD_A,5, FALSE) -> [400-ATJL] | F83: =VLOOKUP($B$83, HDD_B,6, FALSE)*C83 -> 0
B85: 1.8TB 10K RPM SAS 12Gbps 512e 2.5in Hot-plug Hard Drive | D85: CNV-TS1L1-HD1800 | E85: [400-AJQP] | F85: =VLOOKUP($B$85, HDD_B,6, FALSE)*C85 -> 0
B87: 960GB SSD SAS Mix Use 12Gbps 512n 2.5in Hot-plug Drive, PX05SV,3 DWPD,5256 TBW | D87: CNV-TS1L1-SSD800 | E87: [400-ANNX] | F87: =VLOOKUP($B$87, HDD_B,6, FALSE)*C87 -> 0
B89: 1.92TB SSD SAS Mix Use 12Gbps 512n 2.5in Hot-plug Drive, PX05SV,3 DWPD,10512 TBW | D89: CNV-TS1L1-SSD1920 | E89: [400-ANMN] | F89: =VLOOKUP($B$89, HDD_B,6, FALSE)*C89 -> 0
B91: DISCHI TOTALI | C91: =SUM(C79:C90) -> 2 | D91: =IF(C91<=16," OK"," ERRORE: Totale n° di dischi superiore al consentito") -> OK
B93: Configurazione RAID
B94: C3 - RAID 1 for H330 (2 HDDs) | C94: 1 | E94: =VLOOKUP($B$94, RAID_B1, 2, FALSE) -> [780-BBJK]
B95: Hot Spare for 300GB HDD | C95: No
B96: SCRIVERE QUI' LA CONFIGURAZIONE RAID RICHIESTA. R740 3 | H96: =IF(B96="SCRIVERE QUI' LA CONFIGURAZIONE RAID RICHIESTA. R740 3 ","ATTENZIONE COMPILARE IL CAMPO DELLA SCELTA RAID", "") -> ATTENZIONE COMPILARE IL CAMPO DELLA SCELTA RAID
B97: Configurazione RAID HDD 1TB
C98: 1 | E98: =VLOOKUP($B$98, RAID_B2, 2, FALSE) -> 
B99: Hot Spare for 1TB HDD | C99: No
B101: Impostazioni del BIOS per la gestione dell'alimentazione
B102: Performance BIOS Setting | C102: 1 | E102: [384-BBBL]
B104: Alimentatore
B105: Dual, Hot-plug, Redundant Power Supply (1+1), 750W, Titanium, 200-240VAC | C105: 1 | E105: [450-ADWT]
B107: Cavi di alimentazione
B108: Rack Power Cord 2M (C13/C14 12A) | C108: 2 | E108: [450-AADY]
B110: Fans
B111: =VLOOKUP(B29, CPU_B.1, 9, FALSE) -> 4 Standard Fans for R740/740XD | C111: =VLOOKUP($B$29, CPU_B.1, 10, FALSE) -> 1 | E111: =VLOOKUP($B$29, CPU_B.1, 11, FALSE) -> [384-BBQB]
B113: PCIe Riser
B114: =VLOOKUP(B29, CPU_B.1, 12, FALSE) -> Riser Config 1, 4 x8 slots | C114: =VLOOKUP($B$29, CPU_B.1, 13, FALSE) -> 1 | E114: =VLOOKUP($B$29, CPU_B.1, 14, FALSE) -> [330-BBGZ]
B116: TPM Module
B117: Trusted Platform Module 1.2 | C117: 1 | E117: [461-AAEL]
B119: Embedded Systems Management
B120: iDRAC9,Enterprise | C120: 1 | E120: [385-BBKT]
B122: Adattatore di rete
B123: Broadcom 5720 QP 1Gb Network Daughter Card | C123: 1 | E123: [540-BBBW]
B125: Modulo Doppia SD
B126: None | C126: =VLOOKUP($B$126,upsell_1, 2, FALSE) -> 0 | D126: =VLOOKUP($B$126,upsell_1, 3, FALSE) ->  | E126: =VLOOKUP($B$126,upsell_1, 4, FALSE) ->  | F126: =VLOOKUP($B$126,upsell_1, 7, FALSE) -> 0
B128: Additional Card for PCIe Slot 1 (Full height) (CPU 1)
B129: Broadcom 5720 DP 1Gb Network Interface Card | D129: ="" ->  | E129: 540-BBCX
B131: Additional Card for PCIe Slot 2 (Full height) (CPU 1)
B132: None | C132: =VLOOKUP(B132, PCI_B1.1, 2, FALSE) ->  | D132: =VLOOKUP(B132, PCI_B1.1, 3, FALSE) ->  | E132: =VLOOKUP(B132, PCI_B1.1, 5, FALSE) ->  | F132: =VLOOKUP(B132, PCI_B1.1, 6, FALSE) ->  | G132: =VLOOKUP(B132, PCI_B1.1, 7, FALSE) -> 0
B134: Additional Card for PCIe Slot 3 (Full height) (CPU 1)
B135: None | C135: =VLOOKUP(B135, PCI_B1.1, 2, FALSE) ->  | D135: =VLOOKUP(B135, PCI_B1.1, 3, FALSE) ->  | E135: =VLOOKUP(B135, PCI_B1.1, 5, FALSE) ->  | F135: =VLOOKUP(B135, PCI_B1.1, 6, FALSE) ->  | G135: =VLOOKUP(B135, PCI_B1.1, 7, FALSE) -> 0
B137: Additional Card for PCIe Slot 4 (Full height) (CPU 2)
B138: None | C138: =VLOOKUP(B138, PCI_B1.1, 2, FALSE) ->  | D138: =VLOOKUP(B138, PCI_B1.1, 3, FALSE) ->  | E138: =VLOOKUP(B138, PCI_B1.1, 5, FALSE) ->  | F138: =VLOOKUP(B138, PCI_B1.1, 6, FALSE) ->  | G138: =VLOOKUP(B138, PCI_B1.1, 7, FALSE) -> 0
B140: Additional Card for PCIe Slot 5 (Full height) (CPU 2)
B141: None | C141: =VLOOKUP(B141, PCI_B1.1, 2, FALSE) ->  | D141: =VLOOKUP(B141, PCI_B1.1, 3, FALSE) ->  | E141: =VLOOKUP(B141, PCI_B1.1, 5, FALSE) ->  | F141: =VLOOKUP(B141, PCI_B1.1, 6, FALSE) ->  | G141: =VLOOKUP(B141, PCI_B1.1, 7, FALSE) -> 0
B143: Additional Card for PCIe Slot 6 (Low Profile) (CPU 1)
B144: None | C144: =VLOOKUP(B144,PCI_B5, 2, FALSE) ->  | D144: =VLOOKUP(B144, PCI_B5, 3, FALSE) ->  | E144: =VLOOKUP($B$144,PCI_B5,5,FALSE) ->  | F144: =VLOOKUP($B$144,PCI_B5,6,FALSE) ->  | G144: =VLOOKUP($B$144,PCI_B5,7,FALSE) -> 0
B146: Additional Card for PCIe Slot 7 (Full height) (CPU 2)
B147: None | C147: =VLOOKUP(B147, PCI_B1.1, 2, FALSE) ->  | D147: =VLOOKUP(B147, PCI_B1.1, 3, FALSE) ->  | E147: =VLOOKUP(B147, PCI_B1.1, 5, FALSE) ->  | F147: =VLOOKUP(B147, PCI_B1.1, 6, FALSE) ->  | G147: =VLOOKUP(B147, PCI_B1.1, 7, FALSE) -> 0
B149: Additional Card for PCIe Slot 8 (Full height) (CPU 2)
B150: None | C150: =VLOOKUP(B150, PCI_B1.1, 2, FALSE) ->  | D150: =VLOOKUP(B150, PCI_B1.1, 3, FALSE) ->  | E150: =VLOOKUP(B150, PCI_B1.1, 5, FALSE) ->  | F150: =VLOOKUP(B150, PCI_B1.1, 6, FALSE) ->  | G150: =VLOOKUP(B150, PCI_B1.1, 7, FALSE) -> 0
B152: Pannello frontale
B153: No Bezel Option | C153: =VLOOKUP(B153,upsell_1, 2, FALSE) -> 1 | D153: =VLOOKUP(B153,upsell_1, 3, FALSE) ->  | E153: =VLOOKUP(B153,upsell_1, 5, FALSE) -> [350-BBBW] | F153: =VLOOKUP(B153,upsell_1, 6, FALSE) -> 0 | G153: =VLOOKUP(B153,upsell_1, 7, FALSE) -> 0
B155: Guide per rack
B156: ReadyRails™ Sliding Rails Without Cable Management Arm 2U | C156: =VLOOKUP(B156,upsell_1, 2, FALSE) -> 1 | D156: =VLOOKUP(B156,upsell_1, 3, FALSE) ->  | E156: =VLOOKUP(B156,upsell_1, 5, FALSE) -> [770-BBBQ] | F156: =VLOOKUP(B156,upsell_1, 6, FALSE) -> 0 | G156: =VLOOKUP(B156,upsell_1, 7, FALSE) -> 0
B158: Server Accessories
B159: PowerEdge SFP+, 10GbE SR/SX, Optical Tranceiver, LC Connector, for Intel and Broadcom,CusKit | C159: =(VLOOKUP(B150,PCI_A2,8,FALSE))+((VLOOKUP(B132,PCI_B1.1,8,FALSE))) ->  | E159: [407-BBQE]
B161: System Documentation
B162: Electronic System Documentation and OpenManage DVD Kit | C162: 1 | E162: [631-AAJG]
B164: SHIPPING
B165: PowerEdge R730 Shipping EMEA1 (English/French/German/Spanish/Russian/Hebrew) | C165: 1 | E165: 340-ALXX
B167: Order Information
B168: PowerEdge Order - EMEA | C168: 1 | E168: [800-11671]
B170: Base warranty
B171: 3Yr Basic Warranty - Next Business Day - Minimum Warranty | C171: 1 | E171: [709-12777][709-12778]
B173: Servizi di assitenza
B174: Dell Channel Order - Service Info only | C174: 1 | E174: [710-31085]
B176: Aggiornamenti della garanzia
B177: None | C177: =VLOOKUP($B$177, SO_B1,2, FALSE) ->  | D177: =VLOOKUP($B$177, SO_B1, 3, FALSE) ->  | E177: =VLOOKUP($B$177, SO_B1, 5, FALSE) ->  | F177: =VLOOKUP($B$177, SO_B1, 6, FALSE) -> 
B179: Protezione dei dati - Keep Your Hard Drive
B180: None | C180: =VLOOKUP($B$180, SO_B2, 2, FALSE) ->  | D180: =VLOOKUP($B$180, SO_B2, 3, FALSE) ->  | E180: =VLOOKUP($B$180, SO_B2,5, FALSE) ->  | F180: =VLOOKUP($B$180, SO_B2, 6, FALSE) -> 
B182: Servizi di Installazione
B183: No Installation Service Selected | C183: 1 | E183: [683-11870]
B185: Channel only - Support Extension
B186: Channel 39M Basic Warranty - Next Business Day | C186: 1 | E186: [723-38675]
B188: Warranty Upgrades - Non-Std/Local POS
B189: CSTM CONSIP - 39M Onsite Labor Support for CRU for Servers with Basic Warranty | C189: 1 | E189: [681-24467]

Sheet CNV R740xd 2
D1: TOTALE MEPA | H1: =G10 -> 0
A5: POWEREDGE R740xd
F7: Totale Server e Opzioni | G7: =F17*SRV_BB -> 0
F8: Totale Ulteriori Opzioni
F10: TOTALE CONVENZIONE | G10: =G8+G7 -> 0
A11: Components: Server DELL PowerEdge R740xd (1CPU Intel® Xeon® Gold 5120, 64GB RDIMM, 2xHDD 600GB 10K RPM SAS 12Gbps 2.5in)
B15: Category: Server | F15: =2371 -> 2371
B16: Quantity: | F16: =SUM(F20:F185) -> 0 | G16: =SUM(G20:G194) -> 0
F17: =SUM(F15:F16) -> 2371
B19: Base
B20: PowerEdge R740XD Server | C20: 1 | E20: [210-AKZR]
B22: Configurazione dello chassis
B23: Chassis with Up to 24 x 2.5” Hard Drives for 1CPU Configuration | C23: 1 | E23: [321-BCPX]
B25: Processore
B26: Intel® Xeon® Gold 5120 2.2G, 14C/28T, 10.4GT/s, 19M Cache, Turbo, HT (105W) DDR4-2400 | C26: 1 | E26: [338-BLUX]
B28: Processore aggiuntivo
B29: No Additional Processor | C29: =VLOOKUP($B$29, CPU_B, 2, FALSE) -> 0 | D29: =VLOOKUP($B$29, CPU_B, 3, FALSE) ->  | E29: =VLOOKUP($B$29, CPU_B, 5, FALSE) -> [374-BBBX] | F29: =VLOOKUP(B29, CPU_B, 15, FALSE) -> 0
B31: Processor Thermal Configuration
B32: 1 CPU Standard | C32: 1 | E32: [370-ABWF][374-BBHM][750-AAEL]
B33: =VLOOKUP($B$29, CPU_B, 6, FALSE) ->  | C33: =VLOOKUP($B$29, CPU_B, 7, FALSE) ->  | E33: =VLOOKUP($B$29, CPU_B, 8, FALSE) -> 
B35: Tipo di configurazione memoria
B36: Performance Optimized | C36: 1 | E36: [370-AAIP]
B38: Memoria Totale in GB | D38: =IF(('CNV R740 1'!$D$12=0),"",'CNV R740 1'!#REF!) -> 
B39: 64
B41: Tipo e velocità della memoria DIMM
B42: 2666MT/s RDIMMs | C42: 1 | E42: [370-ADNU]
B44: Capacità di memoria
B45: =IF($B$29="No Additional Processor",VLOOKUP($B$39, MEM_B1, 8, FALSE),VLOOKUP($B$39, MEM_B2, 8, FALSE)) -> Dell 32 GB Modulo di memoria - RDIMM 2666MHz | C45: =IF($B$29="No Additional Processor",VLOOKUP($B$39, MEM_B1, 9, FALSE),VLOOKUP($B$39, MEM_B2, 9, FALSE)) -> 2 | E45: =IF($B$29="No Additional Processor",VLOOKUP($B$39, MEM_B1, 10, FALSE),VLOOKUP($B$39, MEM_B2, 10, FALSE)) -> [370-ADNF]
B47: =IF($B$29="No Additional Processor",VLOOKUP($B$39, MEM_B1, 2, FALSE),VLOOKUP($B$39, MEM_B2, 2, FALSE)) ->  | C47: =IF($B$29="No Additional Processor",VLOOKUP($B$39, MEM_B1, 3, FALSE),VLOOKUP($B$39, MEM_B2, 3, FALSE)) ->  | D47: =IF($B$29="No Additional Processor",VLOOKUP($B$39, MEM_B1, 4, FALSE),VLOOKUP($B$39, MEM_B2, 4, FALSE)) ->  | E47: =IF($B$29="No Additional Processor",VLOOKUP($B$39, MEM_B1, 6, FALSE),VLOOKUP($B$39, MEM_B2, 6, FALSE)) ->  | F47: =IF($B$29="No Additional Processor",VLOOKUP($B$39, MEM_B1, 7, FALSE),VLOOKUP($B$39, MEM_B2, 7, FALSE)) -> 
B49: =IF($B$29="No Additional Processor",VLOOKUP($B$39, MEM_B1, 11, FALSE),VLOOKUP($B$39, MEM_B2, 11, FALSE)) ->  | C49: =IF($B$29="No Additional Processor",VLOOKUP($B$39, MEM_B1, 12, FALSE),VLOOKUP($B$39, MEM_B2, 12, FALSE)) ->  | D49: =IF($B$29="No Additional Processor",VLOOKUP($B$39, MEM_B1, 13, FALSE),VLOOKUP($B$39, MEM_B2, 13, FALSE)) ->  | E49: =IF($B$29="No Additional Processor",VLOOKUP($B$39, MEM_B1, 15, FALSE),VLOOKUP($B$39, MEM_B2, 15, FALSE)) ->  | F49: =IF($B$29="No Additional Processor",VLOOKUP($B$39, MEM_B1, 16, FALSE),VLOOKUP($B$39, MEM_B2, 16, FALSE)) -> 
B51: Sistema operativo preinstallato
B52: No Operating System | C52: =VLOOKUP($B$52, OS_B, 2, FALSE) ->  | D52: =VLOOKUP($B$52, OS_B, 3, FALSE) ->  | E52: =VLOOKUP($B$52, OS_B, 5, FALSE) -> [611-BBBF] | F52: =VLOOKUP($B$52, OS_B, 6, FALSE) -> 
B53: =IF($B$29="No Additional Processor",VLOOKUP($B$52, OS_B, 20, FALSE),VLOOKUP($B$52, OS_B2, 20, FALSE)) ->  | C53: =IF($B$29="No Additional Processor",VLOOKUP($B$52, OS_B, 21, FALSE),VLOOKUP($B$52, OS_B2, 21, FALSE)) -> 0 | D53: =IF($B$29="No Additional Processor",VLOOKUP($B$52, OS_A, 22, FALSE),VLOOKUP($B$52, OS_B2, 22, FALSE)) ->  | E53: =IF($B$29="No Additional Processor",VLOOKUP($B$52, OS_B, 24, FALSE),VLOOKUP($B$52, OS_B2, 24, FALSE)) ->  | F53: =IF($B$29="No Additional Processor",VLOOKUP($B$52, OS_B, 25, FALSE),VLOOKUP($B$52, OS_B2, 25, FALSE)) -> 
B55: OS Media Kits
B56: No Media Required | C56: 1 | E56: [605-BBFN]
B59: Client Access Licenses
B60: =VLOOKUP($B$52, OS_B, 8, FALSE) -> None | D60: =VLOOKUP($B$52, OS_A, 10, FALSE) ->  | E60: =VLOOKUP($B$52, OS_A, 12, FALSE) ->  | F60: =VLOOKUP($B$52, OS_A, 13, FALSE)*C60 -> 0
B62: =VLOOKUP($B$52, OS_A, 14, FALSE) -> None | D62: =VLOOKUP($B$52, OS_A, 16, FALSE) ->  | E62: =VLOOKUP($B$52, OS_A, 18, FALSE) ->  | F62: =VLOOKUP($B$52, OS_A, 19, FALSE)*C62 -> 0
B64: Sistema operativo SUSE Linux Enterprise Server
B65: None | C65: =VLOOKUP($B$65,SUSE, 2, FALSE) -> 0 | D65: =VLOOKUP($B$65,SUSE, 3, FALSE) ->  | E65: =VLOOKUP($B$65,SUSE, 5, FALSE) ->  | F65: =VLOOKUP($B$65, SUSE, 6, FALSE)*C65 -> 0
B67: Sistema operativo VMware
B68: None | C68: =VLOOKUP($B$68,VMWARE, 2, FALSE)+C29 -> 0 | D68: =VLOOKUP($B$68,VMWARE, 3, FALSE) ->  | E68: =VLOOKUP($B$68,VMWARE, 5, FALSE) ->  | F68: =VLOOKUP($B$68, VMWARE, 6, FALSE)*C68 -> 0
B70: VMware vCenter Server Standard
B71: None | C71: =VLOOKUP($B$71,VMWARE2, 2, FALSE) -> 0 | D71: =VLOOKUP($B$71,VMWARE2, 3, FALSE) ->  | E71: =VLOOKUP($B$71,VMWARE2, 5, FALSE) ->  | G71: =VLOOKUP($B$71, VMWARE2, 6, FALSE)*C71 -> 0
B73: Essentials Plus Kit
B74: None | C74: =IF(SRV_A<4,VLOOKUP($B$74,VMWARE1, 2, FALSE),0) -> 0 | D74: =VLOOKUP($B$74,VMWARE1, 3, FALSE) ->  | E74: =VLOOKUP($B$74,VMWARE1, 5, FALSE) ->  | G74: =VLOOKUP($B$74, VMWARE1, 6, FALSE)*C74 -> 0
B76: Controller RAID
B77: PERC H730P RAID Controller, 2Gb NV Cache, Minicard | C77: =VLOOKUP($B$77,PERC, 2, FALSE) -> 0 | D77: =VLOOKUP($B$77,PERC, 3, FALSE) ->  | E77: =VLOOKUP($B$77,PERC, 4, FALSE) ->  | F77: =VLOOKUP($B$77,PERC, 7, FALSE) -> 0
B79: Dischi rigidi (numero massimo totale 24)
B80: 600GB 10K RPM SAS 12Gbps 512n 2.5in Hot-plug Hard Drive | C80: 2 | E80: [400-AJPK]
B82: 600GB 10K RPM SAS 12Gbps 512n 2.5in Hot-plug Hard Drive | D82: =VLOOKUP($B$82, HDD_A,3, FALSE) -> CNV-TS1L1-HD600 | E82: =VLOOKUP($B$82, HDD_A,5, FALSE) -> [400-AUNQ] | F82: =VLOOKUP($B$82, HDD_B,6, FALSE)*C82 -> 0
B84: 1.2TB 10K RPM SAS 12Gbps 512n 2.5in Hot-plug Hard Drive | D84: =VLOOKUP($B$84, HDD_A,3, FALSE) -> CNV-TS1L1-HD1200-U | E84: =VLOOKUP($B$84, HDD_A,5, FALSE) -> [400-ATJL] | F84: =VLOOKUP($B$84, HDD_B,6, FALSE)*C84 -> 0
B86: 1.8TB 10K RPM SAS 12Gbps 512e 2.5in Hot-plug Hard Drive | D86: CNV-TS1L1-HD1800 | E86: [400-AJQP] | F86: =VLOOKUP($B$86, HDD_B,6, FALSE)*C86 -> 0
B88: 960GB SSD SAS Mix Use 12Gbps 512n 2.5in Hot-plug Drive, PX05SV,3 DWPD,5256 TBW | D88: CNV-TS1L1-SSD800 | E88: [400-ANNX] | F88: =VLOOKUP($B$88, HDD_B,6, FALSE)*C88 -> 0
B90: 1.92TB SSD SAS Mix Use 12Gbps 512n 2.5in Hot-plug Drive, PX05SV,3 DWPD,10512 TBW | D90: CNV-TS1L1-SSD1920 | E90: [400-ANMN] | F90: =VLOOKUP($B$90, HDD_B,6, FALSE)*C90 -> 0
B92: DISCHI TOTALI | C92: =SUM(C80:C91) -> 2 | D92: =IF(C92<=24," OK"," ERRORE: Totale n° di dischi superiore al consentito") -> OK
B94: Configurazione RAID
B95: C3 - RAID 1 for H330 (2 HDDs) | C95: 1 | E95: =VLOOKUP($B$95, RAID_B1, 2, FALSE) -> [780-BBJK]
B96: Hot Spare for 300GB HDD | C96: No
B97: SCRIVERE QUI' LA CONFIGURAZIONE RAID RICHIESTA. R740XD 2 | H97: =IF(B97="SCRIVERE QUI' LA CONFIGURAZIONE RAID RICHIESTA. R740XD 2 ","ATTENZIONE COMPILARE IL CAMPO DELLA SCELTA RAID", "") -> ATTENZIONE COMPILARE IL CAMPO DELLA SCELTA RAID
B98: Configurazione RAID HDD 1TB
C99: 1 | E99: =VLOOKUP($B$99, RAID_B2, 2, FALSE) -> 
B100: Hot Spare for 1TB HDD | C100: No
B102: Impostazioni del BIOS per la gestione dell'alimentazione
B103: Performance BIOS Setting | C103: 1 | E103: [384-BBBL]
B105: Alimentatore
B106: Dual, Hot-plug, Redundant Power Supply (1+1), 750W, Titanium, 200-240VAC | C106: 1 | E106: [450-ADWT]
B108: Cavi di alimentazione
B109: Rack Power Cord 2M (C13/C14 12A) | C109: 2 | E109: [450-AADY]
B111: Fans
B112: =VLOOKUP(B29, CPU_B, 9, FALSE) -> 4 Standard Fans for R740/740XD | C112: =VLOOKUP($B$29, CPU_B.1, 10, FALSE) -> 1 | E112: =VLOOKUP($B$29, CPU_B.1, 11, FALSE) -> [384-BBQB]
B114: PCIe Riser
B115: =VLOOKUP(B29, CPU_B.1, 12, FALSE) -> Riser Config 1, 4 x8 slots | C115: =VLOOKUP($B$29, CPU_B.1, 13, FALSE) -> 1 | E115: =VLOOKUP($B$29, CPU_B.1, 14, FALSE) -> [330-BBGZ]
B117: TPM Module
B118: Trusted Platform Module 1.2 | C118: 1 | E118: [461-AAEL]
B120: Embedded Systems Management
B121: iDRAC9,Enterprise | C121: 1 | E121: [385-BBKT]
B123: Adattatore di rete
B124: Broadcom 5720 QP 1Gb Network Daughter Card | C124: 1 | E124: [540-BBBW]
B126: Modulo Doppia SD
B127: None | C127: =VLOOKUP($B$127,upsell_1, 2, FALSE) -> 0 | D127: =VLOOKUP($B$127,upsell_1, 3, FALSE) ->  | E127: =VLOOKUP($B$127,upsell_1, 4, FALSE) ->  | F127: =VLOOKUP($B$127,upsell_1, 7, FALSE) -> 0
B129: Additional Card for PCIe Slot 1 (Full height) (CPU 1)
B130: Broadcom 5719 QP 1Gb Network Interface Card | D130: ="" ->  | E130: 540-BBCW
B132: Additional Card for PCIe Slot 2 (Full height) (CPU 1)
B133: None | C133: =VLOOKUP(B133, PCI_B1.1, 2, FALSE) ->  | D133: =VLOOKUP(B133, PCI_B1.1, 3, FALSE) ->  | E133: =VLOOKUP(B133, PCI_B1.1, 5, FALSE) ->  | F133: =VLOOKUP(B133, PCI_B1.1, 6, FALSE) ->  | G133: =VLOOKUP(B133, PCI_B1.1, 7, FALSE) -> 0
B135: Additional Card for PCIe Slot 3 (Full height) (CPU 1)
B136: None | C136: =VLOOKUP(B136, PCI_B1.1, 2, FALSE) ->  | D136: =VLOOKUP(B136, PCI_B1.1, 3, FALSE) ->  | E136: =VLOOKUP(B136, PCI_B1.1, 5, FALSE) ->  | F136: =VLOOKUP(B136, PCI_B1.1, 6, FALSE) ->  | G136: =VLOOKUP(B136, PCI_B1.1, 7, FALSE) -> 0
B138: Additional Card for PCIe Slot 4 (Full height) (CPU 2)
B139: None | C139: =VLOOKUP(B139, PCI_B1.1, 2, FALSE) ->  | D139: =VLOOKUP(B139, PCI_B1.1, 3, FALSE) ->  | E139: =VLOOKUP(B139, PCI_B1.1, 5, FALSE) ->  | F139: =VLOOKUP(B139, PCI_B1.1, 6, FALSE) ->  | G139: =VLOOKUP(B139, PCI_B1.1, 7, FALSE) -> 0
B141: Additional Card for PCIe Slot 5 (Full height) (CPU 2)
B142: None | C142: =VLOOKUP(B142, PCI_B1.1, 2, FALSE) ->  | D142: =VLOOKUP(B142, PCI_B1.1, 3, FALSE) ->  | E142: =VLOOKUP(B142, PCI_B1.1, 5, FALSE) ->  | F142: =VLOOKUP(B142, PCI_B1.1, 6, FALSE) ->  | G142: =VLOOKUP(B142, PCI_B1.1, 7, FALSE) -> 0
B144: Additional Card for PCIe Slot 6 (Low Profile) (CPU 1)
B145: None | C145: =VLOOKUP(B145,PCI_B5, 2, FALSE) ->  | D145: =VLOOKUP(B145, PCI_B5, 3, FALSE) ->  | E145: =VLOOKUP($B$145,PCI_B5,5,FALSE) ->  | F145: =VLOOKUP($B$145,PCI_B5,6,FALSE) ->  | G145: =VLOOKUP($B$145,PCI_B5,7,FALSE) -> 0
B147: Additional Card for PCIe Slot 7 (Full height) (CPU 2)
B148: None | C148: =VLOOKUP(B148, PCI_B1.1, 2, FALSE) ->  | D148: =VLOOKUP(B148, PCI_B1.1, 3, FALSE) ->  | E148: =VLOOKUP(B148, PCI_B1.1, 5, FALSE) ->  | F148: =VLOOKUP(B148, PCI_B1.1, 6, FALSE) ->  | G148: =VLOOKUP(B148, PCI_B1.1, 7, FALSE) -> 0
B150: Additional Card for PCIe Slot 8 (Full height) (CPU 2)
B151: None | C151: =VLOOKUP(B151, PCI_B1.1, 2, FALSE) ->  | D151: =VLOOKUP(B151, PCI_B1.1, 3, FALSE) ->  | E151: =VLOOKUP(B151, PCI_B1.1, 5, FALSE) ->  | F151: =VLOOKUP(B151, PCI_B1.1, 6, FALSE) ->  | G151: =VLOOKUP(B151, PCI_B1.1, 7, FALSE) -> 0
B153: Pannello frontale
B154: No Bezel Option | C154: =VLOOKUP(B154,upsell_1, 2, FALSE) -> 1 | D154: =VLOOKUP(B154,upsell_1, 3, FALSE) ->  | E154: =VLOOKUP(B154,upsell_1, 5, FALSE) -> [350-BBBW] | F154: =VLOOKUP(B154,upsell_1, 6, FALSE) -> 0 | G154: =VLOOKUP(B154,upsell_1, 7, FALSE) -> 0
B156: Guide per rack
B157: ReadyRails™ Sliding Rails Without Cable Management Arm 2U | C157: =VLOOKUP(B157,upsell_1, 2, FALSE) -> 1 | D157: =VLOOKUP(B157,upsell_1, 3, FALSE) ->  | E157: =VLOOKUP(B157,upsell_1, 5, FALSE) -> [770-BBBQ] | F157: =VLOOKUP(B157,upsell_1, 6, FALSE) -> 0 | G157: =VLOOKUP(B157,upsell_1, 7, FALSE) -> 0
B159: Server Accessories
B160: PowerEdge SFP+, 10GbE SR/SX, Optical Tranceiver, LC Connector, for Intel and Broadcom,CusKit | C160: =(VLOOKUP(B151,PCI_A2,8,FALSE))+((VLOOKUP(B130,PCI_A1,8,FALSE))) ->  | E160: [407-BBQE]
B162: System Documentation
B163: Electronic System Documentation and OpenManage DVD Kit | C163: 1 | E163: [631-AAJG]
B165: SHIPPING
B166: PowerEdge R730xd Shipping EMEA1 (English/French/German/Spanish/Russian/Hebrew) | C166: 1 | E166: [340-AMGS]
B168: Order Information
B169: PowerEdge Order - EMEA | C169: 1 | E169: [800-11671]
B171: Base warranty
B172: 3Yr Basic Warranty - Next Business Day - Minimum Warranty | C172: 1 | E172: [709-12780][709-12781]
B174: Servizi di assitenza
B175: Dell Channel Order - Service Info only | C175: 1 | E175: [710-31085]
B177: Aggiornamenti della garanzia
B178: None | C178: =VLOOKUP($B$178, SO_B2,2, FALSE) ->  | D178: =VLOOKUP($B$178, SO_B2, 3, FALSE) ->  | E178: =VLOOKUP($B$178, SO_B2, 5, FALSE) ->  | F178: =VLOOKUP($B$178, SO_B2, 6, FALSE) -> 
B180: Channel only - Support Extension
B181: Channel 39M Basic Warranty - Next Business Day | C181: 1 | E181: [723-28780]
B183: Warranty Upgrades - Non-Std/Local POS
B184: CSTM CONSIP - 39M Onsite Labor Support for CRU for Servers with Basic Warranty | C184: 1 | E184: [681-24467]

Sheet CNV R740xd 3
D1: TOTALE MEPA | H1: =G10 -> 0
A5: POWEREDGE R740xd
F7: Totale Server e Opzioni | G7: =F17*SRV_BBB -> 0
F8: Totale Ulteriori Opzioni
F10: TOTALE CONVENZIONE | G10: =G8+G7 -> 0
A11: Components: Server DELL PowerEdge R740xd (1CPU Intel® Xeon® Gold 5120, 64GB RDIMM, 2xHDD 600GB 10K RPM SAS 12Gbps 2.5in)
B15: Category: Server | F15: =2371 -> 2371
B16: Quantity: | F16: =SUM(F20:F182) -> 0 | G16: =SUM(G20:G191) -> 0
F17: =SUM(F15:F16) -> 2371
B19: Base
B20: PowerEdge R740XD Server | C20: 1 | E20: [210-AKZR]
B22: Configurazione dello chassis
B23: Chassis with Up to 24 x 2.5” Hard Drives for 1CPU Configuration | C23: 1 | E23: [321-BCPX]
B25: Processore
B26: Intel® Xeon® Gold 5120 2.2G, 14C/28T, 10.4GT/s, 19M Cache, Turbo, HT (105W) DDR4-2400 | C26: 1 | E26: [338-BLUX]
B28: Processore aggiuntivo
B29: No Additional Processor | C29: =VLOOKUP($B$29, CPU_B, 2, FALSE) -> 0 | D29: =VLOOKUP($B$29, CPU_B, 3, FALSE) ->  | E29: =VLOOKUP($B$29, CPU_B, 5, FALSE) -> [374-BBBX] | F29: =VLOOKUP(B29, CPU_B, 15, FALSE) -> 0
B31: Processor Thermal Configuration
B32: 1 CPU Standard | C32: 1 | E32: [370-ABWF][374-BBHM][750-AAEL]
B33: =VLOOKUP($B$29, CPU_B, 6, FALSE) ->  | C33: =VLOOKUP($B$29, CPU_B, 7, FALSE) ->  | E33: =VLOOKUP($B$29, CPU_B, 8, FALSE) -> 
B35: Tipo di configurazione memoria
B36: Performance Optimized | C36: 1 | E36: [370-AAIP]
B38: Memoria Totale in GB | D38: =IF(('CNV R740 1'!$D$12=0),"",'CNV R740 1'!#REF!) -> 
B39: 64
B41: Tipo e velocità della memoria DIMM
B42: 2666MT/s RDIMMs | C42: 1 | E42: [370-ADNU]
B44: Capacità di memoria
B45: =IF($B$29="No Additional Processor",VLOOKUP($B$39, MEM_B1, 8, FALSE),VLOOKUP($B$39, MEM_B2, 8, FALSE)) -> Dell 32 GB Modulo di memoria - RDIMM 2666MHz | C45: =IF($B$29="No Additional Processor",VLOOKUP($B$39, MEM_B1, 9, FALSE),VLOOKUP($B$39, MEM_B2, 9, FALSE)) -> 2 | E45: =IF($B$29="No Additional Processor",VLOOKUP($B$39, MEM_B1, 10, FALSE),VLOOKUP($B$39, MEM_B2, 10, FALSE)) -> [370-ADNF]
B47: =IF($B$29="No Additional Processor",VLOOKUP($B$39, MEM_B1, 2, FALSE),VLOOKUP($B$39, MEM_B2, 2, FALSE)) ->  | C47: =IF($B$29="No Additional Processor",VLOOKUP($B$39, MEM_B1, 3, FALSE),VLOOKUP($B$39, MEM_B2, 3, FALSE)) ->  | D47: =IF($B$29="No Additional Processor",VLOOKUP($B$39, MEM_B1, 4, FALSE),VLOOKUP($B$39, MEM_B2, 4, FALSE)) ->  | E47: =IF($B$29="No Additional Processor",VLOOKUP($B$39, MEM_B1, 6, FALSE),VLOOKUP($B$39, MEM_B2, 6, FALSE)) ->  | F47: =IF($B$29="No Additional Processor",VLOOKUP($B$39, MEM_B1, 7, FALSE),VLOOKUP($B$39, MEM_B2, 7, FALSE)) -> 
B49: =IF($B$29="No Additional Processor",VLOOKUP($B$39, MEM_B1, 11, FALSE),VLOOKUP($B$39, MEM_B2, 11, FALSE)) ->  | C49: =IF($B$29="No Additional Processor",VLOOKUP($B$39, MEM_B1, 12, FALSE),VLOOKUP($B$39, MEM_B2, 12, FALSE)) ->  | D49: =IF($B$29="No Additional Processor",VLOOKUP($B$39, MEM_B1, 13, FALSE),VLOOKUP($B$39, MEM_B2, 13, FALSE)) ->  | E49: =IF($B$29="No Additional Processor",VLOOKUP($B$39, MEM_B1, 15, FALSE),VLOOKUP($B$39, MEM_B2, 15, FALSE)) ->  | F49: =IF($B$29="No Additional Processor",VLOOKUP($B$39, MEM_B1, 16, FALSE),VLOOKUP($B$39, MEM_B2, 16, FALSE)) -> 
B51: Sistema operativo preinstallato
B52: No Operating System | C52: =VLOOKUP($B$52, OS_B, 2, FALSE) ->  | D52: =VLOOKUP($B$52, OS_B, 3, FALSE) ->  | E52: =VLOOKUP($B$52, OS_B, 5, FALSE) -> [611-BBBF] | F52: =VLOOKUP($B$52, OS_B, 6, FALSE) -> 
B53: =IF($B$29="No Additional Processor",VLOOKUP($B$52, OS_B, 20, FALSE),VLOOKUP($B$52, OS_B2, 20, FALSE)) ->  | C53: =IF($B$29="No Additional Processor",VLOOKUP($B$52, OS_B, 21, FALSE),VLOOKUP($B$52, OS_B2, 21, FALSE)) -> 0 | D53: =IF($B$29="No Additional Processor",VLOOKUP($B$52, OS_A, 22, FALSE),VLOOKUP($B$52, OS_B2, 22, FALSE)) ->  | E53: =IF($B$29="No Additional Processor",VLOOKUP($B$52, OS_B, 24, FALSE),VLOOKUP($B$52, OS_B2, 24, FALSE)) ->  | F53: =IF($B$29="No Additional Processor",VLOOKUP($B$52, OS_B, 25, FALSE),VLOOKUP($B$52, OS_B2, 25, FALSE)) -> 
B55: OS Media Kits
B56: No Media Required | C56: 1 | E56: [605-BBFN]
B59: Client Access Licenses
B60: =VLOOKUP($B$52, OS_B, 8, FALSE) -> None | D60: =VLOOKUP($B$52, OS_A, 10, FALSE) ->  | E60: =VLOOKUP($B$52, OS_A, 12, FALSE) ->  | F60: =VLOOKUP($B$52, OS_A, 13, FALSE)*C60 -> 0
B62: =VLOOKUP($B$52, OS_A, 14, FALSE) -> None | D62: =VLOOKUP($B$52, OS_A, 16, FALSE) ->  | E62: =VLOOKUP($B$52, OS_A, 18, FALSE) ->  | F62: =VLOOKUP($B$52, OS_A, 19, FALSE)*C62 -> 0
B64: Sistema operativo SUSE Linux Enterprise Server
B65: None | C65: =VLOOKUP($B$65,SUSE, 2, FALSE) -> 0 | D65: =VLOOKUP($B$65,SUSE, 3, FALSE) ->  | E65: =VLOOKUP($B$65,SUSE, 5, FALSE) ->  | F65: =VLOOKUP($B$65, SUSE, 6, FALSE)*C65 -> 0
B67: Sistema operativo VMware
B68: None | C68: =VLOOKUP($B$68,VMWARE, 2, FALSE)+C29 -> 0 | D68: =VLOOKUP($B$68,VMWARE, 3, FALSE) ->  | E68: =VLOOKUP($B$68,VMWARE, 5, FALSE) ->  | F68: =VLOOKUP($B$68, VMWARE, 6, FALSE)*C68 -> 0
B70: VMware vCenter Server Standard
B71: None | C71: =VLOOKUP($B$71,VMWARE2, 2, FALSE) -> 0 | D71: =VLOOKUP($B$71,VMWARE2, 3, FALSE) ->  | E71: =VLOOKUP($B$71,VMWARE2, 5, FALSE) -> 
B73: Essentials Plus Kit
B74: None | C74: =IF(SRV_A<4,VLOOKUP($B$74,VMWARE1, 2, FALSE),0) -> 0 | D74: =VLOOKUP($B$74,VMWARE1, 3, FALSE) ->  | E74: =VLOOKUP($B$74,VMWARE1, 5, FALSE) -> 
B76: Controller RAID
B77: PERC H730P RAID Controller, 2Gb NV Cache, Minicard | C77: =VLOOKUP($B$77,PERC, 2, FALSE) -> 0 | D77: =VLOOKUP($B$77,PERC, 3, FALSE) ->  | E77: =VLOOKUP($B$77,PERC, 4, FALSE) ->  | F77: =VLOOKUP($B$77,PERC, 7, FALSE) -> 0
B79: Dischi rigidi (numero massimo totale 24)
B80: 600GB 10K RPM SAS 12Gbps 512n 2.5in Hot-plug Hard Drive | C80: 2 | E80: [400-AJPK]
B82: 600GB 10K RPM SAS 12Gbps 512n 2.5in Hot-plug Hard Drive | D82: =VLOOKUP($B$82, HDD_A,3, FALSE) -> CNV-TS1L1-HD600 | E82: =VLOOKUP($B$82, HDD_A,5, FALSE) -> [400-AUNQ] | F82: =VLOOKUP($B$82, HDD_B,6, FALSE)*C82 -> 0
B84: 1.2TB 10K RPM SAS 12Gbps 512n 2.5in Hot-plug Hard Drive | D84: =VLOOKUP($B$84, HDD_A,3, FALSE) -> CNV-TS1L1-HD1200-U | E84: =VLOOKUP($B$84, HDD_A,5, FALSE) -> [400-ATJL] | F84: =VLOOKUP($B$84, HDD_B,6, FALSE)*C84 -> 0
B86: 1.8TB 10K RPM SAS 12Gbps 512e 2.5in Hot-plug Hard Drive | D86: CNV-TS1L1-HD1800 | E86: [400-AJQP] | F86: =VLOOKUP($B$86, HDD_B,6, FALSE)*C86 -> 0
B88: 960GB SSD SAS Mix Use 12Gbps 512n 2.5in Hot-plug Drive, PX05SV,3 DWPD,5256 TBW | D88: CNV-TS1L1-SSD800 | E88: [400-ANNX] | F88: =VLOOKUP($B$88, HDD_B,6, FALSE)*C88 -> 0
B90: 1.92TB SSD SAS Mix Use 12Gbps 512n 2.5in Hot-plug Drive, PX05SV,3 DWPD,10512 TBW | D90: CNV-TS1L1-SSD1920 | E90: [400-ANMN] | F90: =VLOOKUP($B$90, HDD_B,6, FALSE)*C90 -> 0
B92: DISCHI TOTALI | C92: =SUM(C80:C91) -> 2 | D92: =IF(C92<=24," OK"," ERRORE: Totale n° di dischi superiore al consentito") -> OK
B94: Configurazione RAID
B95: C3 - RAID 1 for H330 (2 HDDs) | C95: 1 | E95: =VLOOKUP($B$95, RAID_B1, 2, FALSE) -> [780-BBJK]
B96: Hot Spare for 300GB HDD | C96: No
B97: SCRIVERE QUI' LA CONFIGURAZIONE RAID RICHIESTA. R740XD 3 | H97: =IF(B97="SCRIVERE QUI' LA CONFIGURAZIONE RAID RICHIESTA. R740XD 3 ","ATTENZIONE COMPILARE IL CAMPO DELLA SCELTA RAID", "") -> ATTENZIONE COMPILARE IL CAMPO DELLA SCELTA RAID
B98: Configurazione RAID HDD 1TB
C99: 1 | E99: =VLOOKUP($B$99, RAID_B2, 2, FALSE) -> 
B100: Hot Spare for 1TB HDD | C100: No
B102: Impostazioni del BIOS per la gestione dell'alimentazione
B103: Performance BIOS Setting | C103: 1 | E103: [384-BBBL]
B105: Alimentatore
B106: Dual, Hot-plug, Redundant Power Supply (1+1), 750W, Titanium, 200-240VAC | C106: 1 | E106: [450-ADWT]
B108: Cavi di alimentazione
B109: Rack Power Cord 2M (C13/C14 12A) | C109: 2 | E109: [450-AADY]
B111: Fans
B112: =VLOOKUP(B29, CPU_B, 9, FALSE) -> 4 Standard Fans for R740/740XD | C112: =VLOOKUP($B$29, CPU_B.1, 10, FALSE) -> 1 | E112: =VLOOKUP($B$29, CPU_B.1, 11, FALSE) -> [384-BBQB]
B114: PCIe Riser
B115: =VLOOKUP(B29, CPU_B.1, 12, FALSE) -> Riser Config 1, 4 x8 slots | C115: =VLOOKUP($B$29, CPU_B.1, 13, FALSE) -> 1 | E115: =VLOOKUP($B$29, CPU_B.1, 14, FALSE) -> [330-BBGZ]
B117: TPM Module
B118: Trusted Platform Module 1.2 | C118: 1 | E118: [461-AAEL]
B120: Embedded Systems Management
B121: iDRAC9,Enterprise | C121: 1 | E121: [385-BBKT]
B123: Adattatore di rete
B124: Broadcom 5720 QP 1Gb Network Daughter Card | C124: 1 | E124: [540-BBBW]
B126: Modulo Doppia SD
B127: None | C127: =VLOOKUP($B$127,upsell_1, 2, FALSE) -> 0 | D127: =VLOOKUP($B$127,upsell_1, 3, FALSE) ->  | E127: =VLOOKUP($B$127,upsell_1, 4, FALSE) ->  | F127: =VLOOKUP($B$127,upsell_1, 7, FALSE) -> 0
B129: Additional Card for PCIe Slot 1 (Full height) (CPU 1)
B130: Broadcom 5719 QP 1Gb Network Interface Card | D130: ="" ->  | E130: 540-BBCW
B132: Additional Card for PCIe Slot 2 (Full height) (CPU 1)
B133: None | C133: =VLOOKUP(B133, PCI_B1.1, 2, FALSE) ->  | D133: =VLOOKUP(B133, PCI_B1.1, 3, FALSE) ->  | E133: =VLOOKUP(B133, PCI_B1.1, 5, FALSE) ->  | F133: =VLOOKUP(B133, PCI_B1.1, 6, FALSE) ->  | G133: =VLOOKUP(B133, PCI_B1.1, 7, FALSE) -> 0
B135: Additional Card for PCIe Slot 3 (Full height) (CPU 1)
B136: None | C136: =VLOOKUP(B136, PCI_B1.1, 2, FALSE) ->  | D136: =VLOOKUP(B136, PCI_B1.1, 3, FALSE) ->  | E136: =VLOOKUP(B136, PCI_B1.1, 5, FALSE) ->  | F136: =VLOOKUP(B136, PCI_B1.1, 6, FALSE) ->  | G136: =VLOOKUP(B136, PCI_B1.1, 7, FALSE) -> 0
B138: Additional Card for PCIe Slot 4 (Full height) (CPU 2)
B139: None | C139: =VLOOKUP(B139, PCI_B1.1, 2, FALSE) ->  | D139: =VLOOKUP(B139, PCI_B1.1, 3, FALSE) ->  | E139: =VLOOKUP(B139, PCI_B1.1, 5, FALSE) ->  | F139: =VLOOKUP(B139, PCI_B1.1, 6, FALSE) ->  | G139: =VLOOKUP(B139, PCI_B1.1, 7, FALSE) -> 0
B141: Additional Card for PCIe Slot 5 (Full height) (CPU 2)
B142: None | C142: =VLOOKUP(B142, PCI_B1.1, 2, FALSE) ->  | D142: =VLOOKUP(B142, PCI_B1.1, 3, FALSE) ->  | E142: =VLOOKUP(B142, PCI_B1.1, 5, FALSE) ->  | F142: =VLOOKUP(B142, PCI_B1.1, 6, FALSE) ->  | G142: =VLOOKUP(B142, PCI_B1.1, 7, FALSE) -> 0
B144: Additional Card for PCIe Slot 6 (Low Profile) (CPU 1)
B145: None | C145: =VLOOKUP(B145,PCI_B5, 2, FALSE) ->  | D145: =VLOOKUP(B145, PCI_B5, 3, FALSE) ->  | E145: =VLOOKUP($B$145,PCI_B5,5,FALSE) ->  | F145: =VLOOKUP($B$145,PCI_B5,6,FALSE) ->  | G145: =VLOOKUP($B$145,PCI_B5,7,FALSE) -> 0
B147: Additional Card for PCIe Slot 7 (Full height) (CPU 2)
B148: None | C148: =VLOOKUP(B148, PCI_B1.1, 2, FALSE) ->  | D148: =VLOOKUP(B148, PCI_B1.1, 3, FALSE) ->  | E148: =VLOOKUP(B148, PCI_B1.1, 5, FALSE) ->  | F148: =VLOOKUP(B148, PCI_B1.1, 6, FALSE) ->  | G148: =VLOOKUP(B148, PCI_B1.1, 7, FALSE) -> 0
B150: Additional Card for PCIe Slot 8 (Full height) (CPU 2)
B151: None | C151: =VLOOKUP(B151, PCI_B1.1, 2, FALSE) ->  | D151: =VLOOKUP(B151, PCI_B1.1, 3, FALSE) ->  | E151: =VLOOKUP(B151, PCI_B1.1, 5, FALSE) ->  | F151: =VLOOKUP(B151, PCI_B1.1, 6, FALSE) ->  | G151: =VLOOKUP(B151, PCI_B1.1, 7, FALSE) -> 0
B153: Pannello frontale
B154: No Bezel Option | C154: =VLOOKUP(B154,upsell_1, 2, FALSE) -> 1 | D154: =VLOOKUP(B154,upsell_1, 3, FALSE) ->  | E154: =VLOOKUP(B154,upsell_1, 5, FALSE) -> [350-BBBW] | F154: =VLOOKUP(B154,upsell_1, 6, FALSE) -> 0 | G154: =VLOOKUP(B154,upsell_1, 7, FALSE) -> 0
B156: Guide per rack
B157: ReadyRails™ Sliding Rails Without Cable Management Arm 2U | C157: =VLOOKUP(B157,upsell_1, 2, FALSE) -> 1 | D157: =VLOOKUP(B157,upsell_1, 3, FALSE) ->  | E157: =VLOOKUP(B157,upsell_1, 5, FALSE) -> [770-BBBQ] | F157: =VLOOKUP(B157,upsell_1, 6, FALSE) -> 0 | G157: =VLOOKUP(B157,upsell_1, 7, FALSE) -> 0
B159: Server Accessories
B160: PowerEdge SFP+, 10GbE SR/SX, Optical Tranceiver, LC Connector, for Intel and Broadcom,CusKit | C160: =(VLOOKUP(B151,PCI_A2,8,FALSE))+((VLOOKUP(B130,PCI_A1,8,FALSE))) ->  | E160: [407-BBQE]
B162: System Documentation
B163: Electronic System Documentation and OpenManage DVD Kit | C163: 1 | E163: [631-AAJG]
B165: SHIPPING
B166: PowerEdge R730xd Shipping EMEA1 (English/French/German/Spanish/Russian/Hebrew) | C166: 1 | E166: [340-AMGS]
B168: Order Information
B169: PowerEdge Order - EMEA | C169: 1 | E169: [800-11671]
B171: Base warranty
B172: 3Yr Basic Warranty - Next Business Day - Minimum Warranty | C172: 1 | E172: [709-12780][709-12781]
B174: Servizi di assitenza
B175: Dell Channel Order - Service Info only | C175: 1 | E175: [710-31085]
B177: Aggiornamenti della garanzia
B178: None | C178: =VLOOKUP($B$178, SO_B2,2, FALSE) ->  | D178: =VLOOKUP($B$178, SO_B2, 3, FALSE) ->  | E178: =VLOOKUP($B$178, SO_B2, 5, FALSE) ->  | F178: =VLOOKUP($B$178, SO_B2, 6, FALSE) -> 
B180: Warranty Upgrades - Non-Std/Local POS
B181: CSTM CONSIP - 39M Onsite Labor Support for CRU for Servers with Basic Warranty | C181: 1 | E181: [681-24467]

Sheet HDD (hidden)
B1: NO
B2: STD
B3: LCD
A7: Hard Drives
A8: R630
A9: 600GB 10K RPM SAS 12Gbps 512n 2.5in Hot-plug Hard Drive | C9: CNV-TS1L1-HD600 | D9: TS1L1-HD600 | E9: [400-AUNQ] | F9: 120
A10: 1.2TB 10K RPM SAS 12Gbps 512n 2.5in Hot-plug Hard Drive | C10: CNV-TS1L1-HD1200-U | D10: TS1L1-HD1200-U | E10: [400-ATJL] | F10: 212
B11: R630 | C11: R630 1 | D11: R630 2
A12: HDD max | B12: 8 | C12: 8 | D12: 8
A13: HDD 300GB Base | B13: 2 | C13: 2 | D13: 2 | E13: Hot Spare for 300GB HDD | F13: ='CNV R640 1'!$C$95 -> No | G13: =IF(F13="Yes",1,0) -> 0 | H13: ='CNV R640 2'!$C$95 -> No | I13: =IF(H13="Yes",1,0) -> 0 | J13: ='CNV R640 3'!$C$95 -> No | K13: =IF(J13="Yes",1,0) -> 0
A14: HDD 300GB Selected | B14: =HD300_A -> 0 | C14: =HD300_AA -> 0 | D14: =HD300_AAA -> 0
A15: 300GB 10K RPM SAS 12Gbps 2.5in Hot-plug Hard Drive,CusKit | B15: 0 | C15: 0 | D15: 0
B16: 1 | C16: 1 | D16: 1
B17: 2 | C17: 2 | D17: 2
B18: 3 | C18: 3 | D18: 3
B19: 4 | C19: 4 | D19: 4
B20: 5 | C20: 5 | D20: 5
B21: 6 | C21: 6 | D21: 6
A22: HDD max | B22: 8 | C22: 8 | D22: 8
A23: HDD 300GB | B23: =B13+B14 -> 2 | C23: =C13+C14 -> 2 | D23: =D13+D14 -> 2
A24: HDD 1TB Selected | B24: ='CNV R640 1'!$C$83 -> 0 | C24: =HD1000_AA -> 0 | D24: =HD1000_AAA -> 0 | E24: Hot Spare for 1TB HDD | F24: ='CNV R640 1'!$C$99 -> No | G24: =IF(F24="Yes",1,0) -> 0 | H24: ='CNV R640 2'!$C$99 -> No | I24: =IF(H24="Yes",1,0) -> 0 | J24: ='CNV R640 3'!$C$99 -> No | K24: =IF(J24="Yes",1,0) -> 0
A25: 1TB 7.2K RPM NLSAS 6Gbps 2.5in Hot-plug Hard Drive,13G,CusKit | B25: =B$12-B$13-B$14 -> 6 | C25: =C$12-C$13-C$14 -> 6 | D25: =D$12-D$13-D$14 -> 6
B26: =IF(B25-1<1,0,B25-1) -> 5 | C26: 5 | D26: 5
B27: 4 | C27: 4 | D27: 4
B28: 3 | C28: 3 | D28: 3
B29: 2 | C29: 2 | D29: 2
B30: 1 | C30: 1 | D30: 1
B31: 0 | C31: 0 | D31: 0
B32: 0
B33: 0
A35: Hot Spare | B35: Yes
B36: No
A38: RAID Configuration | D38: HDD 300GB R630 | F38: HDD 1TB R630 | H38: HDD 300GB R630 2 | J38: HDD 1TB R630 2 | L38: HDD 300GB R630 3 | N38: HDD 1TB R630 3
A39: RAID Personalizzato | B39: =IF($B$146<=8,0,"") -> 0 | C39: [780-BBJC] | D39: RAID Personalizzato | E39: [780-BBJC] | F39: RAID Personalizzato | G39: [780-BBJC] | H39: RAID Personalizzato | I39: [780-BBJC] | J39: RAID Personalizzato | K39: [780-BBJC] | L39: RAID Personalizzato | M39: [780-BBJC] | N39: RAID Personalizzato | O39: [780-BBJC]
A40: C10 - Unconfigured RAID for H330 (1-8 HDDs) | B40: 1 | C40: [780-BBJD] | D40: =IF($G$13=0,A40,"") -> C10 - Unconfigured RAID for H330 (1-8 HDDs) | E40: =IF($G$13=0,C40,"") -> [780-BBJD] | F40: =IF($G$24=0,A40,"") -> C10 - Unconfigured RAID for H330 (1-8 HDDs) | G40: =IF($G$24=0,C40,"") -> [780-BBJD] | H40: =IF(I13=0,$A$40,"") -> C10 - Unconfigured RAID for H330 (1-8 HDDs) | I40: =IF(I13=0,$C$40,"") -> [780-BBJD] | J40: =IF(I24=0,$A$40,"") -> C10 - Unconfigured RAID for H330 (1-8 HDDs) | K40: =IF(I24=0,$C$40,"") -> [780-BBJD] | L40: =IF(K13=0,$A$40,"") -> C10 - Unconfigured RAID for H330 (1-8 HDDs) | M40: =IF(K13=0,$C$40,"") -> [780-BBJD] | N40: =IF(K24=0,$A$40,"") -> C10 - Unconfigured RAID for H330 (1-8 HDDs) | O40: =IF(K24=0,$C$40,"") -> [780-BBJD]
A41: C2 - RAID 0 for H330 (1-8 HDDs) | B41: 1 | C41: [780-BBJF] | D41: =IF($G$13=0,A41,"") -> C2 - RAID 0 for H330 (1-8 HDDs) | E41: =IF($G$13=0,C41,"") -> [780-BBJF] | F41: =IF($G$24=0,A41,"") -> C2 - RAID 0 for H330 (1-8 HDDs) | G41: =IF($G$24=0,C41,"") -> [780-BBJF] | H41: =IF(I13=0,$A$41,"") -> C2 - RAID 0 for H330 (1-8 HDDs) | I41: =IF(I13=0,$C$41,"") -> [780-BBJF] | J41: =IF(I24=0,$A$41,"") -> C2 - RAID 0 for H330 (1-8 HDDs) | K41: =IF(I24=0,$C$41,"") -> [780-BBJF] | L41: =IF(K13=0,$A$41,"") -> C2 - RAID 0 for H330 (1-8 HDDs) | M41: =IF(K13=0,$C$41,"") -> [780-BBJF] | N41: =IF(K24=0,$A$41,"") -> C2 - RAID 0 for H330 (1-8 HDDs) | O41: =IF(K24=0,$C$41,"") -> [780-BBJF]
A42: C3 - RAID 1 for H330 (2 HDDs) | B42: 1 | C42: [780-BBJK] | D42: =IF($B$13+$B$14-$G$13=2,A42,"") -> C3 - RAID 1 for H330 (2 HDDs) | E42: =IF($B$13+$B$14-$G$13=2,C42,"") -> [780-BBJK] | F42: =IF($B$24-$G$24=2,A42,"") ->  | G42: =IF($B$24-$G$24=2,C42,"") ->  | H42: =IF($C$13+$C$14-I13=2,$A$42,"") -> C3 - RAID 1 for H330 (2 HDDs) | I42: =IF($C$13+$C$14-I13=2,$C$42,"") -> [780-BBJK] | J42: =IF($C$24-I24=2,A42,"") ->  | K42: =IF($C$24-I24=2,$C$42,"") ->  | L42: =IF($C$13+$C$14-K13=2,$A$42,"") -> C3 - RAID 1 for H330 (2 HDDs) | M42: =IF($C$13+$C$14-K13=2,$C$42,"") -> [780-BBJK] | N42: =IF($C$24-M24=2,E42,"") ->  | O42: =IF($D$24-K24=2,$C$42,"") -> 
A43: C4 - RAID 5 for H330 (3-8 HDDs) | B43: 1 | C43: [780-BBJL] | D43: =IF($B$13+$B$14-$G$13>=3,A43,"") ->  | E43: =IF($B$13+$B$14-$G$13>=3,C43,"") ->  | F43: =IF($B$24-$G$24>=3,A43,"") ->  | G43: =IF($B$24-$G$24>=3,C43,"") ->  | H43: =IF($C$13+$C$14-I13>=3,$A$43,"") ->  | I43: =IF($C$13+$C$14-I13>=3,$C$43,"") ->  | J43: =IF($C$24-I24>=3,$A$43,"") ->  | K43: =IF($C$24-I24>=3,$C$43,"") ->  | L43: =IF($D$13+$D$14-K13>=3,$A$43,"") ->  | M43: =IF($D$13+$D$14-K13>=3,$C$43,"") ->  | N43: =IF($D$24-K24>=3,$A$43,"") ->  | O43: =IF($D$24-K24>=3,$C$43,"") -> 
A44: C6 - RAID 10 forH330 (4-8 HDDs in pairs) | B44: 1 | C44: [780-BBJN] | D44: =IF($B$13+$B$14-$G$13=4,A44,"") ->  | E44: =IF($B$13+$B$14-$G$13=4,C44,"") ->  | F44: =IF($B$24-$G$24=4,A44,"") ->  | G44: =IF($B$24-$G$24=4,C44,"") ->  | H44: =IF($C$13+$C$14-I13=4,$A$44,"") ->  | I44: =IF($C$13+$C$14-I13=4,$C$44,"") ->  | J44: =IF($C$24-I24=4,$A$44,"") ->  | K44: =IF($C$24-I24=4,$C$44,"") ->  | L44: =IF($D$13+$D$14-K13=4,$A$44,"") ->  | M44: =IF($D$13+$D$14-K13=4,$C$44,"") ->  | N44: =IF($D$24-K24=4,$A$44,"") ->  | O44: =IF($D$24-K24=4,$C$44,"") -> 
A45: C7 - RAID 1+RAID 1 for H330 (2 + 2 HDDs) | B45: 1 | C45: [780-BBJO] | D45: =IF($B$13+$B$14-$G$13=4,A45,"") ->  | E45: =IF($B$13+$B$14-$G$13=4,C45,"") ->  | F45: =IF($B$24-$G$24=4,A45,"") ->  | G45: =IF($B$24-$G$24=4,C45,"") ->  | H45: =IF($C$13+$C$14-I13=4,$A$45,"") ->  | I45: =IF($C$13+$C$14-I13=4,$C$45,"") ->  | J45: =IF($C$24-I24=4,A45,"") ->  | K45: =IF($C$24-I24=4,$C$45,"") ->  | L45: =IF($D$13+$D$14-K13=4,$A$45,"") ->  | M45: =IF($D$13+$D$14-K13=4,$C$45,"") ->  | N45: =IF($D$24-K24=4,A45,"") ->  | O45: =IF($D$24-K24=4,$C$45,"") -> 
A46: C8 - RAID 1+RAID 5 for H330 (2 + 3-8 HDDs) | B46: 1 | C46: [780-BBJP] | D46: =IF($B$13+$B$14-$G$13>=5,A46,"") ->  | E46: =IF($B$13+$B$14-$G$13>=5,C46,"") ->  | F46: =IF($B$24-$G$24>=5,A46,"") ->  | G46: =IF($B$24-$G$24>=5,C46,"") ->  | H46: =IF($C$13+$C$14-I13>=5,$A$46,"") ->  | I46: =IF($C$13+$C$14-I13>=5,$C$46,"") ->  | J46: =IF($C$24-I24>=5,$A$46,"") ->  | K46: =IF($C$24-I24>=5,$C$46,"") ->  | L46: =IF($D$13+$D$14-K13>=5,$A$46,"") ->  | M46: =IF($D$13+$D$14-K13>=5,$C$46,"") ->  | N46: =IF($D$24-K24>=5,$A$46,"") ->  | O46: =IF($D$24-K24>=5,$C$46,"") -> 
A47: C9 - RAID 1+RAID 10 for H330 (2 + 4 HDDs in pairs) | B47: 1 | C47: [780-BBJQ] | D47: =IF($B$13+$B$14-$G$13=6,A47,"") ->  | E47: =IF($B$13+$B$14-$G$13=6,C47,"") ->  | F47: =IF($B$24-$G$24=6,A47,"") ->  | G47: =IF($B$24-$G$24=6,C47,"") ->  | H47: =IF($C$13+$C$14-I13=6,$A$47,"") ->  | I47: =IF($C$13+$C$14-I13=6,$C$47,"") ->  | J47: =IF($C$24-I24=6,A47,"") ->  | K47: =IF($C$24-I24=6,$C$47,"") ->  | L47: =IF($D$13+$D$14-M13=6,$A$47,"") ->  | M47: =IF($D$13+$D$14-M13=6,$C$47,"") ->  | N47: =IF($D$24-K24=6,A47,"") ->  | O47: =IF($D$24-K24=6,$C$47,"") -> 
A49: R730xd
A50: 600GB 10K RPM SAS 12Gbps 512n 2.5in Hot-plug Hard Drive | C50: CNV-TS1L1-HD600 | D50: TS1L1-HD600 | E50: [400-ASGS] | F50: 120
A51: 1.2TB 10K RPM SAS 12Gbps 512n 2.5in Hot-plug Hard Drive | C51: CNV-TS1L1-HD1200-U | D51: TS1L1-HD1200-U | E51: [400-ATJL] | F51: 212
A52: 1.8TB 10K RPM SAS 12Gbps 512e 2.5in Hot-plug Hard Drive | C52: CNV-TS1L1-HD1800-U | D52: TS1L1-HD1800-U | E52: 400-ATJR | F52: 236
A53: 960GB SSD SAS Mix Use 12Gbps 512n 2.5in Hot-plug Drive, PX05SV,3 DWPD,5256 TBW | C53: CNV-TS1L1-SSD800-U | D53: TS1L1-SSD800-U | E53: 400-ATLR | F53: 748
A54: 1.92TB SSD SAS Mix Use 12Gbps 512n 2.5in Hot-plug Drive, PX05SV,3 DWPD,10512 TBW | C54: CNV-TS1L1-SSD1920-U | D54: TS1L1-SSD1920-U | E54: 400-ATNG | F54: 1795
B55: ='CNV R740xd 1'!$C$96 -> No | C55: ='CNV R740xd 2'!$C$96 -> No | D55: ='CNV R740xd 3'!$C$96 -> No
A56: HDD max | B56: 24 | C56: 24 | D56: 24
A57: HDD 300GB Base | B57: 2 | C57: 2 | D57: 2
A58: Hot Spare for 300GB HDD | B58: =IF(B55="Yes",1,0) -> 0 | C58: =IF(C55="Yes",1,0) -> 0 | D58: =IF(D55="Yes",1,0) -> 0
A59: HDD 300GB Selected | B59: =HD300_B -> 0 | C59: =HD300_BB -> 0 | D59: =HD300_BBB -> 0
A60: 300GB 10K RPM SAS 12Gbps 2.5in Hot-plug Hard Drive,CusKit | B60: 0 | C60: 0 | D60: 0
B61: 1 | C61: 1 | D61: 1
B62: 2 | C62: 2 | D62: 2
B63: 3 | C63: 3 | D63: 3
B64: 4 | C64: 4 | D64: 4
B65: 5 | C65: 5 | D65: 5
B66: 6 | C66: 6 | D66: 6
B67: 7 | C67: 7 | D67: 7
B68: 8 | C68: 8 | D68: 8
B69: 9 | C69: 9 | D69: 9
B70: 10 | C70: 10 | D70: 10
B71: 11 | C71: 11 | D71: 11
B72: 12 | C72: 12 | D72: 12
B73: 13 | C73: 13 | D73: 13
B74: 14 | C74: 14 | D74: 14
B75: 15 | C75: 15 | D75: 15
B76: 16 | C76: 16 | D76: 16
B77: 17 | C77: 17 | D77: 17
B78: 18 | C78: 18 | D78: 18
B79: 19 | C79: 19 | D79: 19
B80: 20 | C80: 20 | D80: 20
B81: 21 | C81: 21 | D81: 21
B82: 22 | C82: 22 | D82: 22
B89: ='CNV R740xd 1'!$C$100 -> No | C89: ='CNV R740xd 2'!$C$100 -> No | D89: ='CNV R740xd 2'!$C$100 -> No
A90: HDD max | B90: 24 | C90: 24 | D90: 24
A91: HDD 300GB | B91: =B57+B59 -> 2 | C91: =C57+C59 -> 2 | D91: =D57+D59 -> 2
A92: Hot Spare for 1TB HDD | B92: =IF(B89="Yes",1,0) -> 0 | C92: =IF(C89="Yes",1,0) -> 0 | D92: =IF(D89="Yes",1,0) -> 0
A93: HDD 1TB Selected | B93: ='CNV R740xd 1'!$C$84 -> 0 | C93: ='CNV R740xd 2'!$C$84 -> 0 | D93: ='CNV R740xd 3'!$C$84 -> 0
A94: 1TB 7.2K RPM NLSAS 6Gbps 2.5in Hot-plug Hard Drive,13G,CusKit | B94: =$B$90-$B$91-$B$93 -> 22 | C94: =$C$90-$C$91-$C$93 -> 22 | D94: =$D$90-$D$91-$D$93 -> 22
B95: =IF(B94-1<1,0,B94-1) -> 21 | C95: 21 | D95: =IF(D94-1<1,0,D94-1) -> 21
B96: 20 | C96: 20 | D96: 20
B97: 19 | C97: 19 | D97: 19
B98: 18 | C98: 18 | D98: 18
B99: 17 | C99: 17 | D99: 17
B100: 16 | C100: 16 | D100: 16
B101: 15 | C101: 15 | D101: 15
B102: 14 | C102: 14 | D102: 14
B103: =IF(B102-1<1,0,B102-1) -> 13 | C103: 13 | D103: 13
B104: 12 | C104: 12 | D104: 12
B105: 11 | C105: 11 | D105: 11
B106: 10 | C106: 10 | D106: 10
B107: 9 | C107: 9 | D107: 9
B108: 8 | C108: 8 | D108: 8
B109: 7 | C109: 7 | D109: 7
B110: 6 | C110: 6 | D110: 6
B111: 5 | C111: 5 | D111: 5
B112: 4 | C112: 4 | D112: 4
B113: 3 | C113: 3 | D113: 3
B114: 2 | C114: 2 | D114: 2
B115: 1 | C115: 1 | D115: 1
B116: 0 | C116: 0 | D116: 0
A126: RAID Configuration | D126: HDD 300GB R730xd | F126: HDD 1TB R730xd | H126: HDD 300GB R730xd 2 | J126: HDD 1TB R730xd 2 | L126: HDD 300GB R730xd 3 | N126: HDD 1TB R730xd 3
A127: RAID Personalizzato | B127: =IF($B$146<=8,0,"") -> 0 | C127: [780-BBJC] | D127: RAID Personalizzato | E127: [780-BBJC] | F127: RAID Personalizzato | G127: [780-BBJC] | H127: RAID Personalizzato | I127: [780-BBJC] | J127: RAID Personalizzato | K127: [780-BBJC] | L127: RAID Personalizzato | M127: [780-BBJC] | N127: RAID Personalizzato | O127: [780-BBJC]
A128: C10 - Unconfigured RAID for H330 (1-8 HDDs) | B128: 1 | C128: [780-BBJD] | D128: =IF($B$58=0,A128,"") -> C10 - Unconfigured RAID for H330 (1-8 HDDs) | E128: =IF($B$58=0,C128,"") -> [780-BBJD] | F128: =IF($B$92=0,A128,"") -> C10 - Unconfigured RAID for H330 (1-8 HDDs) | G128: =IF($B$92=0,C128,"") -> [780-BBJD] | H128: =IF($C$58=0,A128,"") -> C10 - Unconfigured RAID for H330 (1-8 HDDs) | I128: =IF($C$58=0,C128,"") -> [780-BBJD] | J128: =IF($C$92=0,A128,"") -> C10 - Unconfigured RAID for H330 (1-8 HDDs) | K128: =IF($C$92=0,C128,"") -> [780-BBJD] | L128: =IF($D$58=0,A128,"") -> C10 - Unconfigured RAID for H330 (1-8 HDDs) | M128: =IF($D$58=0,C128,"") -> [780-BBJD] | N128: =IF($D$92=0,A128,"") -> C10 - Unconfigured RAID for H330 (1-8 HDDs) | O128: =IF($D$92=0,C128,"") -> [780-BBJD]
A129: C2 - RAID 0 for H330 (1-8 HDDs) | B129: 1 | C129: [780-BBJF] | D129: =IF($B$58=0,A129,"") -> C2 - RAID 0 for H330 (1-8 HDDs) | E129: =IF($B$58=0,C129,"") -> [780-BBJF] | F129: =IF($B$92=0,A129,"") -> C2 - RAID 0 for H330 (1-8 HDDs) | G129: =IF($B$92=0,C129,"") -> [780-BBJF] | H129: =IF($C$58=0,A129,"") -> C2 - RAID 0 for H330 (1-8 HDDs) | I129: =IF($C$58=0,C129,"") -> [780-BBJF] | J129: =IF($C$92=0,A129,"") -> C2 - RAID 0 for H330 (1-8 HDDs) | K129: =IF($C$92=0,C129,"") -> [780-BBJF] | L129: =IF($D$58=0,A129,"") -> C2 - RAID 0 for H330 (1-8 HDDs) | M129: =IF($D$58=0,C129,"") -> [780-BBJF] | N129: =IF($D$92=0,A129,"") -> C2 - RAID 0 for H330 (1-8 HDDs) | O129: =IF($D$92=0,C129,"") -> [780-BBJF]
A130: C3 - RAID 1 for H330 (2 HDDs) | B130: 1 | C130: [780-BBJK] | D130: =IF($B$57+$B$59-$B$58=2,A130,"") -> C3 - RAID 1 for H330 (2 HDDs) | E130: =IF($B$57+$B$59-$B$58=2,C130,"") -> [780-BBJK] | F130: =IF($B$93-$B$92=2,A130,"") ->  | G130: =IF($B$93-$B$92=2,C130,"") ->  | H130: =IF($C$57+$C$59-$C$58=2,A130,"") -> C3 - RAID 1 for H330 (2 HDDs) | I130: =IF($C$57+$C$59-$C$58=2,C130,"") -> [780-BBJK] | J130: =IF($C$93-$C$92=2,A130,"") ->  | K130: =IF($C$93-$C$92=2,C130,"") ->  | L130: =IF($D$57+$D$59-$D$58=2,A130,"") -> C3 - RAID 1 for H330 (2 HDDs) | M130: =IF($D$57+$D$59-$D$58=2,C130,"") -> [780-BBJK] | N130: =IF($D$93-$D$92=2,A130,"") ->  | O130: =IF($D$93-$D$92=2,C130,"") -> 
A131: C4 - RAID 5 for H330 (3-8 HDDs) | B131: 1 | C131: [780-BBJL] | D131: =IF($B$57+$B$59-$B$58>=3,A131,"") ->  | E131: =IF($B$57+$B$59-$B$58>=3,C131,"") ->  | F131: =IF($B$93-$B$92>=3,A131,"") ->  | G131: =IF($B$93-$B$92>=3,C131,"") ->  | H131: =IF($C$57+$C$59-$C$58>=3,A131,"") ->  | I131: =IF($C$57+$C$59-$C$58>=3,C131,"") ->  | J131: =IF($C$93-$C$92>=3,A131,"") ->  | K131: =IF($C$93-$C$92>=3,C131,"") ->  | L131: =IF($D$57+$D$59-$D$58>=3,A131,"") ->  | M131: =IF($D$57+$D$59-$D$58>=3,C131,"") ->  | N131: =IF($D$93-$D$92>=3,A131,"") ->  | O131: =IF($D$93-$D$92>=3,C131,"") -> 
A132: C6 - RAID 10 forH330 (4-8 HDDs in pairs) | B132: 1 | C132: [780-BBJN] | D132: =IF($B$57+$B$59-$B$58=4,A132,"") ->  | E132: =IF($B$57+$B$59-$B$58=4,C132,"") ->  | F132: =IF($B$93-$B$92=4,A132,"") ->  | G132: =IF($B$93-$B$92=4,C132,"") ->  | H132: =IF($C$57+$C$59-$C$58=4,A132,"") ->  | I132: =IF($C$57+$C$59-$C$58=4,C132,"") ->  | J132: =IF($C$93-$C$92=4,A132,"") ->  | K132: =IF($C$93-$C$92=4,C132,"") ->  | L132: =IF($D$57+$D$59-$D$58=4,A132,"") ->  | M132: =IF($D$57+$D$59-$D$58=4,C132,"") ->  | N132: =IF($D$93-$D$92=4,A132,"") ->  | O132: =IF($D$93-$D$92=4,C132,"") -> 
A133: C7 - RAID 1+RAID 1 for H330 (2 + 2 HDDs) | B133: 1 | C133: [780-BBJO] | D133: =IF($B$57+$B$59-$B$58=4,A133,"") ->  | E133: =IF($B$57+$B$59-$B$58=4,C133,"") ->  | F133: =IF($B$93-$B$92=4,A133,"") ->  | G133: =IF($B$93-$B$92=4,C133,"") ->  | H133: =IF($C$57+$C$59-$C$58=4,A133,"") ->  | I133: =IF($C$57+$C$59-$C$58=4,C133,"") ->  | J133: =IF($C$93-$C$92=4,A133,"") ->  | K133: =IF($C$93-$C$92=4,C133,"") ->  | L133: =IF($D$57+$D$59-$D$58=4,A133,"") ->  | M133: =IF($D$57+$D$59-$D$58=4,C133,"") ->  | N133: =IF($D$93-$D$92=4,A133,"") ->  | O133: =IF($D$93-$D$92=4,C133,"") -> 
A134: C8 - RAID 1+RAID 5 for H330 (2 + 3-8 HDDs) | B134: 1 | C134: [780-BBJP] | D134: =IF($B$57+$B$59-$B$58>=5,A134,"") ->  | E134: =IF($B$57+$B$59-$B$58>=5,C134,"") ->  | F134: =IF($B$93-$B$92>=5,A134,"") ->  | G134: =IF($B$93-$B$92>=5,C134,"") ->  | H134: =IF($C$57+$C$59-$C$58>=5,A134,"") ->  | I134: =IF($C$57+$C$59-$C$58>=5,C134,"") ->  | J134: =IF($C$93-$C$92>=5,A134,"") ->  | K134: =IF($C$93-$C$92>=5,C134,"") ->  | L134: =IF($D$57+$D$59-$D$58>=5,A134,"") ->  | M134: =IF($D$57+$D$59-$D$58>=5,C134,"") ->  | N134: =IF($D$93-$D$92>=5,A134,"") ->  | O134: =IF($D$93-$D$92>=5,C134,"") -> 
A135: C9 - RAID 1+RAID 10 for H330 (2 + 4 HDDs in pairs) | B135: 1 | C135: [780-BBJQ] | D135: =IF($B$57+$B$59-$B$58=6,A135,"") ->  | E135: =IF($B$57+$B$59-$B$58=6,C135,"") ->  | F135: =IF($B$93-$B$92=6,A135,"") ->  | G135: =IF($B$93-$B$92=6,C135,"") ->  | H135: =IF($C$57+$C$59-$C$58=6,A135,"") ->  | I135: =IF($C$57+$C$59-$C$58=6,C135,"") ->  | J135: =IF($C$93-$C$92=6,A135,"") ->  | K135: =IF($C$93-$C$92=6,C135,"") ->  | L135: =IF($D$57+$D$59-$D$58=6,A135,"") ->  | M135: =IF($D$57+$D$59-$D$58=6,C135,"") ->  | N135: =IF($D$93-$D$92=6,A135,"") ->  | O135: =IF($D$93-$D$92=6,C135,"") -> 
A142: T630
A143: 1.8TB 10K RPM SAS 12Gbps 512e 2.5in Hot-plug Hard Drive | C143: CNV-TS1L1-HD1800-U | D143: TS1L1-HD1800-U | E143: 400-ATJR | F143: 236
A144: 960GB SSD SAS Mix Use 12Gbps 512n 2.5in Hot-plug Drive, PX05SV,3 DWPD,5256 TBW | C144: CNV-TS1L1-SSD800-U | D144: TS1L1-SSD800-U | E144: 400-ATLR | F144: 748
A145: 1.92TB SSD SAS Mix Use 12Gbps 512n 2.5in Hot-plug Drive, PX05SV,3 DWPD,10512 TBW | C145: CNV-TS1L1-SSD1920-U | D145: TS1L1-SSD1920-U | E145: 400-ATNG | F145: 1795
A146: 600GB 10K RPM SAS 12Gbps 512n 2.5in Hot-plug Hard Drive | C146: CNV-TS1L1-HD600R | D146: TS1L1-HD600R | E146: 400-AUWU | F146: 120
A147: 1.2TB 10K RPM SAS 12Gbps 512n 2.5in Hot-plug Hard Drive | C147: CNV-TS1L1-HD1200R | D147: TS1L1-HD1200R | E147: 400-AOWP | F147: 212
A149: HDD max | B149: 16
A150: HDD 300GB Base | B150: 2
A151: HDD 300GB Selected | B151: =HD300_C -> 0
A152: 300GB 10K RPM SAS 12Gbps 2.5in Hot-plug Hard Drive,CusKit | B152: 0 | D152: Hot Spare for 300GB HDD | E152: ='CNV T640 (Rack)'!C94 -> No | F152: =IF(E152="Yes",1,0) -> 0
B153: 1
B154: 2
B155: 3
B156: 4
B157: 5
B158: 6
B159: 7
B160: 8
B161: 9
B162: 10
B163: 11
B164: 12
B165: 13
B166: 14
A167: HDD max | B167: 16
A168: HDD 300GB | B168: =B150+B151 -> 2
A169: HDD 1TB Selected | B169: =HD1000_c -> 0 | D169: Hot Spare for 1TB HDD | E169: ='CNV T640 (Rack)'!C98 -> No | F169: =IF(E169="Yes",1,0) -> 0
A170: 1.2TB 10K RPM SAS 12Gbps 2.5in Hot-plug Hard Drive,CusKit | B170: =$B$167-$B$168-$B$169 -> 14
B171: =IF(B170-1<1,0,B170-1) -> 13
B172: 12
B173: 11
B174: 10
B175: 9
B176: 8
B177: 7
B178: 6
B179: =IF(B178-1<1,0,B178-1) -> 5
B180: 4
B181: 3
B182: 2
B183: 1
B184: 0 | G184: [780-BBJC]
G185: =IF($F$169=0,C188,"") -> [780-BBJD]
A186: RAID Configuration | D186: HDD 300GB | F186: HDD 1TB | G186: =IF($F$169=0,C189,"") -> [780-BBJF]
A187: RAID Personalizzato | B187: =IF($B$146<=8,0,"") -> 0 | C187: [780-BBJC] | D187: RAID Personalizzato | E187: [780-BBJC] | F187: RAID Personalizzato | G187: =IF($B$169-$F$169=2,C190,"") -> 
A188: C10 - Unconfigured RAID for H330 (1-8 HDDs) | B188: 1 | C188: [780-BBJD] | D188: =IF($F$152=0,A188,"") -> C10 - Unconfigured RAID for H330 (1-8 HDDs) | E188: =IF($F$152=0,C188,"") -> [780-BBJD] | F188: =IF($F$169=0,A188,"") -> C10 - Unconfigured RAID for H330 (1-8 HDDs) | G188: =IF($B$169-$F$169>=3,C191,"") -> 
A189: C2 - RAID 0 for H330 (1-8 HDDs) | B189: 1 | C189: [780-BBJF] | D189: =IF($F$152=0,A189,"") -> C2 - RAID 0 for H330 (1-8 HDDs) | E189: =IF($F$152=0,C189,"") -> [780-BBJF] | F189: =IF($F$169=0,A189,"") -> C2 - RAID 0 for H330 (1-8 HDDs) | G189: =IF($B$169-$F$169=4,C192,"") -> 
A190: C3 - RAID 1 for H330 (2 HDDs) | B190: 1 | C190: [780-BBJK] | D190: =IF($B$150+$B$151-$F$152=2,A190,"") -> C3 - RAID 1 for H330 (2 HDDs) | E190: =IF($B$150+$B$151-$F$152=2,C190,"") -> [780-BBJK] | F190: =IF($B$169-$F$169=2,A190,"") ->  | G190: =IF($B$169-$F$169=4,C193,"") -> 
A191: C4 - RAID 5 for H330 (3-8 HDDs) | B191: 1 | C191: [780-BBJL] | D191: =IF($B$150+$B$151-$F$152>=3,A191,"") ->  | E191: =IF($B$150+$B$151-$F$152>=3,C191,"") ->  | F191: =IF($B$169-$F$169>=3,A191,"") ->  | G191: =IF($B$169-$F$169>=5,C194,"") -> 
A192: C6 - RAID 10 forH330 (4-8 HDDs in pairs) | B192: 1 | C192: [780-BBJN] | D192: =IF($B$150+$B$151-$F$152=4,A192,"") ->  | E192: =IF($B$150+$B$151-$F$152=4,C192,"") ->  | F192: =IF($B$169-$F$169=4,A192,"") ->  | G192: =IF($B$169-$F$169=6,C195,"") -> 
A193: C7 - RAID 1+RAID 1 for H330 (2 + 2 HDDs) | B193: 1 | C193: [780-BBJO] | D193: =IF($B$150+$B$151-$F$152=4,A193,"") ->  | E193: =IF($B$150+$B$151-$F$152=4,C193,"") ->  | F193: =IF($B$169-$F$169=4,A193,"") -> 
A194: C8 - RAID 1+RAID 5 for H330 (2 + 3-8 HDDs) | B194: 1 | C194: [780-BBJP] | D194: =IF($B$150+$B$151-$F$152>=5,A194,"") ->  | E194: =IF($B$150+$B$151-$F$152>=5,C194,"") ->  | F194: =IF($B$169-$F$169>=5,A194,"") -> 
A195: C9 - RAID 1+RAID 10 for H330 (2 + 4 HDDs in pairs) | B195: 1 | C195: [780-BBJQ] | D195: =IF($B$150+$B$151-$F$152=6,A195,"") ->  | E195: =IF($B$150+$B$151-$F$152=6,C195,"") ->  | F195: =IF($B$169-$F$169=6,A195,"") -> 
A199: T630 Tower Base
A200: 600GB 10K RPM SAS 12Gbps 512n 2.5in Hot-plug Hard Drive, 3.5in HYB CARR | B200: 1 | C200: CNV-TS1L1-HD600T | D200: TS1L1-HD600T | E200: 400-AOXC | F200: 111
A201: 1.2TB 10K RPM SAS 12Gbps 512n 2.5in Hot-plug Hard Drive, 3.5in HYB CARR | B201: 1 | C201: CNV-TS1L1-HD1200T-U | D201: TS1L1-HD1200T-U | E201: 400-AUUY | F201: 173
A204: HDD max | B204: 18
A205: HDD 300GB Base | B205: 2
A206: HDD 300GB Selected | B206: =HD300_D -> 0
A207: 300GB 10K RPM SAS 2.5in Hot-plug Hard Drive,3.5in HYB CARR,CusKit | B207: 0 | D207: Hot Spare for 300GB HDD | E207: ='CNV T640 (Tower)'!C153 -> 0 | F207: =IF(E207="Yes",1,0) -> 0
B208: 1
B209: 2
B210: 3
B211: 4
B212: 5
B213: 6
B214: 7
B215: 8
B216: 9
B217: 10
B218: 11
B219: 12
B220: 13
B221: 14
B222: 15
B223: 16
A224: HDD max | B224: 18
A225: HDD 300GB | B225: =B205+B206 -> 2
A226: HDD 1TB Selected | B226: =HD1000_D -> 0 | D226: Hot Spare for 1TB HDD | E226: ='CNV T640 (Tower)'!C157 -> 0 | F226: =IF(E226="Yes",1,0) -> 0
A227: 1.2TB 10K RPM SAS 12Gbps 2.5in Hot-plug Hard Drive,3.5in HYB CARR,CusKit | B227: =$B$204-$B$205-$B$206 -> 16
B228: =IF(B227-1<1,0,B227-1) -> 15
B229: 14
B230: 13
B231: 12
B232: 11
B233: 10
... 33 more rows

Sheet Operating System (hidden)
A1: Operating System
A2: R630 1CPU
A3: No Operating System | B3: ="" ->  | C3: ="" ->  | D3: ="" ->  | E3: [611-BBBF] | F3: ="" ->  | H3: None | I3: ="" ->  | J3: ="" ->  | K3: ="" ->  | L3: ="" ->  | N3: None | O3: ="" ->  | P3: ="" ->  | Q3: ="" ->  | R3: ="" ->  | T3: ="" ->  | U3: 0 | V3: ="" ->  | W3: ="" ->  | X3: ="" ->  | Y3: ="" -> 
A4: Microsoft Windows Server 2016 Standard Edition ROK 16 Core | B4: 1 | C4: CNV-TS1L1-WIN1 | D4: TS1L1-WIN1 | E4: [634-BIPU] | F4: 598 | H4: 1-pack of Windows Server 2016 User CALs (Standard or Datacenter) | I4: 1 | J4: CNV-TS1L1-CALUSER | K4: TS1L1-CALUSER | L4: [618-10778] | M4: 25 | N4: 1-pack of Windows Server 2016 Device CALs (Standard or Datacenter) | O4: 1 | P4: CNV-TS1L1-CALDEV | Q4: TS1L1-CALDEV | R4: [618-10777] | S4: 22 | T4: ="" ->  | U4: 0 | V4: ="" ->  | W4: ="" ->  | X4: ="" ->  | Y4: ="" -> 
A5: CentOS 7.0 | B5: 1 | C5: CNV-TS1L1-LINUX | D5: TS1L1-LINUX | E5: ="" ->  | F5: 47 | H5: None | I5: ="" ->  | J5: ="" ->  | K5: ="" ->  | L5: ="" ->  | N5: None | O5: ="" ->  | P5: ="" ->  | Q5: ="" ->  | R5: ="" ->  | T5: ="" ->  | U5: 0 | V5: ="" ->  | W5: ="" ->  | X5: ="" ->  | Y5: ="" -> 
A6: Microsoft Windows Server 2016 Standard Edition Additional License 2 Core | B6: 2 | C6: CNV-TS1L1-WIN2CORE | D6: TS1L1-WIN2CORE | E6: 871159-A21 | F6: 108
A8: R630 2CPU
A9: No Operating System | B9: ="" ->  | C9: ="" ->  | D9: ="" ->  | E9: [611-BBBF] | F9: ="" ->  | H9: None | I9: ="" ->  | J9: ="" ->  | K9: ="" ->  | L9: ="" ->  | N9: None | O9: ="" ->  | P9: ="" ->  | Q9: ="" ->  | R9: ="" ->  | T9: ="" ->  | U9: 0 | V9: ="" ->  | W9: ="" ->  | X9: ="" -> 
A10: Microsoft Windows Server 2016 Standard Edition ROK 16 Core | B10: 1 | C10: CNV-TS1L1-WIN1 | D10: TS1L1-WIN1 | E10: [634-BIPU] | F10: 598 | H10: 1-pack of Windows Server 2016 User CALs (Standard or Datacenter) | I10: 1 | J10: CNV-TS1L1-CALUSER | K10: TS1L1-CALUSER | L10: [618-10778] | M10: 25 | N10: 1-pack of Windows Server 2016 Device CALs (Standard or Datacenter) | O10: 1 | P10: CNV-TS1L1-CALDEV | Q10: TS1L1-CALDEV | R10: [618-10777] | S10: 22 | T10: Microsoft Windows Server 2016 Standard Edition Additional License 2 Core | U10: 2 | V10: CNV-TS1L1-WIN2CORE | W10: TS1L1-WIN2CORE | X10: [634-BJQW] | Y10: 150
A11: CentOS 7.0 | B11: 1 | C11: CNV-TS1L1-LINUX | D11: TS1L1-LINUX | E11: ="" ->  | F11: 47 | H11: None | I11: ="" ->  | J11: ="" ->  | K11: ="" ->  | L11: ="" ->  | N11: None | O11: ="" ->  | P11: ="" ->  | Q11: ="" ->  | R11: ="" ->  | T11: ="" ->  | U11: 0 | V11: ="" ->  | W11: ="" ->  | X11: ="" -> 
A14: Red Hat Enterprise Linux,2SKT,1 Physical OR 2Guest,1Yr PREMIUM SUB,No Media,CUS | B14: 1 | C14: TS1L1-634-BIPV | D14: TS1L1-634-BIPV | E14: 634-BIPV | G14: 990 | H14: None | I14: ="" ->  | J14: ="" ->  | K14: ="" ->  | L14: ="" ->  | N14: None | O14: ="" ->  | P14: ="" ->  | Q14: ="" ->  | R14: ="" ->  | T14: ="" ->  | U14: ="" ->  | V14: ="" ->  | W14: ="" ->  | X14: ="" ->  | Y14: ="" -> 
A15: Red Hat Enterprise Linux,2SKT,1 Physical OR 2Guest,3Yr PREMIUM SUB,No Media,Cus Kit | B15: 1 | C15: TS1L1-634-BIPX | D15: TS1L1-634-BIPX | E15: 634-BIPX | G15: 2820 | H15: None | I15: ="" ->  | J15: ="" ->  | K15: ="" ->  | L15: ="" ->  | N15: None | O15: ="" ->  | P15: ="" ->  | Q15: ="" ->  | R15: ="" ->  | T15: ="" ->  | U15: ="" ->  | V15: ="" ->  | W15: ="" ->  | X15: ="" ->  | Y15: ="" -> 
A16: Red Hat Enterprise Linux,2SKT,1 Physical OR 2Guest,5Yr PREMIUM SUB,No Media,CUS | B16: 1 | C16: TS1L1-634-BIPW | D16: TS1L1-634-BIPW | E16: 634-BIPW | G16: 4700 | H16: None | I16: ="" ->  | J16: ="" ->  | K16: ="" ->  | L16: ="" ->  | N16: None | O16: ="" ->  | P16: ="" ->  | Q16: ="" ->  | R16: ="" ->  | T16: ="" ->  | U16: ="" ->  | V16: ="" ->  | W16: ="" ->  | X16: ="" ->  | Y16: ="" -> 
A17: VMware vSphere Essentials Plus | B17: 1 | C17: TS1L1-210-AIKY | D17: TS1L1-210-AIKY | E17: 210-AIKY | G17: 5730 | H17: None | I17: ="" ->  | J17: ="" ->  | K17: ="" ->  | L17: ="" ->  | N17: None | O17: ="" ->  | P17: ="" ->  | Q17: ="" ->  | R17: ="" ->  | T17: ="" ->  | U17: ="" ->  | V17: ="" ->  | W17: ="" ->  | X17: ="" ->  | Y17: ="" -> 
A18: VMware vSphere EnterprisePlus | B18: 1 | C18: TS1L1-210-AHRP | D18: TS1L1-210-AHRP | E18: 210-AHRP | G18: 5230 | H18: None | I18: ="" ->  | J18: ="" ->  | K18: ="" ->  | L18: ="" ->  | N18: None | O18: ="" ->  | P18: ="" ->  | Q18: ="" ->  | R18: ="" ->  | T18: ="" ->  | U18: ="" ->  | V18: ="" ->  | W18: ="" ->  | X18: ="" ->  | Y18: ="" -> 
A19: VMware vCenter Standard | B19: 1 | C19: TS1L1-210-AHRF | D19: TS1L1-210-AHRF | E19: 210-AHRF | G19: 8961 | H19: None | I19: ="" ->  | J19: ="" ->  | K19: ="" ->  | L19: ="" ->  | N19: None | O19: ="" ->  | P19: ="" ->  | Q19: ="" ->  | R19: ="" ->  | T19: ="" ->  | U19: ="" ->  | V19: ="" ->  | W19: ="" ->  | X19: ="" ->  | Y19: ="" -> 
A21: Red Hat Enterprise Linux,2SKT,1 Physical OR 2Guest,1Yr PREMIUM SUB,No Media,CUS | B21: 1 | C21: TS1L1-634-BIPV | D21: TS1L1-634-BIPV | E21: 634-BIPV | G21: 990 | H21: None | I21: ="" ->  | J21: ="" ->  | K21: ="" ->  | L21: ="" ->  | N21: None | O21: ="" ->  | P21: ="" ->  | Q21: ="" ->  | R21: ="" ->  | T21: ="" ->  | U21: ="" ->  | V21: ="" ->  | W21: ="" ->  | X21: ="" -> 
A22: Red Hat Enterprise Linux,2SKT,1 Physical OR 2Guest,3Yr PREMIUM SUB,No Media,Cus Kit | B22: 1 | C22: TS1L1-634-BIPX | D22: TS1L1-634-BIPX | E22: 634-BIPX | G22: 2820 | H22: None | I22: ="" ->  | J22: ="" ->  | K22: ="" ->  | L22: ="" ->  | N22: None | O22: ="" ->  | P22: ="" ->  | Q22: ="" ->  | R22: ="" ->  | T22: ="" ->  | U22: ="" ->  | V22: ="" ->  | W22: ="" ->  | X22: ="" -> 
A23: Red Hat Enterprise Linux,2SKT,1 Physical OR 2Guest,5Yr PREMIUM SUB,No Media,CUS | B23: 1 | C23: TS1L1-634-BIPW | D23: TS1L1-634-BIPW | E23: 634-BIPW | G23: 4700 | H23: None | I23: ="" ->  | J23: ="" ->  | K23: ="" ->  | L23: ="" ->  | N23: None | O23: ="" ->  | P23: ="" ->  | Q23: ="" ->  | R23: ="" ->  | T23: ="" ->  | U23: ="" ->  | V23: ="" ->  | W23: ="" ->  | X23: ="" -> 
A24: VMware vSphere Essentials Plus | B24: 1 | C24: TS1L1-210-AIKY | D24: TS1L1-210-AIKY | E24: 210-AIKY | G24: 5730 | H24: None | I24: ="" ->  | J24: ="" ->  | K24: ="" ->  | L24: ="" ->  | N24: None | O24: ="" ->  | P24: ="" ->  | Q24: ="" ->  | R24: ="" ->  | T24: ="" ->  | U24: ="" ->  | V24: ="" ->  | W24: ="" ->  | X24: ="" -> 
A25: VMware vSphere EnterprisePlus | B25: 1 | C25: TS1L1-210-AHRP | D25: TS1L1-210-AHRP | E25: 210-AHRP | G25: 5230 | H25: None | I25: ="" ->  | J25: ="" ->  | K25: ="" ->  | L25: ="" ->  | N25: None | O25: ="" ->  | P25: ="" ->  | Q25: ="" ->  | R25: ="" ->  | T25: ="" ->  | U25: ="" ->  | V25: ="" ->  | W25: ="" ->  | X25: ="" -> 
A26: VMware vCenter Standard | B26: 1 | C26: TS1L1-210-AHRF | D26: TS1L1-210-AHRF | E26: 210-AHRF | G26: 8961 | H26: None | I26: ="" ->  | J26: ="" ->  | K26: ="" ->  | L26: ="" ->  | N26: None | O26: ="" ->  | P26: ="" ->  | Q26: ="" ->  | R26: ="" ->  | T26: ="" ->  | U26: ="" ->  | V26: ="" ->  | W26: ="" ->  | X26: ="" -> 
A28: R730xd 1CPU
A29: No Operating System | B29: ="" ->  | C29: ="" ->  | D29: ="" ->  | E29: [611-BBBF] | F29: ="" ->  | H29: None | I29: ="" ->  | J29: ="" ->  | K29: ="" ->  | L29: ="" ->  | N29: None | O29: ="" ->  | P29: ="" ->  | Q29: ="" ->  | R29: ="" ->  | T29: ="" ->  | U29: 0 | V29: ="" ->  | W29: ="" ->  | X29: ="" ->  | Y29: ="" -> 
A30: Microsoft Windows Server 2016 Standard Edition ROK 16 Core | B30: 1 | C30: CNV-TS1L1-WIN1 | D30: TS1L1-WIN1 | E30: [634-BIPU] | F30: 598 | H30: 1-pack of Windows Server 2016 User CALs (Standard or Datacenter) | I30: 1 | J30: CNV-TS1L1-CALUSER | K30: TS1L1-CALUSER | L30: [618-10778] | M30: 25 | N30: 1-pack of Windows Server 2016 Device CALs (Standard or Datacenter) | O30: 1 | P30: CNV-TS1L1-CALDEV | Q30: TS1L1-CALDEV | R30: [618-10777] | S30: 22 | T30: ="" ->  | U30: 0 | V30: ="" ->  | W30: ="" ->  | X30: ="" ->  | Y30: ="" -> 
A31: CentOS 7.0 | B31: 1 | C31: CNV-TS1L1-LINUX | D31: TS1L1-LINUX | E31: ="" ->  | F31: 47 | H31: None | I31: ="" ->  | J31: ="" ->  | K31: ="" ->  | L31: ="" ->  | N31: None | O31: ="" ->  | P31: ="" ->  | Q31: ="" ->  | R31: ="" ->  | T31: ="" ->  | U31: 0 | V31: ="" ->  | W31: ="" ->  | X31: ="" ->  | Y31: ="" -> 
A33: R730xd 2CPU
A34: No Operating System | B34: ="" ->  | C34: ="" ->  | D34: ="" ->  | E34: [611-BBBF] | F34: ="" ->  | H34: None | I34: ="" ->  | J34: ="" ->  | K34: ="" ->  | L34: ="" ->  | N34: None | O34: ="" ->  | P34: ="" ->  | Q34: ="" ->  | R34: ="" ->  | T34: ="" ->  | U34: 0 | V34: ="" ->  | W34: ="" ->  | X34: ="" -> 
A35: Microsoft Windows Server 2016 Standard Edition ROK 16 Core | B35: 1 | C35: CNV-TS1L1-WIN1 | D35: TS1L1-WIN1 | E35: [634-BIPU] | F35: 598 | H35: 1-pack of Windows Server 2016 User CALs (Standard or Datacenter) | I35: 1 | J35: CNV-TS1L1-CALUSER | K35: TS1L1-CALUSER | L35: [618-10778] | M35: 25 | N35: 1-pack of Windows Server 2016 Device CALs (Standard or Datacenter) | O35: 1 | P35: CNV-TS1L1-CALDEV | Q35: TS1L1-CALDEV | R35: [618-10777] | S35: 22 | T35: Microsoft Windows Server 2016 Standard Edition Additional License 2 Core | U35: 6 | V35: CNV-TS1L1-WIN2CORE | W35: TS1L1-WIN2CORE | X35: [634-BJQW] | Y35: 300
A36: CentOS 7.0 | B36: 1 | C36: CNV-TS1L1-LINUX | D36: TS1L1-LINUX | E36: ="" ->  | F36: 47 | H36: None | I36: ="" ->  | J36: ="" ->  | K36: ="" ->  | L36: ="" ->  | N36: None | O36: ="" ->  | P36: ="" ->  | Q36: ="" ->  | R36: ="" ->  | T36: ="" ->  | U36: 0 | V36: ="" ->  | W36: ="" ->  | X36: ="" -> 
A38: T630 2650
A39: No Operating System | B39: ="" ->  | C39: ="" ->  | D39: ="" ->  | E39: [611-BBBF] | F39: ="" ->  | H39: None | I39: ="" ->  | J39: ="" ->  | K39: ="" ->  | L39: ="" ->  | N39: None | O39: ="" ->  | P39: ="" ->  | Q39: ="" ->  | R39: ="" ->  | T39: ="" ->  | U39: 0 | V39: ="" ->  | W39: ="" ->  | X39: ="" -> 
A40: Microsoft Windows Server 2016 Standard Edition ROK 16 Core | B40: 1 | C40: CNV-TS1L1-WIN1 | D40: TS1L1-WIN1 | E40: [634-BIPU] | F40: 598 | H40: 1-pack of Windows Server 2016 User CALs (Standard or Datacenter) | I40: 1 | J40: CNV-TS1L1-CALUSER | K40: TS1L1-CALUSER | L40: [618-10778] | M40: 25 | N40: 1-pack of Windows Server 2012 Device CALs (Standard or Datacenter) | O40: 1 | P40: CNV-TS1L1-CALDEV | Q40: TS1L1-CALDEV | R40: [618-10777] | S40: 25 | T40: Microsoft Windows Server 2016 Standard Edition Additional License 2 Core | U40: 0 | V40: CNV-TS1L1-WIN2CORE | W40: TS1L4-WIN2CORE | X40: [634-BJQW] | Y40: 300
A41: CentOS 7.0 | B41: 1 | C41: CNV-TS1L1-LINUX | D41: TS1L1-LINUX | E41: ="" ->  | F41: 47 | H41: None | I41: ="" ->  | J41: ="" ->  | K41: ="" ->  | L41: ="" ->  | N41: None | O41: ="" ->  | P41: ="" ->  | Q41: ="" ->  | R41: ="" ->  | T41: ="" ->  | U41: 0 | V41: ="" ->  | W41: ="" ->  | X41: ="" -> 
A43: T630 2650 2CPU
A44: No Operating System | B44: ="" ->  | C44: ="" ->  | D44: ="" ->  | E44: [611-BBBF] | F44: ="" ->  | H44: None | I44: ="" ->  | J44: ="" ->  | K44: ="" ->  | L44: ="" ->  | N44: None | O44: ="" ->  | P44: ="" ->  | Q44: ="" ->  | R44: ="" ->  | T44: ="" ->  | U44: 0 | V44: ="" ->  | W44: ="" ->  | X44: ="" -> 
A45: Microsoft Windows Server 2016 Standard Edition ROK 16 Core | B45: 1 | C45: CNV-TS1L1-WIN1 | D45: TS1L1-WIN1 | E45: [634-BIPU] | F45: 598 | H45: 1-pack of Windows Server 2016 User CALs (Standard or Datacenter) | I45: 1 | J45: CNV-TS1L1-CALUSER | K45: TS1L1-CALUSER | L45: [618-10778] | M45: 25 | N45: 1-pack of Windows Server 2012 Device CALs (Standard or Datacenter) | O45: 1 | P45: CNV-TS1L1-CALDEV | Q45: TS1L1-CALDEV | R45: [618-10777] | S45: 25 | T45: Microsoft Windows Server 2016 Standard Edition Additional License 2 Core | U45: 6 | V45: CNV-TS1L1-WIN2CORE | W45: TS1L4-WIN2CORE | X45: [634-BJQW] | Y45: 300
A46: CentOS 7.0 | B46: 1 | C46: CNV-TS1L1-LINUX | D46: TS1L1-LINUX | E46: ="" ->  | F46: 47 | H46: None | I46: ="" ->  | J46: ="" ->  | K46: ="" ->  | L46: ="" ->  | N46: None | O46: ="" ->  | P46: ="" ->  | Q46: ="" ->  | R46: ="" ->  | T46: ="" ->  | U46: 0 | V46: ="" ->  | W46: ="" ->  | X46: ="" -> 
A50: None | B50: 0 | F50: 0
A51: SUSE Linux Enterprise Server, x86 & x86-64, 1-2 Sockets or 1-2 Virtual Machines, Standard Subscription, 3 Years | B51: 1 | C51: CNV-874-006887 | D51: TS1-874-006887 | E51: 874-006887 | F51: 1350
A52: SUSE Linux Enterprise Server, x86 & x86-64, 1-2 Sockets or 1-2 Virtual Machines, Standard Subscription, 5 Years | B52: 1 | C52: CNV-874-006898 | D52: TS1-874-006898 | E52: 874-006898 | F52: 2242.5
A53: SUSE Linux Enterprise Server, x86 & x86-64, 1-2 Sockets with Unlimited Virtual Machines, Standard Subscription, 3 Years | B53: 1 | C53: CNV-874-006888 | D53: TS1-874-006888 | E53: 874-006888 | F53: 2692.5
A54: SUSE Linux Enterprise Server, x86 & x86-64, 1-2 Sockets with Unlimited Virtual Machines, Standard Subscription, 5 Years | B54: 1 | C54: CNV-874-006902 | D54: TS1-874-006902 | E54: 874-006902 | F54: 4500
A55: SUSE Linux Enterprise Server, x86 & x86-64, 1-2 Sockets or 1-2 Virtual Machines, Priority Subscription, 3 Year | B55: 1 | C55: CNV-874-006883 | D55: TS1-874-006883 | E55: 874-006883 | F55: 2520
A56: SUSE Linux Enterprise Server, x86 & x86-64, 1-2 Sockets or 1-2 Virtual Machines, Priority Subscription, 5 Year | B56: 1 | C56: CNV-874-006894 | D56: TS1-874-006894 | E56: 874-006894 | F56: 4200
A57: SUSE Linux Enterprise Server, x86 & x86-64, 1-2 Sockets with Unlimited Virtual Machines, Priority Subscription, 3 Year | B57: 1 | C57: CNV-874-006884 | D57: TS1-874-006884 | E57: 874-006884 | F57: 5100
A58: SUSE Linux Enterprise Server, x86 & x86-64, 1-2 Sockets with Unlimited Virtual Machines, Priority Subscription, 5 Year | B58: 1 | C58: CNV-874-006895 | D58: TS1-874-006895 | E58: 874-006895 | F58: 8400
A59: VMWARE
A60: None | B60: 0 | F60: 0
A61: VMware vSphere Standard, 1CPU, 3YR License/Maintenance | B61: 1 | C61: CNV-210-AHRT | D61: TS1-210-AHRT | E61: 210-AHRT | F61: 1463
A62: VMware vSphere Enterprise Plus, 1CPU, 3YR License/Maintenance | B62: 1 | C62: CNV-210-AHRP | D62: TS1-210-AHRP | E62: 210-AHRP | F62: 4400
H64: R630 | I64: T630R | J64: R730 | K64: R730xd | L64: T630 | M64: T630P
A65: VMWARE1 | G65: 1 | H65: =SRV_A -> 0 | I65: =SRV_C -> 0 | J65: =SRV_B1.1 -> 0 | K65: =SRV_B -> 0 | L65: =SRV_D -> 0 | M65: =SRV_E -> 0
A66: None | B66: 0 | F66: 0 | G66: 2 | H66: =SRV_AA -> 0 | I66: =SRV_CC -> 0 | J66: =SRV_B1.2 -> 0 | K66: =SRV_BB -> 0
A67: VMware vSphere Essentials Plus, 6CPU, 3YR | B67: 1 | C67: CNV-210-AIKY | D67: TS1-210-AIKY | E67: 210-AIKY | F67: 4100 | G67: 3 | H67: =SRV_AAA -> 0 | I67: =SRV_CCC -> 0 | J67: =SRV_B1.3 -> 0 | K67: =SRV_BB -> 0
A69: VMWARE2
A70: None | B70: 0 | F70: 0
A71: VMware vCenter Standard, 3YR License/Maintenance | B71: 1 | C71: CNV-210-AHRF | D71: TS1-210-AHRF | E71: 210-AHRF | F71: 8338

Sheet Memory (hidden)
B2: Dell 16 GB Modulo di memoria - RDIMM 2666MHz | C2: 1 | D2: CNV-TS1L1-16GB-U | E2: TS1L1-16GB-U | F2: 370-ADOR | G2: 122
B3: Dell 32 GB Modulo di memoria - RDIMM 2666MHz | C3: 1 | D3: CNV-TS1L1-32GB-U | E3: TS1L1-32GB-U | F3: A9781929 | G3: 313
B4: Dell 64 GB Modulo di memoria - LRDIMM 2666MHz | C4: 1 | D4: CNV-TS1L1-64GB-U | E4: TS1L1-64GB-U | F4: A9781930 | G4: 618
B5: Dell 64 GB Modulo di memoria - LRDIMM 2666MHz | C5: 1 | D5: CNV-TS1L1-64GB-U-R74 | E5: TS1L1-64GB-U | F5: A9781930 | G5: 625
B7: R640 - T640
A8: 1CPU | B8: MEMORY A
A9: 32 | B9: ="" ->  | C9: ="" ->  | D9: ="" ->  | E9: ="" ->  | F9: ="" ->  | G9: ="" ->  | H9: Dell 32 GB Modulo di memoria - RDIMM 2666MHz | I9: 1 | J9: [370-ADNF] | K9: ="" ->  | L9: ="" ->  | M9: ="" ->  | N9: ="" ->  | O9: ="" ->  | P9: ="" -> 
A10: 64 | B10: Dell 32 GB Modulo di memoria - RDIMM 2666MHz | C10: 1 | D10: CNV-TS1L1-32GB-U | E10: TS1L1-32GB-U | F10: A9781929 | G10: =$G$3*C10 -> 313 | H10: Dell 32 GB Modulo di memoria - RDIMM 2666MHz | I10: 1 | J10: [370-ADNF] | K10: ="" ->  | L10: ="" ->  | M10: ="" ->  | N10: ="" ->  | O10: ="" ->  | P10: ="" -> 
A11: 96 | B11: Dell 32 GB Modulo di memoria - RDIMM 2666MHz | C11: 2 | D11: CNV-TS1L1-32GB-U | E11: TS1L1-32GB-U | F11: A9781929 | G11: 626 | H11: Dell 32 GB Modulo di memoria - RDIMM 2666MHz | I11: 1 | J11: [370-ADNF] | K11: ="" ->  | L11: ="" ->  | M11: ="" ->  | N11: ="" ->  | O11: ="" ->  | P11: ="" -> 
A12: 128 | B12: Dell 32 GB Modulo di memoria - RDIMM 2666MHz | C12: 3 | D12: CNV-TS1L1-32GB-U | E12: TS1L1-32GB-U | F12: A9781929 | G12: 939 | H12: Dell 32 GB Modulo di memoria - RDIMM 2666MHz | I12: 1 | J12: [370-ADNF] | K12: ="" ->  | L12: ="" ->  | M12: ="" ->  | N12: ="" ->  | O12: ="" ->  | P12: ="" -> 
A13: 160 | B13: Dell 32 GB Modulo di memoria - RDIMM 2666MHz | C13: 4 | D13: CNV-TS1L1-32GB-U | E13: TS1L1-32GB-U | F13: A9781929 | G13: 1252 | H13: Dell 32 GB Modulo di memoria - RDIMM 2666MHz | I13: 1 | J13: [370-ADNF] | K13: ="" ->  | L13: ="" ->  | M13: ="" ->  | N13: ="" ->  | O13: ="" ->  | P13: ="" -> 
A14: 192 | B14: Dell 32 GB Modulo di memoria - RDIMM 2666MHz | C14: 5 | D14: CNV-TS1L1-32GB-U | E14: TS1L1-32GB-U | F14: A9781929 | G14: 1565 | H14: Dell 32 GB Modulo di memoria - RDIMM 2666MHz | I14: 1 | J14: [370-ADNF] | K14: ="" ->  | L14: ="" ->  | M14: ="" ->  | N14: ="" ->  | O14: ="" ->  | P14: ="" -> 
A15: 256 | B15: Dell 32 GB Modulo di memoria - RDIMM 2666MHz | C15: 7 | D15: CNV-TS1L1-32GB-U | E15: TS1L1-32GB-U | F15: A9781929 | G15: 2191 | H15: Dell 32 GB Modulo di memoria - RDIMM 2666MHz | I15: 1 | J15: [370-ADNF] | K15: ="" ->  | L15: ="" ->  | M15: ="" ->  | N15: ="" ->  | O15: ="" ->  | P15: ="" -> 
A16: 320 | B16: Dell 32 GB Modulo di memoria - RDIMM 2666MHz | C16: 9 | D16: CNV-TS1L1-32GB-U | E16: TS1L1-32GB-U | F16: A9781929 | G16: 2817 | H16: Dell 32 GB Modulo di memoria - RDIMM 2666MHz | I16: 1 | J16: [370-ADNF] | K16: ="" ->  | L16: ="" ->  | M16: ="" ->  | N16: ="" ->  | O16: ="" ->  | P16: ="" -> 
A17: 384 | B17: Dell 32 GB Modulo di memoria - RDIMM 2666MHz | C17: 11 | D17: CNV-TS1L1-32GB-U | E17: TS1L1-32GB-U | F17: A9781929 | G17: 3443 | H17: Dell 32 GB Modulo di memoria - RDIMM 2666MHz | I17: 1 | J17: [370-ADNF] | K17: ="" ->  | L17: ="" ->  | M17: ="" ->  | N17: ="" ->  | O17: ="" ->  | P17: ="" -> 
A18: 512 | B18: ="" ->  | C18: ="" ->  | D18: ="" ->  | E18: ="" ->  | F18: ="" ->  | G18: ="" ->  | H18: ="" ->  | I18: ="" ->  | J18: ="" ->  | K18: Dell 64 GB Modulo di memoria - LRDIMM 2666MHz | L18: 8 | M18: CNV-TS1L1-64GB-U | N18: TS1L1-64GB-U | O18: A9781930 | P18: =$G$4*L18 -> 4944
A19: 640 | B19: ="" ->  | C19: ="" ->  | D19: ="" ->  | E19: ="" ->  | F19: ="" ->  | G19: ="" ->  | H19: ="" ->  | I19: ="" ->  | J19: ="" ->  | K19: Dell 64 GB Modulo di memoria - LRDIMM 2666MHz | L19: 10 | M19: CNV-TS1L1-64GB-U | N19: TS1L1-64GB-U | O19: A9781930 | P19: =$G$4*L19 -> 6180
A20: 768 | B20: ="" ->  | C20: ="" ->  | D20: ="" ->  | E20: ="" ->  | F20: ="" ->  | G20: ="" ->  | H20: ="" ->  | I20: ="" ->  | J20: ="" ->  | K20: Dell 64 GB Modulo di memoria - LRDIMM 2666MHz | L20: 12 | M20: CNV-TS1L1-64GB-U | N20: TS1L1-64GB-U | O20: A9781930 | P20: =$G$4*L20 -> 7416
A21: 2CPU
A22: 64 | B22: Dell 32 GB Modulo di memoria - RDIMM 2666MHz | C22: 1 | D22: CNV-TS1L1-32GB-U | E22: TS1L1-32GB-U | F22: A9781929 | G22: =$G$3*C22 -> 313 | H22: Dell 32 GB Modulo di memoria - RDIMM 2666MHz | I22: 1 | J22: [370-ADNF] | K22: ="" ->  | L22: ="" ->  | M22: ="" ->  | N22: ="" ->  | O22: ="" ->  | P22: ="" -> 
A23: 128 | B23: Dell 32 GB Modulo di memoria - RDIMM 2666MHz | C23: 3 | D23: CNV-TS1L1-32GB-U | E23: TS1L1-32GB-U | F23: A9781929 | G23: =$G$3*C23 -> 939 | H23: Dell 32 GB Modulo di memoria - RDIMM 2666MHz | I23: 1 | J23: [370-ADNF] | K23: ="" ->  | L23: ="" ->  | M23: ="" ->  | N23: ="" ->  | O23: ="" ->  | P23: ="" -> 
A24: 192 | B24: Dell 32 GB Modulo di memoria - RDIMM 2666MHz | C24: 5 | D24: CNV-TS1L1-32GB-U | E24: TS1L1-32GB-U | F24: A9781929 | G24: 1565 | H24: Dell 32 GB Modulo di memoria - RDIMM 2666MHz | I24: 1 | J24: [370-ADNF] | K24: ="" ->  | L24: ="" ->  | M24: ="" ->  | N24: ="" ->  | O24: ="" ->  | P24: ="" -> 
A25: 256 | B25: Dell 32 GB Modulo di memoria - RDIMM 2666MHz | C25: 7 | D25: CNV-TS1L1-32GB-U | E25: TS1L1-32GB-U | F25: A9781929 | G25: 2191 | H25: Dell 32 GB Modulo di memoria - RDIMM 2666MHz | I25: 1 | J25: [370-ADNF] | K25: ="" ->  | L25: ="" ->  | M25: ="" ->  | N25: ="" ->  | O25: ="" ->  | P25: ="" -> 
A26: 320 | B26: Dell 32 GB Modulo di memoria - RDIMM 2666MHz | C26: 9 | D26: CNV-TS1L1-32GB-U | E26: TS1L1-32GB-U | F26: A9781929 | G26: 2817 | H26: Dell 32 GB Modulo di memoria - RDIMM 2666MHz | I26: 1 | J26: [370-ADNF] | K26: ="" ->  | L26: ="" ->  | M26: ="" ->  | N26: ="" ->  | O26: ="" ->  | P26: ="" -> 
A27: 384 | B27: Dell 32 GB Modulo di memoria - RDIMM 2666MHz | C27: 11 | D27: CNV-TS1L1-32GB-U | E27: TS1L1-32GB-U | F27: A9781929 | G27: 3443 | H27: Dell 32 GB Modulo di memoria - RDIMM 2666MHz | I27: 1 | J27: [370-ADNF] | K27: ="" ->  | L27: ="" ->  | M27: ="" ->  | N27: ="" ->  | O27: ="" ->  | P27: ="" -> 
A28: 512 | B28: Dell 32 GB Modulo di memoria - RDIMM 2666MHz | C28: 15 | D28: CNV-TS1L1-32GB-U | E28: TS1L1-32GB-U | F28: A9781929 | G28: 4695 | H28: Dell 32 GB Modulo di memoria - RDIMM 2666MHz | I28: 1 | J28: [370-ADNF] | K28: ="" ->  | L28: ="" ->  | M28: ="" ->  | N28: ="" ->  | O28: ="" ->  | P28: ="" -> 
A29: 640 | B29: Dell 32 GB Modulo di memoria - RDIMM 2666MHz | C29: 19 | D29: CNV-TS1L1-32GB-U | E29: TS1L1-32GB-U | F29: A9781929 | G29: 5947 | H29: Dell 32 GB Modulo di memoria - RDIMM 2666MHz | I29: 1 | J29: [370-ADNF] | K29: ="" ->  | L29: ="" ->  | M29: ="" ->  | N29: ="" ->  | O29: ="" ->  | P29: ="" -> 
A30: 768 | B30: Dell 32 GB Modulo di memoria - RDIMM 2666MHz | C30: 23 | D30: CNV-TS1L1-32GB-U | E30: TS1L1-32GB-U | F30: A9781929 | G30: 7199 | H30: Dell 32 GB Modulo di memoria - RDIMM 2666MHz | I30: 1 | J30: [370-ADNF] | K30: ="" ->  | L30: ="" ->  | M30: ="" ->  | N30: ="" ->  | O30: ="" ->  | P30: ="" -> 
A31: 1024 | B31: ="" ->  | C31: ="" ->  | D31: ="" ->  | E31: ="" ->  | F31: ="" ->  | G31: ="" ->  | H31: ="" ->  | I31: ="" ->  | J31: ="" ->  | K31: Dell 64 GB Modulo di memoria - LRDIMM 2666MHz | L31: 16 | M31: CNV-TS1L1-64GB-U | N31: TS1L1-64GB-U | O31: A9781930 | P31: =$G$4*L31 -> 9888
A32: 1280 | B32: ="" ->  | C32: ="" ->  | D32: ="" ->  | E32: ="" ->  | F32: ="" ->  | G32: ="" ->  | H32: ="" ->  | I32: ="" ->  | J32: ="" ->  | K32: Dell 64 GB Modulo di memoria - LRDIMM 2666MHz | L32: 20 | M32: CNV-TS1L1-64GB-U | N32: TS1L1-64GB-U | O32: A9781930 | P32: =$G$4*L32 -> 12360
A33: 1536 | B33: ="" ->  | C33: ="" ->  | D33: ="" ->  | E33: ="" ->  | F33: ="" ->  | G33: ="" ->  | H33: ="" ->  | I33: ="" ->  | J33: ="" ->  | K33: Dell 64 GB Modulo di memoria - LRDIMM 2666MHz | L33: 24 | M33: CNV-TS1L1-64GB-U | N33: TS1L1-64GB-U | O33: A9781930 | P33: =$G$4*L33 -> 14832
A36: 1CPU | B36: MEMORY B
A37: 64 | B37: ="" ->  | C37: ="" ->  | D37: ="" ->  | E37: ="" ->  | F37: ="" ->  | G37: ="" ->  | H37: Dell 32 GB Modulo di memoria - RDIMM 2666MHz | I37: 2 | J37: [370-ADNF] | K37: ="" ->  | L37: ="" ->  | M37: ="" ->  | N37: ="" ->  | O37: ="" ->  | P37: ="" -> 
A38: 128 | B38: Dell 32 GB Modulo di memoria - RDIMM 2666MHz | C38: 2 | D38: CNV-TS1L1-32GB-U | E38: TS1L1-32GB-U | F38: A9781929 | G38: =$G$3*C38 -> 626 | H38: Dell 32 GB Modulo di memoria - RDIMM 2666MHz | I38: 2 | J38: [370-ADNF] | K38: ="" ->  | L38: ="" ->  | M38: ="" ->  | N38: ="" ->  | O38: ="" ->  | P38: ="" -> 
A39: 160 | B39: Dell 32 GB Modulo di memoria - RDIMM 2666MHz | C39: 4 | D39: CNV-TS1L1-32GB-U | E39: TS1L1-32GB-U | F39: A9781929 | G39: =$G$2*C39 -> 488 | H39: Dell 32 GB Modulo di memoria - RDIMM 2666MHz | I39: 1 | J39: [370-ADNF] | K39: ="" ->  | L39: ="" ->  | M39: ="" ->  | N39: ="" ->  | O39: ="" ->  | P39: ="" -> 
A40: 192 | B40: Dell 32 GB Modulo di memoria - RDIMM 2666MHz | C40: 4 | D40: CNV-TS1L1-32GB-U | E40: TS1L1-32GB-U | F40: A9781929 | G40: =$G$3*C40 -> 1252 | H40: Dell 32 GB Modulo di memoria - RDIMM 2666MHz | I40: 2 | J40: [370-ADNF] | K40: ="" ->  | L40: ="" ->  | M40: ="" ->  | N40: ="" ->  | O40: ="" ->  | P40: ="" -> 
A41: 256 | B41: Dell 32 GB Modulo di memoria - RDIMM 2666MHz | C41: 6 | D41: CNV-TS1L1-32GB-U | E41: TS1L1-32GB-U | F41: A9781929 | G41: 1878 | H41: Dell 32 GB Modulo di memoria - RDIMM 2666MHz | I41: 2 | J41: [370-ADNF] | K41: ="" ->  | L41: ="" ->  | M41: ="" ->  | N41: ="" ->  | O41: ="" ->  | P41: ="" -> 
A42: 320 | B42: Dell 32 GB Modulo di memoria - RDIMM 2666MHz | C42: 8 | D42: CNV-TS1L1-32GB-U | E42: TS1L1-32GB-U | F42: A9781929 | G42: 2504 | H42: Dell 32 GB Modulo di memoria - RDIMM 2666MHz | I42: 2 | J42: [370-ADNF] | K42: ="" ->  | L42: ="" ->  | M42: ="" ->  | N42: ="" ->  | O42: ="" ->  | P42: ="" -> 
A43: 384 | B43: Dell 32 GB Modulo di memoria - RDIMM 2666MHz | C43: 10 | D43: CNV-TS1L1-32GB-U | E43: TS1L1-32GB-U | F43: A9781929 | G43: 3130 | H43: Dell 32 GB Modulo di memoria - RDIMM 2666MHz | I43: 2 | J43: [370-ADNF] | K43: ="" ->  | L43: ="" ->  | M43: ="" ->  | N43: ="" ->  | O43: ="" ->  | P43: ="" -> 
A44: =64*L44 -> 512 | B44: ="" ->  | C44: ="" ->  | D44: ="" ->  | E44: ="" ->  | F44: ="" ->  | G44: ="" ->  | H44: ="" ->  | I44: ="" ->  | J44: ="" ->  | K44: Dell 64 GB Modulo di memoria - LRDIMM 2666MHz | L44: 8 | M44: CNV-TS1L1-64GB-U-R74 | N44: TS1L1-64GB-U | O44: A9781930 | P44: =$G$5*L44 -> 5000
A45: =64*L45 -> 640 | B45: ="" ->  | C45: ="" ->  | D45: ="" ->  | E45: ="" ->  | F45: ="" ->  | G45: ="" ->  | H45: ="" ->  | I45: ="" ->  | J45: ="" ->  | K45: Dell 64 GB Modulo di memoria - LRDIMM 2666MHz | L45: 10 | M45: CNV-TS1L1-64GB-U-R74 | N45: TS1L1-64GB-U | O45: A9781930 | P45: =$G$3*L45 -> 3130
A46: 768 | B46: ="" ->  | C46: ="" ->  | D46: ="" ->  | E46: ="" ->  | F46: ="" ->  | G46: ="" ->  | H46: ="" ->  | I46: ="" ->  | J46: ="" ->  | K46: Dell 64 GB Modulo di memoria - LRDIMM 2666MHz | L46: 12 | M46: CNV-TS1L1-64GB-U-R74 | N46: TS1L1-64GB-U | O46: A9781930 | P46: =$G$3*L46 -> 3756
A47: 2CPU
A48: 64 | B48: ="" ->  | C48: ="" ->  | D48: ="" ->  | E48: ="" ->  | F48: ="" ->  | G48: ="" ->  | H48: Dell 32 GB Modulo di memoria - RDIMM 2666MHz | I48: 2 | J48: [370-ADNF] | K48: ="" ->  | L48: ="" ->  | M48: ="" ->  | N48: ="" ->  | O48: ="" ->  | P48: ="" -> 
A49: 128 | B49: Dell 32 GB Modulo di memoria - RDIMM 2666MHz | C49: 2 | D49: CNV-TS1L1-32GB-U | E49: TS1L1-32GB-U | F49: A9781929 | G49: =$G$3*C49 -> 626 | H49: Dell 32 GB Modulo di memoria - RDIMM 2666MHz | I49: 2 | J49: [370-ADNF] | K49: ="" ->  | L49: ="" ->  | M49: ="" ->  | N49: ="" ->  | O49: ="" ->  | P49: ="" -> 
A50: 192 | B50: Dell 32 GB Modulo di memoria - RDIMM 2666MHz | C50: 4 | D50: CNV-TS1L1-32GB-U | E50: TS1L1-32GB-U | F50: A9781929 | G50: =$G$3*C50 -> 1252 | H50: Dell 32 GB Modulo di memoria - RDIMM 2666MHz | I50: 2 | J50: [370-ADNF] | K50: ="" ->  | L50: ="" ->  | M50: ="" ->  | N50: ="" ->  | O50: ="" ->  | P50: ="" -> 
A51: 256 | B51: Dell 32 GB Modulo di memoria - RDIMM 2666MHz | C51: 6 | D51: CNV-TS1L1-32GB-U | E51: TS1L1-32GB-U | F51: A9781929 | G51: 1878 | H51: Dell 32 GB Modulo di memoria - RDIMM 2666MHz | I51: 2 | J51: [370-ADNF] | K51: ="" ->  | L51: ="" ->  | M51: ="" ->  | N51: ="" ->  | O51: ="" ->  | P51: ="" -> 
A52: 320 | B52: Dell 32 GB Modulo di memoria - RDIMM 2666MHz | C52: 8 | D52: CNV-TS1L1-32GB-U | E52: TS1L1-32GB-U | F52: A9781929 | G52: 2504 | H52: Dell 32 GB Modulo di memoria - RDIMM 2666MHz | I52: 2 | J52: [370-ADNF] | K52: ="" ->  | L52: ="" ->  | M52: ="" ->  | N52: ="" ->  | O52: ="" ->  | P52: ="" -> 
A53: 384 | B53: Dell 32 GB Modulo di memoria - RDIMM 2666MHz | C53: 10 | D53: CNV-TS1L1-32GB-U | E53: TS1L1-32GB-U | F53: A9781929 | G53: 3130 | H53: Dell 32 GB Modulo di memoria - RDIMM 2666MHz | I53: 2 | J53: [370-ADNF] | K53: ="" ->  | L53: ="" ->  | M53: ="" ->  | N53: ="" ->  | O53: ="" ->  | P53: ="" -> 
A54: =32*(C54+I54) -> 512 | B54: Dell 32 GB Modulo di memoria - RDIMM 2666MHz | C54: 14 | D54: CNV-TS1L1-32GB-U | E54: TS1L1-32GB-U | F54: A9781929 | G54: =$G$3*C54 -> 4382 | H54: Dell 32 GB Modulo di memoria - RDIMM 2666MHz | I54: 2 | J54: [370-ADNF] | K54: ="" ->  | L54: ="" ->  | M54: ="" ->  | N54: ="" ->  | O54: ="" ->  | P54: ="" -> 
A55: =32*(C55+I55) -> 640 | B55: Dell 32 GB Modulo di memoria - RDIMM 2666MHz | C55: 18 | D55: CNV-TS1L1-32GB-U | E55: TS1L1-32GB-U | F55: A9781929 | G55: =$G$3*C55 -> 5634 | H55: Dell 32 GB Modulo di memoria - RDIMM 2666MHz | I55: 2 | J55: [370-ADNF] | K55: ="" ->  | L55: ="" ->  | M55: ="" ->  | N55: ="" ->  | O55: ="" ->  | P55: ="" -> 
A56: =32*(C56+I56) -> 768 | B56: Dell 32 GB Modulo di memoria - RDIMM 2666MHz | C56: 22 | D56: CNV-TS1L1-32GB-U | E56: TS1L1-32GB-U | F56: A9781929 | G56: =$G$3*C56 -> 6886 | H56: Dell 32 GB Modulo di memoria - RDIMM 2666MHz | I56: 2 | J56: [370-ADNF] | K56: ="" ->  | L56: ="" ->  | M56: ="" ->  | N56: ="" ->  | O56: ="" ->  | P56: ="" -> 
A57: =64*L57 -> 1024 | B57: ="" ->  | C57: ="" ->  | D57: ="" ->  | E57: ="" ->  | F57: ="" ->  | G57: ="" ->  | H57: ="" ->  | I57: ="" ->  | J57: ="" ->  | K57: Dell 64 GB Modulo di memoria - LRDIMM 2666MHz | L57: 16 | M57: CNV-TS1L1-64GB-U-R74 | N57: TS1L1-64GB-U | O57: A9781930 | P57: =$G$5*L57 -> 10000
A58: =64*L58 -> 1280 | B58: ="" ->  | C58: ="" ->  | D58: ="" ->  | E58: ="" ->  | F58: ="" ->  | G58: ="" ->  | H58: ="" ->  | I58: ="" ->  | J58: ="" ->  | K58: Dell 64 GB Modulo di memoria - LRDIMM 2666MHz | L58: 20 | M58: CNV-TS1L1-64GB-U-R74 | N58: TS1L1-64GB-U | O58: A9781930 | P58: =$G$5*L58 -> 12500
A59: 1536 | B59: ="" ->  | C59: ="" ->  | D59: ="" ->  | E59: ="" ->  | F59: ="" ->  | G59: ="" ->  | H59: ="" ->  | I59: ="" ->  | J59: ="" ->  | K59: Dell 64 GB Modulo di memoria - LRDIMM 2666MHz | L59: 24 | M59: CNV-TS1L1-64GB-U-R74 | N59: TS1L1-64GB-U | O59: A9781930 | P59: =$G$5*L59 -> 15000
A62: 1CPU | B62: MEMORY C
A63: 64 | B63: ="" ->  | C63: ="" ->  | D63: ="" ->  | E63: ="" ->  | F63: ="" ->  | G63: ="" ->  | H63: Dell 32 GB Modulo di memoria - RDIMM 2666MHz | I63: 2 | J63: [370-ADNF] | K63: ="" ->  | L63: ="" ->  | M63: ="" ->  | N63: ="" ->  | O63: ="" ->  | P63: ="" -> 
A64: 128 | B64: Dell 32 GB Modulo di memoria - RDIMM 2666MHz | C64: 2 | D64: CNV-TS1L1-32GB-U | E64: TS1L1-32GB-U | F64: A9781929 | G64: =$G$3*C64 -> 626 | H64: Dell 32 GB Modulo di memoria - RDIMM 2666MHz | I64: 2 | J64: [370-ADNF] | K64: ="" ->  | L64: ="" ->  | M64: ="" ->  | N64: ="" ->  | O64: ="" ->  | P64: ="" -> 
A65: 160 | B65: Dell 32 GB Modulo di memoria - RDIMM 2666MHz | C65: 4 | D65: CNV-TS1L1-32GB-U | E65: TS1L1-32GB-U | F65: A9781929 | G65: =$G$2*C65 -> 488 | H65: Dell 32 GB Modulo di memoria - RDIMM 2666MHz | I65: 1 | J65: [370-ADNF] | K65: ="" ->  | L65: ="" ->  | M65: ="" ->  | N65: ="" ->  | O65: ="" ->  | P65: ="" -> 
A66: 192 | B66: Dell 32 GB Modulo di memoria - RDIMM 2666MHz | C66: 4 | D66: CNV-TS1L1-32GB-U | E66: TS1L1-32GB-U | F66: A9781929 | G66: =$G$3*C66 -> 1252 | H66: Dell 32 GB Modulo di memoria - RDIMM 2666MHz | I66: 2 | J66: [370-ADNF] | K66: ="" ->  | L66: ="" ->  | M66: ="" ->  | N66: ="" ->  | O66: ="" ->  | P66: ="" -> 
A67: 256 | B67: Dell 32 GB Modulo di memoria - RDIMM 2666MHz | C67: 6 | D67: CNV-TS1L1-32GB-U | E67: TS1L1-32GB-U | F67: A9781929 | G67: 1878 | H67: Dell 32 GB Modulo di memoria - RDIMM 2666MHz | I67: 2 | J67: [370-ADNF] | K67: ="" ->  | L67: ="" ->  | M67: ="" ->  | N67: ="" ->  | O67: ="" ->  | P67: ="" -> 
A68: 320 | B68: Dell 32 GB Modulo di memoria - RDIMM 2666MHz | C68: 8 | D68: CNV-TS1L1-32GB-U | E68: TS1L1-32GB-U | F68: A9781929 | G68: 2504 | H68: Dell 32 GB Modulo di memoria - RDIMM 2666MHz | I68: 2 | J68: [370-ADNF] | K68: ="" ->  | L68: ="" ->  | M68: ="" ->  | N68: ="" ->  | O68: ="" ->  | P68: ="" -> 
A69: 384 | B69: Dell 32 GB Modulo di memoria - RDIMM 2666MHz | C69: 10 | D69: CNV-TS1L1-32GB-U | E69: TS1L1-32GB-U | F69: A9781929 | G69: 3130 | H69: Dell 32 GB Modulo di memoria - RDIMM 2666MHz | I69: 2 | J69: [370-ADNF] | K69: ="" ->  | L69: ="" ->  | M69: ="" ->  | N69: ="" ->  | O69: ="" ->  | P69: ="" -> 
A70: =64*L70 -> 512 | B70: ="" ->  | C70: ="" ->  | D70: ="" ->  | E70: ="" ->  | F70: ="" ->  | G70: ="" ->  | H70: ="" ->  | I70: ="" ->  | J70: ="" ->  | K70: Dell 64 GB Modulo di memoria - LRDIMM 2666MHz | L70: 8 | M70: CNV-TS1L1-64GB-U | N70: TS1L1-64GB-U | O70: A9781930 | P70: =$G$5*L70 -> 5000
A71: =64*L71 -> 640 | B71: ="" ->  | C71: ="" ->  | D71: ="" ->  | E71: ="" ->  | F71: ="" ->  | G71: ="" ->  | H71: ="" ->  | I71: ="" ->  | J71: ="" ->  | K71: Dell 64 GB Modulo di memoria - LRDIMM 2666MHz | L71: 10 | M71: CNV-TS1L1-64GB-U | N71: TS1L1-64GB-U | O71: A9781930 | P71: =$G$3*L71 -> 3130
A72: 768 | B72: ="" ->  | C72: ="" ->  | D72: ="" ->  | E72: ="" ->  | F72: ="" ->  | G72: ="" ->  | H72: ="" ->  | I72: ="" ->  | J72: ="" ->  | K72: Dell 64 GB Modulo di memoria - LRDIMM 2666MHz | L72: 12 | M72: CNV-TS1L1-64GB-U | N72: TS1L1-64GB-U | O72: A9781930 | P72: =$G$3*L72 -> 3756
A73: 2CPU
A74: 64 | B74: ="" ->  | C74: ="" ->  | D74: ="" ->  | E74: ="" ->  | F74: ="" ->  | G74: ="" ->  | H74: Dell 32 GB Modulo di memoria - RDIMM 2666MHz | I74: 2 | J74: [370-ADNF] | K74: ="" ->  | L74: ="" ->  | M74: ="" ->  | N74: ="" ->  | O74: ="" ->  | P74: ="" -> 
A75: 128 | B75: Dell 32 GB Modulo di memoria - RDIMM 2666MHz | C75: 2 | D75: CNV-TS1L1-32GB-U | E75: TS1L1-32GB-U | F75: A9781929 | G75: =$G$3*C75 -> 626 | H75: Dell 32 GB Modulo di memoria - RDIMM 2666MHz | I75: 2 | J75: [370-ADNF] | K75: ="" ->  | L75: ="" ->  | M75: ="" ->  | N75: ="" ->  | O75: ="" ->  | P75: ="" -> 
A76: 192 | B76: Dell 32 GB Modulo di memoria - RDIMM 2666MHz | C76: 4 | D76: CNV-TS1L1-32GB-U | E76: TS1L1-32GB-U | F76: A9781929 | G76: =$G$3*C76 -> 1252 | H76: Dell 32 GB Modulo di memoria - RDIMM 2666MHz | I76: 2 | J76: [370-ADNF] | K76: ="" ->  | L76: ="" ->  | M76: ="" ->  | N76: ="" ->  | O76: ="" ->  | P76: ="" -> 
A77: 256 | B77: Dell 32 GB Modulo di memoria - RDIMM 2666MHz | C77: 6 | D77: CNV-TS1L1-32GB-U | E77: TS1L1-32GB-U | F77: A9781929 | G77: 1878 | H77: Dell 32 GB Modulo di memoria - RDIMM 2666MHz | I77: 2 | J77: [370-ADNF] | K77: ="" ->  | L77: ="" ->  | M77: ="" ->  | N77: ="" ->  | O77: ="" ->  | P77: ="" -> 
A78: 320 | B78: Dell 32 GB Modulo di memoria - RDIMM 2666MHz | C78: 8 | D78: CNV-TS1L1-32GB-U | E78: TS1L1-32GB-U | F78: A9781929 | G78: 2504 | H78: Dell 32 GB Modulo di memoria - RDIMM 2666MHz | I78: 2 | J78: [370-ADNF] | K78: ="" ->  | L78: ="" ->  | M78: ="" ->  | N78: ="" ->  | O78: ="" ->  | P78: ="" -> 
A79: 384 | B79: Dell 32 GB Modulo di memoria - RDIMM 2666MHz | C79: 10 | D79: CNV-TS1L1-32GB-U | E79: TS1L1-32GB-U | F79: A9781929 | G79: 3130 | H79: Dell 32 GB Modulo di memoria - RDIMM 2666MHz | I79: 2 | J79: [370-ADNF] | K79: ="" ->  | L79: ="" ->  | M79: ="" ->  | N79: ="" ->  | O79: ="" ->  | P79: ="" -> 
A80: =32*(C80+I80) -> 512 | B80: Dell 32 GB Modulo di memoria - RDIMM 2666MHz | C80: 14 | D80: CNV-TS1L1-32GB-U | E80: TS1L1-32GB-U | F80: A9781929 | G80: 4382 | H80: Dell 32 GB Modulo di memoria - RDIMM 2666MHz | I80: 2 | J80: [370-ADNF] | K80: ="" ->  | L80: ="" ->  | M80: ="" ->  | N80: ="" ->  | O80: ="" ->  | P80: ="" -> 
A81: =32*(C81+I81) -> 640 | B81: Dell 32 GB Modulo di memoria - RDIMM 2666MHz | C81: 18 | D81: CNV-TS1L1-32GB-U | E81: TS1L1-32GB-U | F81: A9781929 | G81: 5634 | H81: Dell 32 GB Modulo di memoria - RDIMM 2666MHz | I81: 2 | J81: [370-ADNF] | K81: ="" ->  | L81: ="" ->  | M81: ="" ->  | N81: ="" ->  | O81: ="" ->  | P81: ="" -> 
A82: =32*(C82+I82) -> 768 | B82: Dell 32 GB Modulo di memoria - RDIMM 2666MHz | C82: 22 | D82: CNV-TS1L1-32GB-U | E82: TS1L1-32GB-U | F82: A9781929 | G82: 6886 | H82: Dell 32 GB Modulo di memoria - RDIMM 2666MHz | I82: 2 | J82: [370-ADNF] | K82: ="" ->  | L82: ="" ->  | M82: ="" ->  | N82: ="" ->  | O82: ="" ->  | P82: ="" -> 
A83: =64*L83 -> 1024 | B83: ="" ->  | C83: ="" ->  | D83: ="" ->  | E83: ="" ->  | F83: ="" ->  | G83: ="" ->  | H83: ="" ->  | I83: ="" ->  | J83: ="" ->  | K83: Dell 64 GB Modulo di memoria - LRDIMM 2666MHz | L83: 16 | M83: CNV-TS1L1-64GB-U | N83: TS1L1-64GB-U | O83: A9781930 | P83: =$G$5*L83 -> 10000
A84: =64*L84 -> 1280 | B84: ="" ->  | C84: ="" ->  | D84: ="" ->  | E84: ="" ->  | F84: ="" ->  | G84: ="" ->  | H84: ="" ->  | I84: ="" ->  | J84: ="" ->  | K84: Dell 64 GB Modulo di memoria - LRDIMM 2666MHz | L84: 20 | M84: CNV-TS1L1-64GB-U | N84: TS1L1-64GB-U | O84: A9781930 | P84: =$G$5*L84 -> 12500
A85: 1536 | B85: ="" ->  | C85: ="" ->  | D85: ="" ->  | E85: ="" ->  | F85: ="" ->  | G85: ="" ->  | H85: ="" ->  | I85: ="" ->  | J85: ="" ->  | K85: Dell 64 GB Modulo di memoria - LRDIMM 2666MHz | L85: 24 | M85: CNV-TS1L1-64GB-U | N85: TS1L1-64GB-U | O85: A9781930 | P85: =$G$5*L85 -> 15000

Sheet Processor (hidden)
C1: CNV-TS1L1-CPU-R640 | D1: Intel Xeon Silver 4114 | F1: Upgrade Processore per R640 | L1: TS1L1-CPU-R640 | O1: 728
C2: CNV-TS1L1-CPU-T640R | D2: Intel Xeon Silver 4114 | F2: Upgrade Processore per T640 rack | L2: TS1L1-CPU-T640R | O2: 728
C3: CNV-TS1L1-CPU-R740 | D3: Intel Gold 5120 | F3: Upgrade Processore per R740 | L3: TS1L1-CPU-R740 | O3: 1307
C4: CNV-TS1L1-CPU-R740XD | D4: Intel Gold 5120 | F4: Upgrade Processore per R740xd | L4: TS1L1-CPU-R740X | O4: 1307
C5: CNV-TS1L1-CPU-T640 | D5: Intel Xeon Silver 4114 | F5: Upgrade Processore per T640 base | L5: TS1L1-CPU-T640 | O5: 650
C6: CNV-TS1L1-CPU-T640P | D6: Intel Xeon Silver 4116 | F6: Upgrade Processore per T640 prestazionale | L6: TS1L1-CPU-T640P | O6: 917
A8: Additional Processor
A9: Server R630 | C9: CPU-A
A10: No Additional Processor | B10: 0 | C10: ="" ->  | E10: [374-BBBX] | F10: ="" ->  | G10: ="" ->  | H10: ="" ->  | L10: 5 Standard Fans for R640 | M10: 1 | N10: [384-BBPR]
A11: Intel Xeon Silver 4114 2.2G, 10C/20T, 9.6GT/s 2UPI, 14M Cache, Turbo, HT (85W) | B11: 1 | C11: CNV-TS1L1-CPU-R640 | D11: TS1L1-CPU-R640 | E11: 338-BLTV | F11: Heat sink for PowerEdge R640 for CPUs up to 165W | G11: 1 | H11: 412-AAMF | L11: 8 Standard Fans for R640 | M11: 1 | N11: [384-BBPR][384-BBQF] | O11: 728
A13: Server R740xd | C13: CPU-B
A14: No Additional Processor | B14: 0 | C14: ="" ->  | E14: [374-BBBX] | F14: ="" ->  | G14: ="" ->  | H14: ="" ->  | I14: 4 Standard Fans for R740/740XD | J14: 1 | K14: [384-BBQB] | L14: Riser Config 1, 4 x8 slots | M14: 1 | N14: [330-BBGZ] | P14: ="" -> 
A15: Intel Xeon Gold 5120 2.2G, 14C/28T, 10.4GT/s, 19M Cache, Turbo, HT (105W) | B15: 1 | C15: CNV-TS1L1-CPU-R740XD | D15: TS1L1-CPU-R740X | E15: 338-BLUB | F15: Heat Sink for R740/R740XD,125W or lower CPU | G15: 1 | H15: 412-AAMC | I15: 6 Standard Fans for R740/740XD | J15: 1 | K15: [384-BBQB] [384-BBSD] | L15: Riser Config 5, 6 x8, 2 x16 slots | M15: 1 | N15: [330-BBGZ][330-BBLT][330-BBLS] | O15: 1307
A17: Server R740 | C17: CPU-B.1
A18: No Additional Processor | B18: 0 | C18: ="" ->  | E18: [374-BBBX] | F18: ="" ->  | G18: ="" ->  | H18: ="" ->  | I18: 4 Standard Fans for R740/740XD | J18: 1 | K18: [384-BBQB] | L18: Riser Config 1, 4 x8 slots | M18: 1 | N18: [330-BBGZ] | P18: ="" -> 
A19: Intel Xeon Gold 5120 2.2G, 14C/28T, 10.4GT/s, 19M Cache, Turbo, HT (105W) | B19: 1 | C19: CNV-TS1L1-CPU-R740 | D19: TS1L1-CPU-R740 | E19: 338-BLUB | F19: Heat Sink for R740/R740XD,125W or lower CPU | G19: 1 | H19: 412-AAMC | I19: 6 Standard Fans for R740/740XD | J19: 1 | K19: [384-BBQB] [384-BBSD] | L19: Riser Config 5, 6 x8, 2 x16 slots | M19: 1 | N19: [330-BBGZ][330-BBLT][330-BBLS] | O19: 1307
A21: Server T640 Rack | C21: CPU-C
A22: No Additional Processor | B22: 0 | C22: ="" ->  | E22: [374-BBBX] | F22: ="" ->  | G22: ="" ->  | H22: ="" ->  | P22: ="" -> 
A23: Intel Xeon Silver 4114 2.2G, 10C/20T, 9.6GT/s 2UPI, 14M Cache, Turbo, HT (85W) | B23: 1 | C23: CNV-TS1L1-CPU-T640R | D23: TS1L1-CPU-T640R | E23: 338-BLTV | F23: Heat Sink, T640/440, EMEA | G23: 1 | H23: 412-AAMS | O23: 728
A25: Server T640 Tower Base | C25: CPU-D
A26: No Additional Processor | B26: 0 | C26: ="" ->  | E26: [374-BBBX] | F26: ="" ->  | G26: ="" ->  | H26: ="" ->  | P26: ="" -> 
A27: Intel Xeon Silver 4114 2.2G, 10C/20T, 9.6GT/s 2UPI, 14M Cache, Turbo, HT (85W) | B27: 1 | C27: CNV-TS1L1-CPU-T640 | D27: TS1L1-CPU-T640 | E27: 338-BLTV | F27: Heat Sink, T640/440, EMEA | G27: 1 | H27: 412-AAMS | O27: 650
A29: Server T640 Tower Prestazionale | C29: CPU-E
A30: No Additional Processor | B30: 0 | C30: ="" ->  | E30: [374-BBBX] | F30: ="" ->  | G30: ="" ->  | H30: ="" ->  | P30: ="" -> 
A31: Intel Xeon Silver 4116 2.1G, 12C/24T, 9.6GT/s , 16.5M Cache, Turbo, HT (85W) | B31: 1 | C31: CNV-TS1L1-CPU-T640P | D31: TS1L1-CPU-T640P | E31: 338-BLTW | F31: Heat Sink, T640/440, EMEA | G31: 1 | H31: 412-AAMS | O31: 917
A34: Processore
A35: Intel Xeon E5-2640 v4 2.4GHz 25M Cache 8.0GT/s QPI Turbo HT 10C/20T (90W) Max Mem 2133MHz | B35: 1 | C35: ="" ->  | D35: ="" ->  | E35: [338-BJDL]
A38: Intel Xeon E5-2643 v4 3.4GHz,20M Cache,9.60GT/s QPI,Turbo,HT,6C/12T (135W) Max Mem 2400MHz,processor only,Cust Kit | B38: 1 | C38: =CONCATENATE("TS1-L1-",E38) -> TS1-L1-338-BJFF | D38: TS1-L1-338-BJFF | E38: 338-BJFF | F38: 2629.99
A39: Intel Xeon E5-2697 v4 2.3GHz,45M Cache,9.60GT/s QPI,Turbo,HT,18C/36T (145W) Max Mem 2400MHz,processor only, Cust Kit | B39: 1 | C39: =CONCATENATE("TS1-L1-",E39) -> TS1-L1-338-BJES | D39: TS1-L1-338-BJES | E39: 338-BJES | F39: 4574.99
A42: Intel Xeon E5-2643 v4 3.4GHz,20M Cache,9.60GT/s QPI,Turbo,HT,6C/12T (135W) Max Mem 2400MHz,processor only,Cust Kit | B42: 1 | C42: =CONCATENATE("TS1-L1-",E42) -> TS1-L1-338-BJFF | D42: TS1-L1-338-BJFF | E42: 338-BJFF | F42: Kit - 120W Heatsink for PowerEdge R630 | G42: 1 | H42: [412-AAFB] | L42: R630 PCIe Riser for up to 2, x16 PCIe Slots for x8, 2 PCIe Chassis with 2 Processors,CusKit | M42: 1 | N42: [330-BBCM] | P42: 2629.99
A43: Intel Xeon E5-2697 v4 2.3GHz,45M Cache,9.60GT/s QPI,Turbo,HT,18C/36T (145W) Max Mem 2400MHz,processor only, Cust Kit | B43: 1 | C43: =CONCATENATE("TS1-L1-",E43) -> TS1-L1-338-BJES | D43: TS1-L1-338-BJES | E43: 338-BJES | F43: Kit - 120W Heatsink for PowerEdge R630 | G43: 1 | H43: [412-AAFB] | L43: R630 PCIe Riser for up to 2, x16 PCIe Slots for x8, 2 PCIe Chassis with 2 Processors,CusKit | M43: 1 | N43: [330-BBCM] | P43: 4574.99
A46: Aggiungere Secondo Processore

Sheet Codici (hidden)
A1: Codici | H1: CODICE CONVERGE | J1: CODICE CONVENZIONE | L1: Nr. Offerta | M1: Version | O1: Product Number | P1: Description | Q1: Qty | R1: Prezzo Listino | S1: Offering | T1: TOTAL Offering | U1: Prezzo CONSIP
A2: TS1L1-R630 | B2: Rack Base | C2: 1720 | D2: 1 | E2: Server DELL EMC PowerEdge R630, 1U, 1 x Intel Xeon E5-2640 v4, RAM 32GB, 2 x HDD 300GB 10k 2.5" | H2: TS1L1-R630 | I2: =LEN(H2) -> 10 | J2: TS1L1-R630 | K2: =LEN(J2) -> 10 | L2: 15900100 | M2: 12 | Q2: 1 | R2: 5608 | T2: =SUMPRODUCT(Q2:Q25,S2:S25) -> 0 | U2: 1720
A3: CNV-TS1L1-R640 | B3: Rack Base | C3: 1720 | D3: 1 | E3: Server DELL EMC PowerEdge R640, 1U, 1 x Intel Xeon Silver 4114, RAM 32GB, 2 x HDD 600GB 10k 2.5"
A5: CNV-TS1L1-CPU-R640 | B5: Opz1P | C5: 728 | D5: 1 | E5: Intel Xeon Processor Silver 4114 [Intel Xeon Silver 4114 2.2G, 10C/20T, 9.6GT/s 2UPI, 14M Cache, Turbo, HT (85W)]
A6: CNV-TS1L1-WIN1 | B6: OpzWinServ1 | C6: 598 | D6: 1 | E6: Windows Server 2016,Standard,ROK,16CORE (for Distributor sale only)
A7: CNV-TS1L1-CALDEV | B7: OpzDeviceCal | C7: 22 | D7: 1 | E7: 1-pack of Windows Server 2016,2012 Device CALs (Standard or Datacenter),CUS
A8: CNV-TS1L1-CALUSER | B8: OpzUserCal | C8: 25 | D8: 1 | E8: 1-pack of Windows Server 2016,2012 User CALs (Standard or Datacenter),CUS
A9: CNV-TS1L1-WIN2CORE | B9: OpzWinServ 2 core | C9: 75 | E9: Windows Server 2016 Standard Ed, Additional Lic,ROK,2CORE
A10: CNV-TS1L1-LINUX | B10: OpzOpenSource | C10: 47 | E10: DVD Linux Centos 7.x
A11: CNV-TS1L1-16GB-U | B11: OpzRam16 | C11: 122 | D11: 1 | E11: Kit Upgrade Ram 16GB
A12: CNV-TS1L1-32GB-U | B12: OpzRam32 | C12: 313 | D12: 1 | E12: Kit Upgrade Ram 32GB
A13: CNV-TS1L1-64GB-U | B13: OpzRam64 | C13: 618 | D13: 1 | E13: Kit Upgrade Ram 64GB
A14: CNV-TS1L1-1GB-L | B14: OpzGigabit | C14: 35 | D14: 1 | E14: Scheda Lan Gigabit Low (Broadcom 5720 DP 1Gb Network Interface Card, Low Profile,CusKit)
A15: CNV-TS1L1-1GB | B15: OpzGigabit | C15: 35 | D15: 1 | E15: Scheda Lan Gigabit Full (Broadcom 5720 DP 1Gb Network Interface Card,Full Height,CusKit)
A16: CNV-TS1L1-10GB-L | B16: OpzGigabit 10GB | C16: 147 | D16: 1 | E16: QLogic 57810 Dual Port 10Gb Low (QLogic 57810 Dual Port 10Gb Direct Attach/SFP+ Low Profile Network Adapter,CusKit)
D17: 2 | E17: PowerEdge SFP+, 10GbE SR/SX, Optical Tranceiver, LC Connector, for Intel and Broadcom,CusKit
A18: CNV-TS1L1-10GB | B18: OpzGigabit 10GB | C18: 147 | D18: 1 | E18: QLogic 57810 Dual Port 10Gb Full (QLogic 57810 Dual Port 10Gb Direct Attach/SFP+ Network Adapter,Full Height,CusKit)
D19: 2 | E19: PowerEdge SFP+, 10GbE SR/SX, Optical Tranceiver, LC Connector, for Intel and Broadcom,CusKit
A20: CNV-TS1L1-CNA-L | B20: OpzGigabit 10GB CNA | C20: 147 | D20: 1 | E20: QLogic 57810 Dual Port 10Gb CNA Low (QLogic 57810 Dual Port 10Gb Direct Attach/SFP+ (CNA), Low Profile,CusKit)
D21: 2 | E21: PowerEdge SFP+, 10GbE SR/SX, Optical Tranceiver, LC Connector, for Intel and Broadcom,CusKit
A22: CNV-TS1L1-CNA | B22: OpzGigabit 10GB CNA | C22: 147 | D22: 1 | E22: QLogic 57810 DualPort 10GbCNA Full (QLogic 57810 Dual Port 10Gb Direct Attach/SFP+ (CNA),Full Height,CusKit)
D23: 2 | E23: PowerEdge SFP+, 10GbE SR/SX, Optical Tranceiver, LC Connector, for Intel and Broadcom,CusKit
A24: CNV-S1-540-BBIU | B24: Opz10Gb BaseT | C24: 248 | D24: 1 | E24: QLogic 57810 Dual Port 10Gb Base-T, Low Profile
A25: CNV-TS1L1-FC | B25: OpzFibreChannel | C25: 311 | D25: 1 | E25: QLogic 2560 SP Full (QLogic 2560, Single Port 8Gb Optical Fibre Channel HBA,Full Height,CusKit) | P25: Cavi di rete
A26: CNV-TS1L1-FC-L | B26: OpzFibreChannel | C26: 311 | D26: 1 | E26: QLogic 2560 SP Low (QLogic 2560, Single Port 8Gb Optical Fibre Channel HBA,Low Profile,CusKit) | G26: R630 | H26: CODICE CONVERGE | J26: CODICE CONVENZIONE | O26: Product Number | P26: Description | Q26: Qty | R26: Prezzo Listino | S26: Offering | T26: TOTAL Offering | U26: Prezzo CONSIP
A27: CNV-TS1L1-4Y-R640 | B27: OpzEstensione12 | C27: 42 | D27: 1 | E27: Estensione della manutenzione in garanzia per ulteriori 12 mesi | G27: OpzUserCal | H27: TS1L1-CALUSER | I27: =LEN(H27) -> 13 | J27: TS1L1-CALUSER-R630 | K27: =LEN(J27) -> 18 | L27: 15902257 | M27: 11 | O27: 623-BBCC | P27: 1-pack of Windows Server 2016,2012 User CALs (Standard or Datacenter),CUS | Q27: 1 | R27: 57 | T27: =S27*Q27 -> 0 | U27: 25
A28: CNV-TS1L1-5Y-R640 | B28: OpzEstensione24 | C28: 85 | D28: 1 | E28: Estensione della manutenzione in garanzia per ulteriori 24 mesi | L28: 15911903 | M28: 5 | O28: 623-BBBY | P28: 5-pack of Windows Server 2016 USER CALs (Standard or Datacenter),CUS | R28: 125
A29: CNV-TS1L1-HD600 | B29: OpzStorage300 | C29: 120 | D29: 1 | E29: HDD 600GB SAS (600GB 10K RPM SAS 12Gbps 2.5in Hot-plug Hard Drive) | G29: OpzWinServ 2 core | H29: TS1L1-WIN2CORE | I29: =LEN(H29) -> 14 | J29: TS1L1-WIN2CORE-R630 | K29: 19 | L29: 15902257 | M29: 11 | O29: 634-BJQW | P29: Windows Server 2016 Standard Ed, Additional Lic,ROK,2CORE | Q29: 1 | R29: 83 | T29: 0 | U29: 75
A30: CNV-TS1L1-HD1200-U | B30: OpzStorage1Tb | C30: 212 | D30: 1 | E30: HDD 1.2TB SAS (1.2TB 10K RPM SAS 12Gbps 2.5in Hot-plug Hard Drive,CusKit) | G30: OpzOpenSource | H30: TS1L1-LINUX | I30: =LEN(H30) -> 11 | J30: TS1L1-LINUX-R630 | K30: 16 | T30: 0 | U30: 47
A31: CNV-TS1L1-HD1800-U | B31: OpzStorage2Tb | C31: 236 | D31: 1 | E31: 1.8TB 10K RPM SAS 12Gbps 512e 2.5in Hot-plug
A32: CNV-TS1L1-SSD800-U | B32: OpzStorageSSD800 | C32: 748 | D32: 1 | E32: 960GB SSD SAS Mix Use 512n 2.5in Hot-plug
A33: CNV-TS1L1-SSD1920-U | B33: OpzStorageSSD1,6TB | C33: 1795 | D33: 1 | E33: 1.92TB SSD SAS Mix Use 12Gbps 512n 2.5in Hot-plug
A34: CNV-S1-IDSDMCCR | B34: Opz IDSDMCCR | C34: 82 | D34: 1 | E34: ISDM and Combo Card Reader, with 2 16Gb microSDHC/SDXC Card | G34: Opz1P | H34: TS1L1-CPU-R630 | I34: =LEN(H34) -> 14 | J34: TS1L1-CPU-R630 | K34: 14 | L34: 15902257 | M34: 11 | O34: 338-BJET | P34: Intel Xeon E5-2640 v4 2.4GHz,25M Cache,8.0GT/s QPI,Turbo,HT,10C/20T (90W) Max Mem 2133MHz,processor only,Cust Kit | Q34: 1 | R34: 1262.99 | T34: =SUMPRODUCT(Q34:Q36,S34:S36) -> 0 | U34: 728
A35: CNV-S1-406-BBEL | B35: OpzFibreChannelDP | C35: 810 | D35: 1 | E35: QLogic 2562 DP Low (QLogic 2560, Dual Port 8Gb Optical Fibre Channel HBA,Low Profile) | O35: 412-AAFB | P35: Kit - 120W Heatsink for PowerEdge R630 | Q35: 1 | R35: 59.99
A36: CNV-1UBezelSTD | B36: Opz BezelStandard | C36: 25 | D36: 1 | E36: PowerEdge 1U Standard Bezel | I36: =LEN(H36) -> 0 | K36: 0 | O36: 330-BBCM | P36: R630 PCIe Riser for up to 2, x16 PCIe Slots for x8, 2 PCIe Chassis with 2 Processors,CusKit | Q36: 1 | R36: 29.99
A37: CNV-1UBezelLCD | B37: Opz BezelLCD | C37: 50 | D37: 1 | E37: PowerEdge 1U LCD Bezel | G37: OpzRam16 | H37: TS1L1-16GB | I37: 10 | J37: TS1L1-16GB-R630 | K37: 15 | L37: 15902257 | M37: 11 | O37: A8711887 | P37: Dell 16 GB Modulo di memoria da determinati - 2RX8 RDIMM 2400MHz | Q37: 1 | R37: 333.74 | T37: =S37*Q37 -> 0 | U37: 122
A38: CNV-1UCMA | B38: Opz CMA 1U | C38: 38 | D38: 1 | E38: Cable Management Arm 1U | G38: OpzRam32 | H38: TS1L1-32GB | I38: 10 | J38: TS1L1-32GB-R630 | K38: 15 | L38: 15902257 | M38: 11 | O38: A8711888 | P38: Dell 32 GB Modulo di memoria da determinati - 2Rx4 DDR4 RDIMM 2400MHz | Q38: 1 | R38: 660.28 | T38: =S38*Q38 -> 0 | U38: 313
A39: CNV-S1-540-BBIU | B39: Opz10Gb BaseT | C39: 248 | D39: 1 | E39: QLogic 57810 Dual Port 10Gb Base-T Low Profile Network Adapter,CusKit | G39: OpzRam64 | H39: TS1L1-64GB | I39: 10 | J39: TS1L1-64GB-R630 | K39: 15 | L39: 15902257 | M39: 11 | O39: A8711890 | P39: Dell 64 GB Modulo di memoria da determinati - 4RX4 DDR4 LRDIMM 2400MHz | Q39: 1 | R39: 1464.62 | T39: =S39*Q39 -> 0 | U39: 618
A40: CNV-S1-405-AANN | B40: Opz H840 | C40: 479 | D40: 1 | E40: PERC H840 RAID Adapter for External MD14XX Only, 2GB NV Cache, Low Profile | G40: OpzGigabit | H40: TS1L1-1GB | I40: 9 | J40: TS1L1-1GB-R630 | K40: 14 | L40: 15902257 | M40: 11 | O40: 540-BBGY | P40: Broadcom 5720 DP 1Gb Network Interface Card,Full Height,CusKit | Q40: 1 | R40: 189.99 | T40: =S40*Q40 -> 0 | U40: 35
H41: TS1L1-1GB-L | I41: 11 | J41: TS1L1-1GB-L-R630 | K41: 16 | L41: 15902257 | M41: 11 | O41: 540-BBGW | P41: Broadcom 5720 DP 1Gb Network Interface Card, Low Profile,CusKit | Q41: 1 | R41: 175.99 | T41: =S41*Q41 -> 0 | U41: 35
G42: OpzGigabit 10 GBs | H42: TS1L1-10GB | I42: 10 | J42: TS1L1-10GB-R630 | K42: =LEN(J42) -> 15 | L42: 15902257 | M42: 11 | O42: 540-BBGS | P42: QLogic 57810 Dual Port 10Gb Direct Attach/SFP+ Network Adapter,Full Height,CusKit | Q42: 1 | R42: 497.99 | T42: =SUMPRODUCT(Q42:Q43,S42:S43) -> 0 | U42: 147
L43: 15902257 | M43: 11 | O43: 407-BBRM | P43: SFP+, Short Range, Optical Transceiver, LC Connector, 10Gb compatible with QLogic 578xx Series, Cuskit | Q43: 2 | R43: 169.99
H44: TS1L1-10GB-L | I44: =LEN(H44) -> 12 | J44: TS1L1-10GB-L-R630 | K44: =LEN(J44) -> 17 | L44: 15902257 | M44: 11 | O44: 540-BBDX | P44: QLogic 57810 Dual Port 10Gb Direct Attach/SFP+ Low Profile Network Adapter,CusKit | Q44: 1 | R44: 497.99 | T44: =SUMPRODUCT(Q44:Q45,S44:S45) -> 0 | U44: 147
L45: 15902257 | M45: 11 | O45: 407-BBRM | P45: SFP+, Short Range, Optical Transceiver, LC Connector, 10Gb compatible with QLogic 578xx Series, Cuskit | Q45: 2 | R45: 169.99
G46: OpzGigabit 10 GBs CNA | H46: TS1L1-CNA | I46: =LEN(H46) -> 9 | J46: TS1L1-CNA-R630 | K46: =LEN(J46) -> 14 | L46: 15902257 | M46: 11 | O46: 540-BBGS | P46: QLogic 57810 Dual Port 10Gb Direct Attach/SFP+ Network Adapter,Full Height,CusKit | Q46: 1 | R46: 497.99 | T46: =SUMPRODUCT(Q46:Q47,S46:S47) -> 0 | U46: 147
L47: 15902257 | M47: 11 | O47: 407-BBRM | P47: SFP+, Short Range, Optical Transceiver, LC Connector, 10Gb compatible with QLogic 578xx Series, Cuskit | Q47: 2 | R47: 169.99
H48: TS1L1-CNA-L | I48: =LEN(H48) -> 11 | J48: TS1L1-CNA-L-R630 | K48: =LEN(J48) -> 16 | L48: 15902257 | M48: 11 | O48: 540-BBDX | P48: QLogic 57810 Dual Port 10Gb Direct Attach/SFP+ Low Profile Network Adapter,CusKit | Q48: 1 | R48: 497.99 | T48: =SUMPRODUCT(Q48:Q49,S48:S49) -> 0 | U48: 147
L49: 15902257 | M49: 11 | O49: 407-BBRM | P49: SFP+, Short Range, Optical Transceiver, LC Connector, 10Gb compatible with QLogic 578xx Series, Cuskit | Q49: 2 | R49: 169.99
A50: TS1L1-FC | B50: OpzFibreChannel | C50: 311 | D50: 1 | E50: QLogic 2560 SP Full (QLogic 2560, Single Port 8Gb Optical Fibre Channel HBA,Full Height,CusKit) | G50: OpzStorage300 | H50: TS1L1-HD300 | I50: =LEN(H50) -> 11 | J50: TS1L1-HD300-R630 | K50: =LEN(J50) -> 16 | L50: 15902257 | M50: 11 | O50: 400-AJOQ | P50: 300GB 10K RPM SAS 12Gbps 2.5in Hot-plug Hard Drive,CusKit | Q50: 1 | R50: 208.99 | T50: =S50*Q50 -> 0 | U50: 120
G51: OpzStorage1Tb | H51: TS1L1-HD1200 | I51: =LEN(H51) -> 12 | J51: TS1L1-HD1200-R630 | K51: =LEN(J51) -> 17 | L51: 15902257 | M51: 11 | O51: 400-AJPD | P51: 1.2TB 10K RPM SAS 12Gbps 2.5in Hot-plug Hard Drive,CusKit | Q51: 1 | R51: 579.99 | T51: 0 | U51: 212
G52: OpzFibreChannel | H52: TS1L1-FC | I52: =LEN(H52) -> 8 | J52: TS1L1-FC-R630 | K52: =LEN(J52) -> 13 | L52: 15902257 | M52: 11 | O52: 406-BBEV | P52: QLogic 2560, Single Port 8Gb Optical Fibre Channel HBA,Full Height,CusKit | Q52: 1 | R52: 1071.99 | T52: 0 | U52: 311
G54: OpzEstensione12 | H54: TS1L1-4ANNI | I54: =LEN(H54) -> 11 | J54: TS1L1-4ANNI-R630 | K54: =LEN(J54) -> 16 | L54: 15911903 | M54: 5 | O54: 732-34071 | P54: 1Yr Basic Warranty - Next Business Day Nr. serial number: R630_4Y | Q54: 1 | R54: 36 | T54: 0 | U54: 42
A55: CNV-TS1L1-UPS | B55: OpzUPS 3000VA | C55: 403 | D55: 1 | E55: UPS MSR 3000 VA | G55: OpzEstensione24 | H55: TS1L1-5ANNI | I55: =LEN(H55) -> 11 | J55: TS1L1-5ANNI-R630 | K55: =LEN(J55) -> 16 | L55: 15911903 | M55: 5 | O55: 732-34072 | P55: 2Yr Basic Warranty - Next Business Day Nr. serial number: R630_5Y | Q55: 1 | R55: 72 | T55: 0 | U55: 85
A57: CNV-TS1L1-GUI | B57: OpzGUIRack | C57: 452 | D57: 1 | E57: Console KVM per rack
A58: CNV-TS1L1-KVMIP | B58: OpzSWGUIRack | C58: 577 | D58: 1 | E58: KVM Switch IP per GUI
A62: CNV-TS1L1-RACK | B62: OpzRack | C62: 487 | E62: Armadio Rack 42U
A64: 10L1-SO-WIN | B64: ServOpzSysManWindows | C64: 193 | D64: 1 | E64: System-Network Mng. svc Windows
A65: 10L1-SO-LINUX | B65: ServOpzSysManOS | C65: 193 | D65: 1 | E65: System-Network Mng. svc Linux
A66: 10L1-SO-PREV | B66: Manutenzione Preventiva | C66: 193 | D66: 1 | E66: Servizi di manutenzione Preventiva
A67: 10L1-SO-HDD | B67: Hard-Disk retention | C67: 150 | D67: 1 | E67: Servizio HDD Retention
D68: 1 | E68: Servizio HDD Retention 36 mesi
D69: 1 | E69: Servizio HDD Retention 48 mesi
D70: 1 | E70: Servizio HDD Retention 60 mesi
A71: 10L1-SO-12M-P | B71: OpzEstensione12 | C71: 175 | D71: 1 | E71: Estensione garanzia 12 mesi Agg.
A72: 10L1-SO-24M-P | B72: OpzEstensione24 | C72: 350 | D72: 1 | E72: Estensione garanzia 24 mesi Agg.
A73: COD_B
A74: CNV-TS1L1-R740XD | B74: Rack Prestazionale Alternativo | C74: 2371 | D74: 1 | E74: Server DELL EMC PowerEdge R740xd, 2U, 1 x Intel Xeon Gold 5120, RAM 64GB, 2 x HDD 600GB 10k 2.5"
A75: CNV-TS1L1-R740 | B75: Rack Prestazionale | C75: 2371 | D75: 1 | E75: Server DELL EMC PowerEdge R740, 2U, 1 x Intel Xeon Gold 5120, RAM 64GB, 2 x HDD 600GB 10k 2.5"
A76: CNV-TS1L1-T640R | B76: Rack Base Alternativo | C76: 1720 | D76: 1 | E76: Server DELL EMC PowerEdge T640, 5U, 1 x Intel Xeon Silver 4114, RAM 32GB, 2 x HDD 600GB 10k 2.5"
A77: CNV-TS1L1-WIN1 | B77: OpzWinServ1 | C77: 598 | D77: 1 | E77: Windows Server 2016,Standard,ROK,16CORE (for Distributor sale only)
A78: CNV-TS1L1-CALDEV | B78: OpzDeviceCal | C78: 22 | D78: 1 | E78: 1-pack of Windows Server 2016,2012 Device CALs (Standard or Datacenter),CUS
A79: CNV-TS1L1-CALUSER | B79: OpzUserCal | C79: 25 | D79: 1 | E79: 1-pack of Windows Server 2016,2012 User CALs (Standard or Datacenter),CUS
A80: CNV-TS1L1-WIN2CORE | B80: OpzWinServ 2 core | C80: 75 | E80: Windows Server 2016 Standard Ed, Additional Lic,ROK,2CORE
A81: CNV-TS1L1-LINUX | B81: OpzOpenSource | C81: 47 | E81: DVD Linux Centos 7.x
A82: CNV-TS1L1-16GB-U | B82: OpzRam16 | C82: 122 | D82: 1 | E82: Kit Upgrade Ram 16GB
A83: CNV-TS1L1-32GB-U | B83: OpzRam32 | C83: 313 | D83: 1 | E83: Kit Upgrade Ram 32GB
A84: CNV-TS1L1-64GB-U-R74 | B84: OpzRam64 | C84: 625 | D84: 1 | E84: Kit Upgrade Ram 64GB
A85: CNV-TS1L1-1GB-L | B85: OpzGigabit | C85: 35 | D85: 1 | E85: Broadcom 5720 DP 1Gb Network Interface Card, Low Profile,CusKit
A86: CNV-TS1L1-10GB-L | B86: OpzGigabit 10GB | C86: 147 | D86: 1 | E86: QLogic 57810 Dual Port 10Gb Direct Attach/SFP+ Low Profile Network Adapter,CusKit
A87: CNV-TS1L1-CNA-L | B87: OpzGigabit 10GB CNA | C87: 147 | D87: 1 | E87: QLogic 57810 Dual Port 10Gb CNA Direct Attach/SFP+ Low Profile Network Adapter,CusKit
A88: CNV-S1-540-BBIU | B88: Opz10Gb BaseT | C88: 248 | D88: 1 | E88: QLogic 57810 Dual Port 10Gb Base-T Low Profile Network Adapter,CusKit
A89: CNV-S1-405-AANN | B89: Opz H840 | C89: 479 | D89: 1 | E89: PERC H840 RAID Adapter for External MD14XX Only, 2GB NV Cache, Low Profile
A90: CNV-TS1L1-FC-L | B90: OpzFibreChannel | C90: 311 | E90: QLogic 2560, Single Port 8Gb Optical Fibre Channel HBA,Low Profile
A91: CNV-S1-406-BBEL | B91: OpzFibreChannel2 | C91: 810 | E91: QLogic 2562, Dual Port 8Gb Optical Fibre Channel HBA, Low Profile
A92: CNV-TS1L1-1GB | B92: OpzGigabit | C92: 35 | D92: 1 | E92: Broadcom 5720 DP 1Gb Network Interface Card,Full Height,CusKit
A93: CNV-TS1L1-10GB | B93: OpzGigabit 10GB | C93: 147 | D93: 1 | E93: QLogic 57810 Dual Port 10Gb Direct Attach/SFP+ Network Adapter,Full Height,CusKit
A94: CNV-TS1L1-CNA | B94: OpzGigabit 10GB CNA | C94: 147 | D94: 1 | E94: QLogic 57810 Dual Port 10Gb CNA Direct Attach/SFP+ Network Adapter,Full Height,CusKit
A95: CNV-S1-540-BBGU | B95: Opz10Gb BaseT | C95: 248 | D95: 1 | E95: QLogic 57810 Dual Port 10Gb Base-T Network Adapter,Full Height
A96: CNV-TS1L1-540-BBIW | B96: OpzX710quadPort | C96: 370 | D96: 1 | E96: Intel X710 Quad Port 10Gb Direct Attach, SFP+, Converged Network Adapter NO Transceiver
A97: CNV-TS1L1-540-BBIV | B97: OpzX710 | C97: 350 | D97: 1 | E97: Intel X710 Dual Port 10Gb Direct Attach, SFP+, Converged Network Adapter NO Transceiver
A98: CNV-S1-405-AAMZ | B98: OpzH840 | C98: 479 | D98: 1 | E98: PERC H840 RAID Adapter for External MD14XX Only, 2GB NV Cache
A99: CNV-TS1-BOSS | B99: OpzBOSS | C99: 657 | D99: 1 | E99: BOSS controller card, full height, 2 x 240G M.2 Drive
A100: CNV-TS1-BOSS120 | B100: OpzBOSS120 | C100: 425 | D100: 1 | E100: BOSS controller card, full height, 2 x 120G M.2 Drive
A101: CNV-TS1L1-403-BBTM | B101: OpzNVMe2TB | C101: 2570 | D101: 1 | E101: Intel 2TB, NVMe, Mixed Use Express Flash, HHHL AIC, P4600
A102: CNV-TS1L1-FC | B102: OpzFibreChannel | C102: 311 | D102: 1 | E102: QLogic 2560, Single Port 8Gb Optical Fibre Channel HBA,Full Height,CusKit
A103: CNV-S1-406-BBEK | B103: OpzFibreChannel2 | C103: 810 | D103: 1 | E103: QLogic 2562, Dual Port 8Gb Optical Fibre Channel HBA,Full Height,CusKit
A104: CNV-2UCMA | B104: Opz CMA 2U | C104: 62 | D104: 1 | E104: Cable Management Arm 2U
A105: CNV-TS1L1-HD600 | B105: OpzStorage300 | C105: 120 | D105: 1 | E105: HDD 600GB SAS (600GB 10K RPM SAS 12Gbps 2.5in Hot-plug Hard Drive)
A106: CNV-TS1L1-HD1200-U | B106: OpzStorage1Tb | C106: 212 | D106: 1 | E106: HDD 1.2TB SAS (1.2TB 10K RPM SAS 12Gbps 2.5in Hot-plug Hard Drive,CusKit)
A107: CNV-TS1L1-HD1800-U | B107: OpzStorage2Tb | C107: 236 | D107: 1 | E107: 1.8TB 10K RPM SAS 12Gbps 512e 2.5in Hot-plug
A108: CNV-TS1L1-SSD800-U | B108: OpzStorageSSD800 | C108: 748 | D108: 1 | E108: 960GB SSD SAS Mix Use 512n 2.5in Hot-plug
A109: CNV-TS1L1-SSD1920-U | B109: OpzStorageSSD1,6TB | C109: 1795 | D109: 1 | E109: 1.92TB SSD SAS Mix Use 12Gbps 512n 2.5in Hot-plug
A110: CNV-S1-IDSDMCCR | B110: Opz IDSDMCCR | C110: 82 | D110: 1 | E110: ISDM and Combo Card Reader, with 2 16Gb microSDHC/SDXC Card
A111: CNV-2UBezelSTD | B111: Opz BezelStandard 2U | C111: 30 | D111: 1 | E111: PowerEdge 2U Standard Bezel
A112: CNV-2UBezelLCD | B112: Opz BezelLCD 2U | C112: 60 | D112: 1 | E112: PowerEdge 2U LCD Bezel
A113: CNV-874-006887 | B113: OpzSUSE1 | C113: 1350 | D113: 1 | E113: SUSE Linux Enterprise Server, x86 & x86-64, 1-2 Sockets or 1-2 Virtual Machines, Standard Subscription, 3 Years
A114: CNV-874-006898 | B114: OpzSUSE2 | C114: 2242.5 | D114: 1 | E114: SUSE Linux Enterprise Server, x86 & x86-64, 1-2 Sockets or 1-2 Virtual Machines, Standard Subscription, 5 Years
A115: CNV-874-006888 | B115: OpzSUSE3 | C115: 2692.5 | D115: 1 | E115: SUSE Linux Enterprise Server, x86 & x86-64, 1-2 Sockets with Unlimited Virtual Machines, Standard Subscription, 3 Years
A116: CNV-874-006902 | B116: OpzSUSE4 | C116: 4500 | D116: 1 | E116: SUSE Linux Enterprise Server, x86 & x86-64, 1-2 Sockets with Unlimited Virtual Machines, Standard Subscription, 5 Years
A117: CNV-874-006883 | B117: OpzSUSE5 | C117: 2520 | D117: 1 | E117: SUSE Linux Enterprise Server, x86 & x86-64, 1-2 Sockets or 1-2 Virtual Machines, Priority Subscription, 3 Year
A118: CNV-874-006894 | B118: OpzSUSE6 | C118: 4200 | D118: 1 | E118: SUSE Linux Enterprise Server, x86 & x86-64, 1-2 Sockets or 1-2 Virtual Machines, Priority Subscription, 5 Year
A119: CNV-874-006884 | B119: OpzSUSE7 | C119: 5100 | D119: 1 | E119: SUSE Linux Enterprise Server, x86 & x86-64, 1-2 Sockets with Unlimited Virtual Machines, Priority Subscription, 3 Year
A120: CNV-874-006895 | B120: OpzSUSE8 | C120: 8400 | D120: 1 | E120: SUSE Linux Enterprise Server, x86 & x86-64, 1-2 Sockets with Unlimited Virtual Machines, Priority Subscription, 5 Year
